Workbook

Sheet Cover

Sheet Manual
B2: USER MANUAL
B5: INTRODUCTION
C7: The purpose of this feasibility tool is to run scenario's in the feasibility phase of a project in order to get a general idea of its revenues, costs and profitability over time.
C8: As this is a generic model with limited details included, the tool is not recommended to be used as a banking model.
B11: HOW TO USE THE FINANCIAL MODEL
B13: Instructions
C15: Step 1
C16: Enter the data of the required scenario's by editing the 'yellow' input cells in the Cockpit and TBA sheet.
C17: Cockpit: Next to the process specific paramaters, the model returns input suggestions from the Database as a reference point.
C18: TBA: Only edit the input cells when the CAPEX investment profile and/or the occupancy rate need to be changed.
C19: Important: the 'yellow' input cells are the only cells the user is allowed to edit.
C21: Step 2
C22: If the Calculate check = 1; Press the Calculate button to (re)calculate the particular scenario's until the check becomes green. The 'Calculate' button will become green when the model has been fully recalculated.
C23: If the Structure Check becomes red (due to one or more issues), verify the potential issues in the Check sheet.
C25: Step 3
C26: Repeat Step 1 and Step 2 until all the inputs for the requested scenario have been entered in the model, and the Calculate Check is green.
C28: Step 4
C29: Analyse the results, also graphically depicted, in the Cockpit.
C30: The FinStat sheet shows the result of the project reflected in the Profit & Loss, Balance Sheet and Cashflow Statements.
B32: Background colour cells
C34: Yellow | D34: Input cells | E34: these are the only cells the user is allowed to edit and contain the necessary input to make the calculations in the model
C36: Light grey | D36: Constant cells | E36: these cells address within-worksheet counter-flow, or structural inputs that are not be changed
C38: Light blue | D38: Constant cells | E38: these cells are imported cells from the Cockpit
C40: No background colour | D40: Constant cells | E40: these cells contain results of calculations or imported values
B43: STRUCTURE
B45: Overview worksheets
C47: Marine Blue | D47: Manual, Overview & Output | E47: these worksheets include the user manual, an overview of the inputs and main results, and the financial statements
C49: Dark Blue | D49: Input | E49: these worksheets collect the inputs of the model
C51: Blue | D51: Calculation Sheets | E51: in these worksheets the calculations in the model are made, on a yearly basis
C53: Orange | D53: Control | E53: this worksheet contains the control tools of the model
C55: Grey | D55: Database | E55: these worksheets contain financial and operational data per country and product type from the Database
B57: Detail Worksheets
C59: Cover | D59: Cover
C60: Manual | D60: Description of the structure, colour coding and important notes in the model
C61: Cockpit | D61: Overview of the most important results, including the sensitivity panel
C62: FinStat | D62: Profit & Loss, Balance and Cashflow statements, on a yearly basis
C63: NTBA | D63: Overview of the non-time based input
C64: TBA | D64: Overview of the time based input, on a yearly basis
C65: Timing | D65: Time calculations
C66: Esc | D66: Indexation calculations
C67: Inv | D67: Investments calculations
C68: Rev | D68: Revenue calculations
C69: OPEX | D69: Calculations concerning the operational costs
C70: Assets | D70: Calculations concerning the assets and depreciations
C71: Fund | D71: Calculation of the funding requirement and equity and term-loan facility (TLF) drawdowns
C72: Equity | D72: Calculations concercing the share capital, reserves and dividends
C73: LTF | D73: Calculation of the term-loan facility (TLF) costs and repayment
C74: Tax | D74: Tax calculations
C75: Ratio | D75: Ratio calculations
C76: Gr | D76: Contains the data represented through the graphs in the Cockpit
C77: Checks | D77: Overview control tools
C78: DBlist | D78: Database inputs - Country and influent/effluent types
C79: DBopex | D79: Database inputs - OPEX per volume category
C80: DBcapex | D80: Database inputs - CAPEX per volume category
C81: DBvol | D81: Database outputs - Influent & volume category / Country & effluent; outputs according to specification process 1, 2 and 3
B83: Controls on the correct functioning of the model
C85: Optimisation | D85: this control function colours the cell green when the model is fully optimised and all circularities have been solved
C86: Structure | D86: this control function colours the cell green when the model is free of structural errors, f.e. balance sheet imbalances
B89: COLOUR CODING
B91: Text Font
C93: Blue Font | D93: Imported cells | E93: these cells are imported from another worksheet to be used in a calculation in the current worksheet
C94: Red Font | D94: Exported cells | E94: these cells are calculated in the current worksheet, but are also used as a basis for the calculation in another worksheet,
E95: and are therefore exported
C96: Black Font | D96: Local cells | E96: these cells are neither imported, nor exported
C97: Underline Font | D97: Link cells | E97: these cells contain a link to another cell in the same or another worksheet
B99: Checks & Alerts
C101: Green | D101: Green cells | E101: where green = OK
C103: Red | D103: Red cells | E103: where red = circular or structural issue

Sheet Cockpit
K2: Press 'calculate' button if it turns red after chaging input cells (mostly financing inputs)
N4: =Checks!F$26 -> 0 | O4: Calculate Check
N5: =Checks!F$20 -> 0 | O5: Structure Check
O6: Only modify yellow input cells!
B10: PROJECT BRIEF
C12: GENERAL PROJECT INFORMATION & PARAMETERS | K12: RETURNS
C14: Location | K14: Project IRR
D15: Country | E15: Belgium | F15: switch | K15: Pre-Tax Project IRR | L15: =Ratio!F$16 -> 0.06009927094 | M15: %
K16: Post-Tax Project IRR | L16: =Ratio!F$24 -> 0.04341301024 | M16: %
C17: Timing
D18: Start Year | E18: 2020 | F18: year | K18: Equity IRR
K19: Equity IRR | L19: =Ratio!F$36 -> 0.09946128726 | M19: %
D20: Duration Construction Period | E20: 2 | F20: years (cannot be 0)
D21: Operational Period Start | E21: =NTBA!F26 -> 2022-01-01 | F21: date | K21: Project NPV (on project cash flow including taxes)
D22: Duration Operational Period | E22: 35 | F22: years | K22: NPV Discount Rate | L22: 0.05 | M22: % per year
D23: Operational Period End | E23: =NTBA!F28 -> 2056-12-31 | F23: date | K23: NPV Project Cash Flow | L23: =Ratio!$F$46 -> -71655.13341 | M23: EUR
C25: Indexation & Tax Rates | K25: Payback Period
D26: Index Rate - Revenues | E26: 0 | F26: % | K26: =Ratio!E$61 -> Pay-back period | L26: =Ratio!F$61 -> 19 | M26: =Ratio!G$61 -> years
D27: Index Rate - OPEX | E27: 0 | F27: %
D29: Effective Tax Rate | E29: 0.25 | F29: %
C31: PROCESS SPECIFIC PARAMETERS | K31: DATABASE SUGGESTIONS
C33: Process | E33: Process 1 | F33: Process 2 | G33: Process 3 | K33: Process | L33: Process 1 | M33: Process 2 | N33: Process 3
D34: Process Active | E34: 1 | F34: 0 | G34: 0 | H34: 0 = no ; 1 = yes
D36: Annual running hours - information only | E36: 6500 | H36: hours
D38: Type Influent | E38: Grey water | F38: Black water | H38: switch
D39: Volume Influent | E39: 36000 | F39: 10000 | G39: 0 | H39: m³ per year
D42: m³ Influent / running hour | E42: =IF( E36 = 0, 0, E39 / E36) -> 5.538461538 | F42: =IF( F36 = 0, 0, F39 / F36) -> 0 | G42: 0 | H42: m³/hour
D44: Type Effluent | E44: Process water | F44: Surface water | H44: switch
D45: Effluent Volume | E45: 36000 | F45: 0 | G45: 0 | H45: m³ per year | K45: Effluent Volume | L45: =DBvol!F$113 -> 23850 | M45: =DBvol!F$131 -> 6000 | N45: =DBvol!F$149 -> 0 | O45: m³ per year
D47: Waste Volume | E47: 0 | F47: 360000 | G47: 0 | H47: m³ per year | K47: Waste Volume | L47: =E39 - L45 -> 12150 | M47: =F39 - M45 -> 4000 | N47: =G39 - N45 -> 0 | O47: m³ per year
D48: Nutrients Volume | E48: 0 | F48: 2500 | G48: 0 | H48: kg per year | K48: Nutrients Volume | L48: =DBvol!F$116 -> 14760 | M48: =DBvol!F$134 -> 3000 | N48: =DBvol!F$152 -> 0 | O48: kg per year
D49: Thermal Volume | E49: 0 | F49: 49757 | G49: 0 | H49: kWh per year | K49: Thermal Volume | L49: =DBvol!F$119 -> 117992.9268 | M49: =DBvol!F$137 -> 30000 | N49: =DBvol!F$155 -> 0 | O49: kWh per year
C51: Investments
D52: CAPEX | E52: 523000 | F52: 702986 | G52: 0 | H52: EUR | K52: CAPEX | L52: =DBcapex!F$60 -> 1092527.1 | M52: =DBcapex!F$71 -> 1000000 | N52: =DBcapex!F$82 -> 0 | O52: EUR
D53: Depreciation Period | E53: 15 | F53: 30 | G53: 0 | H53: years
D55: CAPEX Investment Profile | E55: See TBA | F55: link
C57: Revenues
D58: Water Treatment Compensation | E58: 2.75 | F58: 0 | G58: 0 | H58: EUR/m³ influent
D59: Nutrient Valorisation | E59: 0 | F59: 0.33 | G59: 0 | H59: EUR/kg
D60: Thermal Valorisation | E60: 0 | F60: 0.092 | G60: 0 | H60: EUR/kWh
D61: Revenues / Effluent | E61: 0.15 | F61: 0 | G61: 0 | H61: EUR/m³ effluent
C63: OPEX
D64: Influent | E64: 0.79 | F64: 0.5 | G64: 0 | H64: EUR/m³ influent | K64: Influent | L64: =DBopex!F$60 -> 0.23 | M64: =DBopex!F$71 -> 0.1 | N64: =DBopex!F$82 -> 0 | O64: EUR/m³ influent
D65: Effluent | E65: 0 | F65: 0 | G65: 0 | H65: EUR/m³ effluent
D66: Waste | E66: 0 | F66: 0.04 | G66: 0 | H66: EUR/m³ waste
D68: Reinvestment/fixed OPEX | E68: 5000 | F68: 2000 | G68: 0 | H68: EUR per year
C70: NON-PROCESS SPECIFIC INPUTS
D72: Other CAPEX | E72: 355000 | F72: EUR
D73: Other CAPEX - Depreciation Period | E73: 30 | F73: years
D75: Other Recurrent Revenues | E75: 0 | F75: EUR per year
D76: Time based 'OPEX' subsidies/grants | E76: See TBA | F76: link
D77: Other OPEX | E77: 8500 | F77: EUR per year
C79: VOLUME PROFILE
D81: Volume Profile | E81: See TBA | F81: link | G81: (allows to anticipate fluctuations in volume over time; profile is applied to revenues and costs)
B95: CONSTRUCTION & FINANCING
C97: SOURCES & USES DURING FUNDING | H97: FINANCING EVOLUTION
D99: % Equity | E99: 0.83 | F99: %
D100: % Debt | E100: =1 - E99 -> 0.17 | F100: %
D101: Capital Subsidies/Grants | E101: 0.3 | F101: % of CAPEX
D102: Capital Subsidies/Grants - Amortization Period | E102: 15 | F102: years
D104: Debt - Repayment Period | E104: 15 | F104: years
D105: Cost of Debt | E105: 0.03 | F105: % per year
C107: SOURCES & USES DURING FUNDING
C109: USES
D110: Process 1 - Total Investments | E110: =Fund!H$106 -> 523000 | F110: €
D111: Process 2 - Total Investments | E111: =Fund!H$107 -> 0 | F111: €
D112: Process 3 - Total Investments | E112: =Fund!H$108 -> 0 | F112: €
D113: Other Investments | E113: =Fund!H$109 -> 355000 | F113: €
D115: Financing Costs | E115: =Fund!H$110 -> 3109.472526 | F115: €
C117: Uses during Funding | E117: =SUM(E110:E116) -> 881109.4725 | F117: €
C119: SOURCES
D120: Subsidies | E120: =Fund!H$97 -> 474295.8 | F120: €
D121: Equity | E121: =Fund!H$98 -> 337655.3482 | F121: €
D122: Term Loan Facility | E122: =Fund!H$99 -> 69158.32433 | F122: €
C124: Sources during Funding | E124: =SUM(E120:E123) -> 881109.4725 | F124: €
D125: Delta Sources & Uses | E125: 0 | F125: €
B128: OPERATIONS
C130: INCOME STATEMENT (TOTAL OVER PROJECT LIFE) | H130: PROFIT & LOSS
D132: REVENUES | E132: =SUM(E133:E137) -> 3654400 | F132: €
D133: Process 1 | E133: =FinStat!H$12 -> 3654000 | F133: €
D134: Process 2 | E134: =FinStat!H$13 -> 0 | F134: €
D135: Process 3 | E135: =FinStat!H$14 -> 0 | F135: €
D136: Other Revenues | E136: =FinStat!H$15 -> 0 | F136: €
D137: Operational Subsidies / Grants | E137: =FinStat!H86 -> 400 | F137: €
D138: OPEX | E138: =SUM(E139:E142) -> -1467900 | F138: €
D139: Process 1 | E139: =FinStat!H$20 -> -1170400 | F139: €
D140: Process 2 | E140: =FinStat!H$21 -> 0 | F140: €
D141: Process 3 | E141: =FinStat!H$22 -> 0 | F141: €
D142: Other Costs | E142: =FinStat!H$23 -> -297500 | F142: €
C144: EBITDA | E144: =E132 + E138 -> 2186500 | F144: €
D146: Depreciations Investments | E146: =FinStat!H$29 -> -881109.4725 | F146: €
D147: Amortization Capital Subsidies | E147: =FinStat!H$30 -> 474295.8 | F147: €
C149: EBIT | E149: =E144 + SUM(E146:E147) -> 1779686.327 | F149: €
D151: Financing Cost | E151: =FinStat!H$34 -> -17739.02076 | F151: €
C153: EBT | E153: =E149 + E151 -> 1761947.307 | F153: €
D155: Income Tax | E155: =FinStat!H$38 -> -440486.8267 | F155: €
C157: EAT Available for Dividends | E157: =E153 + E155 -> 1321460.48 | F157: €
D159: Dividends | E159: =FinStat!H$42 -> -1321460.48 | F159: €
C161: FINAL RESULT | E161: =E157 + E159 -> 0 | F161: €

Sheet FinStat
B2: FINANCIAL STATEMENTS
E3: =Timing!E$19 -> Model Period Beginning | F3: =Checks!F$26 -> 0 | G3: Calculate | J3: =Timing!J$19 -> 2020-01-01 | K3: =Timing!K$19 -> 2021-01-01 | L3: =Timing!L$19 -> 2022-01-01 | M3: =Timing!M$19 -> 2023-01-01 | N3: =Timing!N$19 -> 2024-01-01 | O3: =Timing!O$19 -> 2025-01-01 | P3: =Timing!P$19 -> 2026-01-01 | Q3: =Timing!Q$19 -> 2027-01-01 | R3: =Timing!R$19 -> 2028-01-01 | S3: =Timing!S$19 -> 2029-01-01 | T3: =Timing!T$19 -> 2030-01-01 | U3: =Timing!U$19 -> 2031-01-01 | V3: =Timing!V$19 -> 2032-01-01 | W3: =Timing!W$19 -> 2033-01-01 | X3: =Timing!X$19 -> 2034-01-01 | Y3: =Timing!Y$19 -> 2035-01-01 | Z3: =Timing!Z$19 -> 2036-01-01 | AA3: =Timing!AA$19 -> 2037-01-01 | AB3: =Timing!AB$19 -> 2038-01-01 | AC3: =Timing!AC$19 -> 2039-01-01 | AD3: =Timing!AD$19 -> 2040-01-01 | AE3: =Timing!AE$19 -> 2041-01-01 | AF3: =Timing!AF$19 -> 2042-01-01 | AG3: =Timing!AG$19 -> 2043-01-01 | AH3: =Timing!AH$19 -> 2044-01-01 | AI3: =Timing!AI$19 -> 2045-01-01 | AJ3: =Timing!AJ$19 -> 2046-01-01 | AK3: =Timing!AK$19 -> 2047-01-01 | AL3: =Timing!AL$19 -> 2048-01-01 | AM3: =Timing!AM$19 -> 2049-01-01 | AN3: =Timing!AN$19 -> 2050-01-01 | AO3: =Timing!AO$19 -> 2051-01-01 | AP3: =Timing!AP$19 -> 2052-01-01 | AQ3: =Timing!AQ$19 -> 2053-01-01 | AR3: =Timing!AR$19 -> 2054-01-01 | AS3: =Timing!AS$19 -> 2055-01-01 | AT3: =Timing!AT$19 -> 2056-01-01 | AU3: =Timing!AU$19 -> 2057-01-01 | AV3: =Timing!AV$19 -> 2058-01-01 | AW3: =Timing!AW$19 -> 2059-01-01 | AX3: =Timing!AX$19 -> 2060-01-01 | AY3: =Timing!AY$19 -> 2061-01-01 | AZ3: =Timing!AZ$19 -> 2062-01-01 | BA3: =Timing!BA$19 -> 2063-01-01 | BB3: =Timing!BB$19 -> 2064-01-01 | BC3: =Timing!BC$19 -> 2065-01-01 | BD3: =Timing!BD$19 -> 2066-01-01 | BE3: =Timing!BE$19 -> 2067-01-01 | BF3: =Timing!BF$19 -> 2068-01-01 | BG3: =Timing!BG$19 -> 2069-01-01 | BH3: =Timing!BH$19 -> 2070-01-01 | BI3: =Timing!BI$19 -> 2071-01-01 | BJ3: =Timing!BJ$19 -> 2072-01-01 | BK3: =Timing!BK$19 -> 2073-01-01 | BL3: =Timing!BL$19 -> 2074-01-01 | BM3: =Timing!BM$19 -> 2075-01-01
E4: =Timing!E$20 -> Model Period Ending | F4: =Checks!F$20 -> 0 | G4: Structure | J4: =Timing!J$20 -> 2020-12-31 | K4: =Timing!K$20 -> 2021-12-31 | L4: =Timing!L$20 -> 2022-12-31 | M4: =Timing!M$20 -> 2023-12-31 | N4: =Timing!N$20 -> 2024-12-31 | O4: =Timing!O$20 -> 2025-12-31 | P4: =Timing!P$20 -> 2026-12-31 | Q4: =Timing!Q$20 -> 2027-12-31 | R4: =Timing!R$20 -> 2028-12-31 | S4: =Timing!S$20 -> 2029-12-31 | T4: =Timing!T$20 -> 2030-12-31 | U4: =Timing!U$20 -> 2031-12-31 | V4: =Timing!V$20 -> 2032-12-31 | W4: =Timing!W$20 -> 2033-12-31 | X4: =Timing!X$20 -> 2034-12-31 | Y4: =Timing!Y$20 -> 2035-12-31 | Z4: =Timing!Z$20 -> 2036-12-31 | AA4: =Timing!AA$20 -> 2037-12-31 | AB4: =Timing!AB$20 -> 2038-12-31 | AC4: =Timing!AC$20 -> 2039-12-31 | AD4: =Timing!AD$20 -> 2040-12-31 | AE4: =Timing!AE$20 -> 2041-12-31 | AF4: =Timing!AF$20 -> 2042-12-31 | AG4: =Timing!AG$20 -> 2043-12-31 | AH4: =Timing!AH$20 -> 2044-12-31 | AI4: =Timing!AI$20 -> 2045-12-31 | AJ4: =Timing!AJ$20 -> 2046-12-31 | AK4: =Timing!AK$20 -> 2047-12-31 | AL4: =Timing!AL$20 -> 2048-12-31 | AM4: =Timing!AM$20 -> 2049-12-31 | AN4: =Timing!AN$20 -> 2050-12-31 | AO4: =Timing!AO$20 -> 2051-12-31 | AP4: =Timing!AP$20 -> 2052-12-31 | AQ4: =Timing!AQ$20 -> 2053-12-31 | AR4: =Timing!AR$20 -> 2054-12-31 | AS4: =Timing!AS$20 -> 2055-12-31 | AT4: =Timing!AT$20 -> 2056-12-31 | AU4: =Timing!AU$20 -> 2057-12-31 | AV4: =Timing!AV$20 -> 2058-12-31 | AW4: =Timing!AW$20 -> 2059-12-31 | AX4: =Timing!AX$20 -> 2060-12-31 | AY4: =Timing!AY$20 -> 2061-12-31 | AZ4: =Timing!AZ$20 -> 2062-12-31 | BA4: =Timing!BA$20 -> 2063-12-31 | BB4: =Timing!BB$20 -> 2064-12-31 | BC4: =Timing!BC$20 -> 2065-12-31 | BD4: =Timing!BD$20 -> 2066-12-31 | BE4: =Timing!BE$20 -> 2067-12-31 | BF4: =Timing!BF$20 -> 2068-12-31 | BG4: =Timing!BG$20 -> 2069-12-31 | BH4: =Timing!BH$20 -> 2070-12-31 | BI4: =Timing!BI$20 -> 2071-12-31 | BJ4: =Timing!BJ$20 -> 2072-12-31 | BK4: =Timing!BK$20 -> 2073-12-31 | BL4: =Timing!BL$20 -> 2074-12-31 | BM4: =Timing!BM$20 -> 2075-12-31
E5: =Timing!E$76 -> Project Period | J5: =Timing!J$76 -> Constr | K5: =Timing!K$76 -> Constr | L5: =Timing!L$76 -> Expl | M5: =Timing!M$76 -> Expl | N5: =Timing!N$76 -> Expl | O5: =Timing!O$76 -> Expl | P5: =Timing!P$76 -> Expl | Q5: =Timing!Q$76 -> Expl | R5: =Timing!R$76 -> Expl | S5: =Timing!S$76 -> Expl | T5: =Timing!T$76 -> Expl | U5: =Timing!U$76 -> Expl | V5: =Timing!V$76 -> Expl | W5: =Timing!W$76 -> Expl | X5: =Timing!X$76 -> Expl | Y5: =Timing!Y$76 -> Expl | Z5: =Timing!Z$76 -> Expl | AA5: =Timing!AA$76 -> Expl | AB5: =Timing!AB$76 -> Expl | AC5: =Timing!AC$76 -> Expl | AD5: =Timing!AD$76 -> Expl | AE5: =Timing!AE$76 -> Expl | AF5: =Timing!AF$76 -> Expl | AG5: =Timing!AG$76 -> Expl | AH5: =Timing!AH$76 -> Expl | AI5: =Timing!AI$76 -> Expl | AJ5: =Timing!AJ$76 -> Expl | AK5: =Timing!AK$76 -> Expl | AL5: =Timing!AL$76 -> Expl | AM5: =Timing!AM$76 -> Expl | AN5: =Timing!AN$76 -> Expl | AO5: =Timing!AO$76 -> Expl | AP5: =Timing!AP$76 -> Expl | AQ5: =Timing!AQ$76 -> Expl | AR5: =Timing!AR$76 -> Expl | AS5: =Timing!AS$76 -> Expl | AT5: =Timing!AT$76 -> Expl | AU5: =Timing!AU$76 -> Post-Expl | AV5: =Timing!AV$76 -> Post-Expl | AW5: =Timing!AW$76 -> Post-Expl | AX5: =Timing!AX$76 -> Post-Expl | AY5: =Timing!AY$76 -> Post-Expl | AZ5: =Timing!AZ$76 -> Post-Expl | BA5: =Timing!BA$76 -> Post-Expl | BB5: =Timing!BB$76 -> Post-Expl | BC5: =Timing!BC$76 -> Post-Expl | BD5: =Timing!BD$76 -> Post-Expl | BE5: =Timing!BE$76 -> Post-Expl | BF5: =Timing!BF$76 -> Post-Expl | BG5: =Timing!BG$76 -> Post-Expl | BH5: =Timing!BH$76 -> Post-Expl | BI5: =Timing!BI$76 -> Post-Expl | BJ5: =Timing!BJ$76 -> Post-Expl | BK5: =Timing!BK$76 -> Post-Expl | BL5: =Timing!BL$76 -> Post-Expl | BM5: =Timing!BM$76 -> Post-Expl
F6: Constant | G6: Unit | H6: Total
B8: PROFIT & LOSS
C10: P&L Statement
E12: =Rev!E$53 -> Process 1 - Revenues Accrued & Received | F12: =Rev!F$53 -> PL & CF | G12: =Rev!G$53 -> EUR | H12: =Rev!H$53 -> 3654000 | I12: =Rev!I$53 -> 0 | J12: =Rev!J$53 -> 0 | K12: =Rev!K$53 -> 0 | L12: =Rev!L$53 -> 104400 | M12: =Rev!M$53 -> 104400 | N12: =Rev!N$53 -> 104400 | O12: =Rev!O$53 -> 104400 | P12: =Rev!P$53 -> 104400 | Q12: =Rev!Q$53 -> 104400 | R12: =Rev!R$53 -> 104400 | S12: =Rev!S$53 -> 104400 | T12: =Rev!T$53 -> 104400 | U12: =Rev!U$53 -> 104400 | V12: =Rev!V$53 -> 104400 | W12: =Rev!W$53 -> 104400 | X12: =Rev!X$53 -> 104400 | Y12: =Rev!Y$53 -> 104400 | Z12: =Rev!Z$53 -> 104400 | AA12: =Rev!AA$53 -> 104400 | AB12: =Rev!AB$53 -> 104400 | AC12: =Rev!AC$53 -> 104400 | AD12: =Rev!AD$53 -> 104400 | AE12: =Rev!AE$53 -> 104400 | AF12: =Rev!AF$53 -> 104400 | AG12: =Rev!AG$53 -> 104400 | AH12: =Rev!AH$53 -> 104400 | AI12: =Rev!AI$53 -> 104400 | AJ12: =Rev!AJ$53 -> 104400 | AK12: =Rev!AK$53 -> 104400 | AL12: =Rev!AL$53 -> 104400 | AM12: =Rev!AM$53 -> 104400 | AN12: =Rev!AN$53 -> 104400 | AO12: =Rev!AO$53 -> 104400 | AP12: =Rev!AP$53 -> 104400 | AQ12: =Rev!AQ$53 -> 104400 | AR12: =Rev!AR$53 -> 104400 | AS12: =Rev!AS$53 -> 104400 | AT12: =Rev!AT$53 -> 104400 | AU12: =Rev!AU$53 -> 0 | AV12: =Rev!AV$53 -> 0 | AW12: =Rev!AW$53 -> 0 | AX12: =Rev!AX$53 -> 0 | AY12: =Rev!AY$53 -> 0 | AZ12: =Rev!AZ$53 -> 0 | BA12: =Rev!BA$53 -> 0 | BB12: =Rev!BB$53 -> 0 | BC12: =Rev!BC$53 -> 0 | BD12: =Rev!BD$53 -> 0 | BE12: =Rev!BE$53 -> 0 | BF12: =Rev!BF$53 -> 0 | BG12: =Rev!BG$53 -> 0 | BH12: =Rev!BH$53 -> 0 | BI12: =Rev!BI$53 -> 0 | BJ12: =Rev!BJ$53 -> 0 | BK12: =Rev!BK$53 -> 0 | BL12: =Rev!BL$53 -> 0 | BM12: =Rev!BM$53 -> 0
E13: =Rev!E$98 -> Process 2 - Revenues Accrued & Received | F13: =Rev!F$98 -> PL & CF | G13: =Rev!G$98 -> EUR | H13: =Rev!H$98 -> 0 | I13: =Rev!I$98 -> 0 | J13: =Rev!J$98 -> 0 | K13: =Rev!K$98 -> 0 | L13: =Rev!L$98 -> 0 | M13: =Rev!M$98 -> 0 | N13: =Rev!N$98 -> 0 | O13: =Rev!O$98 -> 0 | P13: =Rev!P$98 -> 0 | Q13: =Rev!Q$98 -> 0 | R13: =Rev!R$98 -> 0 | S13: =Rev!S$98 -> 0 | T13: =Rev!T$98 -> 0 | U13: =Rev!U$98 -> 0 | V13: =Rev!V$98 -> 0 | W13: =Rev!W$98 -> 0 | X13: =Rev!X$98 -> 0 | Y13: =Rev!Y$98 -> 0 | Z13: =Rev!Z$98 -> 0 | AA13: =Rev!AA$98 -> 0 | AB13: =Rev!AB$98 -> 0 | AC13: =Rev!AC$98 -> 0 | AD13: =Rev!AD$98 -> 0 | AE13: =Rev!AE$98 -> 0 | AF13: =Rev!AF$98 -> 0 | AG13: =Rev!AG$98 -> 0 | AH13: =Rev!AH$98 -> 0 | AI13: =Rev!AI$98 -> 0 | AJ13: =Rev!AJ$98 -> 0 | AK13: =Rev!AK$98 -> 0 | AL13: =Rev!AL$98 -> 0 | AM13: =Rev!AM$98 -> 0 | AN13: =Rev!AN$98 -> 0 | AO13: =Rev!AO$98 -> 0 | AP13: =Rev!AP$98 -> 0 | AQ13: =Rev!AQ$98 -> 0 | AR13: =Rev!AR$98 -> 0 | AS13: =Rev!AS$98 -> 0 | AT13: =Rev!AT$98 -> 0 | AU13: =Rev!AU$98 -> 0 | AV13: =Rev!AV$98 -> 0 | AW13: =Rev!AW$98 -> 0 | AX13: =Rev!AX$98 -> 0 | AY13: =Rev!AY$98 -> 0 | AZ13: =Rev!AZ$98 -> 0 | BA13: =Rev!BA$98 -> 0 | BB13: =Rev!BB$98 -> 0 | BC13: =Rev!BC$98 -> 0 | BD13: =Rev!BD$98 -> 0 | BE13: =Rev!BE$98 -> 0 | BF13: =Rev!BF$98 -> 0 | BG13: =Rev!BG$98 -> 0 | BH13: =Rev!BH$98 -> 0 | BI13: =Rev!BI$98 -> 0 | BJ13: =Rev!BJ$98 -> 0 | BK13: =Rev!BK$98 -> 0 | BL13: =Rev!BL$98 -> 0 | BM13: =Rev!BM$98 -> 0
E14: =Rev!E$143 -> Process 3 - Revenues Accrued & Received | F14: =Rev!F$143 -> PL & CF | G14: =Rev!G$143 -> EUR | H14: =Rev!H$143 -> 0 | I14: =Rev!I$143 -> 0 | J14: =Rev!J$143 -> 0 | K14: =Rev!K$143 -> 0 | L14: =Rev!L$143 -> 0 | M14: =Rev!M$143 -> 0 | N14: =Rev!N$143 -> 0 | O14: =Rev!O$143 -> 0 | P14: =Rev!P$143 -> 0 | Q14: =Rev!Q$143 -> 0 | R14: =Rev!R$143 -> 0 | S14: =Rev!S$143 -> 0 | T14: =Rev!T$143 -> 0 | U14: =Rev!U$143 -> 0 | V14: =Rev!V$143 -> 0 | W14: =Rev!W$143 -> 0 | X14: =Rev!X$143 -> 0 | Y14: =Rev!Y$143 -> 0 | Z14: =Rev!Z$143 -> 0 | AA14: =Rev!AA$143 -> 0 | AB14: =Rev!AB$143 -> 0 | AC14: =Rev!AC$143 -> 0 | AD14: =Rev!AD$143 -> 0 | AE14: =Rev!AE$143 -> 0 | AF14: =Rev!AF$143 -> 0 | AG14: =Rev!AG$143 -> 0 | AH14: =Rev!AH$143 -> 0 | AI14: =Rev!AI$143 -> 0 | AJ14: =Rev!AJ$143 -> 0 | AK14: =Rev!AK$143 -> 0 | AL14: =Rev!AL$143 -> 0 | AM14: =Rev!AM$143 -> 0 | AN14: =Rev!AN$143 -> 0 | AO14: =Rev!AO$143 -> 0 | AP14: =Rev!AP$143 -> 0 | AQ14: =Rev!AQ$143 -> 0 | AR14: =Rev!AR$143 -> 0 | AS14: =Rev!AS$143 -> 0 | AT14: =Rev!AT$143 -> 0 | AU14: =Rev!AU$143 -> 0 | AV14: =Rev!AV$143 -> 0 | AW14: =Rev!AW$143 -> 0 | AX14: =Rev!AX$143 -> 0 | AY14: =Rev!AY$143 -> 0 | AZ14: =Rev!AZ$143 -> 0 | BA14: =Rev!BA$143 -> 0 | BB14: =Rev!BB$143 -> 0 | BC14: =Rev!BC$143 -> 0 | BD14: =Rev!BD$143 -> 0 | BE14: =Rev!BE$143 -> 0 | BF14: =Rev!BF$143 -> 0 | BG14: =Rev!BG$143 -> 0 | BH14: =Rev!BH$143 -> 0 | BI14: =Rev!BI$143 -> 0 | BJ14: =Rev!BJ$143 -> 0 | BK14: =Rev!BK$143 -> 0 | BL14: =Rev!BL$143 -> 0 | BM14: =Rev!BM$143 -> 0
E15: =Rev!E$150 -> Other Revenues Accrued & Received | F15: =Rev!F$150 -> PL & CF | G15: =Rev!G$150 -> EUR | H15: =Rev!H$150 -> 0 | I15: =Rev!I$150 -> 0 | J15: =Rev!J$150 -> 0 | K15: =Rev!K$150 -> 0 | L15: =Rev!L$150 -> 0 | M15: =Rev!M$150 -> 0 | N15: =Rev!N$150 -> 0 | O15: =Rev!O$150 -> 0 | P15: =Rev!P$150 -> 0 | Q15: =Rev!Q$150 -> 0 | R15: =Rev!R$150 -> 0 | S15: =Rev!S$150 -> 0 | T15: =Rev!T$150 -> 0 | U15: =Rev!U$150 -> 0 | V15: =Rev!V$150 -> 0 | W15: =Rev!W$150 -> 0 | X15: =Rev!X$150 -> 0 | Y15: =Rev!Y$150 -> 0 | Z15: =Rev!Z$150 -> 0 | AA15: =Rev!AA$150 -> 0 | AB15: =Rev!AB$150 -> 0 | AC15: =Rev!AC$150 -> 0 | AD15: =Rev!AD$150 -> 0 | AE15: =Rev!AE$150 -> 0 | AF15: =Rev!AF$150 -> 0 | AG15: =Rev!AG$150 -> 0 | AH15: =Rev!AH$150 -> 0 | AI15: =Rev!AI$150 -> 0 | AJ15: =Rev!AJ$150 -> 0 | AK15: =Rev!AK$150 -> 0 | AL15: =Rev!AL$150 -> 0 | AM15: =Rev!AM$150 -> 0 | AN15: =Rev!AN$150 -> 0 | AO15: =Rev!AO$150 -> 0 | AP15: =Rev!AP$150 -> 0 | AQ15: =Rev!AQ$150 -> 0 | AR15: =Rev!AR$150 -> 0 | AS15: =Rev!AS$150 -> 0 | AT15: =Rev!AT$150 -> 0 | AU15: =Rev!AU$150 -> 0 | AV15: =Rev!AV$150 -> 0 | AW15: =Rev!AW$150 -> 0 | AX15: =Rev!AX$150 -> 0 | AY15: =Rev!AY$150 -> 0 | AZ15: =Rev!AZ$150 -> 0 | BA15: =Rev!BA$150 -> 0 | BB15: =Rev!BB$150 -> 0 | BC15: =Rev!BC$150 -> 0 | BD15: =Rev!BD$150 -> 0 | BE15: =Rev!BE$150 -> 0 | BF15: =Rev!BF$150 -> 0 | BG15: =Rev!BG$150 -> 0 | BH15: =Rev!BH$150 -> 0 | BI15: =Rev!BI$150 -> 0 | BJ15: =Rev!BJ$150 -> 0 | BK15: =Rev!BK$150 -> 0 | BL15: =Rev!BL$150 -> 0 | BM15: =Rev!BM$150 -> 0
E16: =Rev!E$156 -> Operational Subsidies/Grants Accrued & Received | F16: =Rev!F$156 -> PL & CF | G16: =Rev!G$156 -> EUR | H16: =Rev!H$156 -> 400 | I16: =Rev!I$156 -> 0 | J16: =Rev!J$156 -> 0 | K16: =Rev!K$156 -> 0 | L16: =Rev!L$156 -> 100 | M16: =Rev!M$156 -> 0 | N16: =Rev!N$156 -> 0 | O16: =Rev!O$156 -> 0 | P16: =Rev!P$156 -> 0 | Q16: =Rev!Q$156 -> 300 | R16: =Rev!R$156 -> 0 | S16: =Rev!S$156 -> 0 | T16: =Rev!T$156 -> 0 | U16: =Rev!U$156 -> 0 | V16: =Rev!V$156 -> 0 | W16: =Rev!W$156 -> 0 | X16: =Rev!X$156 -> 0 | Y16: =Rev!Y$156 -> 0 | Z16: =Rev!Z$156 -> 0 | AA16: =Rev!AA$156 -> 0 | AB16: =Rev!AB$156 -> 0 | AC16: =Rev!AC$156 -> 0 | AD16: =Rev!AD$156 -> 0 | AE16: =Rev!AE$156 -> 0 | AF16: =Rev!AF$156 -> 0 | AG16: =Rev!AG$156 -> 0 | AH16: =Rev!AH$156 -> 0 | AI16: =Rev!AI$156 -> 0 | AJ16: =Rev!AJ$156 -> 0 | AK16: =Rev!AK$156 -> 0 | AL16: =Rev!AL$156 -> 0 | AM16: =Rev!AM$156 -> 0 | AN16: =Rev!AN$156 -> 0 | AO16: =Rev!AO$156 -> 0 | AP16: =Rev!AP$156 -> 0 | AQ16: =Rev!AQ$156 -> 0 | AR16: =Rev!AR$156 -> 0 | AS16: =Rev!AS$156 -> 0 | AT16: =Rev!AT$156 -> 0 | AU16: =Rev!AU$156 -> 0 | AV16: =Rev!AV$156 -> 0 | AW16: =Rev!AW$156 -> 0 | AX16: =Rev!AX$156 -> 0 | AY16: =Rev!AY$156 -> 0 | AZ16: =Rev!AZ$156 -> 0 | BA16: =Rev!BA$156 -> 0 | BB16: =Rev!BB$156 -> 0 | BC16: =Rev!BC$156 -> 0 | BD16: =Rev!BD$156 -> 0 | BE16: =Rev!BE$156 -> 0 | BF16: =Rev!BF$156 -> 0 | BG16: =Rev!BG$156 -> 0 | BH16: =Rev!BH$156 -> 0 | BI16: =Rev!BI$156 -> 0 | BJ16: =Rev!BJ$156 -> 0 | BK16: =Rev!BK$156 -> 0 | BL16: =Rev!BL$156 -> 0 | BM16: =Rev!BM$156 -> 0
E18: Total Revenues | G18: EUR | H18: =SUM(J18:DM18) -> 3654400 | J18: =SUM(J12:J17) -> 0 | K18: 0 | L18: 104500 | M18: 104400 | N18: 104400 | O18: 104400 | P18: 104400 | Q18: 104700 | R18: 104400 | S18: 104400 | T18: 104400 | U18: 104400 | V18: 104400 | W18: 104400 | X18: 104400 | Y18: 104400 | Z18: 104400 | AA18: 104400 | AB18: 104400 | AC18: 104400 | AD18: 104400 | AE18: 104400 | AF18: 104400 | AG18: 104400 | AH18: 104400 | AI18: 104400 | AJ18: 104400 | AK18: 104400 | AL18: 104400 | AM18: 104400 | AN18: 104400 | AO18: 104400 | AP18: =SUM(AP12:AP17) -> 104400 | AQ18: 104400 | AR18: 104400 | AS18: 104400 | AT18: 104400 | AU18: 0 | AV18: 0 | AW18: 0 | AX18: 0 | AY18: 0 | AZ18: 0 | BA18: 0 | BB18: 0 | BC18: 0 | BD18: 0 | BE18: 0 | BF18: 0 | BG18: 0 | BH18: 0 | BI18: 0 | BJ18: 0 | BK18: 0 | BL18: 0 | BM18: 0
E20: =OPEX!E$52 -> Process 1 - Operational Costs Accrued & Paid | F20: =OPEX!F$52 -> PL & CF | G20: =OPEX!G$52 -> EUR | H20: =OPEX!H$52 -> -1170400 | I20: =OPEX!I$52 -> 0 | J20: =OPEX!J$52 -> 0 | K20: =OPEX!K$52 -> 0 | L20: =OPEX!L$52 -> -33440 | M20: =OPEX!M$52 -> -33440 | N20: =OPEX!N$52 -> -33440 | O20: =OPEX!O$52 -> -33440 | P20: =OPEX!P$52 -> -33440 | Q20: =OPEX!Q$52 -> -33440 | R20: =OPEX!R$52 -> -33440 | S20: =OPEX!S$52 -> -33440 | T20: =OPEX!T$52 -> -33440 | U20: =OPEX!U$52 -> -33440 | V20: =OPEX!V$52 -> -33440 | W20: =OPEX!W$52 -> -33440 | X20: =OPEX!X$52 -> -33440 | Y20: =OPEX!Y$52 -> -33440 | Z20: =OPEX!Z$52 -> -33440 | AA20: =OPEX!AA$52 -> -33440 | AB20: =OPEX!AB$52 -> -33440 | AC20: =OPEX!AC$52 -> -33440 | AD20: =OPEX!AD$52 -> -33440 | AE20: =OPEX!AE$52 -> -33440 | AF20: =OPEX!AF$52 -> -33440 | AG20: =OPEX!AG$52 -> -33440 | AH20: =OPEX!AH$52 -> -33440 | AI20: =OPEX!AI$52 -> -33440 | AJ20: =OPEX!AJ$52 -> -33440 | AK20: =OPEX!AK$52 -> -33440 | AL20: =OPEX!AL$52 -> -33440 | AM20: =OPEX!AM$52 -> -33440 | AN20: =OPEX!AN$52 -> -33440 | AO20: =OPEX!AO$52 -> -33440 | AP20: =OPEX!AP$52 -> -33440 | AQ20: =OPEX!AQ$52 -> -33440 | AR20: =OPEX!AR$52 -> -33440 | AS20: =OPEX!AS$52 -> -33440 | AT20: =OPEX!AT$52 -> -33440 | AU20: =OPEX!AU$52 -> 0 | AV20: =OPEX!AV$52 -> 0 | AW20: =OPEX!AW$52 -> 0 | AX20: =OPEX!AX$52 -> 0 | AY20: =OPEX!AY$52 -> 0 | AZ20: =OPEX!AZ$52 -> 0 | BA20: =OPEX!BA$52 -> 0 | BB20: =OPEX!BB$52 -> 0 | BC20: =OPEX!BC$52 -> 0 | BD20: =OPEX!BD$52 -> 0 | BE20: =OPEX!BE$52 -> 0 | BF20: =OPEX!BF$52 -> 0 | BG20: =OPEX!BG$52 -> 0 | BH20: =OPEX!BH$52 -> 0 | BI20: =OPEX!BI$52 -> 0 | BJ20: =OPEX!BJ$52 -> 0 | BK20: =OPEX!BK$52 -> 0 | BL20: =OPEX!BL$52 -> 0 | BM20: =OPEX!BM$52 -> 0
E21: =OPEX!E$97 -> Process 2 - Operational Costs Accrued & Paid | F21: =OPEX!F$97 -> PL & CF | G21: =OPEX!G$97 -> EUR | H21: =OPEX!H$97 -> 0 | I21: =OPEX!I$97 -> 0 | J21: =OPEX!J$97 -> 0 | K21: =OPEX!K$97 -> 0 | L21: =OPEX!L$97 -> 0 | M21: =OPEX!M$97 -> 0 | N21: =OPEX!N$97 -> 0 | O21: =OPEX!O$97 -> 0 | P21: =OPEX!P$97 -> 0 | Q21: =OPEX!Q$97 -> 0 | R21: =OPEX!R$97 -> 0 | S21: =OPEX!S$97 -> 0 | T21: =OPEX!T$97 -> 0 | U21: =OPEX!U$97 -> 0 | V21: =OPEX!V$97 -> 0 | W21: =OPEX!W$97 -> 0 | X21: =OPEX!X$97 -> 0 | Y21: =OPEX!Y$97 -> 0 | Z21: =OPEX!Z$97 -> 0 | AA21: =OPEX!AA$97 -> 0 | AB21: =OPEX!AB$97 -> 0 | AC21: =OPEX!AC$97 -> 0 | AD21: =OPEX!AD$97 -> 0 | AE21: =OPEX!AE$97 -> 0 | AF21: =OPEX!AF$97 -> 0 | AG21: =OPEX!AG$97 -> 0 | AH21: =OPEX!AH$97 -> 0 | AI21: =OPEX!AI$97 -> 0 | AJ21: =OPEX!AJ$97 -> 0 | AK21: =OPEX!AK$97 -> 0 | AL21: =OPEX!AL$97 -> 0 | AM21: =OPEX!AM$97 -> 0 | AN21: =OPEX!AN$97 -> 0 | AO21: =OPEX!AO$97 -> 0 | AP21: =OPEX!AP$97 -> 0 | AQ21: =OPEX!AQ$97 -> 0 | AR21: =OPEX!AR$97 -> 0 | AS21: =OPEX!AS$97 -> 0 | AT21: =OPEX!AT$97 -> 0 | AU21: =OPEX!AU$97 -> 0 | AV21: =OPEX!AV$97 -> 0 | AW21: =OPEX!AW$97 -> 0 | AX21: =OPEX!AX$97 -> 0 | AY21: =OPEX!AY$97 -> 0 | AZ21: =OPEX!AZ$97 -> 0 | BA21: =OPEX!BA$97 -> 0 | BB21: =OPEX!BB$97 -> 0 | BC21: =OPEX!BC$97 -> 0 | BD21: =OPEX!BD$97 -> 0 | BE21: =OPEX!BE$97 -> 0 | BF21: =OPEX!BF$97 -> 0 | BG21: =OPEX!BG$97 -> 0 | BH21: =OPEX!BH$97 -> 0 | BI21: =OPEX!BI$97 -> 0 | BJ21: =OPEX!BJ$97 -> 0 | BK21: =OPEX!BK$97 -> 0 | BL21: =OPEX!BL$97 -> 0 | BM21: =OPEX!BM$97 -> 0
E22: =OPEX!E$141 -> Process 3 - Operational Costs Accrued & Paid | F22: =OPEX!F$141 -> PL & CF | G22: =OPEX!G$141 -> EUR | H22: =OPEX!H$141 -> 0 | I22: =OPEX!I$141 -> 0 | J22: =OPEX!J$141 -> 0 | K22: =OPEX!K$141 -> 0 | L22: =OPEX!L$141 -> 0 | M22: =OPEX!M$141 -> 0 | N22: =OPEX!N$141 -> 0 | O22: =OPEX!O$141 -> 0 | P22: =OPEX!P$141 -> 0 | Q22: =OPEX!Q$141 -> 0 | R22: =OPEX!R$141 -> 0 | S22: =OPEX!S$141 -> 0 | T22: =OPEX!T$141 -> 0 | U22: =OPEX!U$141 -> 0 | V22: =OPEX!V$141 -> 0 | W22: =OPEX!W$141 -> 0 | X22: =OPEX!X$141 -> 0 | Y22: =OPEX!Y$141 -> 0 | Z22: =OPEX!Z$141 -> 0 | AA22: =OPEX!AA$141 -> 0 | AB22: =OPEX!AB$141 -> 0 | AC22: =OPEX!AC$141 -> 0 | AD22: =OPEX!AD$141 -> 0 | AE22: =OPEX!AE$141 -> 0 | AF22: =OPEX!AF$141 -> 0 | AG22: =OPEX!AG$141 -> 0 | AH22: =OPEX!AH$141 -> 0 | AI22: =OPEX!AI$141 -> 0 | AJ22: =OPEX!AJ$141 -> 0 | AK22: =OPEX!AK$141 -> 0 | AL22: =OPEX!AL$141 -> 0 | AM22: =OPEX!AM$141 -> 0 | AN22: =OPEX!AN$141 -> 0 | AO22: =OPEX!AO$141 -> 0 | AP22: =OPEX!AP$141 -> 0 | AQ22: =OPEX!AQ$141 -> 0 | AR22: =OPEX!AR$141 -> 0 | AS22: =OPEX!AS$141 -> 0 | AT22: =OPEX!AT$141 -> 0 | AU22: =OPEX!AU$141 -> 0 | AV22: =OPEX!AV$141 -> 0 | AW22: =OPEX!AW$141 -> 0 | AX22: =OPEX!AX$141 -> 0 | AY22: =OPEX!AY$141 -> 0 | AZ22: =OPEX!AZ$141 -> 0 | BA22: =OPEX!BA$141 -> 0 | BB22: =OPEX!BB$141 -> 0 | BC22: =OPEX!BC$141 -> 0 | BD22: =OPEX!BD$141 -> 0 | BE22: =OPEX!BE$141 -> 0 | BF22: =OPEX!BF$141 -> 0 | BG22: =OPEX!BG$141 -> 0 | BH22: =OPEX!BH$141 -> 0 | BI22: =OPEX!BI$141 -> 0 | BJ22: =OPEX!BJ$141 -> 0 | BK22: =OPEX!BK$141 -> 0 | BL22: =OPEX!BL$141 -> 0 | BM22: =OPEX!BM$141 -> 0
E23: =OPEX!E$149 -> Other Operational Costs Accrued & Paid | F23: =OPEX!F$149 -> PL & CF | G23: =OPEX!G$149 -> EUR | H23: =OPEX!H$149 -> -297500 | I23: =OPEX!I$149 -> 0 | J23: =OPEX!J$149 -> 0 | K23: =OPEX!K$149 -> 0 | L23: =OPEX!L$149 -> -8500 | M23: =OPEX!M$149 -> -8500 | N23: =OPEX!N$149 -> -8500 | O23: =OPEX!O$149 -> -8500 | P23: =OPEX!P$149 -> -8500 | Q23: =OPEX!Q$149 -> -8500 | R23: =OPEX!R$149 -> -8500 | S23: =OPEX!S$149 -> -8500 | T23: =OPEX!T$149 -> -8500 | U23: =OPEX!U$149 -> -8500 | V23: =OPEX!V$149 -> -8500 | W23: =OPEX!W$149 -> -8500 | X23: =OPEX!X$149 -> -8500 | Y23: =OPEX!Y$149 -> -8500 | Z23: =OPEX!Z$149 -> -8500 | AA23: =OPEX!AA$149 -> -8500 | AB23: =OPEX!AB$149 -> -8500 | AC23: =OPEX!AC$149 -> -8500 | AD23: =OPEX!AD$149 -> -8500 | AE23: =OPEX!AE$149 -> -8500 | AF23: =OPEX!AF$149 -> -8500 | AG23: =OPEX!AG$149 -> -8500 | AH23: =OPEX!AH$149 -> -8500 | AI23: =OPEX!AI$149 -> -8500 | AJ23: =OPEX!AJ$149 -> -8500 | AK23: =OPEX!AK$149 -> -8500 | AL23: =OPEX!AL$149 -> -8500 | AM23: =OPEX!AM$149 -> -8500 | AN23: =OPEX!AN$149 -> -8500 | AO23: =OPEX!AO$149 -> -8500 | AP23: =OPEX!AP$149 -> -8500 | AQ23: =OPEX!AQ$149 -> -8500 | AR23: =OPEX!AR$149 -> -8500 | AS23: =OPEX!AS$149 -> -8500 | AT23: =OPEX!AT$149 -> -8500 | AU23: =OPEX!AU$149 -> 0 | AV23: =OPEX!AV$149 -> 0 | AW23: =OPEX!AW$149 -> 0 | AX23: =OPEX!AX$149 -> 0 | AY23: =OPEX!AY$149 -> 0 | AZ23: =OPEX!AZ$149 -> 0 | BA23: =OPEX!BA$149 -> 0 | BB23: =OPEX!BB$149 -> 0 | BC23: =OPEX!BC$149 -> 0 | BD23: =OPEX!BD$149 -> 0 | BE23: =OPEX!BE$149 -> 0 | BF23: =OPEX!BF$149 -> 0 | BG23: =OPEX!BG$149 -> 0 | BH23: =OPEX!BH$149 -> 0 | BI23: =OPEX!BI$149 -> 0 | BJ23: =OPEX!BJ$149 -> 0 | BK23: =OPEX!BK$149 -> 0 | BL23: =OPEX!BL$149 -> 0 | BM23: =OPEX!BM$149 -> 0
E25: Total OPEX | G25: EUR | H25: =SUM(J25:DM25) -> -1467900 | J25: =SUM(J20:J24) -> 0 | K25: 0 | L25: -41940 | M25: -41940 | N25: -41940 | O25: -41940 | P25: -41940 | Q25: -41940 | R25: -41940 | S25: -41940 | T25: -41940 | U25: -41940 | V25: -41940 | W25: -41940 | X25: -41940 | Y25: -41940 | Z25: -41940 | AA25: -41940 | AB25: -41940 | AC25: -41940 | AD25: -41940 | AE25: -41940 | AF25: -41940 | AG25: -41940 | AH25: -41940 | AI25: -41940 | AJ25: -41940 | AK25: -41940 | AL25: -41940 | AM25: -41940 | AN25: -41940 | AO25: -41940 | AP25: -41940 | AQ25: -41940 | AR25: -41940 | AS25: -41940 | AT25: -41940 | AU25: 0 | AV25: 0 | AW25: 0 | AX25: 0 | AY25: 0 | AZ25: 0 | BA25: 0 | BB25: 0 | BC25: 0 | BD25: 0 | BE25: 0 | BF25: 0 | BG25: 0 | BH25: 0 | BI25: 0 | BJ25: 0 | BK25: 0 | BL25: 0 | BM25: 0
E27: EBITDA | G27: EUR | H27: =SUM(J27:DM27) -> 2186500 | J27: =J18 + J25 -> 0 | K27: 0 | L27: 62560 | M27: 62460 | N27: 62460 | O27: 62460 | P27: 62460 | Q27: 62760 | R27: 62460 | S27: 62460 | T27: 62460 | U27: 62460 | V27: 62460 | W27: 62460 | X27: 62460 | Y27: 62460 | Z27: 62460 | AA27: 62460 | AB27: 62460 | AC27: 62460 | AD27: 62460 | AE27: 62460 | AF27: 62460 | AG27: 62460 | AH27: 62460 | AI27: 62460 | AJ27: 62460 | AK27: 62460 | AL27: 62460 | AM27: 62460 | AN27: 62460 | AO27: 62460 | AP27: 62460 | AQ27: 62460 | AR27: 62460 | AS27: 62460 | AT27: 62460 | AU27: 0 | AV27: 0 | AW27: 0 | AX27: 0 | AY27: 0 | AZ27: 0 | BA27: 0 | BB27: 0 | BC27: 0 | BD27: 0 | BE27: 0 | BF27: 0 | BG27: 0 | BH27: 0 | BI27: 0 | BJ27: 0 | BK27: 0 | BL27: 0 | BM27: 0
E29: =Assets!E$103 -> Depreciations Investments Accrued | F29: =Assets!F$103 -> PL | G29: =Assets!G$103 -> EUR | H29: =Assets!H$103 -> -881109.4725 | I29: =Assets!I$103 -> 0 | J29: =Assets!J$103 -> 0 | K29: =Assets!K$103 -> 0 | L29: =Assets!L$103 -> -46865.38994 | M29: =Assets!M$103 -> -46865.38994 | N29: =Assets!N$103 -> -46865.38994 | O29: =Assets!O$103 -> -46865.38994 | P29: =Assets!P$103 -> -46865.38994 | Q29: =Assets!Q$103 -> -46865.38994 | R29: =Assets!R$103 -> -46865.38994 | S29: =Assets!S$103 -> -46865.38994 | T29: =Assets!T$103 -> -46865.38994 | U29: =Assets!U$103 -> -46865.38994 | V29: =Assets!V$103 -> -46865.38994 | W29: =Assets!W$103 -> -46865.38994 | X29: =Assets!X$103 -> -46865.38994 | Y29: =Assets!Y$103 -> -46865.38994 | Z29: =Assets!Z$103 -> -46865.38994 | AA29: =Assets!AA$103 -> -11875.24156 | AB29: =Assets!AB$103 -> -11875.24156 | AC29: =Assets!AC$103 -> -11875.24156 | AD29: =Assets!AD$103 -> -11875.24156 | AE29: =Assets!AE$103 -> -11875.24156 | AF29: =Assets!AF$103 -> -11875.24156 | AG29: =Assets!AG$103 -> -11875.24156 | AH29: =Assets!AH$103 -> -11875.24156 | AI29: =Assets!AI$103 -> -11875.24156 | AJ29: =Assets!AJ$103 -> -11875.24156 | AK29: =Assets!AK$103 -> -11875.24156 | AL29: =Assets!AL$103 -> -11875.24156 | AM29: =Assets!AM$103 -> -11875.24156 | AN29: =Assets!AN$103 -> -11875.24156 | AO29: =Assets!AO$103 -> -11875.24156 | AP29: =Assets!AP$103 -> 0 | AQ29: =Assets!AQ$103 -> 0 | AR29: =Assets!AR$103 -> 0 | AS29: =Assets!AS$103 -> 0 | AT29: =Assets!AT$103 -> 0 | AU29: =Assets!AU$103 -> 0 | AV29: =Assets!AV$103 -> 0 | AW29: =Assets!AW$103 -> 0 | AX29: =Assets!AX$103 -> 0 | AY29: =Assets!AY$103 -> 0 | AZ29: =Assets!AZ$103 -> 0 | BA29: =Assets!BA$103 -> 0 | BB29: =Assets!BB$103 -> 0 | BC29: =Assets!BC$103 -> 0 | BD29: =Assets!BD$103 -> 0 | BE29: =Assets!BE$103 -> 0 | BF29: =Assets!BF$103 -> 0 | BG29: =Assets!BG$103 -> 0 | BH29: =Assets!BH$103 -> 0 | BI29: =Assets!BI$103 -> 0 | BJ29: =Assets!BJ$103 -> 0 | BK29: =Assets!BK$103 -> 0 | BL29: =Assets!BL$103 -> 0 | BM29: =Assets!BM$103 -> 0
E30: =Equity!E$71 -> Amortization Capital Subsidies/Grants | F30: =Equity!F$71 -> PL | G30: =Equity!G$71 -> EUR | H30: =Equity!H$71 -> 474295.8 | I30: =Equity!I$71 -> 0 | J30: =Equity!J$71 -> 0 | K30: =Equity!K$71 -> 0 | L30: =Equity!L$71 -> 31619.72 | M30: =Equity!M$71 -> 31619.72 | N30: =Equity!N$71 -> 31619.72 | O30: =Equity!O$71 -> 31619.72 | P30: =Equity!P$71 -> 31619.72 | Q30: =Equity!Q$71 -> 31619.72 | R30: =Equity!R$71 -> 31619.72 | S30: =Equity!S$71 -> 31619.72 | T30: =Equity!T$71 -> 31619.72 | U30: =Equity!U$71 -> 31619.72 | V30: =Equity!V$71 -> 31619.72 | W30: =Equity!W$71 -> 31619.72 | X30: =Equity!X$71 -> 31619.72 | Y30: =Equity!Y$71 -> 31619.72 | Z30: =Equity!Z$71 -> 31619.72 | AA30: =Equity!AA$71 -> 0 | AB30: =Equity!AB$71 -> 0 | AC30: =Equity!AC$71 -> 0 | AD30: =Equity!AD$71 -> 0 | AE30: =Equity!AE$71 -> 0 | AF30: =Equity!AF$71 -> 0 | AG30: =Equity!AG$71 -> 0 | AH30: =Equity!AH$71 -> 0 | AI30: =Equity!AI$71 -> 0 | AJ30: =Equity!AJ$71 -> 0 | AK30: =Equity!AK$71 -> 0 | AL30: =Equity!AL$71 -> 0 | AM30: =Equity!AM$71 -> 0 | AN30: =Equity!AN$71 -> 0 | AO30: =Equity!AO$71 -> 0 | AP30: =Equity!AP$71 -> 0 | AQ30: =Equity!AQ$71 -> 0 | AR30: =Equity!AR$71 -> 0 | AS30: =Equity!AS$71 -> 0 | AT30: =Equity!AT$71 -> 0 | AU30: =Equity!AU$71 -> 0 | AV30: =Equity!AV$71 -> 0 | AW30: =Equity!AW$71 -> 0 | AX30: =Equity!AX$71 -> 0 | AY30: =Equity!AY$71 -> 0 | AZ30: =Equity!AZ$71 -> 0 | BA30: =Equity!BA$71 -> 0 | BB30: =Equity!BB$71 -> 0 | BC30: =Equity!BC$71 -> 0 | BD30: =Equity!BD$71 -> 0 | BE30: =Equity!BE$71 -> 0 | BF30: =Equity!BF$71 -> 0 | BG30: =Equity!BG$71 -> 0 | BH30: =Equity!BH$71 -> 0 | BI30: =Equity!BI$71 -> 0 | BJ30: =Equity!BJ$71 -> 0 | BK30: =Equity!BK$71 -> 0 | BL30: =Equity!BL$71 -> 0 | BM30: =Equity!BM$71 -> 0
E32: EBIT | G32: EUR | H32: =SUM(J32:DM32) -> 1779686.327 | J32: =J27 + SUM(J29:J31) -> 0 | K32: 0 | L32: 47314.33006 | M32: 47214.33006 | N32: 47214.33006 | O32: 47214.33006 | P32: 47214.33006 | Q32: 47514.33006 | R32: 47214.33006 | S32: 47214.33006 | T32: 47214.33006 | U32: 47214.33006 | V32: 47214.33006 | W32: 47214.33006 | X32: 47214.33006 | Y32: 47214.33006 | Z32: 47214.33006 | AA32: 50584.75844 | AB32: 50584.75844 | AC32: 50584.75844 | AD32: 50584.75844 | AE32: 50584.75844 | AF32: 50584.75844 | AG32: 50584.75844 | AH32: 50584.75844 | AI32: 50584.75844 | AJ32: 50584.75844 | AK32: 50584.75844 | AL32: 50584.75844 | AM32: 50584.75844 | AN32: 50584.75844 | AO32: 50584.75844 | AP32: =AP27 + SUM(AP29:AP31) -> 62460 | AQ32: 62460 | AR32: 62460 | AS32: 62460 | AT32: 62460 | AU32: 0 | AV32: 0 | AW32: 0 | AX32: 0 | AY32: 0 | AZ32: 0 | BA32: 0 | BB32: 0 | BC32: 0 | BD32: 0 | BE32: 0 | BF32: 0 | BG32: 0 | BH32: 0 | BI32: 0 | BJ32: 0 | BK32: 0 | BL32: 0 | BM32: 0
E34: =TLF!E$31 -> TLF - Interest Cost during Repayment Period Expensed & Paid | F34: =TLF!F$31 -> PL & CF | G34: =TLF!G$31 -> EUR | H34: =TLF!H$31 -> -17739.02076 | I34: =TLF!I$31 -> 0 | J34: =TLF!J$31 -> 0 | K34: =TLF!K$31 -> 0 | L34: =TLF!L$31 -> -2074.74973 | M34: =TLF!M$31 -> -1963.197532 | N34: =TLF!N$31 -> -1848.298767 | O34: =TLF!O$31 -> -1729.95304 | P34: =TLF!P$31 -> -1608.056941 | Q34: =TLF!Q$31 -> -1482.503959 | R34: =TLF!R$31 -> -1353.184388 | S34: =TLF!S$31 -> -1219.985229 | T34: =TLF!T$31 -> -1082.790096 | U34: =TLF!U$31 -> -941.4791087 | V34: =TLF!V$31 -> -795.9287918 | W34: =TLF!W$31 -> -646.0119653 | X34: =TLF!X$31 -> -491.5976341 | Y34: =TLF!Y$31 -> -332.5508729 | Z34: =TLF!Z$31 -> -168.7327089 | AA34: =TLF!AA$31 -> 0 | AB34: =TLF!AB$31 -> 0 | AC34: =TLF!AC$31 -> 0 | AD34: =TLF!AD$31 -> 0 | AE34: =TLF!AE$31 -> 0 | AF34: =TLF!AF$31 -> 0 | AG34: =TLF!AG$31 -> 0 | AH34: =TLF!AH$31 -> 0 | AI34: =TLF!AI$31 -> 0 | AJ34: =TLF!AJ$31 -> 0 | AK34: =TLF!AK$31 -> 0 | AL34: =TLF!AL$31 -> 0 | AM34: =TLF!AM$31 -> 0 | AN34: =TLF!AN$31 -> 0 | AO34: =TLF!AO$31 -> 0 | AP34: =TLF!AP$31 -> 0 | AQ34: =TLF!AQ$31 -> 0 | AR34: =TLF!AR$31 -> 0 | AS34: =TLF!AS$31 -> 0 | AT34: =TLF!AT$31 -> 0 | AU34: =TLF!AU$31 -> 0 | AV34: =TLF!AV$31 -> 0 | AW34: =TLF!AW$31 -> 0 | AX34: =TLF!AX$31 -> 0 | AY34: =TLF!AY$31 -> 0 | AZ34: =TLF!AZ$31 -> 0 | BA34: =TLF!BA$31 -> 0 | BB34: =TLF!BB$31 -> 0 | BC34: =TLF!BC$31 -> 0 | BD34: =TLF!BD$31 -> 0 | BE34: =TLF!BE$31 -> 0 | BF34: =TLF!BF$31 -> 0 | BG34: =TLF!BG$31 -> 0 | BH34: =TLF!BH$31 -> 0 | BI34: =TLF!BI$31 -> 0 | BJ34: =TLF!BJ$31 -> 0 | BK34: =TLF!BK$31 -> 0 | BL34: =TLF!BL$31 -> 0 | BM34: =TLF!BM$31 -> 0
E36: EBT | G36: EUR | H36: =SUM(J36:BM36) -> 1761947.307 | J36: =J32 + SUM(J34:J35) -> 0 | K36: 0 | L36: 45239.58033 | M36: 45251.13253 | N36: 45366.03129 | O36: 45484.37702 | P36: 45606.27312 | Q36: 46031.8261 | R36: 45861.14567 | S36: 45994.34483 | T36: 46131.53996 | U36: 46272.85095 | V36: 46418.40127 | W36: 46568.3181 | X36: 46722.73243 | Y36: 46881.77919 | Z36: 47045.59735 | AA36: 50584.75844 | AB36: 50584.75844 | AC36: 50584.75844 | AD36: 50584.75844 | AE36: 50584.75844 | AF36: 50584.75844 | AG36: 50584.75844 | AH36: 50584.75844 | AI36: 50584.75844 | AJ36: 50584.75844 | AK36: 50584.75844 | AL36: 50584.75844 | AM36: 50584.75844 | AN36: 50584.75844 | AO36: 50584.75844 | AP36: =AP32 + SUM(AP34:AP35) -> 62460 | AQ36: 62460 | AR36: 62460 | AS36: 62460 | AT36: 62460 | AU36: 0 | AV36: 0 | AW36: 0 | AX36: 0 | AY36: 0 | AZ36: 0 | BA36: 0 | BB36: 0 | BC36: 0 | BD36: 0 | BE36: 0 | BF36: 0 | BG36: 0 | BH36: 0 | BI36: 0 | BJ36: 0 | BK36: 0 | BL36: 0 | BM36: 0
E38: =Tax!E$15 -> Corporate Tax Paid | F38: =Tax!F$15 -> PL & CF | G38: =Tax!G$15 -> EUR | H38: =Tax!H$15 -> -440486.8267 | I38: =Tax!I$15 -> 0 | J38: =Tax!J$15 -> 0 | K38: =Tax!K$15 -> 0 | L38: =Tax!L$15 -> -11309.89508 | M38: =Tax!M$15 -> -11312.78313 | N38: =Tax!N$15 -> -11341.50782 | O38: =Tax!O$15 -> -11371.09426 | P38: =Tax!P$15 -> -11401.56828 | Q38: =Tax!Q$15 -> -11507.95653 | R38: =Tax!R$15 -> -11465.28642 | S38: =Tax!S$15 -> -11498.58621 | T38: =Tax!T$15 -> -11532.88499 | U38: =Tax!U$15 -> -11568.21274 | V38: =Tax!V$15 -> -11604.60032 | W38: =Tax!W$15 -> -11642.07952 | X38: =Tax!X$15 -> -11680.68311 | Y38: =Tax!Y$15 -> -11720.4448 | Z38: =Tax!Z$15 -> -11761.39934 | AA38: =Tax!AA$15 -> -12646.18961 | AB38: =Tax!AB$15 -> -12646.18961 | AC38: =Tax!AC$15 -> -12646.18961 | AD38: =Tax!AD$15 -> -12646.18961 | AE38: =Tax!AE$15 -> -12646.18961 | AF38: =Tax!AF$15 -> -12646.18961 | AG38: =Tax!AG$15 -> -12646.18961 | AH38: =Tax!AH$15 -> -12646.18961 | AI38: =Tax!AI$15 -> -12646.18961 | AJ38: =Tax!AJ$15 -> -12646.18961 | AK38: =Tax!AK$15 -> -12646.18961 | AL38: =Tax!AL$15 -> -12646.18961 | AM38: =Tax!AM$15 -> -12646.18961 | AN38: =Tax!AN$15 -> -12646.18961 | AO38: =Tax!AO$15 -> -12646.18961 | AP38: =Tax!AP$15 -> -15615 | AQ38: =Tax!AQ$15 -> -15615 | AR38: =Tax!AR$15 -> -15615 | AS38: =Tax!AS$15 -> -15615 | AT38: =Tax!AT$15 -> -15615 | AU38: =Tax!AU$15 -> 0 | AV38: =Tax!AV$15 -> 0 | AW38: =Tax!AW$15 -> 0 | AX38: =Tax!AX$15 -> 0 | AY38: =Tax!AY$15 -> 0 | AZ38: =Tax!AZ$15 -> 0 | BA38: =Tax!BA$15 -> 0 | BB38: =Tax!BB$15 -> 0 | BC38: =Tax!BC$15 -> 0 | BD38: =Tax!BD$15 -> 0 | BE38: =Tax!BE$15 -> 0 | BF38: =Tax!BF$15 -> 0 | BG38: =Tax!BG$15 -> 0 | BH38: =Tax!BH$15 -> 0 | BI38: =Tax!BI$15 -> 0 | BJ38: =Tax!BJ$15 -> 0 | BK38: =Tax!BK$15 -> 0 | BL38: =Tax!BL$15 -> 0 | BM38: =Tax!BM$15 -> 0
E40: EAT | G40: EUR | H40: =SUM(J40:BM40) -> 1321460.48 | J40: =J36 + SUM(J38:J39) -> 0 | K40: 0 | L40: 33929.68525 | M40: 33938.3494 | N40: 34024.52347 | O40: 34113.28277 | P40: 34204.70484 | Q40: 34523.86958 | R40: 34395.85925 | S40: 34495.75862 | T40: 34598.65497 | U40: 34704.63821 | V40: 34813.80095 | W40: 34926.23857 | X40: 35042.04932 | Y40: 35161.33439 | Z40: 35284.19801 | AA40: 37938.56883 | AB40: 37938.56883 | AC40: 37938.56883 | AD40: 37938.56883 | AE40: 37938.56883 | AF40: 37938.56883 | AG40: 37938.56883 | AH40: 37938.56883 | AI40: 37938.56883 | AJ40: 37938.56883 | AK40: 37938.56883 | AL40: 37938.56883 | AM40: 37938.56883 | AN40: 37938.56883 | AO40: 37938.56883 | AP40: =AP36 + SUM(AP38:AP39) -> 46845 | AQ40: 46845 | AR40: 46845 | AS40: 46845 | AT40: 46845 | AU40: 0 | AV40: 0 | AW40: 0 | AX40: 0 | AY40: 0 | AZ40: 0 | BA40: 0 | BB40: 0 | BC40: 0 | BD40: 0 | BE40: 0 | BF40: 0 | BG40: 0 | BH40: 0 | BI40: 0 | BJ40: 0 | BK40: 0 | BL40: 0 | BM40: 0
E42: =Equity!E$49 -> Dividends Declared & Paid | F42: =Equity!F$49 -> PL & CF | G42: =Equity!G$49 -> EUR | H42: =Equity!H$49 -> -1321460.48 | I42: =Equity!I$49 -> 0 | J42: =Equity!J$49 -> 0 | K42: =Equity!K$49 -> 0 | L42: =Equity!L$49 -> -33929.68525 | M42: =Equity!M$49 -> -33938.3494 | N42: =Equity!N$49 -> -34024.52347 | O42: =Equity!O$49 -> -34113.28277 | P42: =Equity!P$49 -> -34204.70484 | Q42: =Equity!Q$49 -> -34523.86958 | R42: =Equity!R$49 -> -34395.85925 | S42: =Equity!S$49 -> -34495.75862 | T42: =Equity!T$49 -> -34598.65497 | U42: =Equity!U$49 -> -34704.63821 | V42: =Equity!V$49 -> -34813.80095 | W42: =Equity!W$49 -> -34926.23857 | X42: =Equity!X$49 -> -35042.04932 | Y42: =Equity!Y$49 -> -35161.33439 | Z42: =Equity!Z$49 -> -35284.19801 | AA42: =Equity!AA$49 -> -37938.56883 | AB42: =Equity!AB$49 -> -37938.56883 | AC42: =Equity!AC$49 -> -37938.56883 | AD42: =Equity!AD$49 -> -37938.56883 | AE42: =Equity!AE$49 -> -37938.56883 | AF42: =Equity!AF$49 -> -37938.56883 | AG42: =Equity!AG$49 -> -37938.56883 | AH42: =Equity!AH$49 -> -37938.56883 | AI42: =Equity!AI$49 -> -37938.56883 | AJ42: =Equity!AJ$49 -> -37938.56883 | AK42: =Equity!AK$49 -> -37938.56883 | AL42: =Equity!AL$49 -> -37938.56883 | AM42: =Equity!AM$49 -> -37938.56883 | AN42: =Equity!AN$49 -> -37938.56883 | AO42: =Equity!AO$49 -> -37938.56883 | AP42: =Equity!AP$49 -> -46845 | AQ42: =Equity!AQ$49 -> -46845 | AR42: =Equity!AR$49 -> -46845 | AS42: =Equity!AS$49 -> -46845 | AT42: =Equity!AT$49 -> -46845 | AU42: =Equity!AU$49 -> 0 | AV42: =Equity!AV$49 -> 0 | AW42: =Equity!AW$49 -> 0 | AX42: =Equity!AX$49 -> 0 | AY42: =Equity!AY$49 -> 0 | AZ42: =Equity!AZ$49 -> 0 | BA42: =Equity!BA$49 -> 0 | BB42: =Equity!BB$49 -> 0 | BC42: =Equity!BC$49 -> 0 | BD42: =Equity!BD$49 -> 0 | BE42: =Equity!BE$49 -> 0 | BF42: =Equity!BF$49 -> 0 | BG42: =Equity!BG$49 -> 0 | BH42: =Equity!BH$49 -> 0 | BI42: =Equity!BI$49 -> 0 | BJ42: =Equity!BJ$49 -> 0 | BK42: =Equity!BK$49 -> 0 | BL42: =Equity!BL$49 -> 0 | BM42: =Equity!BM$49 -> 0
E44: Net Result | G44: EUR | H44: =SUM(J44:BM44) -> 0 | J44: =J40 + SUM( J42:J43) -> 0 | K44: 0 | L44: 0 | M44: 0 | N44: 0 | O44: 0 | P44: 0 | Q44: 0 | R44: 0 | S44: 0 | T44: 0 | U44: 0 | V44: 0 | W44: 0 | X44: 0 | Y44: 0 | Z44: 0 | AA44: 0 | AB44: 0 | AC44: 0 | AD44: 0 | AE44: 0 | AF44: 0 | AG44: 0 | AH44: 0 | AI44: 0 | AJ44: 0 | AK44: 0 | AL44: 0 | AM44: 0 | AN44: 0 | AO44: 0 | AP44: =AP40 + SUM( AP42:AP43) -> 0 | AQ44: 0 | AR44: 0 | AS44: 0 | AT44: 0 | AU44: 0 | AV44: 0 | AW44: 0 | AX44: 0 | AY44: 0 | AZ44: 0 | BA44: 0 | BB44: 0 | BC44: 0 | BD44: 0 | BE44: 0 | BF44: 0 | BG44: 0 | BH44: 0 | BI44: 0 | BJ44: 0 | BK44: 0 | BL44: 0 | BM44: 0
C46: Retained Earnings
E48: Retained Earnings BEG | G48: EUR | J48: =I$50 -> 0 | K48: 0 | L48: 0 | M48: 0 | N48: 0 | O48: 0 | P48: 0 | Q48: 0 | R48: 0 | S48: 0 | T48: 0 | U48: 0 | V48: 0 | W48: 0 | X48: 0 | Y48: 0 | Z48: 0 | AA48: 0 | AB48: 0 | AC48: 0 | AD48: 0 | AE48: 0 | AF48: 0 | AG48: 0 | AH48: 0 | AI48: 0 | AJ48: 0 | AK48: 0 | AL48: 0 | AM48: 0 | AN48: 0 | AO48: 0 | AP48: 0 | AQ48: 0 | AR48: 0 | AS48: 0 | AT48: 0 | AU48: 0 | AV48: 0 | AW48: 0 | AX48: 0 | AY48: 0 | AZ48: 0 | BA48: 0 | BB48: 0 | BC48: 0 | BD48: 0 | BE48: 0 | BF48: 0 | BG48: 0 | BH48: 0 | BI48: 0 | BJ48: 0 | BK48: 0 | BL48: 0 | BM48: 0
D49: Plus | E49: =E$44 -> Net Result | F49: 0 | G49: EUR | H49: 0 | I49: 0 | J49: 0 | K49: 0 | L49: 0 | M49: 0 | N49: 0 | O49: 0 | P49: 0 | Q49: 0 | R49: 0 | S49: 0 | T49: 0 | U49: 0 | V49: 0 | W49: 0 | X49: 0 | Y49: 0 | Z49: 0 | AA49: 0 | AB49: 0 | AC49: 0 | AD49: 0 | AE49: 0 | AF49: 0 | AG49: 0 | AH49: 0 | AI49: 0 | AJ49: 0 | AK49: 0 | AL49: 0 | AM49: 0 | AN49: 0 | AO49: 0 | AP49: 0 | AQ49: 0 | AR49: 0 | AS49: 0 | AT49: 0 | AU49: 0 | AV49: 0 | AW49: 0 | AX49: 0 | AY49: 0 | AZ49: 0 | BA49: 0 | BB49: 0 | BC49: 0 | BD49: 0 | BE49: 0 | BF49: 0 | BG49: 0 | BH49: 0 | BI49: 0 | BJ49: 0 | BK49: 0 | BL49: 0 | BM49: 0
E50: Retained Earnings | F50: BS | G50: EUR | J50: =SUM(J48:J49) -> 0 | K50: 0 | L50: 0 | M50: 0 | N50: 0 | O50: 0 | P50: 0 | Q50: 0 | R50: 0 | S50: 0 | T50: 0 | U50: 0 | V50: 0 | W50: 0 | X50: 0 | Y50: 0 | Z50: 0 | AA50: 0 | AB50: 0 | AC50: 0 | AD50: 0 | AE50: 0 | AF50: 0 | AG50: 0 | AH50: 0 | AI50: 0 | AJ50: 0 | AK50: 0 | AL50: 0 | AM50: 0 | AN50: 0 | AO50: 0 | AP50: 0 | AQ50: 0 | AR50: 0 | AS50: 0 | AT50: 0 | AU50: 0 | AV50: 0 | AW50: 0 | AX50: 0 | AY50: 0 | AZ50: 0 | BA50: 0 | BB50: 0 | BC50: 0 | BD50: 0 | BE50: 0 | BF50: 0 | BG50: 0 | BH50: 0 | BI50: 0 | BJ50: 0 | BK50: 0 | BL50: 0 | BM50: 0
B53: BALANCE SHEET
C55: Assets
E57: =Assets!E$112 -> Process 1 - Fixed Assets Balance | F57: =Assets!F$112 -> BS | G57: =Assets!G$112 -> EUR | H57: =Assets!H$112 -> 0 | I57: =Assets!I$112 -> 0 | J57: =Assets!J$112 -> 262116.3554 | K57: =Assets!K$112 -> 524852.2257 | L57: =Assets!L$112 -> 489862.0773 | M57: =Assets!M$112 -> 454871.9289 | N57: =Assets!N$112 -> 419881.7805 | O57: =Assets!O$112 -> 384891.6322 | P57: =Assets!P$112 -> 349901.4838 | Q57: =Assets!Q$112 -> 314911.3354 | R57: =Assets!R$112 -> 279921.187 | S57: =Assets!S$112 -> 244931.0386 | T57: =Assets!T$112 -> 209940.8903 | U57: =Assets!U$112 -> 174950.7419 | V57: =Assets!V$112 -> 139960.5935 | W57: =Assets!W$112 -> 104970.4451 | X57: =Assets!X$112 -> 69980.29675 | Y57: =Assets!Y$112 -> 34990.14838 | Z57: =Assets!Z$112 -> 1.018634066e-10 | AA57: =Assets!AA$112 -> 1.018634066e-10 | AB57: =Assets!AB$112 -> 1.018634066e-10 | AC57: =Assets!AC$112 -> 1.018634066e-10 | AD57: =Assets!AD$112 -> 1.018634066e-10 | AE57: =Assets!AE$112 -> 1.018634066e-10 | AF57: =Assets!AF$112 -> 1.018634066e-10 | AG57: =Assets!AG$112 -> 1.018634066e-10 | AH57: =Assets!AH$112 -> 1.018634066e-10 | AI57: =Assets!AI$112 -> 1.018634066e-10 | AJ57: =Assets!AJ$112 -> 1.018634066e-10 | AK57: =Assets!AK$112 -> 1.018634066e-10 | AL57: =Assets!AL$112 -> 1.018634066e-10 | AM57: =Assets!AM$112 -> 1.018634066e-10 | AN57: =Assets!AN$112 -> 1.018634066e-10 | AO57: =Assets!AO$112 -> 1.018634066e-10 | AP57: =Assets!AP$112 -> 1.018634066e-10 | AQ57: =Assets!AQ$112 -> 1.018634066e-10 | AR57: =Assets!AR$112 -> 1.018634066e-10 | AS57: =Assets!AS$112 -> 1.018634066e-10 | AT57: =Assets!AT$112 -> 1.018634066e-10 | AU57: =Assets!AU$112 -> 1.018634066e-10 | AV57: =Assets!AV$112 -> 1.018634066e-10 | AW57: =Assets!AW$112 -> 1.018634066e-10 | AX57: =Assets!AX$112 -> 1.018634066e-10 | AY57: =Assets!AY$112 -> 1.018634066e-10 | AZ57: =Assets!AZ$112 -> 1.018634066e-10 | BA57: =Assets!BA$112 -> 1.018634066e-10 | BB57: =Assets!BB$112 -> 1.018634066e-10 | BC57: =Assets!BC$112 -> 1.018634066e-10 | BD57: =Assets!BD$112 -> 1.018634066e-10 | BE57: =Assets!BE$112 -> 1.018634066e-10 | BF57: =Assets!BF$112 -> 1.018634066e-10 | BG57: =Assets!BG$112 -> 1.018634066e-10 | BH57: =Assets!BH$112 -> 1.018634066e-10 | BI57: =Assets!BI$112 -> 1.018634066e-10 | BJ57: =Assets!BJ$112 -> 1.018634066e-10 | BK57: =Assets!BK$112 -> 1.018634066e-10 | BL57: =Assets!BL$112 -> 1.018634066e-10 | BM57: =Assets!BM$112 -> 1.018634066e-10
E58: =Assets!E$118 -> Process 2 - Fixed Assets Balance | F58: =Assets!F$118 -> BS | G58: =Assets!G$118 -> EUR | H58: =Assets!H$118 -> 0 | I58: =Assets!I$118 -> 0 | J58: =Assets!J$118 -> 0 | K58: =Assets!K$118 -> 0 | L58: =Assets!L$118 -> 0 | M58: =Assets!M$118 -> 0 | N58: =Assets!N$118 -> 0 | O58: =Assets!O$118 -> 0 | P58: =Assets!P$118 -> 0 | Q58: =Assets!Q$118 -> 0 | R58: =Assets!R$118 -> 0 | S58: =Assets!S$118 -> 0 | T58: =Assets!T$118 -> 0 | U58: =Assets!U$118 -> 0 | V58: =Assets!V$118 -> 0 | W58: =Assets!W$118 -> 0 | X58: =Assets!X$118 -> 0 | Y58: =Assets!Y$118 -> 0 | Z58: =Assets!Z$118 -> 0 | AA58: =Assets!AA$118 -> 0 | AB58: =Assets!AB$118 -> 0 | AC58: =Assets!AC$118 -> 0 | AD58: =Assets!AD$118 -> 0 | AE58: =Assets!AE$118 -> 0 | AF58: =Assets!AF$118 -> 0 | AG58: =Assets!AG$118 -> 0 | AH58: =Assets!AH$118 -> 0 | AI58: =Assets!AI$118 -> 0 | AJ58: =Assets!AJ$118 -> 0 | AK58: =Assets!AK$118 -> 0 | AL58: =Assets!AL$118 -> 0 | AM58: =Assets!AM$118 -> 0 | AN58: =Assets!AN$118 -> 0 | AO58: =Assets!AO$118 -> 0 | AP58: =Assets!AP$118 -> 0 | AQ58: =Assets!AQ$118 -> 0 | AR58: =Assets!AR$118 -> 0 | AS58: =Assets!AS$118 -> 0 | AT58: =Assets!AT$118 -> 0 | AU58: =Assets!AU$118 -> 0 | AV58: =Assets!AV$118 -> 0 | AW58: =Assets!AW$118 -> 0 | AX58: =Assets!AX$118 -> 0 | AY58: =Assets!AY$118 -> 0 | AZ58: =Assets!AZ$118 -> 0 | BA58: =Assets!BA$118 -> 0 | BB58: =Assets!BB$118 -> 0 | BC58: =Assets!BC$118 -> 0 | BD58: =Assets!BD$118 -> 0 | BE58: =Assets!BE$118 -> 0 | BF58: =Assets!BF$118 -> 0 | BG58: =Assets!BG$118 -> 0 | BH58: =Assets!BH$118 -> 0 | BI58: =Assets!BI$118 -> 0 | BJ58: =Assets!BJ$118 -> 0 | BK58: =Assets!BK$118 -> 0 | BL58: =Assets!BL$118 -> 0 | BM58: =Assets!BM$118 -> 0
E59: =Assets!E$124 -> Process 3 - Fixed Assets Balance | F59: =Assets!F$124 -> BS | G59: =Assets!G$124 -> EUR | H59: =Assets!H$124 -> 0 | I59: =Assets!I$124 -> 0 | J59: =Assets!J$124 -> 0 | K59: =Assets!K$124 -> 0 | L59: =Assets!L$124 -> 0 | M59: =Assets!M$124 -> 0 | N59: =Assets!N$124 -> 0 | O59: =Assets!O$124 -> 0 | P59: =Assets!P$124 -> 0 | Q59: =Assets!Q$124 -> 0 | R59: =Assets!R$124 -> 0 | S59: =Assets!S$124 -> 0 | T59: =Assets!T$124 -> 0 | U59: =Assets!U$124 -> 0 | V59: =Assets!V$124 -> 0 | W59: =Assets!W$124 -> 0 | X59: =Assets!X$124 -> 0 | Y59: =Assets!Y$124 -> 0 | Z59: =Assets!Z$124 -> 0 | AA59: =Assets!AA$124 -> 0 | AB59: =Assets!AB$124 -> 0 | AC59: =Assets!AC$124 -> 0 | AD59: =Assets!AD$124 -> 0 | AE59: =Assets!AE$124 -> 0 | AF59: =Assets!AF$124 -> 0 | AG59: =Assets!AG$124 -> 0 | AH59: =Assets!AH$124 -> 0 | AI59: =Assets!AI$124 -> 0 | AJ59: =Assets!AJ$124 -> 0 | AK59: =Assets!AK$124 -> 0 | AL59: =Assets!AL$124 -> 0 | AM59: =Assets!AM$124 -> 0 | AN59: =Assets!AN$124 -> 0 | AO59: =Assets!AO$124 -> 0 | AP59: =Assets!AP$124 -> 0 | AQ59: =Assets!AQ$124 -> 0 | AR59: =Assets!AR$124 -> 0 | AS59: =Assets!AS$124 -> 0 | AT59: =Assets!AT$124 -> 0 | AU59: =Assets!AU$124 -> 0 | AV59: =Assets!AV$124 -> 0 | AW59: =Assets!AW$124 -> 0 | AX59: =Assets!AX$124 -> 0 | AY59: =Assets!AY$124 -> 0 | AZ59: =Assets!AZ$124 -> 0 | BA59: =Assets!BA$124 -> 0 | BB59: =Assets!BB$124 -> 0 | BC59: =Assets!BC$124 -> 0 | BD59: =Assets!BD$124 -> 0 | BE59: =Assets!BE$124 -> 0 | BF59: =Assets!BF$124 -> 0 | BG59: =Assets!BG$124 -> 0 | BH59: =Assets!BH$124 -> 0 | BI59: =Assets!BI$124 -> 0 | BJ59: =Assets!BJ$124 -> 0 | BK59: =Assets!BK$124 -> 0 | BL59: =Assets!BL$124 -> 0 | BM59: =Assets!BM$124 -> 0
E60: =Assets!E$130 -> Other Investments - Fixed Assets Balance | F60: =Assets!F$130 -> BS | G60: =Assets!G$130 -> EUR | H60: =Assets!H$130 -> 0 | I60: =Assets!I$130 -> 0 | J60: =Assets!J$130 -> 177918.3674 | K60: =Assets!K$130 -> 356257.2469 | L60: =Assets!L$130 -> 344382.0053 | M60: =Assets!M$130 -> 332506.7637 | N60: =Assets!N$130 -> 320631.5222 | O60: =Assets!O$130 -> 308756.2806 | P60: =Assets!P$130 -> 296881.0391 | Q60: =Assets!Q$130 -> 285005.7975 | R60: =Assets!R$130 -> 273130.5559 | S60: =Assets!S$130 -> 261255.3144 | T60: =Assets!T$130 -> 249380.0728 | U60: =Assets!U$130 -> 237504.8312 | V60: =Assets!V$130 -> 225629.5897 | W60: =Assets!W$130 -> 213754.3481 | X60: =Assets!X$130 -> 201879.1066 | Y60: =Assets!Y$130 -> 190003.865 | Z60: =Assets!Z$130 -> 178128.6234 | AA60: =Assets!AA$130 -> 166253.3819 | AB60: =Assets!AB$130 -> 154378.1403 | AC60: =Assets!AC$130 -> 142502.8987 | AD60: =Assets!AD$130 -> 130627.6572 | AE60: =Assets!AE$130 -> 118752.4156 | AF60: =Assets!AF$130 -> 106877.1741 | AG60: =Assets!AG$130 -> 95001.9325 | AH60: =Assets!AH$130 -> 83126.69093 | AI60: =Assets!AI$130 -> 71251.44937 | AJ60: =Assets!AJ$130 -> 59376.20781 | AK60: =Assets!AK$130 -> 47500.96625 | AL60: =Assets!AL$130 -> 35625.72469 | AM60: =Assets!AM$130 -> 23750.48312 | AN60: =Assets!AN$130 -> 11875.24156 | AO60: =Assets!AO$130 -> -5.456968211e-11 | AP60: =Assets!AP$130 -> -5.456968211e-11 | AQ60: =Assets!AQ$130 -> -5.456968211e-11 | AR60: =Assets!AR$130 -> -5.456968211e-11 | AS60: =Assets!AS$130 -> -5.456968211e-11 | AT60: =Assets!AT$130 -> -5.456968211e-11 | AU60: =Assets!AU$130 -> -5.456968211e-11 | AV60: =Assets!AV$130 -> -5.456968211e-11 | AW60: =Assets!AW$130 -> -5.456968211e-11 | AX60: =Assets!AX$130 -> -5.456968211e-11 | AY60: =Assets!AY$130 -> -5.456968211e-11 | AZ60: =Assets!AZ$130 -> -5.456968211e-11 | BA60: =Assets!BA$130 -> -5.456968211e-11 | BB60: =Assets!BB$130 -> -5.456968211e-11 | BC60: =Assets!BC$130 -> -5.456968211e-11 | BD60: =Assets!BD$130 -> -5.456968211e-11 | BE60: =Assets!BE$130 -> -5.456968211e-11 | BF60: =Assets!BF$130 -> -5.456968211e-11 | BG60: =Assets!BG$130 -> -5.456968211e-11 | BH60: =Assets!BH$130 -> -5.456968211e-11 | BI60: =Assets!BI$130 -> -5.456968211e-11 | BJ60: =Assets!BJ$130 -> -5.456968211e-11 | BK60: =Assets!BK$130 -> -5.456968211e-11 | BL60: =Assets!BL$130 -> -5.456968211e-11 | BM60: =Assets!BM$130 -> -5.456968211e-11
E61: =E$129 -> Cash Balance | F61: BS | G61: EUR | H61: 0 | I61: 0 | J61: 1.372516181e-06 | K61: 9.628422049e-06 | L61: 11527.26334 | M61: 22942.97447 | N61: 34243.78684 | O61: 45426.25348 | P61: 56486.82402 | Q61: 67421.84158 | R61: 78227.53957 | S61: 88900.0384 | T61: 99435.34209 | U61: 109829.3348 | V61: 120077.7772 | W61: 130176.3028 | X61: 140120.414 | Y61: 149905.4785 | Z61: 159526.7248 | AA61: 171401.9663 | AB61: 183277.2079 | AC61: 195152.4495 | AD61: 207027.691 | AE61: 218902.9326 | AF61: 230778.1741 | AG61: 242653.4157 | AH61: 254528.6573 | AI61: 266403.8988 | AJ61: 278279.1404 | AK61: 290154.382 | AL61: 302029.6235 | AM61: 313904.8651 | AN61: 325780.1066 | AO61: 337655.3482 | AP61: 337655.3482 | AQ61: 337655.3482 | AR61: 337655.3482 | AS61: 337655.3482 | AT61: 0 | AU61: 0 | AV61: 0 | AW61: 0 | AX61: 0 | AY61: 0 | AZ61: 0 | BA61: 0 | BB61: 0 | BC61: 0 | BD61: 0 | BE61: 0 | BF61: 0 | BG61: 0 | BH61: 0 | BI61: 0 | BJ61: 0 | BK61: 0 | BL61: 0 | BM61: 0
E63: Total Assets | G63: EUR | J63: =SUM(J57:J62) -> 440034.7228 | K63: 881109.4725 | L63: 845771.3459 | M63: 810321.6671 | N63: 774757.0895 | O63: 739074.1662 | P63: 703269.3468 | Q63: 667338.9745 | R63: 631279.2825 | S63: 595086.3914 | T63: 558756.3052 | U63: 522284.9079 | V63: 485667.9604 | W63: 448901.096 | X63: 411979.8173 | Y63: 374899.4918 | Z63: 337655.3482 | AA63: 337655.3482 | AB63: 337655.3482 | AC63: 337655.3482 | AD63: 337655.3482 | AE63: 337655.3482 | AF63: 337655.3482 | AG63: 337655.3482 | AH63: 337655.3482 | AI63: 337655.3482 | AJ63: 337655.3482 | AK63: 337655.3482 | AL63: 337655.3482 | AM63: 337655.3482 | AN63: 337655.3482 | AO63: 337655.3482 | AP63: =SUM(AP57:AP62) -> 337655.3482 | AQ63: 337655.3482 | AR63: 337655.3482 | AS63: 337655.3482 | AT63: 4.729372449e-11 | AU63: 4.729372449e-11 | AV63: 4.729372449e-11 | AW63: 4.729372449e-11 | AX63: 4.729372449e-11 | AY63: 4.729372449e-11 | AZ63: 4.729372449e-11 | BA63: 4.729372449e-11 | BB63: 4.729372449e-11 | BC63: 4.729372449e-11 | BD63: 4.729372449e-11 | BE63: 4.729372449e-11 | BF63: 4.729372449e-11 | BG63: 4.729372449e-11 | BH63: 4.729372449e-11 | BI63: 4.729372449e-11 | BJ63: 4.729372449e-11 | BK63: 4.729372449e-11 | BL63: 4.729372449e-11 | BM63: 4.729372449e-11
C65: Liabilities
E67: =Equity!E$24 -> Equity Balance | F67: =Equity!F$24 -> BS | G67: =Equity!G$24 -> EUR | H67: =Equity!H$24 -> 0 | I67: =Equity!I$24 -> 0 | J67: =Equity!J$24 -> 168396.0629 | K67: =Equity!K$24 -> 337655.3482 | L67: =Equity!L$24 -> 337655.3482 | M67: =Equity!M$24 -> 337655.3482 | N67: =Equity!N$24 -> 337655.3482 | O67: =Equity!O$24 -> 337655.3482 | P67: =Equity!P$24 -> 337655.3482 | Q67: =Equity!Q$24 -> 337655.3482 | R67: =Equity!R$24 -> 337655.3482 | S67: =Equity!S$24 -> 337655.3482 | T67: =Equity!T$24 -> 337655.3482 | U67: =Equity!U$24 -> 337655.3482 | V67: =Equity!V$24 -> 337655.3482 | W67: =Equity!W$24 -> 337655.3482 | X67: =Equity!X$24 -> 337655.3482 | Y67: =Equity!Y$24 -> 337655.3482 | Z67: =Equity!Z$24 -> 337655.3482 | AA67: =Equity!AA$24 -> 337655.3482 | AB67: =Equity!AB$24 -> 337655.3482 | AC67: =Equity!AC$24 -> 337655.3482 | AD67: =Equity!AD$24 -> 337655.3482 | AE67: =Equity!AE$24 -> 337655.3482 | AF67: =Equity!AF$24 -> 337655.3482 | AG67: =Equity!AG$24 -> 337655.3482 | AH67: =Equity!AH$24 -> 337655.3482 | AI67: =Equity!AI$24 -> 337655.3482 | AJ67: =Equity!AJ$24 -> 337655.3482 | AK67: =Equity!AK$24 -> 337655.3482 | AL67: =Equity!AL$24 -> 337655.3482 | AM67: =Equity!AM$24 -> 337655.3482 | AN67: =Equity!AN$24 -> 337655.3482 | AO67: =Equity!AO$24 -> 337655.3482 | AP67: =Equity!AP$24 -> 337655.3482 | AQ67: =Equity!AQ$24 -> 337655.3482 | AR67: =Equity!AR$24 -> 337655.3482 | AS67: =Equity!AS$24 -> 337655.3482 | AT67: =Equity!AT$24 -> 0 | AU67: =Equity!AU$24 -> 0 | AV67: =Equity!AV$24 -> 0 | AW67: =Equity!AW$24 -> 0 | AX67: =Equity!AX$24 -> 0 | AY67: =Equity!AY$24 -> 0 | AZ67: =Equity!AZ$24 -> 0 | BA67: =Equity!BA$24 -> 0 | BB67: =Equity!BB$24 -> 0 | BC67: =Equity!BC$24 -> 0 | BD67: =Equity!BD$24 -> 0 | BE67: =Equity!BE$24 -> 0 | BF67: =Equity!BF$24 -> 0 | BG67: =Equity!BG$24 -> 0 | BH67: =Equity!BH$24 -> 0 | BI67: =Equity!BI$24 -> 0 | BJ67: =Equity!BJ$24 -> 0 | BK67: =Equity!BK$24 -> 0 | BL67: =Equity!BL$24 -> 0 | BM67: =Equity!BM$24 -> 0
E68: =Equity!E$78 -> Capital Subsidies/Grants Balance | F68: =Equity!F$78 -> BS | G68: =Equity!G$78 -> EUR | H68: =Equity!H$78 -> 0 | I68: =Equity!I$78 -> 0 | J68: =Equity!J$78 -> 237147.9 | K68: =Equity!K$78 -> 474295.8 | L68: =Equity!L$78 -> 442676.08 | M68: =Equity!M$78 -> 411056.36 | N68: =Equity!N$78 -> 379436.64 | O68: =Equity!O$78 -> 347816.92 | P68: =Equity!P$78 -> 316197.2 | Q68: =Equity!Q$78 -> 284577.48 | R68: =Equity!R$78 -> 252957.76 | S68: =Equity!S$78 -> 221338.04 | T68: =Equity!T$78 -> 189718.32 | U68: =Equity!U$78 -> 158098.6 | V68: =Equity!V$78 -> 126478.88 | W68: =Equity!W$78 -> 94859.16 | X68: =Equity!X$78 -> 63239.44 | Y68: =Equity!Y$78 -> 31619.72 | Z68: =Equity!Z$78 -> 1.527951099e-10 | AA68: =Equity!AA$78 -> 1.527951099e-10 | AB68: =Equity!AB$78 -> 1.527951099e-10 | AC68: =Equity!AC$78 -> 1.527951099e-10 | AD68: =Equity!AD$78 -> 1.527951099e-10 | AE68: =Equity!AE$78 -> 1.527951099e-10 | AF68: =Equity!AF$78 -> 1.527951099e-10 | AG68: =Equity!AG$78 -> 1.527951099e-10 | AH68: =Equity!AH$78 -> 1.527951099e-10 | AI68: =Equity!AI$78 -> 1.527951099e-10 | AJ68: =Equity!AJ$78 -> 1.527951099e-10 | AK68: =Equity!AK$78 -> 1.527951099e-10 | AL68: =Equity!AL$78 -> 1.527951099e-10 | AM68: =Equity!AM$78 -> 1.527951099e-10 | AN68: =Equity!AN$78 -> 1.527951099e-10 | AO68: =Equity!AO$78 -> 1.527951099e-10 | AP68: =Equity!AP$78 -> 1.527951099e-10 | AQ68: =Equity!AQ$78 -> 1.527951099e-10 | AR68: =Equity!AR$78 -> 1.527951099e-10 | AS68: =Equity!AS$78 -> 1.527951099e-10 | AT68: =Equity!AT$78 -> 1.527951099e-10 | AU68: =Equity!AU$78 -> 1.527951099e-10 | AV68: =Equity!AV$78 -> 1.527951099e-10 | AW68: =Equity!AW$78 -> 1.527951099e-10 | AX68: =Equity!AX$78 -> 1.527951099e-10 | AY68: =Equity!AY$78 -> 1.527951099e-10 | AZ68: =Equity!AZ$78 -> 1.527951099e-10 | BA68: =Equity!BA$78 -> 1.527951099e-10 | BB68: =Equity!BB$78 -> 1.527951099e-10 | BC68: =Equity!BC$78 -> 1.527951099e-10 | BD68: =Equity!BD$78 -> 1.527951099e-10 | BE68: =Equity!BE$78 -> 1.527951099e-10 | BF68: =Equity!BF$78 -> 1.527951099e-10 | BG68: =Equity!BG$78 -> 1.527951099e-10 | BH68: =Equity!BH$78 -> 1.527951099e-10 | BI68: =Equity!BI$78 -> 1.527951099e-10 | BJ68: =Equity!BJ$78 -> 1.527951099e-10 | BK68: =Equity!BK$78 -> 1.527951099e-10 | BL68: =Equity!BL$78 -> 1.527951099e-10 | BM68: =Equity!BM$78 -> 1.527951099e-10
E69: =E$50 -> Retained Earnings | F69: BS | G69: EUR | H69: 0 | I69: 0 | J69: 0 | K69: 0 | L69: 0 | M69: 0 | N69: 0 | O69: 0 | P69: 0 | Q69: 0 | R69: 0 | S69: 0 | T69: 0 | U69: 0 | V69: 0 | W69: 0 | X69: 0 | Y69: 0 | Z69: 0 | AA69: 0 | AB69: 0 | AC69: 0 | AD69: 0 | AE69: 0 | AF69: 0 | AG69: 0 | AH69: 0 | AI69: 0 | AJ69: 0 | AK69: =AK$50 -> 0 | AL69: 0 | AM69: 0 | AN69: 0 | AO69: 0 | AP69: 0 | AQ69: 0 | AR69: 0 | AS69: 0 | AT69: 0 | AU69: 0 | AV69: 0 | AW69: 0 | AX69: 0 | AY69: 0 | AZ69: 0 | BA69: 0 | BB69: 0 | BC69: 0 | BD69: 0 | BE69: 0 | BF69: 0 | BG69: 0 | BH69: 0 | BI69: 0 | BJ69: 0 | BK69: 0 | BL69: 0 | BM69: 0
E70: =TLF!E$52 -> TLF Balance | F70: =TLF!F$52 -> BS | G70: =TLF!G$52 -> EUR | H70: =TLF!H$52 -> 0 | I70: =TLF!I$52 -> 0 | J70: =TLF!J$52 -> 34490.75988 | K70: =TLF!K$52 -> 69158.32433 | L70: =TLF!L$52 -> 65439.91772 | M70: =TLF!M$52 -> 61609.95891 | N70: =TLF!N$52 -> 57665.10134 | O70: =TLF!O$52 -> 53601.89804 | P70: =TLF!P$52 -> 49416.79864 | Q70: =TLF!Q$52 -> 45106.14626 | R70: =TLF!R$52 -> 40666.17431 | S70: =TLF!S$52 -> 36093.0032 | T70: =TLF!T$52 -> 31382.63696 | U70: =TLF!U$52 -> 26530.95973 | V70: =TLF!V$52 -> 21533.73218 | W70: =TLF!W$52 -> 16386.5878 | X70: =TLF!X$52 -> 11085.0291 | Y70: =TLF!Y$52 -> 5624.423631 | Z70: =TLF!Z$52 -> 0 | AA70: =TLF!AA$52 -> 0 | AB70: =TLF!AB$52 -> 0 | AC70: =TLF!AC$52 -> 0 | AD70: =TLF!AD$52 -> 0 | AE70: =TLF!AE$52 -> 0 | AF70: =TLF!AF$52 -> 0 | AG70: =TLF!AG$52 -> 0 | AH70: =TLF!AH$52 -> 0 | AI70: =TLF!AI$52 -> 0 | AJ70: =TLF!AJ$52 -> 0 | AK70: =TLF!AK$52 -> 0 | AL70: =TLF!AL$52 -> 0 | AM70: =TLF!AM$52 -> 0 | AN70: =TLF!AN$52 -> 0 | AO70: =TLF!AO$52 -> 0 | AP70: =TLF!AP$52 -> 0 | AQ70: =TLF!AQ$52 -> 0 | AR70: =TLF!AR$52 -> 0 | AS70: =TLF!AS$52 -> 0 | AT70: =TLF!AT$52 -> 0 | AU70: =TLF!AU$52 -> 0 | AV70: =TLF!AV$52 -> 0 | AW70: =TLF!AW$52 -> 0 | AX70: =TLF!AX$52 -> 0 | AY70: =TLF!AY$52 -> 0 | AZ70: =TLF!AZ$52 -> 0 | BA70: =TLF!BA$52 -> 0 | BB70: =TLF!BB$52 -> 0 | BC70: =TLF!BC$52 -> 0 | BD70: =TLF!BD$52 -> 0 | BE70: =TLF!BE$52 -> 0 | BF70: =TLF!BF$52 -> 0 | BG70: =TLF!BG$52 -> 0 | BH70: =TLF!BH$52 -> 0 | BI70: =TLF!BI$52 -> 0 | BJ70: =TLF!BJ$52 -> 0 | BK70: =TLF!BK$52 -> 0 | BL70: =TLF!BL$52 -> 0 | BM70: =TLF!BM$52 -> 0
E72: Total Liabilities | G72: EUR | J72: =SUM(J67:J71) -> 440034.7228 | K72: 881109.4725 | L72: 845771.3459 | M72: 810321.6671 | N72: 774757.0895 | O72: 739074.1662 | P72: 703269.3468 | Q72: 667338.9745 | R72: 631279.2825 | S72: 595086.3914 | T72: 558756.3052 | U72: 522284.9079 | V72: 485667.9604 | W72: 448901.096 | X72: 411979.8173 | Y72: 374899.4918 | Z72: 337655.3482 | AA72: 337655.3482 | AB72: 337655.3482 | AC72: 337655.3482 | AD72: 337655.3482 | AE72: 337655.3482 | AF72: 337655.3482 | AG72: 337655.3482 | AH72: 337655.3482 | AI72: 337655.3482 | AJ72: 337655.3482 | AK72: 337655.3482 | AL72: 337655.3482 | AM72: 337655.3482 | AN72: 337655.3482 | AO72: 337655.3482 | AP72: =SUM(AP67:AP71) -> 337655.3482 | AQ72: 337655.3482 | AR72: 337655.3482 | AS72: 337655.3482 | AT72: 1.527951099e-10 | AU72: 1.527951099e-10 | AV72: 1.527951099e-10 | AW72: 1.527951099e-10 | AX72: 1.527951099e-10 | AY72: 1.527951099e-10 | AZ72: 1.527951099e-10 | BA72: 1.527951099e-10 | BB72: 1.527951099e-10 | BC72: 1.527951099e-10 | BD72: 1.527951099e-10 | BE72: 1.527951099e-10 | BF72: 1.527951099e-10 | BG72: 1.527951099e-10 | BH72: 1.527951099e-10 | BI72: 1.527951099e-10 | BJ72: 1.527951099e-10 | BK72: 1.527951099e-10 | BL72: 1.527951099e-10 | BM72: 1.527951099e-10
E74: Balance Difference | G74: EUR | J74: =J63 - J72 -> 0 | K74: 0 | L74: 0 | M74: 0 | N74: 0 | O74: 0 | P74: 0 | Q74: 0 | R74: 0 | S74: 0 | T74: 0 | U74: 0 | V74: 0 | W74: 0 | X74: 0 | Y74: 0 | Z74: 0 | AA74: 0 | AB74: 0 | AC74: 0 | AD74: 0 | AE74: 0 | AF74: 0 | AG74: 0 | AH74: 0 | AI74: 0 | AJ74: 0 | AK74: 0 | AL74: 0 | AM74: 0 | AN74: 0 | AO74: 0 | AP74: =AP63 - AP72 -> 0 | AQ74: 0 | AR74: 0 | AS74: 0 | AT74: -1.055013854e-10 | AU74: -1.055013854e-10 | AV74: -1.055013854e-10 | AW74: -1.055013854e-10 | AX74: -1.055013854e-10 | AY74: -1.055013854e-10 | AZ74: -1.055013854e-10 | BA74: -1.055013854e-10 | BB74: -1.055013854e-10 | BC74: -1.055013854e-10 | BD74: -1.055013854e-10 | BE74: -1.055013854e-10 | BF74: -1.055013854e-10 | BG74: -1.055013854e-10 | BH74: -1.055013854e-10 | BI74: -1.055013854e-10 | BJ74: -1.055013854e-10 | BK74: -1.055013854e-10 | BL74: -1.055013854e-10 | BM74: -1.055013854e-10
E75: Balance Check | F75: =IF( SUM(J75:DM75) > 0, 1, 0) -> 0 | G75: check | J75: =IF( ABS(J74) < Tolerance, 0, 1) -> 0 | K75: 0 | L75: 0 | M75: 0 | N75: 0 | O75: 0 | P75: 0 | Q75: 0 | R75: 0 | S75: 0 | T75: 0 | U75: 0 | V75: 0 | W75: 0 | X75: 0 | Y75: 0 | Z75: 0 | AA75: 0 | AB75: 0 | AC75: 0 | AD75: 0 | AE75: 0 | AF75: 0 | AG75: 0 | AH75: 0 | AI75: 0 | AJ75: 0 | AK75: 0 | AL75: 0 | AM75: 0 | AN75: 0 | AO75: 0 | AP75: =IF( ABS(AP74) < Tolerance, 0, 1) -> 0 | AQ75: 0 | AR75: 0 | AS75: 0 | AT75: 0 | AU75: 0 | AV75: 0 | AW75: 0 | AX75: 0 | AY75: 0 | AZ75: 0 | BA75: 0 | BB75: 0 | BC75: 0 | BD75: 0 | BE75: 0 | BF75: 0 | BG75: 0 | BH75: 0 | BI75: 0 | BJ75: 0 | BK75: 0 | BL75: 0 | BM75: 0
B78: CASHFLOW
C80: Cashflow Statement
E82: =Rev!E$53 -> Process 1 - Revenues Accrued & Received | F82: =Rev!F$53 -> PL & CF | G82: =Rev!G$53 -> EUR | H82: =Rev!H$53 -> 3654000 | I82: =Rev!I$53 -> 0 | J82: =Rev!J$53 -> 0 | K82: =Rev!K$53 -> 0 | L82: =Rev!L$53 -> 104400 | M82: =Rev!M$53 -> 104400 | N82: =Rev!N$53 -> 104400 | O82: =Rev!O$53 -> 104400 | P82: =Rev!P$53 -> 104400 | Q82: =Rev!Q$53 -> 104400 | R82: =Rev!R$53 -> 104400 | S82: =Rev!S$53 -> 104400 | T82: =Rev!T$53 -> 104400 | U82: =Rev!U$53 -> 104400 | V82: =Rev!V$53 -> 104400 | W82: =Rev!W$53 -> 104400 | X82: =Rev!X$53 -> 104400 | Y82: =Rev!Y$53 -> 104400 | Z82: =Rev!Z$53 -> 104400 | AA82: =Rev!AA$53 -> 104400 | AB82: =Rev!AB$53 -> 104400 | AC82: =Rev!AC$53 -> 104400 | AD82: =Rev!AD$53 -> 104400 | AE82: =Rev!AE$53 -> 104400 | AF82: =Rev!AF$53 -> 104400 | AG82: =Rev!AG$53 -> 104400 | AH82: =Rev!AH$53 -> 104400 | AI82: =Rev!AI$53 -> 104400 | AJ82: =Rev!AJ$53 -> 104400 | AK82: =Rev!AK$53 -> 104400 | AL82: =Rev!AL$53 -> 104400 | AM82: =Rev!AM$53 -> 104400 | AN82: =Rev!AN$53 -> 104400 | AO82: =Rev!AO$53 -> 104400 | AP82: =Rev!AP$53 -> 104400 | AQ82: =Rev!AQ$53 -> 104400 | AR82: =Rev!AR$53 -> 104400 | AS82: =Rev!AS$53 -> 104400 | AT82: =Rev!AT$53 -> 104400 | AU82: =Rev!AU$53 -> 0 | AV82: =Rev!AV$53 -> 0 | AW82: =Rev!AW$53 -> 0 | AX82: =Rev!AX$53 -> 0 | AY82: =Rev!AY$53 -> 0 | AZ82: =Rev!AZ$53 -> 0 | BA82: =Rev!BA$53 -> 0 | BB82: =Rev!BB$53 -> 0 | BC82: =Rev!BC$53 -> 0 | BD82: =Rev!BD$53 -> 0 | BE82: =Rev!BE$53 -> 0 | BF82: =Rev!BF$53 -> 0 | BG82: =Rev!BG$53 -> 0 | BH82: =Rev!BH$53 -> 0 | BI82: =Rev!BI$53 -> 0 | BJ82: =Rev!BJ$53 -> 0 | BK82: =Rev!BK$53 -> 0 | BL82: =Rev!BL$53 -> 0 | BM82: =Rev!BM$53 -> 0
E83: =Rev!E$98 -> Process 2 - Revenues Accrued & Received | F83: =Rev!F$98 -> PL & CF | G83: =Rev!G$98 -> EUR | H83: =Rev!H$98 -> 0 | I83: =Rev!I$98 -> 0 | J83: =Rev!J$98 -> 0 | K83: =Rev!K$98 -> 0 | L83: =Rev!L$98 -> 0 | M83: =Rev!M$98 -> 0 | N83: =Rev!N$98 -> 0 | O83: =Rev!O$98 -> 0 | P83: =Rev!P$98 -> 0 | Q83: =Rev!Q$98 -> 0 | R83: =Rev!R$98 -> 0 | S83: =Rev!S$98 -> 0 | T83: =Rev!T$98 -> 0 | U83: =Rev!U$98 -> 0 | V83: =Rev!V$98 -> 0 | W83: =Rev!W$98 -> 0 | X83: =Rev!X$98 -> 0 | Y83: =Rev!Y$98 -> 0 | Z83: =Rev!Z$98 -> 0 | AA83: =Rev!AA$98 -> 0 | AB83: =Rev!AB$98 -> 0 | AC83: =Rev!AC$98 -> 0 | AD83: =Rev!AD$98 -> 0 | AE83: =Rev!AE$98 -> 0 | AF83: =Rev!AF$98 -> 0 | AG83: =Rev!AG$98 -> 0 | AH83: =Rev!AH$98 -> 0 | AI83: =Rev!AI$98 -> 0 | AJ83: =Rev!AJ$98 -> 0 | AK83: =Rev!AK$98 -> 0 | AL83: =Rev!AL$98 -> 0 | AM83: =Rev!AM$98 -> 0 | AN83: =Rev!AN$98 -> 0 | AO83: =Rev!AO$98 -> 0 | AP83: =Rev!AP$98 -> 0 | AQ83: =Rev!AQ$98 -> 0 | AR83: =Rev!AR$98 -> 0 | AS83: =Rev!AS$98 -> 0 | AT83: =Rev!AT$98 -> 0 | AU83: =Rev!AU$98 -> 0 | AV83: =Rev!AV$98 -> 0 | AW83: =Rev!AW$98 -> 0 | AX83: =Rev!AX$98 -> 0 | AY83: =Rev!AY$98 -> 0 | AZ83: =Rev!AZ$98 -> 0 | BA83: =Rev!BA$98 -> 0 | BB83: =Rev!BB$98 -> 0 | BC83: =Rev!BC$98 -> 0 | BD83: =Rev!BD$98 -> 0 | BE83: =Rev!BE$98 -> 0 | BF83: =Rev!BF$98 -> 0 | BG83: =Rev!BG$98 -> 0 | BH83: =Rev!BH$98 -> 0 | BI83: =Rev!BI$98 -> 0 | BJ83: =Rev!BJ$98 -> 0 | BK83: =Rev!BK$98 -> 0 | BL83: =Rev!BL$98 -> 0 | BM83: =Rev!BM$98 -> 0
E84: =Rev!E$143 -> Process 3 - Revenues Accrued & Received | F84: =Rev!F$143 -> PL & CF | G84: =Rev!G$143 -> EUR | H84: =Rev!H$143 -> 0 | I84: =Rev!I$143 -> 0 | J84: =Rev!J$143 -> 0 | K84: =Rev!K$143 -> 0 | L84: =Rev!L$143 -> 0 | M84: =Rev!M$143 -> 0 | N84: =Rev!N$143 -> 0 | O84: =Rev!O$143 -> 0 | P84: =Rev!P$143 -> 0 | Q84: =Rev!Q$143 -> 0 | R84: =Rev!R$143 -> 0 | S84: =Rev!S$143 -> 0 | T84: =Rev!T$143 -> 0 | U84: =Rev!U$143 -> 0 | V84: =Rev!V$143 -> 0 | W84: =Rev!W$143 -> 0 | X84: =Rev!X$143 -> 0 | Y84: =Rev!Y$143 -> 0 | Z84: =Rev!Z$143 -> 0 | AA84: =Rev!AA$143 -> 0 | AB84: =Rev!AB$143 -> 0 | AC84: =Rev!AC$143 -> 0 | AD84: =Rev!AD$143 -> 0 | AE84: =Rev!AE$143 -> 0 | AF84: =Rev!AF$143 -> 0 | AG84: =Rev!AG$143 -> 0 | AH84: =Rev!AH$143 -> 0 | AI84: =Rev!AI$143 -> 0 | AJ84: =Rev!AJ$143 -> 0 | AK84: =Rev!AK$143 -> 0 | AL84: =Rev!AL$143 -> 0 | AM84: =Rev!AM$143 -> 0 | AN84: =Rev!AN$143 -> 0 | AO84: =Rev!AO$143 -> 0 | AP84: =Rev!AP$143 -> 0 | AQ84: =Rev!AQ$143 -> 0 | AR84: =Rev!AR$143 -> 0 | AS84: =Rev!AS$143 -> 0 | AT84: =Rev!AT$143 -> 0 | AU84: =Rev!AU$143 -> 0 | AV84: =Rev!AV$143 -> 0 | AW84: =Rev!AW$143 -> 0 | AX84: =Rev!AX$143 -> 0 | AY84: =Rev!AY$143 -> 0 | AZ84: =Rev!AZ$143 -> 0 | BA84: =Rev!BA$143 -> 0 | BB84: =Rev!BB$143 -> 0 | BC84: =Rev!BC$143 -> 0 | BD84: =Rev!BD$143 -> 0 | BE84: =Rev!BE$143 -> 0 | BF84: =Rev!BF$143 -> 0 | BG84: =Rev!BG$143 -> 0 | BH84: =Rev!BH$143 -> 0 | BI84: =Rev!BI$143 -> 0 | BJ84: =Rev!BJ$143 -> 0 | BK84: =Rev!BK$143 -> 0 | BL84: =Rev!BL$143 -> 0 | BM84: =Rev!BM$143 -> 0
E85: =Rev!E$150 -> Other Revenues Accrued & Received | F85: =Rev!F$150 -> PL & CF | G85: =Rev!G$150 -> EUR | H85: =Rev!H$150 -> 0 | I85: =Rev!I$150 -> 0 | J85: =Rev!J$150 -> 0 | K85: =Rev!K$150 -> 0 | L85: =Rev!L$150 -> 0 | M85: =Rev!M$150 -> 0 | N85: =Rev!N$150 -> 0 | O85: =Rev!O$150 -> 0 | P85: =Rev!P$150 -> 0 | Q85: =Rev!Q$150 -> 0 | R85: =Rev!R$150 -> 0 | S85: =Rev!S$150 -> 0 | T85: =Rev!T$150 -> 0 | U85: =Rev!U$150 -> 0 | V85: =Rev!V$150 -> 0 | W85: =Rev!W$150 -> 0 | X85: =Rev!X$150 -> 0 | Y85: =Rev!Y$150 -> 0 | Z85: =Rev!Z$150 -> 0 | AA85: =Rev!AA$150 -> 0 | AB85: =Rev!AB$150 -> 0 | AC85: =Rev!AC$150 -> 0 | AD85: =Rev!AD$150 -> 0 | AE85: =Rev!AE$150 -> 0 | AF85: =Rev!AF$150 -> 0 | AG85: =Rev!AG$150 -> 0 | AH85: =Rev!AH$150 -> 0 | AI85: =Rev!AI$150 -> 0 | AJ85: =Rev!AJ$150 -> 0 | AK85: =Rev!AK$150 -> 0 | AL85: =Rev!AL$150 -> 0 | AM85: =Rev!AM$150 -> 0 | AN85: =Rev!AN$150 -> 0 | AO85: =Rev!AO$150 -> 0 | AP85: =Rev!AP$150 -> 0 | AQ85: =Rev!AQ$150 -> 0 | AR85: =Rev!AR$150 -> 0 | AS85: =Rev!AS$150 -> 0 | AT85: =Rev!AT$150 -> 0 | AU85: =Rev!AU$150 -> 0 | AV85: =Rev!AV$150 -> 0 | AW85: =Rev!AW$150 -> 0 | AX85: =Rev!AX$150 -> 0 | AY85: =Rev!AY$150 -> 0 | AZ85: =Rev!AZ$150 -> 0 | BA85: =Rev!BA$150 -> 0 | BB85: =Rev!BB$150 -> 0 | BC85: =Rev!BC$150 -> 0 | BD85: =Rev!BD$150 -> 0 | BE85: =Rev!BE$150 -> 0 | BF85: =Rev!BF$150 -> 0 | BG85: =Rev!BG$150 -> 0 | BH85: =Rev!BH$150 -> 0 | BI85: =Rev!BI$150 -> 0 | BJ85: =Rev!BJ$150 -> 0 | BK85: =Rev!BK$150 -> 0 | BL85: =Rev!BL$150 -> 0 | BM85: =Rev!BM$150 -> 0
E86: =Rev!E$156 -> Operational Subsidies/Grants Accrued & Received | F86: =Rev!F$156 -> PL & CF | G86: =Rev!G$156 -> EUR | H86: =Rev!H$156 -> 400 | I86: =Rev!I$156 -> 0 | J86: =Rev!J$156 -> 0 | K86: =Rev!K$156 -> 0 | L86: =Rev!L$156 -> 100 | M86: =Rev!M$156 -> 0 | N86: =Rev!N$156 -> 0 | O86: =Rev!O$156 -> 0 | P86: =Rev!P$156 -> 0 | Q86: =Rev!Q$156 -> 300 | R86: =Rev!R$156 -> 0 | S86: =Rev!S$156 -> 0 | T86: =Rev!T$156 -> 0 | U86: =Rev!U$156 -> 0 | V86: =Rev!V$156 -> 0 | W86: =Rev!W$156 -> 0 | X86: =Rev!X$156 -> 0 | Y86: =Rev!Y$156 -> 0 | Z86: =Rev!Z$156 -> 0 | AA86: =Rev!AA$156 -> 0 | AB86: =Rev!AB$156 -> 0 | AC86: =Rev!AC$156 -> 0 | AD86: =Rev!AD$156 -> 0 | AE86: =Rev!AE$156 -> 0 | AF86: =Rev!AF$156 -> 0 | AG86: =Rev!AG$156 -> 0 | AH86: =Rev!AH$156 -> 0 | AI86: =Rev!AI$156 -> 0 | AJ86: =Rev!AJ$156 -> 0 | AK86: =Rev!AK$156 -> 0 | AL86: =Rev!AL$156 -> 0 | AM86: =Rev!AM$156 -> 0 | AN86: =Rev!AN$156 -> 0 | AO86: =Rev!AO$156 -> 0 | AP86: =Rev!AP$156 -> 0 | AQ86: =Rev!AQ$156 -> 0 | AR86: =Rev!AR$156 -> 0 | AS86: =Rev!AS$156 -> 0 | AT86: =Rev!AT$156 -> 0 | AU86: =Rev!AU$156 -> 0 | AV86: =Rev!AV$156 -> 0 | AW86: =Rev!AW$156 -> 0 | AX86: =Rev!AX$156 -> 0 | AY86: =Rev!AY$156 -> 0 | AZ86: =Rev!AZ$156 -> 0 | BA86: =Rev!BA$156 -> 0 | BB86: =Rev!BB$156 -> 0 | BC86: =Rev!BC$156 -> 0 | BD86: =Rev!BD$156 -> 0 | BE86: =Rev!BE$156 -> 0 | BF86: =Rev!BF$156 -> 0 | BG86: =Rev!BG$156 -> 0 | BH86: =Rev!BH$156 -> 0 | BI86: =Rev!BI$156 -> 0 | BJ86: =Rev!BJ$156 -> 0 | BK86: =Rev!BK$156 -> 0 | BL86: =Rev!BL$156 -> 0 | BM86: =Rev!BM$156 -> 0
E87: =OPEX!E$52 -> Process 1 - Operational Costs Accrued & Paid | F87: =OPEX!F$52 -> PL & CF | G87: =OPEX!G$52 -> EUR | H87: =OPEX!H$52 -> -1170400 | I87: =OPEX!I$52 -> 0 | J87: =OPEX!J$52 -> 0 | K87: =OPEX!K$52 -> 0 | L87: =OPEX!L$52 -> -33440 | M87: =OPEX!M$52 -> -33440 | N87: =OPEX!N$52 -> -33440 | O87: =OPEX!O$52 -> -33440 | P87: =OPEX!P$52 -> -33440 | Q87: =OPEX!Q$52 -> -33440 | R87: =OPEX!R$52 -> -33440 | S87: =OPEX!S$52 -> -33440 | T87: =OPEX!T$52 -> -33440 | U87: =OPEX!U$52 -> -33440 | V87: =OPEX!V$52 -> -33440 | W87: =OPEX!W$52 -> -33440 | X87: =OPEX!X$52 -> -33440 | Y87: =OPEX!Y$52 -> -33440 | Z87: =OPEX!Z$52 -> -33440 | AA87: =OPEX!AA$52 -> -33440 | AB87: =OPEX!AB$52 -> -33440 | AC87: =OPEX!AC$52 -> -33440 | AD87: =OPEX!AD$52 -> -33440 | AE87: =OPEX!AE$52 -> -33440 | AF87: =OPEX!AF$52 -> -33440 | AG87: =OPEX!AG$52 -> -33440 | AH87: =OPEX!AH$52 -> -33440 | AI87: =OPEX!AI$52 -> -33440 | AJ87: =OPEX!AJ$52 -> -33440 | AK87: =OPEX!AK$52 -> -33440 | AL87: =OPEX!AL$52 -> -33440 | AM87: =OPEX!AM$52 -> -33440 | AN87: =OPEX!AN$52 -> -33440 | AO87: =OPEX!AO$52 -> -33440 | AP87: =OPEX!AP$52 -> -33440 | AQ87: =OPEX!AQ$52 -> -33440 | AR87: =OPEX!AR$52 -> -33440 | AS87: =OPEX!AS$52 -> -33440 | AT87: =OPEX!AT$52 -> -33440 | AU87: =OPEX!AU$52 -> 0 | AV87: =OPEX!AV$52 -> 0 | AW87: =OPEX!AW$52 -> 0 | AX87: =OPEX!AX$52 -> 0 | AY87: =OPEX!AY$52 -> 0 | AZ87: =OPEX!AZ$52 -> 0 | BA87: =OPEX!BA$52 -> 0 | BB87: =OPEX!BB$52 -> 0 | BC87: =OPEX!BC$52 -> 0 | BD87: =OPEX!BD$52 -> 0 | BE87: =OPEX!BE$52 -> 0 | BF87: =OPEX!BF$52 -> 0 | BG87: =OPEX!BG$52 -> 0 | BH87: =OPEX!BH$52 -> 0 | BI87: =OPEX!BI$52 -> 0 | BJ87: =OPEX!BJ$52 -> 0 | BK87: =OPEX!BK$52 -> 0 | BL87: =OPEX!BL$52 -> 0 | BM87: =OPEX!BM$52 -> 0
E88: =OPEX!E$97 -> Process 2 - Operational Costs Accrued & Paid | F88: =OPEX!F$97 -> PL & CF | G88: =OPEX!G$97 -> EUR | H88: =OPEX!H$97 -> 0 | I88: =OPEX!I$97 -> 0 | J88: =OPEX!J$97 -> 0 | K88: =OPEX!K$97 -> 0 | L88: =OPEX!L$97 -> 0 | M88: =OPEX!M$97 -> 0 | N88: =OPEX!N$97 -> 0 | O88: =OPEX!O$97 -> 0 | P88: =OPEX!P$97 -> 0 | Q88: =OPEX!Q$97 -> 0 | R88: =OPEX!R$97 -> 0 | S88: =OPEX!S$97 -> 0 | T88: =OPEX!T$97 -> 0 | U88: =OPEX!U$97 -> 0 | V88: =OPEX!V$97 -> 0 | W88: =OPEX!W$97 -> 0 | X88: =OPEX!X$97 -> 0 | Y88: =OPEX!Y$97 -> 0 | Z88: =OPEX!Z$97 -> 0 | AA88: =OPEX!AA$97 -> 0 | AB88: =OPEX!AB$97 -> 0 | AC88: =OPEX!AC$97 -> 0 | AD88: =OPEX!AD$97 -> 0 | AE88: =OPEX!AE$97 -> 0 | AF88: =OPEX!AF$97 -> 0 | AG88: =OPEX!AG$97 -> 0 | AH88: =OPEX!AH$97 -> 0 | AI88: =OPEX!AI$97 -> 0 | AJ88: =OPEX!AJ$97 -> 0 | AK88: =OPEX!AK$97 -> 0 | AL88: =OPEX!AL$97 -> 0 | AM88: =OPEX!AM$97 -> 0 | AN88: =OPEX!AN$97 -> 0 | AO88: =OPEX!AO$97 -> 0 | AP88: =OPEX!AP$97 -> 0 | AQ88: =OPEX!AQ$97 -> 0 | AR88: =OPEX!AR$97 -> 0 | AS88: =OPEX!AS$97 -> 0 | AT88: =OPEX!AT$97 -> 0 | AU88: =OPEX!AU$97 -> 0 | AV88: =OPEX!AV$97 -> 0 | AW88: =OPEX!AW$97 -> 0 | AX88: =OPEX!AX$97 -> 0 | AY88: =OPEX!AY$97 -> 0 | AZ88: =OPEX!AZ$97 -> 0 | BA88: =OPEX!BA$97 -> 0 | BB88: =OPEX!BB$97 -> 0 | BC88: =OPEX!BC$97 -> 0 | BD88: =OPEX!BD$97 -> 0 | BE88: =OPEX!BE$97 -> 0 | BF88: =OPEX!BF$97 -> 0 | BG88: =OPEX!BG$97 -> 0 | BH88: =OPEX!BH$97 -> 0 | BI88: =OPEX!BI$97 -> 0 | BJ88: =OPEX!BJ$97 -> 0 | BK88: =OPEX!BK$97 -> 0 | BL88: =OPEX!BL$97 -> 0 | BM88: =OPEX!BM$97 -> 0
E89: =OPEX!E$141 -> Process 3 - Operational Costs Accrued & Paid | F89: =OPEX!F$141 -> PL & CF | G89: =OPEX!G$141 -> EUR | H89: =OPEX!H$141 -> 0 | I89: =OPEX!I$141 -> 0 | J89: =OPEX!J$141 -> 0 | K89: =OPEX!K$141 -> 0 | L89: =OPEX!L$141 -> 0 | M89: =OPEX!M$141 -> 0 | N89: =OPEX!N$141 -> 0 | O89: =OPEX!O$141 -> 0 | P89: =OPEX!P$141 -> 0 | Q89: =OPEX!Q$141 -> 0 | R89: =OPEX!R$141 -> 0 | S89: =OPEX!S$141 -> 0 | T89: =OPEX!T$141 -> 0 | U89: =OPEX!U$141 -> 0 | V89: =OPEX!V$141 -> 0 | W89: =OPEX!W$141 -> 0 | X89: =OPEX!X$141 -> 0 | Y89: =OPEX!Y$141 -> 0 | Z89: =OPEX!Z$141 -> 0 | AA89: =OPEX!AA$141 -> 0 | AB89: =OPEX!AB$141 -> 0 | AC89: =OPEX!AC$141 -> 0 | AD89: =OPEX!AD$141 -> 0 | AE89: =OPEX!AE$141 -> 0 | AF89: =OPEX!AF$141 -> 0 | AG89: =OPEX!AG$141 -> 0 | AH89: =OPEX!AH$141 -> 0 | AI89: =OPEX!AI$141 -> 0 | AJ89: =OPEX!AJ$141 -> 0 | AK89: =OPEX!AK$141 -> 0 | AL89: =OPEX!AL$141 -> 0 | AM89: =OPEX!AM$141 -> 0 | AN89: =OPEX!AN$141 -> 0 | AO89: =OPEX!AO$141 -> 0 | AP89: =OPEX!AP$141 -> 0 | AQ89: =OPEX!AQ$141 -> 0 | AR89: =OPEX!AR$141 -> 0 | AS89: =OPEX!AS$141 -> 0 | AT89: =OPEX!AT$141 -> 0 | AU89: =OPEX!AU$141 -> 0 | AV89: =OPEX!AV$141 -> 0 | AW89: =OPEX!AW$141 -> 0 | AX89: =OPEX!AX$141 -> 0 | AY89: =OPEX!AY$141 -> 0 | AZ89: =OPEX!AZ$141 -> 0 | BA89: =OPEX!BA$141 -> 0 | BB89: =OPEX!BB$141 -> 0 | BC89: =OPEX!BC$141 -> 0 | BD89: =OPEX!BD$141 -> 0 | BE89: =OPEX!BE$141 -> 0 | BF89: =OPEX!BF$141 -> 0 | BG89: =OPEX!BG$141 -> 0 | BH89: =OPEX!BH$141 -> 0 | BI89: =OPEX!BI$141 -> 0 | BJ89: =OPEX!BJ$141 -> 0 | BK89: =OPEX!BK$141 -> 0 | BL89: =OPEX!BL$141 -> 0 | BM89: =OPEX!BM$141 -> 0
E90: =OPEX!E$149 -> Other Operational Costs Accrued & Paid | F90: =OPEX!F$149 -> PL & CF | G90: =OPEX!G$149 -> EUR | H90: =OPEX!H$149 -> -297500 | I90: =OPEX!I$149 -> 0 | J90: =OPEX!J$149 -> 0 | K90: =OPEX!K$149 -> 0 | L90: =OPEX!L$149 -> -8500 | M90: =OPEX!M$149 -> -8500 | N90: =OPEX!N$149 -> -8500 | O90: =OPEX!O$149 -> -8500 | P90: =OPEX!P$149 -> -8500 | Q90: =OPEX!Q$149 -> -8500 | R90: =OPEX!R$149 -> -8500 | S90: =OPEX!S$149 -> -8500 | T90: =OPEX!T$149 -> -8500 | U90: =OPEX!U$149 -> -8500 | V90: =OPEX!V$149 -> -8500 | W90: =OPEX!W$149 -> -8500 | X90: =OPEX!X$149 -> -8500 | Y90: =OPEX!Y$149 -> -8500 | Z90: =OPEX!Z$149 -> -8500 | AA90: =OPEX!AA$149 -> -8500 | AB90: =OPEX!AB$149 -> -8500 | AC90: =OPEX!AC$149 -> -8500 | AD90: =OPEX!AD$149 -> -8500 | AE90: =OPEX!AE$149 -> -8500 | AF90: =OPEX!AF$149 -> -8500 | AG90: =OPEX!AG$149 -> -8500 | AH90: =OPEX!AH$149 -> -8500 | AI90: =OPEX!AI$149 -> -8500 | AJ90: =OPEX!AJ$149 -> -8500 | AK90: =OPEX!AK$149 -> -8500 | AL90: =OPEX!AL$149 -> -8500 | AM90: =OPEX!AM$149 -> -8500 | AN90: =OPEX!AN$149 -> -8500 | AO90: =OPEX!AO$149 -> -8500 | AP90: =OPEX!AP$149 -> -8500 | AQ90: =OPEX!AQ$149 -> -8500 | AR90: =OPEX!AR$149 -> -8500 | AS90: =OPEX!AS$149 -> -8500 | AT90: =OPEX!AT$149 -> -8500 | AU90: =OPEX!AU$149 -> 0 | AV90: =OPEX!AV$149 -> 0 | AW90: =OPEX!AW$149 -> 0 | AX90: =OPEX!AX$149 -> 0 | AY90: =OPEX!AY$149 -> 0 | AZ90: =OPEX!AZ$149 -> 0 | BA90: =OPEX!BA$149 -> 0 | BB90: =OPEX!BB$149 -> 0 | BC90: =OPEX!BC$149 -> 0 | BD90: =OPEX!BD$149 -> 0 | BE90: =OPEX!BE$149 -> 0 | BF90: =OPEX!BF$149 -> 0 | BG90: =OPEX!BG$149 -> 0 | BH90: =OPEX!BH$149 -> 0 | BI90: =OPEX!BI$149 -> 0 | BJ90: =OPEX!BJ$149 -> 0 | BK90: =OPEX!BK$149 -> 0 | BL90: =OPEX!BL$149 -> 0 | BM90: =OPEX!BM$149 -> 0
E92: Cashflow from Operations | G92: EUR | H92: =SUM(J92:DM92) -> 2186500 | J92: =SUM(J82:J91) -> 0 | K92: 0 | L92: 62560 | M92: 62460 | N92: 62460 | O92: 62460 | P92: 62460 | Q92: 62760 | R92: 62460 | S92: 62460 | T92: 62460 | U92: 62460 | V92: 62460 | W92: 62460 | X92: 62460 | Y92: 62460 | Z92: 62460 | AA92: 62460 | AB92: 62460 | AC92: 62460 | AD92: 62460 | AE92: 62460 | AF92: 62460 | AG92: 62460 | AH92: 62460 | AI92: 62460 | AJ92: 62460 | AK92: 62460 | AL92: 62460 | AM92: 62460 | AN92: 62460 | AO92: 62460 | AP92: =SUM(AP82:AP91) -> 62460 | AQ92: 62460 | AR92: 62460 | AS92: 62460 | AT92: 62460 | AU92: 0 | AV92: 0 | AW92: 0 | AX92: 0 | AY92: 0 | AZ92: 0 | BA92: 0 | BB92: 0 | BC92: 0 | BD92: 0 | BE92: 0 | BF92: 0 | BG92: 0 | BH92: 0 | BI92: 0 | BJ92: 0 | BK92: 0 | BL92: 0 | BM92: 0
E94: =Inv!E$18 -> Process 1 - Investments Accrued & Paid | F94: =Inv!F$18 -> CF | G94: =Inv!G$18 -> EUR | H94: =Inv!H$18 -> -523000 | I94: =Inv!I$18 -> 0 | J94: =Inv!J$18 -> -261500 | K94: =Inv!K$18 -> -261500 | L94: =Inv!L$18 -> 0 | M94: =Inv!M$18 -> 0 | N94: =Inv!N$18 -> 0 | O94: =Inv!O$18 -> 0 | P94: =Inv!P$18 -> 0 | Q94: =Inv!Q$18 -> 0 | R94: =Inv!R$18 -> 0 | S94: =Inv!S$18 -> 0 | T94: =Inv!T$18 -> 0 | U94: =Inv!U$18 -> 0 | V94: =Inv!V$18 -> 0 | W94: =Inv!W$18 -> 0 | X94: =Inv!X$18 -> 0 | Y94: =Inv!Y$18 -> 0 | Z94: =Inv!Z$18 -> 0 | AA94: =Inv!AA$18 -> 0 | AB94: =Inv!AB$18 -> 0 | AC94: =Inv!AC$18 -> 0 | AD94: =Inv!AD$18 -> 0 | AE94: =Inv!AE$18 -> 0 | AF94: =Inv!AF$18 -> 0 | AG94: =Inv!AG$18 -> 0 | AH94: =Inv!AH$18 -> 0 | AI94: =Inv!AI$18 -> 0 | AJ94: =Inv!AJ$18 -> 0 | AK94: =Inv!AK$18 -> 0 | AL94: =Inv!AL$18 -> 0 | AM94: =Inv!AM$18 -> 0 | AN94: =Inv!AN$18 -> 0 | AO94: =Inv!AO$18 -> 0 | AP94: =Inv!AP$18 -> 0 | AQ94: =Inv!AQ$18 -> 0 | AR94: =Inv!AR$18 -> 0 | AS94: =Inv!AS$18 -> 0 | AT94: =Inv!AT$18 -> 0 | AU94: =Inv!AU$18 -> 0 | AV94: =Inv!AV$18 -> 0 | AW94: =Inv!AW$18 -> 0 | AX94: =Inv!AX$18 -> 0 | AY94: =Inv!AY$18 -> 0 | AZ94: =Inv!AZ$18 -> 0 | BA94: =Inv!BA$18 -> 0 | BB94: =Inv!BB$18 -> 0 | BC94: =Inv!BC$18 -> 0 | BD94: =Inv!BD$18 -> 0 | BE94: =Inv!BE$18 -> 0 | BF94: =Inv!BF$18 -> 0 | BG94: =Inv!BG$18 -> 0 | BH94: =Inv!BH$18 -> 0 | BI94: =Inv!BI$18 -> 0 | BJ94: =Inv!BJ$18 -> 0 | BK94: =Inv!BK$18 -> 0 | BL94: =Inv!BL$18 -> 0 | BM94: =Inv!BM$18 -> 0
E95: =Inv!E$26 -> Process 2 - Investments Accrued & Paid | F95: =Inv!F$26 -> CF | G95: =Inv!G$26 -> EUR | H95: =Inv!H$26 -> 0 | I95: =Inv!I$26 -> 0 | J95: =Inv!J$26 -> 0 | K95: =Inv!K$26 -> 0 | L95: =Inv!L$26 -> 0 | M95: =Inv!M$26 -> 0 | N95: =Inv!N$26 -> 0 | O95: =Inv!O$26 -> 0 | P95: =Inv!P$26 -> 0 | Q95: =Inv!Q$26 -> 0 | R95: =Inv!R$26 -> 0 | S95: =Inv!S$26 -> 0 | T95: =Inv!T$26 -> 0 | U95: =Inv!U$26 -> 0 | V95: =Inv!V$26 -> 0 | W95: =Inv!W$26 -> 0 | X95: =Inv!X$26 -> 0 | Y95: =Inv!Y$26 -> 0 | Z95: =Inv!Z$26 -> 0 | AA95: =Inv!AA$26 -> 0 | AB95: =Inv!AB$26 -> 0 | AC95: =Inv!AC$26 -> 0 | AD95: =Inv!AD$26 -> 0 | AE95: =Inv!AE$26 -> 0 | AF95: =Inv!AF$26 -> 0 | AG95: =Inv!AG$26 -> 0 | AH95: =Inv!AH$26 -> 0 | AI95: =Inv!AI$26 -> 0 | AJ95: =Inv!AJ$26 -> 0 | AK95: =Inv!AK$26 -> 0 | AL95: =Inv!AL$26 -> 0 | AM95: =Inv!AM$26 -> 0 | AN95: =Inv!AN$26 -> 0 | AO95: =Inv!AO$26 -> 0 | AP95: =Inv!AP$26 -> 0 | AQ95: =Inv!AQ$26 -> 0 | AR95: =Inv!AR$26 -> 0 | AS95: =Inv!AS$26 -> 0 | AT95: =Inv!AT$26 -> 0 | AU95: =Inv!AU$26 -> 0 | AV95: =Inv!AV$26 -> 0 | AW95: =Inv!AW$26 -> 0 | AX95: =Inv!AX$26 -> 0 | AY95: =Inv!AY$26 -> 0 | AZ95: =Inv!AZ$26 -> 0 | BA95: =Inv!BA$26 -> 0 | BB95: =Inv!BB$26 -> 0 | BC95: =Inv!BC$26 -> 0 | BD95: =Inv!BD$26 -> 0 | BE95: =Inv!BE$26 -> 0 | BF95: =Inv!BF$26 -> 0 | BG95: =Inv!BG$26 -> 0 | BH95: =Inv!BH$26 -> 0 | BI95: =Inv!BI$26 -> 0 | BJ95: =Inv!BJ$26 -> 0 | BK95: =Inv!BK$26 -> 0 | BL95: =Inv!BL$26 -> 0 | BM95: =Inv!BM$26 -> 0
E96: =Inv!E$34 -> Process 3 - Investments Accrued & Paid | F96: =Inv!F$34 -> CF | G96: =Inv!G$34 -> EUR | H96: =Inv!H$34 -> 0 | I96: =Inv!I$34 -> 0 | J96: =Inv!J$34 -> 0 | K96: =Inv!K$34 -> 0 | L96: =Inv!L$34 -> 0 | M96: =Inv!M$34 -> 0 | N96: =Inv!N$34 -> 0 | O96: =Inv!O$34 -> 0 | P96: =Inv!P$34 -> 0 | Q96: =Inv!Q$34 -> 0 | R96: =Inv!R$34 -> 0 | S96: =Inv!S$34 -> 0 | T96: =Inv!T$34 -> 0 | U96: =Inv!U$34 -> 0 | V96: =Inv!V$34 -> 0 | W96: =Inv!W$34 -> 0 | X96: =Inv!X$34 -> 0 | Y96: =Inv!Y$34 -> 0 | Z96: =Inv!Z$34 -> 0 | AA96: =Inv!AA$34 -> 0 | AB96: =Inv!AB$34 -> 0 | AC96: =Inv!AC$34 -> 0 | AD96: =Inv!AD$34 -> 0 | AE96: =Inv!AE$34 -> 0 | AF96: =Inv!AF$34 -> 0 | AG96: =Inv!AG$34 -> 0 | AH96: =Inv!AH$34 -> 0 | AI96: =Inv!AI$34 -> 0 | AJ96: =Inv!AJ$34 -> 0 | AK96: =Inv!AK$34 -> 0 | AL96: =Inv!AL$34 -> 0 | AM96: =Inv!AM$34 -> 0 | AN96: =Inv!AN$34 -> 0 | AO96: =Inv!AO$34 -> 0 | AP96: =Inv!AP$34 -> 0 | AQ96: =Inv!AQ$34 -> 0 | AR96: =Inv!AR$34 -> 0 | AS96: =Inv!AS$34 -> 0 | AT96: =Inv!AT$34 -> 0 | AU96: =Inv!AU$34 -> 0 | AV96: =Inv!AV$34 -> 0 | AW96: =Inv!AW$34 -> 0 | AX96: =Inv!AX$34 -> 0 | AY96: =Inv!AY$34 -> 0 | AZ96: =Inv!AZ$34 -> 0 | BA96: =Inv!BA$34 -> 0 | BB96: =Inv!BB$34 -> 0 | BC96: =Inv!BC$34 -> 0 | BD96: =Inv!BD$34 -> 0 | BE96: =Inv!BE$34 -> 0 | BF96: =Inv!BF$34 -> 0 | BG96: =Inv!BG$34 -> 0 | BH96: =Inv!BH$34 -> 0 | BI96: =Inv!BI$34 -> 0 | BJ96: =Inv!BJ$34 -> 0 | BK96: =Inv!BK$34 -> 0 | BL96: =Inv!BL$34 -> 0 | BM96: =Inv!BM$34 -> 0
E97: =Inv!E$42 -> Other Investments during Construction | F97: =Inv!F$42 -> CF | G97: =Inv!G$42 -> EUR | H97: =Inv!H$42 -> -355000 | I97: =Inv!I$42 -> 0 | J97: =Inv!J$42 -> -177500 | K97: =Inv!K$42 -> -177500 | L97: =Inv!L$42 -> 0 | M97: =Inv!M$42 -> 0 | N97: =Inv!N$42 -> 0 | O97: =Inv!O$42 -> 0 | P97: =Inv!P$42 -> 0 | Q97: =Inv!Q$42 -> 0 | R97: =Inv!R$42 -> 0 | S97: =Inv!S$42 -> 0 | T97: =Inv!T$42 -> 0 | U97: =Inv!U$42 -> 0 | V97: =Inv!V$42 -> 0 | W97: =Inv!W$42 -> 0 | X97: =Inv!X$42 -> 0 | Y97: =Inv!Y$42 -> 0 | Z97: =Inv!Z$42 -> 0 | AA97: =Inv!AA$42 -> 0 | AB97: =Inv!AB$42 -> 0 | AC97: =Inv!AC$42 -> 0 | AD97: =Inv!AD$42 -> 0 | AE97: =Inv!AE$42 -> 0 | AF97: =Inv!AF$42 -> 0 | AG97: =Inv!AG$42 -> 0 | AH97: =Inv!AH$42 -> 0 | AI97: =Inv!AI$42 -> 0 | AJ97: =Inv!AJ$42 -> 0 | AK97: =Inv!AK$42 -> 0 | AL97: =Inv!AL$42 -> 0 | AM97: =Inv!AM$42 -> 0 | AN97: =Inv!AN$42 -> 0 | AO97: =Inv!AO$42 -> 0 | AP97: =Inv!AP$42 -> 0 | AQ97: =Inv!AQ$42 -> 0 | AR97: =Inv!AR$42 -> 0 | AS97: =Inv!AS$42 -> 0 | AT97: =Inv!AT$42 -> 0 | AU97: =Inv!AU$42 -> 0 | AV97: =Inv!AV$42 -> 0 | AW97: =Inv!AW$42 -> 0 | AX97: =Inv!AX$42 -> 0 | AY97: =Inv!AY$42 -> 0 | AZ97: =Inv!AZ$42 -> 0 | BA97: =Inv!BA$42 -> 0 | BB97: =Inv!BB$42 -> 0 | BC97: =Inv!BC$42 -> 0 | BD97: =Inv!BD$42 -> 0 | BE97: =Inv!BE$42 -> 0 | BF97: =Inv!BF$42 -> 0 | BG97: =Inv!BG$42 -> 0 | BH97: =Inv!BH$42 -> 0 | BI97: =Inv!BI$42 -> 0 | BJ97: =Inv!BJ$42 -> 0 | BK97: =Inv!BK$42 -> 0 | BL97: =Inv!BL$42 -> 0 | BM97: =Inv!BM$42 -> 0
E99: Cashflow before Financing & Tax | G99: EUR | H99: =SUM(J99:DM99) -> 1308500 | J99: =J92 + SUM(J94:J98) -> -439000 | K99: -439000 | L99: 62560 | M99: 62460 | N99: 62460 | O99: 62460 | P99: 62460 | Q99: 62760 | R99: 62460 | S99: 62460 | T99: 62460 | U99: 62460 | V99: 62460 | W99: 62460 | X99: 62460 | Y99: 62460 | Z99: 62460 | AA99: 62460 | AB99: 62460 | AC99: 62460 | AD99: 62460 | AE99: 62460 | AF99: 62460 | AG99: 62460 | AH99: 62460 | AI99: 62460 | AJ99: 62460 | AK99: 62460 | AL99: 62460 | AM99: 62460 | AN99: 62460 | AO99: 62460 | AP99: =AP92 + SUM(AP94:AP98) -> 62460 | AQ99: 62460 | AR99: 62460 | AS99: 62460 | AT99: 62460 | AU99: 0 | AV99: 0 | AW99: 0 | AX99: 0 | AY99: 0 | AZ99: 0 | BA99: 0 | BB99: 0 | BC99: 0 | BD99: 0 | BE99: 0 | BF99: 0 | BG99: 0 | BH99: 0 | BI99: 0 | BJ99: 0 | BK99: 0 | BL99: 0 | BM99: 0
E101: =Tax!E$15 -> Corporate Tax Paid | F101: =Tax!F$15 -> PL & CF | G101: =Tax!G$15 -> EUR | H101: =Tax!H$15 -> -440486.8267 | I101: =Tax!I$15 -> 0 | J101: =Tax!J$15 -> 0 | K101: =Tax!K$15 -> 0 | L101: =Tax!L$15 -> -11309.89508 | M101: =Tax!M$15 -> -11312.78313 | N101: =Tax!N$15 -> -11341.50782 | O101: =Tax!O$15 -> -11371.09426 | P101: =Tax!P$15 -> -11401.56828 | Q101: =Tax!Q$15 -> -11507.95653 | R101: =Tax!R$15 -> -11465.28642 | S101: =Tax!S$15 -> -11498.58621 | T101: =Tax!T$15 -> -11532.88499 | U101: =Tax!U$15 -> -11568.21274 | V101: =Tax!V$15 -> -11604.60032 | W101: =Tax!W$15 -> -11642.07952 | X101: =Tax!X$15 -> -11680.68311 | Y101: =Tax!Y$15 -> -11720.4448 | Z101: =Tax!Z$15 -> -11761.39934 | AA101: =Tax!AA$15 -> -12646.18961 | AB101: =Tax!AB$15 -> -12646.18961 | AC101: =Tax!AC$15 -> -12646.18961 | AD101: =Tax!AD$15 -> -12646.18961 | AE101: =Tax!AE$15 -> -12646.18961 | AF101: =Tax!AF$15 -> -12646.18961 | AG101: =Tax!AG$15 -> -12646.18961 | AH101: =Tax!AH$15 -> -12646.18961 | AI101: =Tax!AI$15 -> -12646.18961 | AJ101: =Tax!AJ$15 -> -12646.18961 | AK101: =Tax!AK$15 -> -12646.18961 | AL101: =Tax!AL$15 -> -12646.18961 | AM101: =Tax!AM$15 -> -12646.18961 | AN101: =Tax!AN$15 -> -12646.18961 | AO101: =Tax!AO$15 -> -12646.18961 | AP101: =Tax!AP$15 -> -15615 | AQ101: =Tax!AQ$15 -> -15615 | AR101: =Tax!AR$15 -> -15615 | AS101: =Tax!AS$15 -> -15615 | AT101: =Tax!AT$15 -> -15615 | AU101: =Tax!AU$15 -> 0 | AV101: =Tax!AV$15 -> 0 | AW101: =Tax!AW$15 -> 0 | AX101: =Tax!AX$15 -> 0 | AY101: =Tax!AY$15 -> 0 | AZ101: =Tax!AZ$15 -> 0 | BA101: =Tax!BA$15 -> 0 | BB101: =Tax!BB$15 -> 0 | BC101: =Tax!BC$15 -> 0 | BD101: =Tax!BD$15 -> 0 | BE101: =Tax!BE$15 -> 0 | BF101: =Tax!BF$15 -> 0 | BG101: =Tax!BG$15 -> 0 | BH101: =Tax!BH$15 -> 0 | BI101: =Tax!BI$15 -> 0 | BJ101: =Tax!BJ$15 -> 0 | BK101: =Tax!BK$15 -> 0 | BL101: =Tax!BL$15 -> 0 | BM101: =Tax!BM$15 -> 0
E103: Cashflow before Financing | G103: EUR | H103: =SUM(J103:DM103) -> 868013.1733 | J103: =J99 + SUM(J101:J102) -> -439000 | K103: -439000 | L103: 51250.10492 | M103: 51147.21687 | N103: 51118.49218 | O103: 51088.90574 | P103: 51058.43172 | Q103: 51252.04347 | R103: 50994.71358 | S103: 50961.41379 | T103: 50927.11501 | U103: 50891.78726 | V103: 50855.39968 | W103: 50817.92048 | X103: 50779.31689 | Y103: 50739.5552 | Z103: 50698.60066 | AA103: 49813.81039 | AB103: 49813.81039 | AC103: 49813.81039 | AD103: 49813.81039 | AE103: 49813.81039 | AF103: 49813.81039 | AG103: 49813.81039 | AH103: 49813.81039 | AI103: 49813.81039 | AJ103: 49813.81039 | AK103: 49813.81039 | AL103: 49813.81039 | AM103: 49813.81039 | AN103: 49813.81039 | AO103: 49813.81039 | AP103: 46845 | AQ103: 46845 | AR103: 46845 | AS103: 46845 | AT103: 46845 | AU103: 0 | AV103: 0 | AW103: 0 | AX103: 0 | AY103: 0 | AZ103: 0 | BA103: 0 | BB103: 0 | BC103: 0 | BD103: 0 | BE103: 0 | BF103: 0 | BG103: 0 | BH103: 0 | BI103: 0 | BJ103: 0 | BK103: 0 | BL103: 0 | BM103: 0
E105: =Equity!E$60 -> Capital Subsidies/Grants Received | F105: =Equity!F$60 -> CF | G105: =Equity!G$60 -> EUR | H105: =Equity!H$60 -> 474295.8 | I105: =Equity!I$60 -> 0 | J105: =Equity!J$60 -> 237147.9 | K105: =Equity!K$60 -> 237147.9 | L105: =Equity!L$60 -> 0 | M105: =Equity!M$60 -> 0 | N105: =Equity!N$60 -> 0 | O105: =Equity!O$60 -> 0 | P105: =Equity!P$60 -> 0 | Q105: =Equity!Q$60 -> 0 | R105: =Equity!R$60 -> 0 | S105: =Equity!S$60 -> 0 | T105: =Equity!T$60 -> 0 | U105: =Equity!U$60 -> 0 | V105: =Equity!V$60 -> 0 | W105: =Equity!W$60 -> 0 | X105: =Equity!X$60 -> 0 | Y105: =Equity!Y$60 -> 0 | Z105: =Equity!Z$60 -> 0 | AA105: =Equity!AA$60 -> 0 | AB105: =Equity!AB$60 -> 0 | AC105: =Equity!AC$60 -> 0 | AD105: =Equity!AD$60 -> 0 | AE105: =Equity!AE$60 -> 0 | AF105: =Equity!AF$60 -> 0 | AG105: =Equity!AG$60 -> 0 | AH105: =Equity!AH$60 -> 0 | AI105: =Equity!AI$60 -> 0 | AJ105: =Equity!AJ$60 -> 0 | AK105: =Equity!AK$60 -> 0 | AL105: =Equity!AL$60 -> 0 | AM105: =Equity!AM$60 -> 0 | AN105: =Equity!AN$60 -> 0 | AO105: =Equity!AO$60 -> 0 | AP105: =Equity!AP$60 -> 0 | AQ105: =Equity!AQ$60 -> 0 | AR105: =Equity!AR$60 -> 0 | AS105: =Equity!AS$60 -> 0 | AT105: =Equity!AT$60 -> 0 | AU105: =Equity!AU$60 -> 0 | AV105: =Equity!AV$60 -> 0 | AW105: =Equity!AW$60 -> 0 | AX105: =Equity!AX$60 -> 0 | AY105: =Equity!AY$60 -> 0 | AZ105: =Equity!AZ$60 -> 0 | BA105: =Equity!BA$60 -> 0 | BB105: =Equity!BB$60 -> 0 | BC105: =Equity!BC$60 -> 0 | BD105: =Equity!BD$60 -> 0 | BE105: =Equity!BE$60 -> 0 | BF105: =Equity!BF$60 -> 0 | BG105: =Equity!BG$60 -> 0 | BH105: =Equity!BH$60 -> 0 | BI105: =Equity!BI$60 -> 0 | BJ105: =Equity!BJ$60 -> 0 | BK105: =Equity!BK$60 -> 0 | BL105: =Equity!BL$60 -> 0 | BM105: =Equity!BM$60 -> 0
E106: =Fund!E$77 -> Equity Drawdowns | F106: =Fund!F$77 -> CF | G106: =Fund!G$77 -> EUR | H106: =Fund!H$77 -> 337655.3482 | I106: =Fund!I$77 -> 0 | J106: =Fund!J$77 -> 168396.0629 | K106: =Fund!K$77 -> 169259.2853 | L106: =Fund!L$77 -> 0 | M106: =Fund!M$77 -> 0 | N106: =Fund!N$77 -> 0 | O106: =Fund!O$77 -> 0 | P106: =Fund!P$77 -> 0 | Q106: =Fund!Q$77 -> 0 | R106: =Fund!R$77 -> 0 | S106: =Fund!S$77 -> 0 | T106: =Fund!T$77 -> 0 | U106: =Fund!U$77 -> 0 | V106: =Fund!V$77 -> 0 | W106: =Fund!W$77 -> 0 | X106: =Fund!X$77 -> 0 | Y106: =Fund!Y$77 -> 0 | Z106: =Fund!Z$77 -> 0 | AA106: =Fund!AA$77 -> 0 | AB106: =Fund!AB$77 -> 0 | AC106: =Fund!AC$77 -> 0 | AD106: =Fund!AD$77 -> 0 | AE106: =Fund!AE$77 -> 0 | AF106: =Fund!AF$77 -> 0 | AG106: =Fund!AG$77 -> 0 | AH106: =Fund!AH$77 -> 0 | AI106: =Fund!AI$77 -> 0 | AJ106: =Fund!AJ$77 -> 0 | AK106: =Fund!AK$77 -> 0 | AL106: =Fund!AL$77 -> 0 | AM106: =Fund!AM$77 -> 0 | AN106: =Fund!AN$77 -> 0 | AO106: =Fund!AO$77 -> 0 | AP106: =Fund!AP$77 -> 0 | AQ106: =Fund!AQ$77 -> 0 | AR106: =Fund!AR$77 -> 0 | AS106: =Fund!AS$77 -> 0 | AT106: =Fund!AT$77 -> 0 | AU106: =Fund!AU$77 -> 0 | AV106: =Fund!AV$77 -> 0 | AW106: =Fund!AW$77 -> 0 | AX106: =Fund!AX$77 -> 0 | AY106: =Fund!AY$77 -> 0 | AZ106: =Fund!AZ$77 -> 0 | BA106: =Fund!BA$77 -> 0 | BB106: =Fund!BB$77 -> 0 | BC106: =Fund!BC$77 -> 0 | BD106: =Fund!BD$77 -> 0 | BE106: =Fund!BE$77 -> 0 | BF106: =Fund!BF$77 -> 0 | BG106: =Fund!BG$77 -> 0 | BH106: =Fund!BH$77 -> 0 | BI106: =Fund!BI$77 -> 0 | BJ106: =Fund!BJ$77 -> 0 | BK106: =Fund!BK$77 -> 0 | BL106: =Fund!BL$77 -> 0 | BM106: =Fund!BM$77 -> 0
E107: =Fund!E$84 -> TLF Drawdowns | F107: =Fund!F$84 -> CF | G107: =Fund!G$84 -> EUR | H107: =Fund!H$84 -> 69158.32433 | I107: =Fund!I$84 -> 0 | J107: =Fund!J$84 -> 34490.75988 | K107: =Fund!K$84 -> 34667.56446 | L107: =Fund!L$84 -> 0 | M107: =Fund!M$84 -> 0 | N107: =Fund!N$84 -> 0 | O107: =Fund!O$84 -> 0 | P107: =Fund!P$84 -> 0 | Q107: =Fund!Q$84 -> 0 | R107: =Fund!R$84 -> 0 | S107: =Fund!S$84 -> 0 | T107: =Fund!T$84 -> 0 | U107: =Fund!U$84 -> 0 | V107: =Fund!V$84 -> 0 | W107: =Fund!W$84 -> 0 | X107: =Fund!X$84 -> 0 | Y107: =Fund!Y$84 -> 0 | Z107: =Fund!Z$84 -> 0 | AA107: =Fund!AA$84 -> 0 | AB107: =Fund!AB$84 -> 0 | AC107: =Fund!AC$84 -> 0 | AD107: =Fund!AD$84 -> 0 | AE107: =Fund!AE$84 -> 0 | AF107: =Fund!AF$84 -> 0 | AG107: =Fund!AG$84 -> 0 | AH107: =Fund!AH$84 -> 0 | AI107: =Fund!AI$84 -> 0 | AJ107: =Fund!AJ$84 -> 0 | AK107: =Fund!AK$84 -> 0 | AL107: =Fund!AL$84 -> 0 | AM107: =Fund!AM$84 -> 0 | AN107: =Fund!AN$84 -> 0 | AO107: =Fund!AO$84 -> 0 | AP107: =Fund!AP$84 -> 0 | AQ107: =Fund!AQ$84 -> 0 | AR107: =Fund!AR$84 -> 0 | AS107: =Fund!AS$84 -> 0 | AT107: =Fund!AT$84 -> 0 | AU107: =Fund!AU$84 -> 0 | AV107: =Fund!AV$84 -> 0 | AW107: =Fund!AW$84 -> 0 | AX107: =Fund!AX$84 -> 0 | AY107: =Fund!AY$84 -> 0 | AZ107: =Fund!AZ$84 -> 0 | BA107: =Fund!BA$84 -> 0 | BB107: =Fund!BB$84 -> 0 | BC107: =Fund!BC$84 -> 0 | BD107: =Fund!BD$84 -> 0 | BE107: =Fund!BE$84 -> 0 | BF107: =Fund!BF$84 -> 0 | BG107: =Fund!BG$84 -> 0 | BH107: =Fund!BH$84 -> 0 | BI107: =Fund!BI$84 -> 0 | BJ107: =Fund!BJ$84 -> 0 | BK107: =Fund!BK$84 -> 0 | BL107: =Fund!BL$84 -> 0 | BM107: =Fund!BM$84 -> 0
E109: Cashflow Available for Debt Service (CFADS) | G109: EUR | H109: =SUM(J109:DM109) -> 1749122.646 | J109: =J103 + SUM(J105:J108) -> 1034.722798 | K109: 2074.749738 | L109: 51250.10492 | M109: 51147.21687 | N109: 51118.49218 | O109: 51088.90574 | P109: 51058.43172 | Q109: 51252.04347 | R109: 50994.71358 | S109: 50961.41379 | T109: 50927.11501 | U109: 50891.78726 | V109: 50855.39968 | W109: 50817.92048 | X109: 50779.31689 | Y109: 50739.5552 | Z109: 50698.60066 | AA109: 49813.81039 | AB109: 49813.81039 | AC109: 49813.81039 | AD109: 49813.81039 | AE109: 49813.81039 | AF109: 49813.81039 | AG109: 49813.81039 | AH109: 49813.81039 | AI109: 49813.81039 | AJ109: 49813.81039 | AK109: 49813.81039 | AL109: 49813.81039 | AM109: 49813.81039 | AN109: 49813.81039 | AO109: 49813.81039 | AP109: =AP103 + SUM(AP105:AP108) -> 46845 | AQ109: 46845 | AR109: 46845 | AS109: 46845 | AT109: 46845 | AU109: 0 | AV109: 0 | AW109: 0 | AX109: 0 | AY109: 0 | AZ109: 0 | BA109: 0 | BB109: 0 | BC109: 0 | BD109: 0 | BE109: 0 | BF109: 0 | BG109: 0 | BH109: 0 | BI109: 0 | BJ109: 0 | BK109: 0 | BL109: 0 | BM109: 0
E111: =TLF!E$20 -> Interest Costs during Drawdown Period Expensed & Paid | F111: =TLF!F$20 -> CF | G111: =TLF!G$20 -> EUR | H111: =TLF!H$20 -> -3109.472526 | I111: =TLF!I$20 -> 0 | J111: =TLF!J$20 -> -1034.722796 | K111: =TLF!K$20 -> -2074.74973 | L111: =TLF!L$20 -> 0 | M111: =TLF!M$20 -> 0 | N111: =TLF!N$20 -> 0 | O111: =TLF!O$20 -> 0 | P111: =TLF!P$20 -> 0 | Q111: =TLF!Q$20 -> 0 | R111: =TLF!R$20 -> 0 | S111: =TLF!S$20 -> 0 | T111: =TLF!T$20 -> 0 | U111: =TLF!U$20 -> 0 | V111: =TLF!V$20 -> 0 | W111: =TLF!W$20 -> 0 | X111: =TLF!X$20 -> 0 | Y111: =TLF!Y$20 -> 0 | Z111: =TLF!Z$20 -> 0 | AA111: =TLF!AA$20 -> 0 | AB111: =TLF!AB$20 -> 0 | AC111: =TLF!AC$20 -> 0 | AD111: =TLF!AD$20 -> 0 | AE111: =TLF!AE$20 -> 0 | AF111: =TLF!AF$20 -> 0 | AG111: =TLF!AG$20 -> 0 | AH111: =TLF!AH$20 -> 0 | AI111: =TLF!AI$20 -> 0 | AJ111: =TLF!AJ$20 -> 0 | AK111: =TLF!AK$20 -> 0 | AL111: =TLF!AL$20 -> 0 | AM111: =TLF!AM$20 -> 0 | AN111: =TLF!AN$20 -> 0 | AO111: =TLF!AO$20 -> 0 | AP111: =TLF!AP$20 -> 0 | AQ111: =TLF!AQ$20 -> 0 | AR111: =TLF!AR$20 -> 0 | AS111: =TLF!AS$20 -> 0 | AT111: =TLF!AT$20 -> 0 | AU111: =TLF!AU$20 -> 0 | AV111: =TLF!AV$20 -> 0 | AW111: =TLF!AW$20 -> 0 | AX111: =TLF!AX$20 -> 0 | AY111: =TLF!AY$20 -> 0 | AZ111: =TLF!AZ$20 -> 0 | BA111: =TLF!BA$20 -> 0 | BB111: =TLF!BB$20 -> 0 | BC111: =TLF!BC$20 -> 0 | BD111: =TLF!BD$20 -> 0 | BE111: =TLF!BE$20 -> 0 | BF111: =TLF!BF$20 -> 0 | BG111: =TLF!BG$20 -> 0 | BH111: =TLF!BH$20 -> 0 | BI111: =TLF!BI$20 -> 0 | BJ111: =TLF!BJ$20 -> 0 | BK111: =TLF!BK$20 -> 0 | BL111: =TLF!BL$20 -> 0 | BM111: =TLF!BM$20 -> 0
E112: =TLF!E$31 -> TLF - Interest Cost during Repayment Period Expensed & Paid | F112: =TLF!F$31 -> PL & CF | G112: =TLF!G$31 -> EUR | H112: =TLF!H$31 -> -17739.02076 | I112: =TLF!I$31 -> 0 | J112: =TLF!J$31 -> 0 | K112: =TLF!K$31 -> 0 | L112: =TLF!L$31 -> -2074.74973 | M112: =TLF!M$31 -> -1963.197532 | N112: =TLF!N$31 -> -1848.298767 | O112: =TLF!O$31 -> -1729.95304 | P112: =TLF!P$31 -> -1608.056941 | Q112: =TLF!Q$31 -> -1482.503959 | R112: =TLF!R$31 -> -1353.184388 | S112: =TLF!S$31 -> -1219.985229 | T112: =TLF!T$31 -> -1082.790096 | U112: =TLF!U$31 -> -941.4791087 | V112: =TLF!V$31 -> -795.9287918 | W112: =TLF!W$31 -> -646.0119653 | X112: =TLF!X$31 -> -491.5976341 | Y112: =TLF!Y$31 -> -332.5508729 | Z112: =TLF!Z$31 -> -168.7327089 | AA112: =TLF!AA$31 -> 0 | AB112: =TLF!AB$31 -> 0 | AC112: =TLF!AC$31 -> 0 | AD112: =TLF!AD$31 -> 0 | AE112: =TLF!AE$31 -> 0 | AF112: =TLF!AF$31 -> 0 | AG112: =TLF!AG$31 -> 0 | AH112: =TLF!AH$31 -> 0 | AI112: =TLF!AI$31 -> 0 | AJ112: =TLF!AJ$31 -> 0 | AK112: =TLF!AK$31 -> 0 | AL112: =TLF!AL$31 -> 0 | AM112: =TLF!AM$31 -> 0 | AN112: =TLF!AN$31 -> 0 | AO112: =TLF!AO$31 -> 0 | AP112: =TLF!AP$31 -> 0 | AQ112: =TLF!AQ$31 -> 0 | AR112: =TLF!AR$31 -> 0 | AS112: =TLF!AS$31 -> 0 | AT112: =TLF!AT$31 -> 0 | AU112: =TLF!AU$31 -> 0 | AV112: =TLF!AV$31 -> 0 | AW112: =TLF!AW$31 -> 0 | AX112: =TLF!AX$31 -> 0 | AY112: =TLF!AY$31 -> 0 | AZ112: =TLF!AZ$31 -> 0 | BA112: =TLF!BA$31 -> 0 | BB112: =TLF!BB$31 -> 0 | BC112: =TLF!BC$31 -> 0 | BD112: =TLF!BD$31 -> 0 | BE112: =TLF!BE$31 -> 0 | BF112: =TLF!BF$31 -> 0 | BG112: =TLF!BG$31 -> 0 | BH112: =TLF!BH$31 -> 0 | BI112: =TLF!BI$31 -> 0 | BJ112: =TLF!BJ$31 -> 0 | BK112: =TLF!BK$31 -> 0 | BL112: =TLF!BL$31 -> 0 | BM112: =TLF!BM$31 -> 0
E113: =TLF!E$45 -> TLF Annuity Repayment | F113: =TLF!F$45 -> CF | G113: =TLF!G$45 -> EUR | H113: =TLF!H$45 -> -69158.32433 | I113: =TLF!I$45 -> 0 | J113: =TLF!J$45 -> 0 | K113: =TLF!K$45 -> 0 | L113: =TLF!L$45 -> -3718.40661 | M113: =TLF!M$45 -> -3829.958808 | N113: =TLF!N$45 -> -3944.857572 | O113: =TLF!O$45 -> -4063.203299 | P113: =TLF!P$45 -> -4185.099398 | Q113: =TLF!Q$45 -> -4310.65238 | R113: =TLF!R$45 -> -4439.971952 | S113: =TLF!S$45 -> -4573.17111 | T113: =TLF!T$45 -> -4710.366244 | U113: =TLF!U$45 -> -4851.677231 | V113: =TLF!V$45 -> -4997.227548 | W113: =TLF!W$45 -> -5147.144374 | X113: =TLF!X$45 -> -5301.558706 | Y113: =TLF!Y$45 -> -5460.605467 | Z113: =TLF!Z$45 -> -5624.423631 | AA113: =TLF!AA$45 -> 0 | AB113: =TLF!AB$45 -> 0 | AC113: =TLF!AC$45 -> 0 | AD113: =TLF!AD$45 -> 0 | AE113: =TLF!AE$45 -> 0 | AF113: =TLF!AF$45 -> 0 | AG113: =TLF!AG$45 -> 0 | AH113: =TLF!AH$45 -> 0 | AI113: =TLF!AI$45 -> 0 | AJ113: =TLF!AJ$45 -> 0 | AK113: =TLF!AK$45 -> 0 | AL113: =TLF!AL$45 -> 0 | AM113: =TLF!AM$45 -> 0 | AN113: =TLF!AN$45 -> 0 | AO113: =TLF!AO$45 -> 0 | AP113: =TLF!AP$45 -> 0 | AQ113: =TLF!AQ$45 -> 0 | AR113: =TLF!AR$45 -> 0 | AS113: =TLF!AS$45 -> 0 | AT113: =TLF!AT$45 -> 0 | AU113: =TLF!AU$45 -> 0 | AV113: =TLF!AV$45 -> 0 | AW113: =TLF!AW$45 -> 0 | AX113: =TLF!AX$45 -> 0 | AY113: =TLF!AY$45 -> 0 | AZ113: =TLF!AZ$45 -> 0 | BA113: =TLF!BA$45 -> 0 | BB113: =TLF!BB$45 -> 0 | BC113: =TLF!BC$45 -> 0 | BD113: =TLF!BD$45 -> 0 | BE113: =TLF!BE$45 -> 0 | BF113: =TLF!BF$45 -> 0 | BG113: =TLF!BG$45 -> 0 | BH113: =TLF!BH$45 -> 0 | BI113: =TLF!BI$45 -> 0 | BJ113: =TLF!BJ$45 -> 0 | BK113: =TLF!BK$45 -> 0 | BL113: =TLF!BL$45 -> 0 | BM113: =TLF!BM$45 -> 0
E115: Cashflow Available for Shareholders | G115: EUR | H115: =SUM(J115:DM115) -> 1659115.828 | J115: =J109 + SUM(J111:J114) -> 1.372516181e-06 | K115: 8.255905868e-06 | L115: 45456.94858 | M115: 45354.06053 | N115: 45325.33584 | O115: 45295.74941 | P115: 45265.27538 | Q115: 45458.88714 | R115: 45201.55724 | S115: 45168.25745 | T115: 45133.95867 | U115: 45098.63092 | V115: 45062.24334 | W115: 45024.76414 | X115: 44986.16055 | Y115: 44946.39886 | Z115: 44905.44432 | AA115: 49813.81039 | AB115: 49813.81039 | AC115: 49813.81039 | AD115: 49813.81039 | AE115: 49813.81039 | AF115: 49813.81039 | AG115: 49813.81039 | AH115: 49813.81039 | AI115: 49813.81039 | AJ115: 49813.81039 | AK115: 49813.81039 | AL115: 49813.81039 | AM115: 49813.81039 | AN115: 49813.81039 | AO115: 49813.81039 | AP115: =AP109 + SUM(AP111:AP114) -> 46845 | AQ115: 46845 | AR115: 46845 | AS115: 46845 | AT115: 46845 | AU115: 0 | AV115: 0 | AW115: 0 | AX115: 0 | AY115: 0 | AZ115: 0 | BA115: 0 | BB115: 0 | BC115: 0 | BD115: 0 | BE115: 0 | BF115: 0 | BG115: 0 | BH115: 0 | BI115: 0 | BJ115: 0 | BK115: 0 | BL115: 0 | BM115: 0
E117: =Equity!E$17 -> Equity Redemption at End of Project | F117: =Equity!F$17 -> CF | G117: =Equity!G$17 -> EUR | H117: =Equity!H$17 -> -337655.3482 | I117: =Equity!I$17 -> 0 | J117: =Equity!J$17 -> 0 | K117: =Equity!K$17 -> 0 | L117: =Equity!L$17 -> 0 | M117: =Equity!M$17 -> 0 | N117: =Equity!N$17 -> 0 | O117: =Equity!O$17 -> 0 | P117: =Equity!P$17 -> 0 | Q117: =Equity!Q$17 -> 0 | R117: =Equity!R$17 -> 0 | S117: =Equity!S$17 -> 0 | T117: =Equity!T$17 -> 0 | U117: =Equity!U$17 -> 0 | V117: =Equity!V$17 -> 0 | W117: =Equity!W$17 -> 0 | X117: =Equity!X$17 -> 0 | Y117: =Equity!Y$17 -> 0 | Z117: =Equity!Z$17 -> 0 | AA117: =Equity!AA$17 -> 0 | AB117: =Equity!AB$17 -> 0 | AC117: =Equity!AC$17 -> 0 | AD117: =Equity!AD$17 -> 0 | AE117: =Equity!AE$17 -> 0 | AF117: =Equity!AF$17 -> 0 | AG117: =Equity!AG$17 -> 0 | AH117: =Equity!AH$17 -> 0 | AI117: =Equity!AI$17 -> 0 | AJ117: =Equity!AJ$17 -> 0 | AK117: =Equity!AK$17 -> 0 | AL117: =Equity!AL$17 -> 0 | AM117: =Equity!AM$17 -> 0 | AN117: =Equity!AN$17 -> 0 | AO117: =Equity!AO$17 -> 0 | AP117: =Equity!AP$17 -> 0 | AQ117: =Equity!AQ$17 -> 0 | AR117: =Equity!AR$17 -> 0 | AS117: =Equity!AS$17 -> 0 | AT117: =Equity!AT$17 -> -337655.3482 | AU117: =Equity!AU$17 -> 0 | AV117: =Equity!AV$17 -> 0 | AW117: =Equity!AW$17 -> 0 | AX117: =Equity!AX$17 -> 0 | AY117: =Equity!AY$17 -> 0 | AZ117: =Equity!AZ$17 -> 0 | BA117: =Equity!BA$17 -> 0 | BB117: =Equity!BB$17 -> 0 | BC117: =Equity!BC$17 -> 0 | BD117: =Equity!BD$17 -> 0 | BE117: =Equity!BE$17 -> 0 | BF117: =Equity!BF$17 -> 0 | BG117: =Equity!BG$17 -> 0 | BH117: =Equity!BH$17 -> 0 | BI117: =Equity!BI$17 -> 0 | BJ117: =Equity!BJ$17 -> 0 | BK117: =Equity!BK$17 -> 0 | BL117: =Equity!BL$17 -> 0 | BM117: =Equity!BM$17 -> 0
E119: Cashflow Available for Dividends | G119: EUR | H119: =SUM(J119:DM119) -> 1321460.48 | J119: =J115 + SUM(J117:J118) -> 1.372516181e-06 | K119: 8.255905868e-06 | L119: 45456.94858 | M119: 45354.06053 | N119: 45325.33584 | O119: 45295.74941 | P119: 45265.27538 | Q119: 45458.88714 | R119: 45201.55724 | S119: 45168.25745 | T119: 45133.95867 | U119: 45098.63092 | V119: 45062.24334 | W119: 45024.76414 | X119: 44986.16055 | Y119: 44946.39886 | Z119: 44905.44432 | AA119: 49813.81039 | AB119: 49813.81039 | AC119: 49813.81039 | AD119: 49813.81039 | AE119: 49813.81039 | AF119: 49813.81039 | AG119: 49813.81039 | AH119: 49813.81039 | AI119: 49813.81039 | AJ119: 49813.81039 | AK119: 49813.81039 | AL119: 49813.81039 | AM119: 49813.81039 | AN119: 49813.81039 | AO119: 49813.81039 | AP119: 46845 | AQ119: 46845 | AR119: 46845 | AS119: 46845 | AT119: -290810.3482 | AU119: 0 | AV119: 0 | AW119: 0 | AX119: 0 | AY119: 0 | AZ119: 0 | BA119: 0 | BB119: 0 | BC119: 0 | BD119: 0 | BE119: 0 | BF119: 0 | BG119: 0 | BH119: 0 | BI119: 0 | BJ119: 0 | BK119: 0 | BL119: 0 | BM119: 0
E121: =Equity!E$49 -> Dividends Declared & Paid | F121: =Equity!F$49 -> PL & CF | G121: =Equity!G$49 -> EUR | H121: =Equity!H$49 -> -1321460.48 | I121: =Equity!I$49 -> 0 | J121: =Equity!J$49 -> 0 | K121: =Equity!K$49 -> 0 | L121: =Equity!L$49 -> -33929.68525 | M121: =Equity!M$49 -> -33938.3494 | N121: =Equity!N$49 -> -34024.52347 | O121: =Equity!O$49 -> -34113.28277 | P121: =Equity!P$49 -> -34204.70484 | Q121: =Equity!Q$49 -> -34523.86958 | R121: =Equity!R$49 -> -34395.85925 | S121: =Equity!S$49 -> -34495.75862 | T121: =Equity!T$49 -> -34598.65497 | U121: =Equity!U$49 -> -34704.63821 | V121: =Equity!V$49 -> -34813.80095 | W121: =Equity!W$49 -> -34926.23857 | X121: =Equity!X$49 -> -35042.04932 | Y121: =Equity!Y$49 -> -35161.33439 | Z121: =Equity!Z$49 -> -35284.19801 | AA121: =Equity!AA$49 -> -37938.56883 | AB121: =Equity!AB$49 -> -37938.56883 | AC121: =Equity!AC$49 -> -37938.56883 | AD121: =Equity!AD$49 -> -37938.56883 | AE121: =Equity!AE$49 -> -37938.56883 | AF121: =Equity!AF$49 -> -37938.56883 | AG121: =Equity!AG$49 -> -37938.56883 | AH121: =Equity!AH$49 -> -37938.56883 | AI121: =Equity!AI$49 -> -37938.56883 | AJ121: =Equity!AJ$49 -> -37938.56883 | AK121: =Equity!AK$49 -> -37938.56883 | AL121: =Equity!AL$49 -> -37938.56883 | AM121: =Equity!AM$49 -> -37938.56883 | AN121: =Equity!AN$49 -> -37938.56883 | AO121: =Equity!AO$49 -> -37938.56883 | AP121: =Equity!AP$49 -> -46845 | AQ121: =Equity!AQ$49 -> -46845 | AR121: =Equity!AR$49 -> -46845 | AS121: =Equity!AS$49 -> -46845 | AT121: =Equity!AT$49 -> -46845 | AU121: =Equity!AU$49 -> 0 | AV121: =Equity!AV$49 -> 0 | AW121: =Equity!AW$49 -> 0 | AX121: =Equity!AX$49 -> 0 | AY121: =Equity!AY$49 -> 0 | AZ121: =Equity!AZ$49 -> 0 | BA121: =Equity!BA$49 -> 0 | BB121: =Equity!BB$49 -> 0 | BC121: =Equity!BC$49 -> 0 | BD121: =Equity!BD$49 -> 0 | BE121: =Equity!BE$49 -> 0 | BF121: =Equity!BF$49 -> 0 | BG121: =Equity!BG$49 -> 0 | BH121: =Equity!BH$49 -> 0 | BI121: =Equity!BI$49 -> 0 | BJ121: =Equity!BJ$49 -> 0 | BK121: =Equity!BK$49 -> 0 | BL121: =Equity!BL$49 -> 0 | BM121: =Equity!BM$49 -> 0
E123: Cashflow | G123: EUR | H123: =SUM(J123:DM123) -> 1.746229827e-10 | J123: =J119 + SUM(J121:J122) -> 1.372516181e-06 | K123: 8.255905868e-06 | L123: 11527.26333 | M123: 11415.71113 | N123: 11300.81237 | O123: 11182.46664 | P123: 11060.57054 | Q123: 10935.01756 | R123: 10805.69799 | S123: 10672.49883 | T123: 10535.3037 | U123: 10393.99271 | V123: 10248.44239 | W123: 10098.52557 | X123: 9944.111234 | Y123: 9785.064473 | Z123: 9621.246309 | AA123: 11875.24156 | AB123: 11875.24156 | AC123: 11875.24156 | AD123: 11875.24156 | AE123: 11875.24156 | AF123: 11875.24156 | AG123: 11875.24156 | AH123: 11875.24156 | AI123: 11875.24156 | AJ123: 11875.24156 | AK123: 11875.24156 | AL123: 11875.24156 | AM123: 11875.24156 | AN123: 11875.24156 | AO123: 11875.24156 | AP123: 0 | AQ123: 0 | AR123: 0 | AS123: 0 | AT123: -337655.3482 | AU123: 0 | AV123: 0 | AW123: 0 | AX123: 0 | AY123: 0 | AZ123: 0 | BA123: 0 | BB123: 0 | BC123: 0 | BD123: 0 | BE123: 0 | BF123: 0 | BG123: 0 | BH123: 0 | BI123: 0 | BJ123: 0 | BK123: 0 | BL123: 0 | BM123: 0
C125: Cash Balance
E127: Cash Balance BEG | G127: EUR | J127: =I$129 -> 0 | K127: 1.372516181e-06 | L127: 9.628422049e-06 | M127: 11527.26334 | N127: 22942.97447 | O127: 34243.78684 | P127: 45426.25348 | Q127: 56486.82402 | R127: 67421.84158 | S127: 78227.53957 | T127: 88900.0384 | U127: 99435.34209 | V127: 109829.3348 | W127: 120077.7772 | X127: 130176.3028 | Y127: 140120.414 | Z127: 149905.4785 | AA127: 159526.7248 | AB127: 171401.9663 | AC127: 183277.2079 | AD127: 195152.4495 | AE127: 207027.691 | AF127: 218902.9326 | AG127: 230778.1741 | AH127: 242653.4157 | AI127: 254528.6573 | AJ127: 266403.8988 | AK127: 278279.1404 | AL127: 290154.382 | AM127: 302029.6235 | AN127: 313904.8651 | AO127: 325780.1066 | AP127: 337655.3482 | AQ127: 337655.3482 | AR127: 337655.3482 | AS127: 337655.3482 | AT127: 337655.3482 | AU127: 0 | AV127: 0 | AW127: 0 | AX127: 0 | AY127: 0 | AZ127: 0 | BA127: 0 | BB127: 0 | BC127: 0 | BD127: 0 | BE127: 0 | BF127: 0 | BG127: 0 | BH127: 0 | BI127: 0 | BJ127: 0 | BK127: 0 | BL127: 0 | BM127: 0
D128: Plus | E128: =E$123 -> Cashflow | F128: 0 | G128: EUR | H128: 1.746229827e-10 | I128: 0 | J128: 1.372516181e-06 | K128: 8.255905868e-06 | L128: 11527.26333 | M128: 11415.71113 | N128: 11300.81237 | O128: 11182.46664 | P128: 11060.57054 | Q128: 10935.01756 | R128: 10805.69799 | S128: 10672.49883 | T128: 10535.3037 | U128: 10393.99271 | V128: 10248.44239 | W128: 10098.52557 | X128: 9944.111234 | Y128: 9785.064473 | Z128: 9621.246309 | AA128: 11875.24156 | AB128: 11875.24156 | AC128: 11875.24156 | AD128: 11875.24156 | AE128: 11875.24156 | AF128: 11875.24156 | AG128: 11875.24156 | AH128: 11875.24156 | AI128: 11875.24156 | AJ128: 11875.24156 | AK128: 11875.24156 | AL128: 11875.24156 | AM128: 11875.24156 | AN128: 11875.24156 | AO128: 11875.24156 | AP128: 0 | AQ128: 0 | AR128: 0 | AS128: 0 | AT128: -337655.3482 | AU128: 0 | AV128: 0 | AW128: 0 | AX128: 0 | AY128: 0 | AZ128: 0 | BA128: 0 | BB128: 0 | BC128: 0 | BD128: 0 | BE128: 0 | BF128: 0 | BG128: 0 | BH128: 0 | BI128: 0 | BJ128: 0 | BK128: 0 | BL128: 0 | BM128: 0
E129: Cash Balance | F129: BS | G129: EUR | J129: =SUM(J127:J128) -> 1.372516181e-06 | K129: 9.628422049e-06 | L129: 11527.26334 | M129: 22942.97447 | N129: 34243.78684 | O129: 45426.25348 | P129: 56486.82402 | Q129: 67421.84158 | R129: 78227.53957 | S129: 88900.0384 | T129: 99435.34209 | U129: 109829.3348 | V129: 120077.7772 | W129: 130176.3028 | X129: 140120.414 | Y129: 149905.4785 | Z129: 159526.7248 | AA129: 171401.9663 | AB129: 183277.2079 | AC129: 195152.4495 | AD129: 207027.691 | AE129: 218902.9326 | AF129: 230778.1741 | AG129: 242653.4157 | AH129: 254528.6573 | AI129: 266403.8988 | AJ129: 278279.1404 | AK129: 290154.382 | AL129: 302029.6235 | AM129: 313904.8651 | AN129: 325780.1066 | AO129: 337655.3482 | AP129: 337655.3482 | AQ129: 337655.3482 | AR129: 337655.3482 | AS129: 337655.3482 | AT129: 0 | AU129: 0 | AV129: 0 | AW129: 0 | AX129: 0 | AY129: 0 | AZ129: 0 | BA129: 0 | BB129: 0 | BC129: 0 | BD129: 0 | BE129: 0 | BF129: 0 | BG129: 0 | BH129: 0 | BI129: 0 | BJ129: 0 | BK129: 0 | BL129: 0 | BM129: 0
E131: =E$129 -> Cash Balance | F131: BS | G131: EUR | H131: 0 | I131: 0 | J131: 1.372516181e-06 | K131: 9.628422049e-06 | L131: 11527.26334 | M131: 22942.97447 | N131: 34243.78684 | O131: 45426.25348 | P131: 56486.82402 | Q131: 67421.84158 | R131: 78227.53957 | S131: 88900.0384 | T131: 99435.34209 | U131: 109829.3348 | V131: 120077.7772 | W131: 130176.3028 | X131: 140120.414 | Y131: 149905.4785 | Z131: 159526.7248 | AA131: 171401.9663 | AB131: 183277.2079 | AC131: 195152.4495 | AD131: 207027.691 | AE131: 218902.9326 | AF131: 230778.1741 | AG131: 242653.4157 | AH131: 254528.6573 | AI131: 266403.8988 | AJ131: 278279.1404 | AK131: 290154.382 | AL131: 302029.6235 | AM131: 313904.8651 | AN131: 325780.1066 | AO131: 337655.3482 | AP131: 337655.3482 | AQ131: 337655.3482 | AR131: 337655.3482 | AS131: 337655.3482 | AT131: 0 | AU131: 0 | AV131: 0 | AW131: 0 | AX131: 0 | AY131: 0 | AZ131: 0 | BA131: 0 | BB131: 0 | BC131: 0 | BD131: 0 | BE131: 0 | BF131: 0 | BG131: 0 | BH131: 0 | BI131: 0 | BJ131: 0 | BK131: 0 | BL131: 0 | BM131: 0
E132: Cash Balance Shortage | G132: EUR | H132: =SUM(J132:BM132) -> 0 | J132: =IF( J131 < -Tolerance, 1, 0) -> 0 | K132: 0 | L132: 0 | M132: 0 | N132: 0 | O132: 0 | P132: 0 | Q132: 0 | R132: 0 | S132: 0 | T132: 0 | U132: 0 | V132: 0 | W132: 0 | X132: 0 | Y132: 0 | Z132: 0 | AA132: 0 | AB132: 0 | AC132: 0 | AD132: 0 | AE132: 0 | AF132: 0 | AG132: 0 | AH132: 0 | AI132: 0 | AJ132: 0 | AK132: 0 | AL132: 0 | AM132: 0 | AN132: 0 | AO132: 0 | AP132: =IF( AP131 < -Tolerance, 1, 0) -> 0 | AQ132: 0 | AR132: 0 | AS132: 0 | AT132: 0 | AU132: 0 | AV132: 0 | AW132: 0 | AX132: 0 | AY132: 0 | AZ132: 0 | BA132: 0 | BB132: 0 | BC132: 0 | BD132: 0 | BE132: 0 | BF132: 0 | BG132: 0 | BH132: 0 | BI132: 0 | BJ132: 0 | BK132: 0 | BL132: 0 | BM132: 0
E133: Cash Balance Check | F133: =IF( SUM(J132:DM132) > 0, 1, 0) -> 0 | G133: check | H133: 0

Sheet NTBA
B2: INPUT NTBA
E3: Input Column Label | F3: =Checks!F$26 -> 0 | G3: Calculate
E4: Comparison Column Label | F4: =Checks!F$20 -> 0 | G4: Structure
F6: Input | G6: Unit | I6: Database | K6: Comment / Source
B8: TIMING
E10: =Cockpit!D$18 -> Start Year | F10: =Cockpit!E$18 -> 2020 | G10: =Cockpit!F$18 -> year
E11: Model Start Date | F11: =DATE( F10, 1, 1) -> 2020-01-01 | G11: date
E12: Months per Period Operational Phase | F12: 12 | G12: # months
E13: Periods per Year Operational Year | F13: =12/F12 -> 1 | G13: periods
B16: BUSINESS CASE
C18: General
E20: Country | F20: =Cockpit!E$15 -> Belgium | G20: switch
E22: Construction Period Start | F22: =F$11 -> 2020-01-01 | G22: date
E23: Duration Construction Period | F23: =Cockpit!E$20 -> 2 | G23: # years
E24: Construction Period End | F24: =DATE( YEAR(F22) + F23, MONTH(F22), DAY(F22) - 1) -> 2021-12-31 | G24: date
E26: Operational Period Start | F26: =F24 +1 -> 2022-01-01 | G26: date
E27: Duration Operational Period | F27: =Cockpit!E$22 -> 35 | G27: years
E28: Operational Period End | F28: =DATE( YEAR(F26) + F27, MONTH(F26), DAY(F26) - 1) -> 2056-12-31 | G28: date
C30: Process 1
D32: Process | K32: Based on this input, Database Suggestions will be provided
E33: Process 1 - Active | F33: =Cockpit!E$34 -> 1 | G33: 0=no ; 1=yes
E35: Process 1 - Type Influent | F35: =Cockpit!E$38 -> Grey water | G35: switch
E36: Process 1 - Volume Influent | F36: =Cockpit!E$39 -> 36000 | G36: m³ p.a.
E38: Process 1 - Type Effluent | F38: =Cockpit!E$44 -> Process water | G38: switch
E39: Process 1 - Effluent Volume | F39: =Cockpit!E$45 -> 36000 | G39: m³ p.a. | I39: =Cockpit!L$45 -> 23850
E41: Process 1 - Waste Volume | F41: =Cockpit!E$47 -> 0 | G41: m³ p.a. | I41: =Cockpit!L$47 -> 12150
E42: Process 1 - Nutrients Volume | F42: =Cockpit!E$48 -> 0 | G42: kg p.a. | I42: =Cockpit!L$48 -> 14760
E43: Process 1 - Thermal Volume | F43: =Cockpit!E$49 -> 0 | G43: kWh p.a. | I43: =Cockpit!L$49 -> 117992.9268
C45: Process 2
D47: Process | K47: Based on this input, Database Suggestions will be provided
E48: Process 2 - Active | F48: =Cockpit!F$34 -> 0 | G48: 0=no ; 1=yes
E50: Process 2 - Type Influent | F50: =Cockpit!F$38 -> Black water | G50: switch
E51: Process 2 - Volume influent | F51: =Cockpit!F$39 -> 10000 | G51: m³ p.a.
E53: Process 2 - Type Effluent | F53: =Cockpit!F$44 -> Surface water | G53: switch
E54: Process 2 - Effluent Volume | F54: =Cockpit!F$45 -> 0 | G54: m³ p.a. | I54: =Cockpit!M$45 -> 6000
E56: Process 2 - Waste Volume | F56: =Cockpit!F$47 -> 360000 | G56: m³ p.a. | I56: =Cockpit!M$47 -> 4000
E57: Process 2 - Nutrients Volume | F57: =Cockpit!F$48 -> 2500 | G57: kg p.a. | I57: =Cockpit!M$48 -> 3000
E58: Process 2 - Thermal Volume | F58: =Cockpit!F$49 -> 49757 | G58: kWh p.a. | I58: =Cockpit!M$49 -> 30000
C60: Process 3
D62: Process | K62: Based on this input, Database Suggestions will be provided
E63: Process 3 - Active | F63: =Cockpit!G$34 -> 0 | G63: 0=no ; 1=yes
E65: Process 3 - Type Influent | F65: =Cockpit!G$38 -> 0 | G65: switch
E66: Process 3 - Volume influent | F66: =Cockpit!G$39 -> 0 | G66: m³ p.a.
E68: Process 3 - Type Effluent | F68: =Cockpit!G$44 -> 0 | G68: switch
E69: Process 3 - Effluent Volume | F69: =Cockpit!G$45 -> 0 | G69: m³ p.a. | I69: =DBvol!F$149 -> 0
E71: Process 3 - Waste Volume | F71: =Cockpit!G$47 -> 0 | G71: m³ p.a. | I71: =F66 - I69 -> 0
E72: Process 3 - Nutrients Volume | F72: =Cockpit!G$48 -> 0 | G72: kg p.a. | I72: =DBvol!F$152 -> 0
E73: Process 3 - Thermal Volume | F73: =Cockpit!G$49 -> 0 | G73: kWh p.a. | I73: =DBvol!F$155 -> 0
B76: INVESTMENTS
C78: Process 1
E80: Process 1 - CAPEX | F80: =Cockpit!E$52 -> 523000 | G80: EUR | I80: =DBcapex!F$60 -> 1092527.1 | K80: Input TBA for distribution of CAPEX in time
E81: Process 1 - Depreciation Period | F81: =Cockpit!E$53 -> 15 | G81: years
C83: Process 2
E85: Process 2 - CAPEX | F85: =Cockpit!F$52 -> 702986 | G85: EUR | I85: =DBcapex!F$71 -> 1000000 | K85: Input TBA for distribution of CAPEX in time
E86: Process 2 - Depreciation Period | F86: =Cockpit!F$53 -> 30 | G86: years
C88: Process 3
E90: Process 3 - CAPEX | F90: =Cockpit!G$52 -> 0 | G90: EUR | I90: =DBcapex!F$82 -> 0 | K90: Input TBA for distribution of CAPEX in time
E91: Process 3 - Depreciation Period | F91: =Cockpit!G$53 -> 0 | G91: years
B94: REVENUES
C96: General
E98: Index Rate - Revenues | F98: =Cockpit!E$26 -> 0 | G98: % p.a.
C100: Process 1
E102: Process 1 - Water Treatment compensation | F102: =Cockpit!E$58 -> 2.75 | G102: EUR/m³ influent
E103: Process 1 - Nutrient Valorisation | F103: =Cockpit!E$59 -> 0 | G103: EUR/kg
E104: Process 1 - Thermal Valorisation | F104: =Cockpit!E$60 -> 0 | G104: EUR/kWh
E106: Process 1 - Revenues / Effluent | F106: =Cockpit!E$61 -> 0.15 | G106: EUR/m³ effluent
C108: Process 2
E110: Process 2 - Water Treatment compensation | F110: =Cockpit!F$58 -> 0 | G110: EUR/m³ influent
E111: Process 2 - Nutrient Valorisation | F111: =Cockpit!F$59 -> 0.33 | G111: EUR/kg
E112: Process 2 - Thermal Valorisation | F112: =Cockpit!F$60 -> 0.092 | G112: EUR/kWh
E114: Process 2 - Revenues / Effluent | F114: =Cockpit!F$61 -> 0 | G114: EUR/m³ effluent
C116: Process 3
E118: Process 3 - Water Treatment compensation | F118: =Cockpit!G$58 -> 0 | G118: EUR/m³ influent
E119: Process 3 - Nutrient Valorisation | F119: =Cockpit!G$59 -> 0 | G119: EUR/kg
E120: Process 3 - Thermal Valorisation | F120: =Cockpit!G$60 -> 0 | G120: EUR/kWh
E122: Process 3 - Revenues / Effluent | F122: =Cockpit!G$61 -> 0 | G122: EUR/m³ effluent
B125: COSTS
C127: General
E129: Index Rate - Operational Costs | F129: =Cockpit!E$27 -> 0 | G129: % p.a.
C131: Process 1
E133: Process 1 - OPEX / Influent | F133: =Cockpit!E$64 -> 0.79 | G133: EUR/m³ influent | I133: =DBopex!F$60 -> 0.23
E134: Process 1 - OPEX / Effluent | F134: =Cockpit!E$65 -> 0 | G134: EUR/m³ effluent
E135: Process 1 - OPEX / Waste | F135: =Cockpit!E$66 -> 0 | G135: EUR/m³ waste
E137: Process 1 - OPEX / Reinvestment/fixed | F137: =Cockpit!E$68 -> 5000 | G137: EUR/p.a.
C139: Process 2
E141: Process 2 - OPEX / Influent | F141: =Cockpit!F$64 -> 0.5 | G141: EUR/m³ | I141: =DBopex!F$71 -> 0.1
E142: Process 2 - OPEX / Effluent | F142: =Cockpit!F$65 -> 0 | G142: EUR/m³ effluent
E143: Process 2 - OPEX / Waste | F143: =Cockpit!F$66 -> 0.04 | G143: EUR/m³ waste
E145: Process 2 - OPEX / Reinvestment/fixed | F145: =Cockpit!F$68 -> 2000 | G145: EUR/p.a.
C147: Process 3
E149: Process 3 - OPEX / Influent | F149: =Cockpit!G$64 -> 0 | G149: EUR/m³ | I149: =DBopex!F$82 -> 0
E150: Process 3 - OPEX / Effluent | F150: =Cockpit!G$65 -> 0 | G150: EUR/m³ effluent
E151: Process 3 - OPEX / Waste | F151: =Cockpit!G$66 -> 0 | G151: EUR/m³ waste
E153: Process 3 - OPEX / Reinvestment/fixed | F153: =Cockpit!G$68 -> 0 | G153: EUR/p.a.
B156: OTHER
E158: Other CAPEX | F158: =Cockpit!E$72 -> 355000 | G158: EUR
E159: Other Investments - Depreciation Period | F159: =Cockpit!E$73 -> 30 | G159: years
E161: Other OPEX | F161: =Cockpit!E$77 -> 8500 | G161: EUR p.a.
E162: Other Revenues | F162: =Cockpit!E$75 -> 0 | G162: EUR p.a.
B165: FINANCING
C167: General
D169: Timing
E170: Financing Start Date | F170: =F$22 -> 2020-01-01 | G170: date | K170: Financing Period = Construction Period
E171: Financing End date | F171: =DATE(YEAR(F$22) + F$23, MONTH(F$22), DAY(F$22) - 1) -> 2021-12-31 | G171: date
D173: Capital Structure
E174: Gearing | F174: =1 - F178 -> 0.17 | G174: %
C176: Equity
E178: % Equity | F178: =Cockpit!E$99 -> 0.83 | G178: %
E180: Capital Subsidies/Grants | F180: =Cockpit!E$101 -> 0.3 | G180: % of CAPEX
E181: Capital Subsidies - Amortization Period | F181: =Cockpit!E$102 -> 15 | G181: years | K181: Duration Operational Period
C183: Debt/Term Loan Facility (TLF)
D185: General
E186: % TLF | F186: =F174 -> 0.17 | G186: %
D188: Timing
E189: TLF - Repayment Period Start Date | F189: =F$24 + 1 -> 2022-01-01 | G189: date | K189: Start Reimbursement Period = Start Operational Period
E190: TLF - Repayment Period | F190: =Cockpit!E$104 -> 15 | G190: years
E191: TMF - Repayment Period End Date | F191: =DATE(YEAR(F189) + F190, MONTH(F189), DAY(F189) - 1) -> 2036-12-31 | G191: date
D193: Pricing
E194: TLF - Total Cost of Debt | F194: =Cockpit!E$105 -> 0.03 | G194: % p.a.
B197: TAXES
E199: Effective Tax Rate | F199: =Cockpit!E$29 -> 0.25 | G199: % | K199: Applied on EBT
B201: NPV
E203: NPV Discount rate | F203: =Cockpit!$L$22 -> 0.05 | G203: %
B205: TECHNICAL INPUT
E207: No. of Days in Year | F207: 365 | G207: days
E208: No. of Months in Year | F208: 12 | G208: months
E209: MW to kW | F209: 1000 | G209: factor
E211: Rounding Facility Sizes | F211: 3 | G211: factor
E212: Rounddown Swap % | F212: 4 | G212: # digits
E214: Conversion Factor bps to % | F214: =0.0001*0+0.0001 -> 0.0001 | G214: factor
E215: Tolerance | F215: 0.001 | G215: factor
E217: Financial Daycount Convention | F217: 4 | G217: 1= act/act; 2=act/360; 3=act/365; 4=30/360

Sheet TBA
B2: TIME BASED ASSUMPTIONS
E3: =Timing!E$19 -> Model Period Beginning | F3: =Checks!F$26 -> 0 | G3: Calculate | J3: =Timing!J$19 -> 2020-01-01 | K3: =Timing!K$19 -> 2021-01-01 | L3: =Timing!L$19 -> 2022-01-01 | M3: =Timing!M$19 -> 2023-01-01 | N3: =Timing!N$19 -> 2024-01-01 | O3: =Timing!O$19 -> 2025-01-01 | P3: =Timing!P$19 -> 2026-01-01 | Q3: =Timing!Q$19 -> 2027-01-01 | R3: =Timing!R$19 -> 2028-01-01 | S3: =Timing!S$19 -> 2029-01-01 | T3: =Timing!T$19 -> 2030-01-01 | U3: =Timing!U$19 -> 2031-01-01 | V3: =Timing!V$19 -> 2032-01-01 | W3: =Timing!W$19 -> 2033-01-01 | X3: =Timing!X$19 -> 2034-01-01 | Y3: =Timing!Y$19 -> 2035-01-01 | Z3: =Timing!Z$19 -> 2036-01-01 | AA3: =Timing!AA$19 -> 2037-01-01 | AB3: =Timing!AB$19 -> 2038-01-01 | AC3: =Timing!AC$19 -> 2039-01-01 | AD3: =Timing!AD$19 -> 2040-01-01 | AE3: =Timing!AE$19 -> 2041-01-01 | AF3: =Timing!AF$19 -> 2042-01-01 | AG3: =Timing!AG$19 -> 2043-01-01 | AH3: =Timing!AH$19 -> 2044-01-01 | AI3: =Timing!AI$19 -> 2045-01-01 | AJ3: =Timing!AJ$19 -> 2046-01-01 | AK3: =Timing!AK$19 -> 2047-01-01 | AL3: =Timing!AL$19 -> 2048-01-01 | AM3: =Timing!AM$19 -> 2049-01-01 | AN3: =Timing!AN$19 -> 2050-01-01 | AO3: =Timing!AO$19 -> 2051-01-01 | AP3: =Timing!AP$19 -> 2052-01-01 | AQ3: =Timing!AQ$19 -> 2053-01-01 | AR3: =Timing!AR$19 -> 2054-01-01 | AS3: =Timing!AS$19 -> 2055-01-01 | AT3: =Timing!AT$19 -> 2056-01-01 | AU3: =Timing!AU$19 -> 2057-01-01 | AV3: =Timing!AV$19 -> 2058-01-01 | AW3: =Timing!AW$19 -> 2059-01-01 | AX3: =Timing!AX$19 -> 2060-01-01 | AY3: =Timing!AY$19 -> 2061-01-01 | AZ3: =Timing!AZ$19 -> 2062-01-01 | BA3: =Timing!BA$19 -> 2063-01-01 | BB3: =Timing!BB$19 -> 2064-01-01 | BC3: =Timing!BC$19 -> 2065-01-01 | BD3: =Timing!BD$19 -> 2066-01-01 | BE3: =Timing!BE$19 -> 2067-01-01 | BF3: =Timing!BF$19 -> 2068-01-01 | BG3: =Timing!BG$19 -> 2069-01-01 | BH3: =Timing!BH$19 -> 2070-01-01 | BI3: =Timing!BI$19 -> 2071-01-01 | BJ3: =Timing!BJ$19 -> 2072-01-01 | BK3: =Timing!BK$19 -> 2073-01-01 | BL3: =Timing!BL$19 -> 2074-01-01 | BM3: =Timing!BM$19 -> 2075-01-01
E4: =Timing!E$20 -> Model Period Ending | F4: =Checks!F$20 -> 0 | G4: Structure | J4: =Timing!J$20 -> 2020-12-31 | K4: =Timing!K$20 -> 2021-12-31 | L4: =Timing!L$20 -> 2022-12-31 | M4: =Timing!M$20 -> 2023-12-31 | N4: =Timing!N$20 -> 2024-12-31 | O4: =Timing!O$20 -> 2025-12-31 | P4: =Timing!P$20 -> 2026-12-31 | Q4: =Timing!Q$20 -> 2027-12-31 | R4: =Timing!R$20 -> 2028-12-31 | S4: =Timing!S$20 -> 2029-12-31 | T4: =Timing!T$20 -> 2030-12-31 | U4: =Timing!U$20 -> 2031-12-31 | V4: =Timing!V$20 -> 2032-12-31 | W4: =Timing!W$20 -> 2033-12-31 | X4: =Timing!X$20 -> 2034-12-31 | Y4: =Timing!Y$20 -> 2035-12-31 | Z4: =Timing!Z$20 -> 2036-12-31 | AA4: =Timing!AA$20 -> 2037-12-31 | AB4: =Timing!AB$20 -> 2038-12-31 | AC4: =Timing!AC$20 -> 2039-12-31 | AD4: =Timing!AD$20 -> 2040-12-31 | AE4: =Timing!AE$20 -> 2041-12-31 | AF4: =Timing!AF$20 -> 2042-12-31 | AG4: =Timing!AG$20 -> 2043-12-31 | AH4: =Timing!AH$20 -> 2044-12-31 | AI4: =Timing!AI$20 -> 2045-12-31 | AJ4: =Timing!AJ$20 -> 2046-12-31 | AK4: =Timing!AK$20 -> 2047-12-31 | AL4: =Timing!AL$20 -> 2048-12-31 | AM4: =Timing!AM$20 -> 2049-12-31 | AN4: =Timing!AN$20 -> 2050-12-31 | AO4: =Timing!AO$20 -> 2051-12-31 | AP4: =Timing!AP$20 -> 2052-12-31 | AQ4: =Timing!AQ$20 -> 2053-12-31 | AR4: =Timing!AR$20 -> 2054-12-31 | AS4: =Timing!AS$20 -> 2055-12-31 | AT4: =Timing!AT$20 -> 2056-12-31 | AU4: =Timing!AU$20 -> 2057-12-31 | AV4: =Timing!AV$20 -> 2058-12-31 | AW4: =Timing!AW$20 -> 2059-12-31 | AX4: =Timing!AX$20 -> 2060-12-31 | AY4: =Timing!AY$20 -> 2061-12-31 | AZ4: =Timing!AZ$20 -> 2062-12-31 | BA4: =Timing!BA$20 -> 2063-12-31 | BB4: =Timing!BB$20 -> 2064-12-31 | BC4: =Timing!BC$20 -> 2065-12-31 | BD4: =Timing!BD$20 -> 2066-12-31 | BE4: =Timing!BE$20 -> 2067-12-31 | BF4: =Timing!BF$20 -> 2068-12-31 | BG4: =Timing!BG$20 -> 2069-12-31 | BH4: =Timing!BH$20 -> 2070-12-31 | BI4: =Timing!BI$20 -> 2071-12-31 | BJ4: =Timing!BJ$20 -> 2072-12-31 | BK4: =Timing!BK$20 -> 2073-12-31 | BL4: =Timing!BL$20 -> 2074-12-31 | BM4: =Timing!BM$20 -> 2075-12-31
E5: =Timing!E$76 -> Project Period | J5: =Timing!J$76 -> Constr | K5: =Timing!K$76 -> Constr | L5: =Timing!L$76 -> Expl | M5: =Timing!M$76 -> Expl | N5: =Timing!N$76 -> Expl | O5: =Timing!O$76 -> Expl | P5: =Timing!P$76 -> Expl | Q5: =Timing!Q$76 -> Expl | R5: =Timing!R$76 -> Expl | S5: =Timing!S$76 -> Expl | T5: =Timing!T$76 -> Expl | U5: =Timing!U$76 -> Expl | V5: =Timing!V$76 -> Expl | W5: =Timing!W$76 -> Expl | X5: =Timing!X$76 -> Expl | Y5: =Timing!Y$76 -> Expl | Z5: =Timing!Z$76 -> Expl | AA5: =Timing!AA$76 -> Expl | AB5: =Timing!AB$76 -> Expl | AC5: =Timing!AC$76 -> Expl | AD5: =Timing!AD$76 -> Expl | AE5: =Timing!AE$76 -> Expl | AF5: =Timing!AF$76 -> Expl | AG5: =Timing!AG$76 -> Expl | AH5: =Timing!AH$76 -> Expl | AI5: =Timing!AI$76 -> Expl | AJ5: =Timing!AJ$76 -> Expl | AK5: =Timing!AK$76 -> Expl | AL5: =Timing!AL$76 -> Expl | AM5: =Timing!AM$76 -> Expl | AN5: =Timing!AN$76 -> Expl | AO5: =Timing!AO$76 -> Expl | AP5: =Timing!AP$76 -> Expl | AQ5: =Timing!AQ$76 -> Expl | AR5: =Timing!AR$76 -> Expl | AS5: =Timing!AS$76 -> Expl | AT5: =Timing!AT$76 -> Expl | AU5: =Timing!AU$76 -> Post-Expl | AV5: =Timing!AV$76 -> Post-Expl | AW5: =Timing!AW$76 -> Post-Expl | AX5: =Timing!AX$76 -> Post-Expl | AY5: =Timing!AY$76 -> Post-Expl | AZ5: =Timing!AZ$76 -> Post-Expl | BA5: =Timing!BA$76 -> Post-Expl | BB5: =Timing!BB$76 -> Post-Expl | BC5: =Timing!BC$76 -> Post-Expl | BD5: =Timing!BD$76 -> Post-Expl | BE5: =Timing!BE$76 -> Post-Expl | BF5: =Timing!BF$76 -> Post-Expl | BG5: =Timing!BG$76 -> Post-Expl | BH5: =Timing!BH$76 -> Post-Expl | BI5: =Timing!BI$76 -> Post-Expl | BJ5: =Timing!BJ$76 -> Post-Expl | BK5: =Timing!BK$76 -> Post-Expl | BL5: =Timing!BL$76 -> Post-Expl | BM5: =Timing!BM$76 -> Post-Expl
F6: Constante | G6: Eenheid | H6: Total
B8: INVESTMENTS
E10: =Timing!E$33 -> Construction Period | F10: =Timing!F$33 -> 0 | G10: =Timing!G$33 -> flag | H10: =Timing!H$33 -> 2 | I10: =Timing!I$33 -> 0 | J10: =Timing!J$33 -> 1 | K10: =Timing!K$33 -> 1 | L10: =Timing!L$33 -> 0 | M10: =Timing!M$33 -> 0 | N10: =Timing!N$33 -> 0 | O10: =Timing!O$33 -> 0 | P10: =Timing!P$33 -> 0 | Q10: =Timing!Q$33 -> 0 | R10: =Timing!R$33 -> 0 | S10: =Timing!S$33 -> 0 | T10: =Timing!T$33 -> 0 | U10: =Timing!U$33 -> 0 | V10: =Timing!V$33 -> 0 | W10: =Timing!W$33 -> 0 | X10: =Timing!X$33 -> 0 | Y10: =Timing!Y$33 -> 0 | Z10: =Timing!Z$33 -> 0 | AA10: =Timing!AA$33 -> 0 | AB10: =Timing!AB$33 -> 0 | AC10: =Timing!AC$33 -> 0 | AD10: =Timing!AD$33 -> 0 | AE10: =Timing!AE$33 -> 0 | AF10: =Timing!AF$33 -> 0 | AG10: =Timing!AG$33 -> 0 | AH10: =Timing!AH$33 -> 0 | AI10: =Timing!AI$33 -> 0 | AJ10: =Timing!AJ$33 -> 0 | AK10: =Timing!AK$33 -> 0 | AL10: =Timing!AL$33 -> 0 | AM10: =Timing!AM$33 -> 0 | AN10: =Timing!AN$33 -> 0 | AO10: =Timing!AO$33 -> 0 | AP10: =Timing!AP$33 -> 0 | AQ10: =Timing!AQ$33 -> 0 | AR10: =Timing!AR$33 -> 0 | AS10: =Timing!AS$33 -> 0 | AT10: =Timing!AT$33 -> 0 | AU10: =Timing!AU$33 -> 0 | AV10: =Timing!AV$33 -> 0 | AW10: =Timing!AW$33 -> 0 | AX10: =Timing!AX$33 -> 0 | AY10: =Timing!AY$33 -> 0 | AZ10: =Timing!AZ$33 -> 0 | BA10: =Timing!BA$33 -> 0 | BB10: =Timing!BB$33 -> 0 | BC10: =Timing!BC$33 -> 0 | BD10: =Timing!BD$33 -> 0 | BE10: =Timing!BE$33 -> 0 | BF10: =Timing!BF$33 -> 0 | BG10: =Timing!BG$33 -> 0 | BH10: =Timing!BH$33 -> 0 | BI10: =Timing!BI$33 -> 0 | BJ10: =Timing!BJ$33 -> 0 | BK10: =Timing!BK$33 -> 0 | BL10: =Timing!BL$33 -> 0 | BM10: =Timing!BM$33 -> 0
E11: =Timing!E$52 -> Operational Period | F11: =Timing!F$52 -> 0 | G11: =Timing!G$52 -> flag | H11: =Timing!H$52 -> 35 | I11: =Timing!I$52 -> 0 | J11: =Timing!J$52 -> 0 | K11: =Timing!K$52 -> 0 | L11: =Timing!L$52 -> 1 | M11: =Timing!M$52 -> 1 | N11: =Timing!N$52 -> 1 | O11: =Timing!O$52 -> 1 | P11: =Timing!P$52 -> 1 | Q11: =Timing!Q$52 -> 1 | R11: =Timing!R$52 -> 1 | S11: =Timing!S$52 -> 1 | T11: =Timing!T$52 -> 1 | U11: =Timing!U$52 -> 1 | V11: =Timing!V$52 -> 1 | W11: =Timing!W$52 -> 1 | X11: =Timing!X$52 -> 1 | Y11: =Timing!Y$52 -> 1 | Z11: =Timing!Z$52 -> 1 | AA11: =Timing!AA$52 -> 1 | AB11: =Timing!AB$52 -> 1 | AC11: =Timing!AC$52 -> 1 | AD11: =Timing!AD$52 -> 1 | AE11: =Timing!AE$52 -> 1 | AF11: =Timing!AF$52 -> 1 | AG11: =Timing!AG$52 -> 1 | AH11: =Timing!AH$52 -> 1 | AI11: =Timing!AI$52 -> 1 | AJ11: =Timing!AJ$52 -> 1 | AK11: =Timing!AK$52 -> 1 | AL11: =Timing!AL$52 -> 1 | AM11: =Timing!AM$52 -> 1 | AN11: =Timing!AN$52 -> 1 | AO11: =Timing!AO$52 -> 1 | AP11: =Timing!AP$52 -> 1 | AQ11: =Timing!AQ$52 -> 1 | AR11: =Timing!AR$52 -> 1 | AS11: =Timing!AS$52 -> 1 | AT11: =Timing!AT$52 -> 1 | AU11: =Timing!AU$52 -> 0 | AV11: =Timing!AV$52 -> 0 | AW11: =Timing!AW$52 -> 0 | AX11: =Timing!AX$52 -> 0 | AY11: =Timing!AY$52 -> 0 | AZ11: =Timing!AZ$52 -> 0 | BA11: =Timing!BA$52 -> 0 | BB11: =Timing!BB$52 -> 0 | BC11: =Timing!BC$52 -> 0 | BD11: =Timing!BD$52 -> 0 | BE11: =Timing!BE$52 -> 0 | BF11: =Timing!BF$52 -> 0 | BG11: =Timing!BG$52 -> 0 | BH11: =Timing!BH$52 -> 0 | BI11: =Timing!BI$52 -> 0 | BJ11: =Timing!BJ$52 -> 0 | BK11: =Timing!BK$52 -> 0 | BL11: =Timing!BL$52 -> 0 | BM11: =Timing!BM$52 -> 0
C13: CAPEX
E15: CAPEX Investment Profile | G15: % | H15: =SUM(J15:BM15) -> 1 | J15: 0.5 | K15: 0.5 | L15: 0 | M15: 0
E16: CAPEX Investment Profile - 100% Check | F16: =IF(H15 = 1, 0, 1) -> 0 | G16: check
E17: CAPEX Investment Profile vs Construction Period Check | F17: =IF(SUM(J15:BM15) = SUMPRODUCT(J15:BM15, J$10:BM$10), 0, 1) -> 0 | G17: check
B20: OPERATIONS
C22: Volume Profile
E24: Volume Profile | G24: % | J24: 0 | K24: 0 | L24: 1 | M24: 1 | N24: 1 | O24: 1 | P24: 1 | Q24: 1 | R24: 1 | S24: 1 | T24: 1 | U24: 1 | V24: 1 | W24: 1 | X24: 1 | Y24: 1 | Z24: 1 | AA24: 1 | AB24: 1 | AC24: 1 | AD24: 1 | AE24: 1 | AF24: 1 | AG24: 1 | AH24: 1 | AI24: 1 | AJ24: 1 | AK24: 1 | AL24: 1 | AM24: 1 | AN24: 1 | AO24: 1 | AP24: 1 | AQ24: 1 | AR24: 1 | AS24: 1 | AT24: 1
E26: Volume Profile - Input Field = 0 | G26: check | J26: =IF(AND(J11 = 1, J11 * J24 = 0), 1, 0) -> 0 | K26: 0 | L26: 0 | M26: 0 | N26: 0 | O26: 0 | P26: 0 | Q26: 0 | R26: 0 | S26: 0 | T26: 0 | U26: 0 | V26: 0 | W26: 0 | X26: 0 | Y26: 0 | Z26: 0 | AA26: 0 | AB26: 0 | AC26: 0 | AD26: 0 | AE26: 0 | AF26: 0 | AG26: 0 | AH26: 0 | AI26: 0 | AJ26: 0 | AK26: 0 | AL26: 0 | AM26: 0 | AN26: 0 | AO26: 0 | AP26: =IF(AND(AP11 = 1, AP11 * AP24 = 0), 1, 0) -> 0 | AQ26: 0 | AR26: 0 | AS26: 0 | AT26: 0 | AU26: 0 | AV26: 0 | AW26: 0 | AX26: 0 | AY26: 0 | AZ26: 0 | BA26: 0 | BB26: 0 | BC26: 0 | BD26: 0 | BE26: 0 | BF26: 0 | BG26: 0 | BH26: 0 | BI26: 0 | BJ26: 0 | BK26: 0 | BL26: 0 | BM26: 0
E27: Volume Profile - Input Field = 0 Check | F27: =SUM(J26:BM26) -> 0 | G27: check
C30: Operational Subsidies/Grants (appear directly in P&L and Cash Flow)
E32: Operational Subsidies/Grants received (unindexed) | G32: EUR | L32: 100 | Q32: 300

Sheet Timing
B2: TIMING
E3: =Timing!E$19 -> Model Period Beginning | F3: =Checks!F$26 -> 0 | G3: Calculate | J3: =Timing!J$19 -> 2020-01-01 | K3: =Timing!K$19 -> 2021-01-01 | L3: =Timing!L$19 -> 2022-01-01 | M3: =Timing!M$19 -> 2023-01-01 | N3: =Timing!N$19 -> 2024-01-01 | O3: =Timing!O$19 -> 2025-01-01 | P3: =Timing!P$19 -> 2026-01-01 | Q3: =Timing!Q$19 -> 2027-01-01 | R3: =Timing!R$19 -> 2028-01-01 | S3: =Timing!S$19 -> 2029-01-01 | T3: =Timing!T$19 -> 2030-01-01 | U3: =Timing!U$19 -> 2031-01-01 | V3: =Timing!V$19 -> 2032-01-01 | W3: =Timing!W$19 -> 2033-01-01 | X3: =Timing!X$19 -> 2034-01-01 | Y3: =Timing!Y$19 -> 2035-01-01 | Z3: =Timing!Z$19 -> 2036-01-01 | AA3: =Timing!AA$19 -> 2037-01-01 | AB3: =Timing!AB$19 -> 2038-01-01 | AC3: =Timing!AC$19 -> 2039-01-01 | AD3: =Timing!AD$19 -> 2040-01-01 | AE3: =Timing!AE$19 -> 2041-01-01 | AF3: =Timing!AF$19 -> 2042-01-01 | AG3: =Timing!AG$19 -> 2043-01-01 | AH3: =Timing!AH$19 -> 2044-01-01 | AI3: =Timing!AI$19 -> 2045-01-01 | AJ3: =Timing!AJ$19 -> 2046-01-01 | AK3: =Timing!AK$19 -> 2047-01-01 | AL3: =Timing!AL$19 -> 2048-01-01 | AM3: =Timing!AM$19 -> 2049-01-01 | AN3: =Timing!AN$19 -> 2050-01-01 | AO3: =Timing!AO$19 -> 2051-01-01 | AP3: =Timing!AP$19 -> 2052-01-01 | AQ3: =Timing!AQ$19 -> 2053-01-01 | AR3: =Timing!AR$19 -> 2054-01-01 | AS3: =Timing!AS$19 -> 2055-01-01 | AT3: =Timing!AT$19 -> 2056-01-01 | AU3: =Timing!AU$19 -> 2057-01-01 | AV3: =Timing!AV$19 -> 2058-01-01 | AW3: =Timing!AW$19 -> 2059-01-01 | AX3: =Timing!AX$19 -> 2060-01-01 | AY3: =Timing!AY$19 -> 2061-01-01 | AZ3: =Timing!AZ$19 -> 2062-01-01 | BA3: =Timing!BA$19 -> 2063-01-01 | BB3: =Timing!BB$19 -> 2064-01-01 | BC3: =Timing!BC$19 -> 2065-01-01 | BD3: =Timing!BD$19 -> 2066-01-01 | BE3: =Timing!BE$19 -> 2067-01-01 | BF3: =Timing!BF$19 -> 2068-01-01 | BG3: =Timing!BG$19 -> 2069-01-01 | BH3: =Timing!BH$19 -> 2070-01-01 | BI3: =Timing!BI$19 -> 2071-01-01 | BJ3: =Timing!BJ$19 -> 2072-01-01 | BK3: =Timing!BK$19 -> 2073-01-01 | BL3: =Timing!BL$19 -> 2074-01-01 | BM3: =Timing!BM$19 -> 2075-01-01
E4: =Timing!E$20 -> Model Period Ending | F4: =Checks!F$20 -> 0 | G4: Structure | J4: =Timing!J$20 -> 2020-12-31 | K4: =Timing!K$20 -> 2021-12-31 | L4: =Timing!L$20 -> 2022-12-31 | M4: =Timing!M$20 -> 2023-12-31 | N4: =Timing!N$20 -> 2024-12-31 | O4: =Timing!O$20 -> 2025-12-31 | P4: =Timing!P$20 -> 2026-12-31 | Q4: =Timing!Q$20 -> 2027-12-31 | R4: =Timing!R$20 -> 2028-12-31 | S4: =Timing!S$20 -> 2029-12-31 | T4: =Timing!T$20 -> 2030-12-31 | U4: =Timing!U$20 -> 2031-12-31 | V4: =Timing!V$20 -> 2032-12-31 | W4: =Timing!W$20 -> 2033-12-31 | X4: =Timing!X$20 -> 2034-12-31 | Y4: =Timing!Y$20 -> 2035-12-31 | Z4: =Timing!Z$20 -> 2036-12-31 | AA4: =Timing!AA$20 -> 2037-12-31 | AB4: =Timing!AB$20 -> 2038-12-31 | AC4: =Timing!AC$20 -> 2039-12-31 | AD4: =Timing!AD$20 -> 2040-12-31 | AE4: =Timing!AE$20 -> 2041-12-31 | AF4: =Timing!AF$20 -> 2042-12-31 | AG4: =Timing!AG$20 -> 2043-12-31 | AH4: =Timing!AH$20 -> 2044-12-31 | AI4: =Timing!AI$20 -> 2045-12-31 | AJ4: =Timing!AJ$20 -> 2046-12-31 | AK4: =Timing!AK$20 -> 2047-12-31 | AL4: =Timing!AL$20 -> 2048-12-31 | AM4: =Timing!AM$20 -> 2049-12-31 | AN4: =Timing!AN$20 -> 2050-12-31 | AO4: =Timing!AO$20 -> 2051-12-31 | AP4: =Timing!AP$20 -> 2052-12-31 | AQ4: =Timing!AQ$20 -> 2053-12-31 | AR4: =Timing!AR$20 -> 2054-12-31 | AS4: =Timing!AS$20 -> 2055-12-31 | AT4: =Timing!AT$20 -> 2056-12-31 | AU4: =Timing!AU$20 -> 2057-12-31 | AV4: =Timing!AV$20 -> 2058-12-31 | AW4: =Timing!AW$20 -> 2059-12-31 | AX4: =Timing!AX$20 -> 2060-12-31 | AY4: =Timing!AY$20 -> 2061-12-31 | AZ4: =Timing!AZ$20 -> 2062-12-31 | BA4: =Timing!BA$20 -> 2063-12-31 | BB4: =Timing!BB$20 -> 2064-12-31 | BC4: =Timing!BC$20 -> 2065-12-31 | BD4: =Timing!BD$20 -> 2066-12-31 | BE4: =Timing!BE$20 -> 2067-12-31 | BF4: =Timing!BF$20 -> 2068-12-31 | BG4: =Timing!BG$20 -> 2069-12-31 | BH4: =Timing!BH$20 -> 2070-12-31 | BI4: =Timing!BI$20 -> 2071-12-31 | BJ4: =Timing!BJ$20 -> 2072-12-31 | BK4: =Timing!BK$20 -> 2073-12-31 | BL4: =Timing!BL$20 -> 2074-12-31 | BM4: =Timing!BM$20 -> 2075-12-31
E5: =Timing!E$76 -> Project Period | J5: =Timing!J$76 -> Constr | K5: =Timing!K$76 -> Constr | L5: =Timing!L$76 -> Expl | M5: =Timing!M$76 -> Expl | N5: =Timing!N$76 -> Expl | O5: =Timing!O$76 -> Expl | P5: =Timing!P$76 -> Expl | Q5: =Timing!Q$76 -> Expl | R5: =Timing!R$76 -> Expl | S5: =Timing!S$76 -> Expl | T5: =Timing!T$76 -> Expl | U5: =Timing!U$76 -> Expl | V5: =Timing!V$76 -> Expl | W5: =Timing!W$76 -> Expl | X5: =Timing!X$76 -> Expl | Y5: =Timing!Y$76 -> Expl | Z5: =Timing!Z$76 -> Expl | AA5: =Timing!AA$76 -> Expl | AB5: =Timing!AB$76 -> Expl | AC5: =Timing!AC$76 -> Expl | AD5: =Timing!AD$76 -> Expl | AE5: =Timing!AE$76 -> Expl | AF5: =Timing!AF$76 -> Expl | AG5: =Timing!AG$76 -> Expl | AH5: =Timing!AH$76 -> Expl | AI5: =Timing!AI$76 -> Expl | AJ5: =Timing!AJ$76 -> Expl | AK5: =Timing!AK$76 -> Expl | AL5: =Timing!AL$76 -> Expl | AM5: =Timing!AM$76 -> Expl | AN5: =Timing!AN$76 -> Expl | AO5: =Timing!AO$76 -> Expl | AP5: =Timing!AP$76 -> Expl | AQ5: =Timing!AQ$76 -> Expl | AR5: =Timing!AR$76 -> Expl | AS5: =Timing!AS$76 -> Expl | AT5: =Timing!AT$76 -> Expl | AU5: =Timing!AU$76 -> Post-Expl | AV5: =Timing!AV$76 -> Post-Expl | AW5: =Timing!AW$76 -> Post-Expl | AX5: =Timing!AX$76 -> Post-Expl | AY5: =Timing!AY$76 -> Post-Expl | AZ5: =Timing!AZ$76 -> Post-Expl | BA5: =Timing!BA$76 -> Post-Expl | BB5: =Timing!BB$76 -> Post-Expl | BC5: =Timing!BC$76 -> Post-Expl | BD5: =Timing!BD$76 -> Post-Expl | BE5: =Timing!BE$76 -> Post-Expl | BF5: =Timing!BF$76 -> Post-Expl | BG5: =Timing!BG$76 -> Post-Expl | BH5: =Timing!BH$76 -> Post-Expl | BI5: =Timing!BI$76 -> Post-Expl | BJ5: =Timing!BJ$76 -> Post-Expl | BK5: =Timing!BK$76 -> Post-Expl | BL5: =Timing!BL$76 -> Post-Expl | BM5: =Timing!BM$76 -> Post-Expl
F6: Constante | G6: Eenheid | H6: Total
B8: GENERAL
C10: Model
E12: Model start | G12: flag | H12: =SUM(J12:DI12) -> 1 | J12: 1 | K12: 0 | L12: 0 | M12: 0 | N12: 0 | O12: 0 | P12: 0 | Q12: 0 | R12: 0 | S12: 0 | T12: 0 | U12: 0 | V12: 0 | W12: 0 | X12: 0 | Y12: 0 | Z12: 0 | AA12: 0 | AB12: 0 | AC12: 0 | AD12: 0 | AE12: 0 | AF12: 0 | AG12: 0 | AH12: 0 | AI12: 0 | AJ12: 0 | AK12: 0 | AL12: 0 | AM12: 0 | AN12: 0 | AO12: 0 | AP12: 0 | AQ12: 0 | AR12: 0 | AS12: 0 | AT12: 0 | AU12: 0 | AV12: 0 | AW12: 0 | AX12: 0 | AY12: 0 | AZ12: 0 | BA12: 0 | BB12: 0 | BC12: 0 | BD12: 0 | BE12: 0 | BF12: 0 | BG12: 0 | BH12: 0 | BI12: 0 | BJ12: 0 | BK12: 0 | BL12: 0 | BM12: 0
E13: Model flag | G13: flag | H13: =SUM(J13:DI13) -> 56 | J13: 1 | K13: 1 | L13: 1 | M13: 1 | N13: 1 | O13: 1 | P13: 1 | Q13: 1 | R13: 1 | S13: 1 | T13: 1 | U13: 1 | V13: 1 | W13: 1 | X13: 1 | Y13: 1 | Z13: 1 | AA13: 1 | AB13: 1 | AC13: 1 | AD13: 1 | AE13: 1 | AF13: 1 | AG13: 1 | AH13: 1 | AI13: 1 | AJ13: 1 | AK13: 1 | AL13: 1 | AM13: 1 | AN13: 1 | AO13: 1 | AP13: 1 | AQ13: 1 | AR13: 1 | AS13: 1 | AT13: 1 | AU13: 1 | AV13: 1 | AW13: 1 | AX13: 1 | AY13: 1 | AZ13: 1 | BA13: 1 | BB13: 1 | BC13: 1 | BD13: 1 | BE13: 1 | BF13: 1 | BG13: 1 | BH13: 1 | BI13: 1 | BJ13: 1 | BK13: 1 | BL13: 1 | BM13: 1
E14: Model counter | G14: counter | J14: =I14+J13 -> 1 | K14: =J14+K13 -> 2 | L14: 3 | M14: 4 | N14: 5 | O14: 6 | P14: 7 | Q14: 8 | R14: 9 | S14: 10 | T14: 11 | U14: 12 | V14: 13 | W14: 14 | X14: 15 | Y14: 16 | Z14: 17 | AA14: 18 | AB14: 19 | AC14: 20 | AD14: 21 | AE14: 22 | AF14: 23 | AG14: 24 | AH14: 25 | AI14: 26 | AJ14: 27 | AK14: 28 | AL14: 29 | AM14: 30 | AN14: 31 | AO14: 32 | AP14: 33 | AQ14: 34 | AR14: 35 | AS14: 36 | AT14: 37 | AU14: 38 | AV14: 39 | AW14: 40 | AX14: 41 | AY14: 42 | AZ14: 43 | BA14: 44 | BB14: 45 | BC14: 46 | BD14: 47 | BE14: 48 | BF14: 49 | BG14: 50 | BH14: 51 | BI14: 52 | BJ14: 53 | BK14: 54 | BL14: 55 | BM14: 56
E16: =NTBA!E$11 -> Model Start Date | F16: =NTBA!F$11 -> 2020-01-01 | G16: =NTBA!G$11 -> date
E17: =NTBA!E$207 -> No. of Days in Year | F17: =NTBA!F$207 -> 365 | G17: =NTBA!G$207 -> days
E18: =NTBA!E$12 -> Months per Period Operational Phase | F18: =NTBA!F$12 -> 12 | G18: =NTBA!G$12 -> # months
E19: Model Period Beginning | G19: date | J19: =DATE(YEAR($F$16), MONTH($F$16) + (J$14 - 1) * $F$18, DAY($F$16)) -> 2020-01-01 | K19: =DATE(YEAR($F$16), MONTH($F$16) + (K$14 - 1) * $F$18, DAY($F$16)) -> 2021-01-01 | L19: 2022-01-01 | M19: 2023-01-01 | N19: 2024-01-01 | O19: 2025-01-01 | P19: 2026-01-01 | Q19: 2027-01-01 | R19: 2028-01-01 | S19: 2029-01-01 | T19: 2030-01-01 | U19: 2031-01-01 | V19: 2032-01-01 | W19: 2033-01-01 | X19: 2034-01-01 | Y19: 2035-01-01 | Z19: 2036-01-01 | AA19: 2037-01-01 | AB19: 2038-01-01 | AC19: 2039-01-01 | AD19: 2040-01-01 | AE19: 2041-01-01 | AF19: 2042-01-01 | AG19: 2043-01-01 | AH19: 2044-01-01 | AI19: 2045-01-01 | AJ19: 2046-01-01 | AK19: 2047-01-01 | AL19: 2048-01-01 | AM19: 2049-01-01 | AN19: 2050-01-01 | AO19: 2051-01-01 | AP19: 2052-01-01 | AQ19: 2053-01-01 | AR19: 2054-01-01 | AS19: 2055-01-01 | AT19: 2056-01-01 | AU19: 2057-01-01 | AV19: 2058-01-01 | AW19: 2059-01-01 | AX19: 2060-01-01 | AY19: 2061-01-01 | AZ19: 2062-01-01 | BA19: 2063-01-01 | BB19: 2064-01-01 | BC19: 2065-01-01 | BD19: 2066-01-01 | BE19: 2067-01-01 | BF19: 2068-01-01 | BG19: 2069-01-01 | BH19: 2070-01-01 | BI19: 2071-01-01 | BJ19: 2072-01-01 | BK19: 2073-01-01 | BL19: 2074-01-01 | BM19: 2075-01-01
E20: Model Period Ending | G20: date | J20: =DATE(YEAR($F16), MONTH($F16) + J$14 * $F18, 0) -> 2020-12-31 | K20: =DATE(YEAR($F16), MONTH($F16) + K$14 * $F18, 0) -> 2021-12-31 | L20: 2022-12-31 | M20: 2023-12-31 | N20: 2024-12-31 | O20: 2025-12-31 | P20: 2026-12-31 | Q20: 2027-12-31 | R20: 2028-12-31 | S20: 2029-12-31 | T20: 2030-12-31 | U20: 2031-12-31 | V20: 2032-12-31 | W20: 2033-12-31 | X20: 2034-12-31 | Y20: 2035-12-31 | Z20: 2036-12-31 | AA20: 2037-12-31 | AB20: 2038-12-31 | AC20: 2039-12-31 | AD20: 2040-12-31 | AE20: 2041-12-31 | AF20: 2042-12-31 | AG20: 2043-12-31 | AH20: 2044-12-31 | AI20: 2045-12-31 | AJ20: 2046-12-31 | AK20: 2047-12-31 | AL20: 2048-12-31 | AM20: 2049-12-31 | AN20: 2050-12-31 | AO20: 2051-12-31 | AP20: 2052-12-31 | AQ20: 2053-12-31 | AR20: 2054-12-31 | AS20: 2055-12-31 | AT20: 2056-12-31 | AU20: 2057-12-31 | AV20: 2058-12-31 | AW20: 2059-12-31 | AX20: 2060-12-31 | AY20: 2061-12-31 | AZ20: 2062-12-31 | BA20: 2063-12-31 | BB20: 2064-12-31 | BC20: 2065-12-31 | BD20: 2066-12-31 | BE20: 2067-12-31 | BF20: 2068-12-31 | BG20: 2069-12-31 | BH20: 2070-12-31 | BI20: 2071-12-31 | BJ20: 2072-12-31 | BK20: 2073-12-31 | BL20: 2074-12-31 | BM20: 2075-12-31
E21: Days per period | G21: days | J21: =J20 - J19 + 1 -> 366 | K21: =K20 - K19 + 1 -> 365 | L21: =L20 - L19 + 1 -> 365 | M21: 365 | N21: 366 | O21: 365 | P21: 365 | Q21: 365 | R21: 366 | S21: 365 | T21: 365 | U21: 365 | V21: 366 | W21: 365 | X21: 365 | Y21: 365 | Z21: 366 | AA21: 365 | AB21: 365 | AC21: 365 | AD21: 366 | AE21: 365 | AF21: 365 | AG21: 365 | AH21: 366 | AI21: 365 | AJ21: 365 | AK21: 365 | AL21: 366 | AM21: 365 | AN21: 365 | AO21: 365 | AP21: 366 | AQ21: 365 | AR21: 365 | AS21: 365 | AT21: 366 | AU21: 365 | AV21: 365 | AW21: 365 | AX21: 366 | AY21: 365 | AZ21: 365 | BA21: 365 | BB21: 366 | BC21: 365 | BD21: 365 | BE21: 365 | BF21: 366 | BG21: 365 | BH21: 365 | BI21: 365 | BJ21: 366 | BK21: 365 | BL21: 365 | BM21: 365
E22: Financial Year | G22: year | J22: =YEAR(J20) -> 2020 | K22: =YEAR(K20) -> 2021 | L22: 2022 | M22: 2023 | N22: 2024 | O22: 2025 | P22: 2026 | Q22: 2027 | R22: 2028 | S22: 2029 | T22: 2030 | U22: 2031 | V22: 2032 | W22: 2033 | X22: 2034 | Y22: 2035 | Z22: 2036 | AA22: 2037 | AB22: 2038 | AC22: 2039 | AD22: 2040 | AE22: 2041 | AF22: 2042 | AG22: 2043 | AH22: 2044 | AI22: 2045 | AJ22: 2046 | AK22: 2047 | AL22: 2048 | AM22: 2049 | AN22: 2050 | AO22: 2051 | AP22: 2052 | AQ22: 2053 | AR22: 2054 | AS22: 2055 | AT22: 2056 | AU22: 2057 | AV22: 2058 | AW22: 2059 | AX22: 2060 | AY22: 2061 | AZ22: 2062 | BA22: 2063 | BB22: 2064 | BC22: 2065 | BD22: 2066 | BE22: 2067 | BF22: 2068 | BG22: 2069 | BH22: 2070 | BI22: 2071 | BJ22: 2072 | BK22: 2073 | BL22: 2074 | BM22: 2075
E23: Financial Year End | G23: flag | J23: =IF(MONTH(J20) = 12, 1, 0) -> 1 | K23: =ROUND(MONTH(K19) / 3 + 1,0) -> 1 | L23: 1 | M23: 1 | N23: 1 | O23: 1 | P23: 1 | Q23: 1 | R23: 1 | S23: 1 | T23: 1 | U23: 1 | V23: 1 | W23: 1 | X23: 1 | Y23: 1 | Z23: 1 | AA23: 1 | AB23: 1 | AC23: 1 | AD23: 1 | AE23: 1 | AF23: 1 | AG23: 1 | AH23: 1 | AI23: 1 | AJ23: 1 | AK23: 1 | AL23: 1 | AM23: 1 | AN23: 1 | AO23: 1 | AP23: 1 | AQ23: =ROUND(MONTH(AQ19) / 3 + 1,0) -> 1 | AR23: 1 | AS23: 1 | AT23: 1 | AU23: 1 | AV23: 1 | AW23: 1 | AX23: 1 | AY23: 1 | AZ23: 1 | BA23: 1 | BB23: 1 | BC23: 1 | BD23: 1 | BE23: 1 | BF23: 1 | BG23: 1 | BH23: 1 | BI23: 1 | BJ23: 1 | BK23: 1 | BL23: 1 | BM23: 1
C25: Construction Period
E27: =NTBA!E$22 -> Construction Period Start | F27: =NTBA!F$22 -> 2020-01-01 | G27: =NTBA!G$22 -> date
E28: =NTBA!E$24 -> Construction Period End | F28: =NTBA!F$24 -> 2021-12-31 | G28: =NTBA!G$24 -> date
E29: =E$19 -> Model Period Beginning | F29: =F$19 -> 00:00:00 | G29: date | H29: 00:00:00 | I29: 00:00:00 | J29: 2020-01-01 | K29: 2021-01-01 | L29: 2022-01-01 | M29: 2023-01-01 | N29: 2024-01-01 | O29: 2025-01-01 | P29: 2026-01-01 | Q29: 2027-01-01 | R29: 2028-01-01 | S29: 2029-01-01 | T29: 2030-01-01 | U29: 2031-01-01 | V29: 2032-01-01 | W29: 2033-01-01 | X29: 2034-01-01 | Y29: 2035-01-01 | Z29: 2036-01-01 | AA29: 2037-01-01 | AB29: 2038-01-01 | AC29: 2039-01-01 | AD29: 2040-01-01 | AE29: 2041-01-01 | AF29: 2042-01-01 | AG29: 2043-01-01 | AH29: 2044-01-01 | AI29: 2045-01-01 | AJ29: 2046-01-01 | AK29: 2047-01-01 | AL29: 2048-01-01 | AM29: 2049-01-01 | AN29: 2050-01-01 | AO29: 2051-01-01 | AP29: 2052-01-01 | AQ29: 2053-01-01 | AR29: 2054-01-01 | AS29: 2055-01-01 | AT29: 2056-01-01 | AU29: 2057-01-01 | AV29: 2058-01-01 | AW29: 2059-01-01 | AX29: 2060-01-01 | AY29: 2061-01-01 | AZ29: 2062-01-01 | BA29: 2063-01-01 | BB29: 2064-01-01 | BC29: 2065-01-01 | BD29: 2066-01-01 | BE29: 2067-01-01 | BF29: 2068-01-01 | BG29: 2069-01-01 | BH29: 2070-01-01 | BI29: 2071-01-01 | BJ29: 2072-01-01 | BK29: 2073-01-01 | BL29: 2074-01-01 | BM29: 2075-01-01
E30: =E$20 -> Model Period Ending | F30: =F$20 -> 00:00:00 | G30: date | H30: 00:00:00 | I30: 00:00:00 | J30: 2020-12-31 | K30: 2021-12-31 | L30: 2022-12-31 | M30: 2023-12-31 | N30: 2024-12-31 | O30: 2025-12-31 | P30: 2026-12-31 | Q30: 2027-12-31 | R30: 2028-12-31 | S30: 2029-12-31 | T30: 2030-12-31 | U30: 2031-12-31 | V30: 2032-12-31 | W30: 2033-12-31 | X30: 2034-12-31 | Y30: 2035-12-31 | Z30: 2036-12-31 | AA30: 2037-12-31 | AB30: 2038-12-31 | AC30: 2039-12-31 | AD30: 2040-12-31 | AE30: 2041-12-31 | AF30: 2042-12-31 | AG30: 2043-12-31 | AH30: 2044-12-31 | AI30: 2045-12-31 | AJ30: 2046-12-31 | AK30: 2047-12-31 | AL30: 2048-12-31 | AM30: 2049-12-31 | AN30: 2050-12-31 | AO30: 2051-12-31 | AP30: 2052-12-31 | AQ30: 2053-12-31 | AR30: 2054-12-31 | AS30: 2055-12-31 | AT30: 2056-12-31 | AU30: 2057-12-31 | AV30: 2058-12-31 | AW30: 2059-12-31 | AX30: 2060-12-31 | AY30: 2061-12-31 | AZ30: 2062-12-31 | BA30: 2063-12-31 | BB30: 2064-12-31 | BC30: 2065-12-31 | BD30: 2066-12-31 | BE30: 2067-12-31 | BF30: 2068-12-31 | BG30: 2069-12-31 | BH30: 2070-12-31 | BI30: 2071-12-31 | BJ30: 2072-12-31 | BK30: 2073-12-31 | BL30: 2074-12-31 | BM30: 2075-12-31
E31: Start Construction Period | G31: flag | H31: =SUM(J31:DI31) -> 1 | J31: =IF(AND($F27 >= J29, $F27 <= J30), 1, 0) -> 1 | K31: =IF(AND($F27 >= K29, $F27 <= K30), 1, 0) -> 0 | L31: 0 | M31: 0 | N31: 0 | O31: 0 | P31: 0 | Q31: 0 | R31: 0 | S31: 0 | T31: 0 | U31: 0 | V31: 0 | W31: 0 | X31: 0 | Y31: 0 | Z31: 0 | AA31: 0 | AB31: 0 | AC31: 0 | AD31: 0 | AE31: 0 | AF31: 0 | AG31: 0 | AH31: 0 | AI31: 0 | AJ31: 0 | AK31: 0 | AL31: 0 | AM31: 0 | AN31: 0 | AO31: 0 | AP31: 0 | AQ31: 0 | AR31: 0 | AS31: 0 | AT31: 0 | AU31: 0 | AV31: 0 | AW31: 0 | AX31: 0 | AY31: 0 | AZ31: 0 | BA31: 0 | BB31: 0 | BC31: 0 | BD31: 0 | BE31: 0 | BF31: 0 | BG31: 0 | BH31: 0 | BI31: 0 | BJ31: 0 | BK31: 0 | BL31: 0 | BM31: 0
E32: End Construction Period | G32: flag | H32: =SUM(J32:DI32) -> 1 | J32: =IF(AND($F28 >= J29, $F28 <= J30), 1, 0) -> 0 | K32: =IF(AND($F28 >= K29, $F28 <= K30), 1, 0) -> 1 | L32: 0 | M32: 0 | N32: 0 | O32: 0 | P32: 0 | Q32: 0 | R32: 0 | S32: 0 | T32: 0 | U32: 0 | V32: 0 | W32: 0 | X32: 0 | Y32: 0 | Z32: 0 | AA32: 0 | AB32: 0 | AC32: 0 | AD32: 0 | AE32: 0 | AF32: 0 | AG32: 0 | AH32: 0 | AI32: 0 | AJ32: 0 | AK32: 0 | AL32: 0 | AM32: 0 | AN32: 0 | AO32: 0 | AP32: 0 | AQ32: 0 | AR32: 0 | AS32: 0 | AT32: 0 | AU32: 0 | AV32: 0 | AW32: 0 | AX32: 0 | AY32: 0 | AZ32: 0 | BA32: 0 | BB32: 0 | BC32: 0 | BD32: 0 | BE32: 0 | BF32: 0 | BG32: 0 | BH32: 0 | BI32: 0 | BJ32: 0 | BK32: 0 | BL32: 0 | BM32: 0
E33: Construction Period | G33: flag | H33: =SUM(J33:DI33) -> 2 | J33: =I33 + J31 - I32 -> 1 | K33: =J33 + K31 - J32 -> 1 | L33: 0 | M33: 0 | N33: 0 | O33: 0 | P33: 0 | Q33: 0 | R33: 0 | S33: 0 | T33: 0 | U33: 0 | V33: 0 | W33: 0 | X33: 0 | Y33: 0 | Z33: 0 | AA33: 0 | AB33: 0 | AC33: 0 | AD33: 0 | AE33: 0 | AF33: 0 | AG33: 0 | AH33: 0 | AI33: 0 | AJ33: 0 | AK33: 0 | AL33: 0 | AM33: 0 | AN33: 0 | AO33: 0 | AP33: 0 | AQ33: 0 | AR33: 0 | AS33: 0 | AT33: 0 | AU33: 0 | AV33: 0 | AW33: 0 | AX33: 0 | AY33: 0 | AZ33: 0 | BA33: 0 | BB33: 0 | BC33: 0 | BD33: 0 | BE33: 0 | BF33: 0 | BG33: 0 | BH33: 0 | BI33: 0 | BJ33: 0 | BK33: 0 | BL33: 0 | BM33: 0
E34: Construction Period Days | G34: days | J34: =J33 * (MIN($F28, J30) - MAX($F27, J29) +1) -> 366 | K34: =K33 * (MIN($F28, K30) - MAX($F27, K29) +1) -> 365 | L34: 0 | M34: 0 | N34: 0 | O34: 0 | P34: 0 | Q34: 0 | R34: 0 | S34: 0 | T34: 0 | U34: 0 | V34: 0 | W34: 0 | X34: 0 | Y34: 0 | Z34: 0 | AA34: 0 | AB34: 0 | AC34: 0 | AD34: 0 | AE34: 0 | AF34: 0 | AG34: 0 | AH34: 0 | AI34: 0 | AJ34: 0 | AK34: 0 | AL34: 0 | AM34: 0 | AN34: 0 | AO34: 0 | AP34: 0 | AQ34: 0 | AR34: 0 | AS34: 0 | AT34: 0 | AU34: 0 | AV34: 0 | AW34: 0 | AX34: 0 | AY34: 0 | AZ34: 0 | BA34: 0 | BB34: 0 | BC34: 0 | BD34: 0 | BE34: 0 | BF34: 0 | BG34: 0 | BH34: 0 | BI34: 0 | BJ34: 0 | BK34: 0 | BL34: 0 | BM34: 0 | BN34: 0 | BO34: 0 | BP34: 0 | BQ34: 0 | BR34: 0 | BS34: 0 | BT34: 0 | BU34: 0 | BV34: 0 | BW34: =BW33 * (MIN($F28, BW30) - MAX($F27, BW29) +1) -> 0 | BX34: 0 | BY34: 0 | BZ34: 0 | CA34: 0 | CB34: 0 | CC34: 0 | CD34: 0 | CE34: 0 | CF34: 0 | CG34: 0 | CH34: 0 | CI34: 0 | CJ34: 0 | CK34: 0 | CL34: 0 | CM34: 0 | CN34: 0 | CO34: 0 | CP34: 0 | CQ34: 0 | CR34: 0 | CS34: 0 | CT34: 0 | CU34: 0 | CV34: 0 | CW34: 0 | CX34: 0 | CY34: 0 | CZ34: 0 | DA34: 0 | DB34: 0 | DC34: 0 | DD34: 0 | DE34: 0 | DF34: 0 | DG34: 0 | DH34: 0 | DI34: 0 | DJ34: 0 | DK34: 0 | DL34: 0 | DM34: 0 | DN34: 0 | DO34: 0 | DP34: 0 | DQ34: 0 | DR34: 0 | DS34: 0 | DT34: 0 | DU34: 0 | DV34: 0 | DW34: 0 | DX34: 0 | DY34: 0 | DZ34: 0 | EA34: 0 | EB34: 0 | EC34: 0 | ED34: 0 | EE34: 0 | EF34: 0 | EG34: 0 | EH34: 0 | EI34: =EI33 * (MIN($F28, EI30) - MAX($F27, EI29) +1) -> 0 | EJ34: 0 | EK34: 0 | EL34: 0 | EM34: 0 | EN34: 0 | EO34: 0 | EP34: 0 | EQ34: 0 | ER34: 0 | ES34: 0 | ET34: 0 | EU34: 0 | EV34: 0 | EW34: 0 | EX34: 0 | EY34: 0 | EZ34: 0 | FA34: 0 | FB34: 0 | FC34: 0 | FD34: 0 | FE34: 0 | FF34: 0 | FG34: 0 | FH34: 0 | FI34: 0 | FJ34: 0 | FK34: 0 | FL34: 0 | FM34: 0 | FN34: 0 | FO34: 0 | FP34: 0 | FQ34: 0 | FR34: 0 | FS34: 0 | FT34: 0 | FU34: 0 | FV34: 0 | FW34: 0 | FX34: 0 | FY34: 0 | FZ34: 0 | GA34: 0 | GB34: 0 | GC34: 0 | GD34: 0 | GE34: 0 | GF34: 0 | GG34: 0 | GH34: 0 | GI34: 0 | GJ34: 0 | GK34: 0 | GL34: 0 | GM34: 0 | GN34: 0 | GO34: 0 | GP34: 0 | GQ34: 0 | GR34: 0 | GS34: 0 | GT34: 0 | GU34: =GU33 * (MIN($F28, GU30) - MAX($F27, GU29) +1) -> 0 | GV34: 0 | GW34: 0 | GX34: 0 | GY34: 0 | GZ34: 0 | HA34: 0 | HB34: 0 | HC34: 0 | HD34: 0 | HE34: 0 | HF34: 0 | HG34: 0 | HH34: 0 | HI34: 0 | HJ34: 0 | HK34: 0 | HL34: 0 | HM34: 0 | HN34: 0 | HO34: 0 | HP34: 0 | HQ34: 0 | HR34: 0 | HS34: 0 | HT34: 0 | HU34: 0
E36: =E$34 -> Construction Period Days | F36: =F$34 -> 0 | G36: days | H36: 0 | I36: 0 | J36: 366 | K36: 365 | L36: 0 | M36: 0 | N36: 0 | O36: 0 | P36: 0 | Q36: 0 | R36: 0 | S36: 0 | T36: 0 | U36: 0 | V36: 0 | W36: 0 | X36: 0 | Y36: 0 | Z36: 0 | AA36: 0 | AB36: 0 | AC36: 0 | AD36: 0 | AE36: 0 | AF36: 0 | AG36: 0 | AH36: 0 | AI36: 0 | AJ36: 0 | AK36: 0 | AL36: 0 | AM36: 0 | AN36: 0 | AO36: 0 | AP36: 0 | AQ36: 0 | AR36: 0 | AS36: 0 | AT36: 0 | AU36: 0 | AV36: 0 | AW36: 0 | AX36: 0 | AY36: 0 | AZ36: 0 | BA36: 0 | BB36: 0 | BC36: 0 | BD36: 0 | BE36: 0 | BF36: 0 | BG36: 0 | BH36: 0 | BI36: 0 | BJ36: 0 | BK36: 0 | BL36: 0 | BM36: 0
E37: =E$21 -> Days per period | F37: =F$21 -> 0 | G37: days | H37: 0 | I37: 0 | J37: 366 | K37: 365 | L37: 365 | M37: 365 | N37: 366 | O37: 365 | P37: 365 | Q37: 365 | R37: 366 | S37: 365 | T37: 365 | U37: 365 | V37: 366 | W37: 365 | X37: 365 | Y37: 365 | Z37: 366 | AA37: 365 | AB37: 365 | AC37: 365 | AD37: 366 | AE37: 365 | AF37: 365 | AG37: 365 | AH37: 366 | AI37: 365 | AJ37: 365 | AK37: 365 | AL37: 366 | AM37: 365 | AN37: 365 | AO37: 365 | AP37: 366 | AQ37: 365 | AR37: 365 | AS37: 365 | AT37: 366 | AU37: 365 | AV37: 365 | AW37: 365 | AX37: 366 | AY37: 365 | AZ37: 365 | BA37: 365 | BB37: 366 | BC37: 365 | BD37: 365 | BE37: 365 | BF37: 366 | BG37: 365 | BH37: 365 | BI37: 365 | BJ37: 366 | BK37: 365 | BL37: 365 | BM37: 365
E38: Construction Period Fraction | G38: factor | H38: =SUM(J38:BM38) -> 2 | J38: =J36 /J37 -> 1 | K38: =K36 /K37 -> 1 | L38: 0 | M38: 0 | N38: 0 | O38: 0 | P38: 0 | Q38: 0 | R38: 0 | S38: 0 | T38: 0 | U38: 0 | V38: 0 | W38: 0 | X38: 0 | Y38: 0 | Z38: 0 | AA38: 0 | AB38: 0 | AC38: 0 | AD38: 0 | AE38: 0 | AF38: 0 | AG38: 0 | AH38: 0 | AI38: 0 | AJ38: 0 | AK38: 0 | AL38: 0 | AM38: 0 | AN38: 0 | AO38: 0 | AP38: 0 | AQ38: 0 | AR38: 0 | AS38: 0 | AT38: 0 | AU38: 0 | AV38: 0 | AW38: 0 | AX38: 0 | AY38: 0 | AZ38: 0 | BA38: 0 | BB38: 0 | BC38: 0 | BD38: 0 | BE38: 0 | BF38: 0 | BG38: 0 | BH38: 0 | BI38: 0 | BJ38: 0 | BK38: 0 | BL38: 0 | BM38: 0 | BW38: =BW36 /BW37 ->  | EI38: =EI36 /EI37 ->  | GU38: =GU36 /GU37 -> 
E40: =E$12 -> Model start | F40: =F$12 -> 0 | G40: flag | H40: 1 | I40: 0 | J40: 1 | K40: 0 | L40: 0 | M40: 0 | N40: 0 | O40: 0 | P40: 0 | Q40: 0 | R40: 0 | S40: 0 | T40: 0 | U40: 0 | V40: 0 | W40: 0 | X40: 0 | Y40: 0 | Z40: 0 | AA40: 0 | AB40: 0 | AC40: 0 | AD40: 0 | AE40: 0 | AF40: 0 | AG40: 0 | AH40: 0 | AI40: 0 | AJ40: 0 | AK40: 0 | AL40: 0 | AM40: 0 | AN40: 0 | AO40: 0 | AP40: 0 | AQ40: 0 | AR40: 0 | AS40: 0 | AT40: 0 | AU40: 0 | AV40: 0 | AW40: 0 | AX40: 0 | AY40: 0 | AZ40: 0 | BA40: 0 | BB40: 0 | BC40: 0 | BD40: 0 | BE40: 0 | BF40: 0 | BG40: 0 | BH40: 0 | BI40: 0 | BJ40: 0 | BK40: 0 | BL40: 0 | BM40: 0
E41: =E$31 -> Start Construction Period | F41: =F$31 -> 0 | G41: flag | H41: 1 | I41: 0 | J41: 1 | K41: 0 | L41: 0 | M41: 0 | N41: 0 | O41: 0 | P41: 0 | Q41: 0 | R41: 0 | S41: 0 | T41: 0 | U41: 0 | V41: 0 | W41: 0 | X41: 0 | Y41: 0 | Z41: 0 | AA41: 0 | AB41: 0 | AC41: 0 | AD41: 0 | AE41: 0 | AF41: 0 | AG41: 0 | AH41: 0 | AI41: 0 | AJ41: 0 | AK41: 0 | AL41: 0 | AM41: 0 | AN41: 0 | AO41: 0 | AP41: 0 | AQ41: 0 | AR41: 0 | AS41: 0 | AT41: 0 | AU41: 0 | AV41: 0 | AW41: 0 | AX41: 0 | AY41: 0 | AZ41: 0 | BA41: 0 | BB41: 0 | BC41: 0 | BD41: 0 | BE41: 0 | BF41: 0 | BG41: 0 | BH41: 0 | BI41: 0 | BJ41: 0 | BK41: 0 | BL41: 0 | BM41: 0
E42: Pre-Construction Period | G42: flag | H42: =SUM(J42:DI42) -> 0 | J42: =I42 + J40 - J41 -> 0 | K42: =J42 + K40 - K41 -> 0 | L42: 0 | M42: 0 | N42: 0 | O42: 0 | P42: 0 | Q42: 0 | R42: 0 | S42: 0 | T42: 0 | U42: 0 | V42: 0 | W42: 0 | X42: 0 | Y42: 0 | Z42: 0 | AA42: 0 | AB42: 0 | AC42: 0 | AD42: 0 | AE42: 0 | AF42: 0 | AG42: 0 | AH42: 0 | AI42: 0 | AJ42: 0 | AK42: 0 | AL42: 0 | AM42: 0 | AN42: 0 | AO42: 0 | AP42: 0 | AQ42: 0 | AR42: 0 | AS42: 0 | AT42: 0 | AU42: 0 | AV42: 0 | AW42: 0 | AX42: 0 | AY42: 0 | AZ42: 0 | BA42: 0 | BB42: 0 | BC42: 0 | BD42: 0 | BE42: 0 | BF42: 0 | BG42: 0 | BH42: 0 | BI42: 0 | BJ42: 0 | BK42: 0 | BL42: 0 | BM42: 0
C44: Operational Period
E46: =NTBA!E$26 -> Operational Period Start | F46: =NTBA!F$26 -> 2022-01-01 | G46: =NTBA!G$26 -> date
E47: =NTBA!E$28 -> Operational Period End | F47: =NTBA!F$28 -> 2056-12-31 | G47: =NTBA!G$28 -> date
E48: =E$19 -> Model Period Beginning | F48: =F$19 -> 00:00:00 | G48: date | H48: 00:00:00 | I48: 00:00:00 | J48: 2020-01-01 | K48: 2021-01-01 | L48: 2022-01-01 | M48: 2023-01-01 | N48: 2024-01-01 | O48: 2025-01-01 | P48: 2026-01-01 | Q48: 2027-01-01 | R48: 2028-01-01 | S48: 2029-01-01 | T48: 2030-01-01 | U48: 2031-01-01 | V48: 2032-01-01 | W48: 2033-01-01 | X48: 2034-01-01 | Y48: 2035-01-01 | Z48: 2036-01-01 | AA48: 2037-01-01 | AB48: 2038-01-01 | AC48: 2039-01-01 | AD48: 2040-01-01 | AE48: 2041-01-01 | AF48: 2042-01-01 | AG48: 2043-01-01 | AH48: 2044-01-01 | AI48: 2045-01-01 | AJ48: 2046-01-01 | AK48: 2047-01-01 | AL48: 2048-01-01 | AM48: 2049-01-01 | AN48: 2050-01-01 | AO48: 2051-01-01 | AP48: 2052-01-01 | AQ48: 2053-01-01 | AR48: 2054-01-01 | AS48: 2055-01-01 | AT48: 2056-01-01 | AU48: 2057-01-01 | AV48: 2058-01-01 | AW48: 2059-01-01 | AX48: 2060-01-01 | AY48: 2061-01-01 | AZ48: 2062-01-01 | BA48: 2063-01-01 | BB48: 2064-01-01 | BC48: 2065-01-01 | BD48: 2066-01-01 | BE48: 2067-01-01 | BF48: 2068-01-01 | BG48: 2069-01-01 | BH48: 2070-01-01 | BI48: 2071-01-01 | BJ48: 2072-01-01 | BK48: 2073-01-01 | BL48: 2074-01-01 | BM48: 2075-01-01
E49: =E$20 -> Model Period Ending | F49: =F$20 -> 00:00:00 | G49: date | H49: 00:00:00 | I49: 00:00:00 | J49: 2020-12-31 | K49: 2021-12-31 | L49: 2022-12-31 | M49: 2023-12-31 | N49: 2024-12-31 | O49: 2025-12-31 | P49: 2026-12-31 | Q49: 2027-12-31 | R49: 2028-12-31 | S49: 2029-12-31 | T49: 2030-12-31 | U49: 2031-12-31 | V49: 2032-12-31 | W49: 2033-12-31 | X49: 2034-12-31 | Y49: 2035-12-31 | Z49: 2036-12-31 | AA49: 2037-12-31 | AB49: 2038-12-31 | AC49: 2039-12-31 | AD49: 2040-12-31 | AE49: 2041-12-31 | AF49: 2042-12-31 | AG49: 2043-12-31 | AH49: 2044-12-31 | AI49: 2045-12-31 | AJ49: 2046-12-31 | AK49: 2047-12-31 | AL49: 2048-12-31 | AM49: 2049-12-31 | AN49: 2050-12-31 | AO49: 2051-12-31 | AP49: 2052-12-31 | AQ49: 2053-12-31 | AR49: 2054-12-31 | AS49: 2055-12-31 | AT49: 2056-12-31 | AU49: 2057-12-31 | AV49: 2058-12-31 | AW49: 2059-12-31 | AX49: 2060-12-31 | AY49: 2061-12-31 | AZ49: 2062-12-31 | BA49: 2063-12-31 | BB49: 2064-12-31 | BC49: 2065-12-31 | BD49: 2066-12-31 | BE49: 2067-12-31 | BF49: 2068-12-31 | BG49: 2069-12-31 | BH49: 2070-12-31 | BI49: 2071-12-31 | BJ49: 2072-12-31 | BK49: 2073-12-31 | BL49: 2074-12-31 | BM49: 2075-12-31
E50: Start Operational Period | G50: flag | H50: =SUM(J50:DI50) -> 1 | J50: =IF(AND($F46 >= J48, $F46 <= J49), 1, 0) -> 0 | K50: =IF(AND($F46 >= K48, $F46 <= K49), 1, 0) -> 0 | L50: =IF(AND($F46 >= L48, $F46 <= L49), 1, 0) -> 1 | M50: =IF(AND($F46 >= M48, $F46 <= M49), 1, 0) -> 0 | N50: =IF(AND($F46 >= N48, $F46 <= N49), 1, 0) -> 0 | O50: =IF(AND($F46 >= O48, $F46 <= O49), 1, 0) -> 0 | P50: =IF(AND($F46 >= P48, $F46 <= P49), 1, 0) -> 0 | Q50: =IF(AND($F46 >= Q48, $F46 <= Q49), 1, 0) -> 0 | R50: =IF(AND($F46 >= R48, $F46 <= R49), 1, 0) -> 0 | S50: =IF(AND($F46 >= S48, $F46 <= S49), 1, 0) -> 0 | T50: =IF(AND($F46 >= T48, $F46 <= T49), 1, 0) -> 0 | U50: =IF(AND($F46 >= U48, $F46 <= U49), 1, 0) -> 0 | V50: =IF(AND($F46 >= V48, $F46 <= V49), 1, 0) -> 0 | W50: =IF(AND($F46 >= W48, $F46 <= W49), 1, 0) -> 0 | X50: =IF(AND($F46 >= X48, $F46 <= X49), 1, 0) -> 0 | Y50: =IF(AND($F46 >= Y48, $F46 <= Y49), 1, 0) -> 0 | Z50: =IF(AND($F46 >= Z48, $F46 <= Z49), 1, 0) -> 0 | AA50: =IF(AND($F46 >= AA48, $F46 <= AA49), 1, 0) -> 0 | AB50: =IF(AND($F46 >= AB48, $F46 <= AB49), 1, 0) -> 0 | AC50: =IF(AND($F46 >= AC48, $F46 <= AC49), 1, 0) -> 0 | AD50: =IF(AND($F46 >= AD48, $F46 <= AD49), 1, 0) -> 0 | AE50: =IF(AND($F46 >= AE48, $F46 <= AE49), 1, 0) -> 0 | AF50: =IF(AND($F46 >= AF48, $F46 <= AF49), 1, 0) -> 0 | AG50: =IF(AND($F46 >= AG48, $F46 <= AG49), 1, 0) -> 0 | AH50: =IF(AND($F46 >= AH48, $F46 <= AH49), 1, 0) -> 0 | AI50: =IF(AND($F46 >= AI48, $F46 <= AI49), 1, 0) -> 0 | AJ50: =IF(AND($F46 >= AJ48, $F46 <= AJ49), 1, 0) -> 0 | AK50: =IF(AND($F46 >= AK48, $F46 <= AK49), 1, 0) -> 0 | AL50: =IF(AND($F46 >= AL48, $F46 <= AL49), 1, 0) -> 0 | AM50: =IF(AND($F46 >= AM48, $F46 <= AM49), 1, 0) -> 0 | AN50: =IF(AND($F46 >= AN48, $F46 <= AN49), 1, 0) -> 0 | AO50: =IF(AND($F46 >= AO48, $F46 <= AO49), 1, 0) -> 0 | AP50: =IF(AND($F46 >= AP48, $F46 <= AP49), 1, 0) -> 0 | AQ50: =IF(AND($F46 >= AQ48, $F46 <= AQ49), 1, 0) -> 0 | AR50: =IF(AND($F46 >= AR48, $F46 <= AR49), 1, 0) -> 0 | AS50: =IF(AND($F46 >= AS48, $F46 <= AS49), 1, 0) -> 0 | AT50: =IF(AND($F46 >= AT48, $F46 <= AT49), 1, 0) -> 0 | AU50: =IF(AND($F46 >= AU48, $F46 <= AU49), 1, 0) -> 0 | AV50: =IF(AND($F46 >= AV48, $F46 <= AV49), 1, 0) -> 0 | AW50: =IF(AND($F46 >= AW48, $F46 <= AW49), 1, 0) -> 0 | AX50: =IF(AND($F46 >= AX48, $F46 <= AX49), 1, 0) -> 0 | AY50: =IF(AND($F46 >= AY48, $F46 <= AY49), 1, 0) -> 0 | AZ50: =IF(AND($F46 >= AZ48, $F46 <= AZ49), 1, 0) -> 0 | BA50: =IF(AND($F46 >= BA48, $F46 <= BA49), 1, 0) -> 0 | BB50: =IF(AND($F46 >= BB48, $F46 <= BB49), 1, 0) -> 0 | BC50: =IF(AND($F46 >= BC48, $F46 <= BC49), 1, 0) -> 0 | BD50: =IF(AND($F46 >= BD48, $F46 <= BD49), 1, 0) -> 0 | BE50: =IF(AND($F46 >= BE48, $F46 <= BE49), 1, 0) -> 0 | BF50: =IF(AND($F46 >= BF48, $F46 <= BF49), 1, 0) -> 0 | BG50: =IF(AND($F46 >= BG48, $F46 <= BG49), 1, 0) -> 0 | BH50: =IF(AND($F46 >= BH48, $F46 <= BH49), 1, 0) -> 0 | BI50: =IF(AND($F46 >= BI48, $F46 <= BI49), 1, 0) -> 0 | BJ50: =IF(AND($F46 >= BJ48, $F46 <= BJ49), 1, 0) -> 0 | BK50: =IF(AND($F46 >= BK48, $F46 <= BK49), 1, 0) -> 0 | BL50: =IF(AND($F46 >= BL48, $F46 <= BL49), 1, 0) -> 0 | BM50: =IF(AND($F46 >= BM48, $F46 <= BM49), 1, 0) -> 0
E51: End Operational Period | G51: flag | H51: =SUM(J51:DI51) -> 1 | J51: =IF(AND($F47 >= J48, $F47 <= J49), 1, 0) -> 0 | K51: =IF(AND($F47 >= K48, $F47 <= K49), 1, 0) -> 0 | L51: 0 | M51: 0 | N51: 0 | O51: 0 | P51: 0 | Q51: 0 | R51: 0 | S51: 0 | T51: 0 | U51: 0 | V51: 0 | W51: 0 | X51: 0 | Y51: 0 | Z51: 0 | AA51: 0 | AB51: 0 | AC51: 0 | AD51: 0 | AE51: 0 | AF51: 0 | AG51: 0 | AH51: 0 | AI51: 0 | AJ51: 0 | AK51: 0 | AL51: 0 | AM51: 0 | AN51: 0 | AO51: 0 | AP51: 0 | AQ51: 0 | AR51: 0 | AS51: 0 | AT51: 1 | AU51: 0 | AV51: 0 | AW51: 0 | AX51: 0 | AY51: 0 | AZ51: 0 | BA51: 0 | BB51: 0 | BC51: 0 | BD51: 0 | BE51: 0 | BF51: 0 | BG51: 0 | BH51: 0 | BI51: 0 | BJ51: 0 | BK51: 0 | BL51: 0 | BM51: 0
E52: Operational Period | G52: flag | H52: =SUM(J52:DI52) -> 35 | J52: =I52 + J50 - I51 -> 0 | K52: =J52 + K50 - J51 -> 0 | L52: 1 | M52: 1 | N52: 1 | O52: 1 | P52: 1 | Q52: 1 | R52: 1 | S52: 1 | T52: 1 | U52: 1 | V52: 1 | W52: 1 | X52: 1 | Y52: 1 | Z52: 1 | AA52: 1 | AB52: 1 | AC52: 1 | AD52: 1 | AE52: 1 | AF52: 1 | AG52: 1 | AH52: 1 | AI52: 1 | AJ52: 1 | AK52: 1 | AL52: 1 | AM52: 1 | AN52: 1 | AO52: 1 | AP52: 1 | AQ52: 1 | AR52: 1 | AS52: 1 | AT52: 1 | AU52: 0 | AV52: 0 | AW52: 0 | AX52: 0 | AY52: 0 | AZ52: 0 | BA52: 0 | BB52: 0 | BC52: 0 | BD52: 0 | BE52: 0 | BF52: 0 | BG52: 0 | BH52: 0 | BI52: 0 | BJ52: 0 | BK52: 0 | BL52: 0 | BM52: 0
E53: Operational Period Days | G53: days | J53: =J52 * (MIN($F47, J49) - MAX($F46, J48) +1) -> 0 | K53: 0 | L53: 365 | M53: 365 | N53: 366 | O53: 365 | P53: 365 | Q53: 365 | R53: 366 | S53: 365 | T53: 365 | U53: 365 | V53: 366 | W53: 365 | X53: 365 | Y53: 365 | Z53: 366 | AA53: 365 | AB53: 365 | AC53: 365 | AD53: 366 | AE53: 365 | AF53: 365 | AG53: 365 | AH53: 366 | AI53: 365 | AJ53: 365 | AK53: 365 | AL53: 366 | AM53: 365 | AN53: 365 | AO53: 365 | AP53: 366 | AQ53: 365 | AR53: 365 | AS53: 365 | AT53: 366 | AU53: 0 | AV53: 0 | AW53: 0 | AX53: 0 | AY53: 0 | AZ53: 0 | BA53: 0 | BB53: 0 | BC53: 0 | BD53: 0 | BE53: 0 | BF53: 0 | BG53: 0 | BH53: 0 | BI53: 0 | BJ53: 0 | BK53: 0 | BL53: 0 | BM53: 0
E55: =E$53 -> Operational Period Days | F55: =F$53 -> 0 | G55: days | H55: 0 | I55: 0 | J55: 0 | K55: 0 | L55: 365 | M55: 365 | N55: 366 | O55: 365 | P55: 365 | Q55: 365 | R55: 366 | S55: 365 | T55: 365 | U55: 365 | V55: 366 | W55: 365 | X55: 365 | Y55: 365 | Z55: 366 | AA55: 365 | AB55: 365 | AC55: 365 | AD55: 366 | AE55: 365 | AF55: 365 | AG55: 365 | AH55: 366 | AI55: 365 | AJ55: 365 | AK55: 365 | AL55: 366 | AM55: 365 | AN55: 365 | AO55: 365 | AP55: 366 | AQ55: 365 | AR55: 365 | AS55: 365 | AT55: 366 | AU55: 0 | AV55: 0 | AW55: 0 | AX55: 0 | AY55: 0 | AZ55: 0 | BA55: 0 | BB55: 0 | BC55: 0 | BD55: 0 | BE55: 0 | BF55: 0 | BG55: 0 | BH55: 0 | BI55: 0 | BJ55: 0 | BK55: 0 | BL55: 0 | BM55: 0
E56: =E$21 -> Days per period | F56: =F$21 -> 0 | G56: days | H56: 0 | I56: 0 | J56: 366 | K56: 365 | L56: 365 | M56: 365 | N56: 366 | O56: 365 | P56: 365 | Q56: 365 | R56: 366 | S56: 365 | T56: 365 | U56: 365 | V56: 366 | W56: 365 | X56: 365 | Y56: 365 | Z56: 366 | AA56: 365 | AB56: 365 | AC56: 365 | AD56: 366 | AE56: 365 | AF56: 365 | AG56: 365 | AH56: 366 | AI56: 365 | AJ56: 365 | AK56: 365 | AL56: 366 | AM56: 365 | AN56: 365 | AO56: 365 | AP56: 366 | AQ56: 365 | AR56: 365 | AS56: 365 | AT56: 366 | AU56: 365 | AV56: 365 | AW56: 365 | AX56: 366 | AY56: 365 | AZ56: 365 | BA56: 365 | BB56: 366 | BC56: 365 | BD56: 365 | BE56: 365 | BF56: 366 | BG56: 365 | BH56: 365 | BI56: 365 | BJ56: 366 | BK56: 365 | BL56: 365 | BM56: 365
E57: Operational Period PeriodFrac | G57: % | H57: =SUM(J57:BM57) -> 35 | J57: =J55 /J56 -> 0 | K57: 0 | L57: 1 | M57: 1 | N57: 1 | O57: 1 | P57: 1 | Q57: 1 | R57: 1 | S57: 1 | T57: 1 | U57: 1 | V57: 1 | W57: 1 | X57: 1 | Y57: 1 | Z57: 1 | AA57: 1 | AB57: 1 | AC57: 1 | AD57: 1 | AE57: 1 | AF57: 1 | AG57: 1 | AH57: 1 | AI57: 1 | AJ57: 1 | AK57: 1 | AL57: 1 | AM57: 1 | AN57: 1 | AO57: 1 | AP57: 1 | AQ57: 1 | AR57: 1 | AS57: 1 | AT57: 1 | AU57: 0 | AV57: 0 | AW57: 0 | AX57: 0 | AY57: 0 | AZ57: 0 | BA57: 0 | BB57: 0 | BC57: 0 | BD57: 0 | BE57: 0 | BF57: 0 | BG57: 0 | BH57: 0 | BI57: 0 | BJ57: 0 | BK57: 0 | BL57: 0 | BM57: 0
E59: =E$51 -> End Operational Period | F59: =F$51 -> 0 | G59: flag | H59: 1 | I59: 0 | J59: 0 | K59: 0 | L59: 0 | M59: 0 | N59: 0 | O59: 0 | P59: 0 | Q59: 0 | R59: 0 | S59: 0 | T59: 0 | U59: 0 | V59: 0 | W59: 0 | X59: 0 | Y59: 0 | Z59: 0 | AA59: 0 | AB59: 0 | AC59: 0 | AD59: 0 | AE59: 0 | AF59: 0 | AG59: 0 | AH59: 0 | AI59: 0 | AJ59: 0 | AK59: 0 | AL59: 0 | AM59: 0 | AN59: 0 | AO59: 0 | AP59: 0 | AQ59: 0 | AR59: 0 | AS59: 0 | AT59: 1 | AU59: 0 | AV59: 0 | AW59: 0 | AX59: 0 | AY59: 0 | AZ59: 0 | BA59: 0 | BB59: 0 | BC59: 0 | BD59: 0 | BE59: 0 | BF59: 0 | BG59: 0 | BH59: 0 | BI59: 0 | BJ59: 0 | BK59: 0 | BL59: 0 | BM59: 0
E60: Post-Operational Period | G60: flag | H60: =SUM(J60:DI60) -> 20 | J60: =I60 + J59 -> 0 | K60: =J60 + K59 -> 0 | L60: 0 | M60: 0 | N60: 0 | O60: 0 | P60: 0 | Q60: 0 | R60: 0 | S60: 0 | T60: 0 | U60: 0 | V60: 0 | W60: 0 | X60: 0 | Y60: 0 | Z60: 0 | AA60: 0 | AB60: 0 | AC60: 0 | AD60: 0 | AE60: 0 | AF60: 0 | AG60: 0 | AH60: 0 | AI60: 0 | AJ60: 0 | AK60: 0 | AL60: 0 | AM60: 0 | AN60: 0 | AO60: 0 | AP60: 0 | AQ60: 0 | AR60: 0 | AS60: 0 | AT60: 1 | AU60: 1 | AV60: 1 | AW60: 1 | AX60: 1 | AY60: 1 | AZ60: 1 | BA60: 1 | BB60: 1 | BC60: 1 | BD60: 1 | BE60: 1 | BF60: 1 | BG60: 1 | BH60: 1 | BI60: 1 | BJ60: 1 | BK60: 1 | BL60: 1 | BM60: 1
E62: =NTBA!E$26 -> Operational Period Start | F62: =NTBA!F$26 -> 2022-01-01 | G62: =NTBA!G$26 -> date
E63: =NTBA!E$28 -> Operational Period End | F63: =NTBA!F$28 -> 2056-12-31 | G63: =NTBA!G$28 -> date
E64: =E$19 -> Model Period Beginning | F64: =F$19 -> 00:00:00 | G64: date | H64: 00:00:00 | I64: 00:00:00 | J64: 2020-01-01 | K64: 2021-01-01 | L64: 2022-01-01 | M64: 2023-01-01 | N64: 2024-01-01 | O64: 2025-01-01 | P64: 2026-01-01 | Q64: 2027-01-01 | R64: 2028-01-01 | S64: 2029-01-01 | T64: 2030-01-01 | U64: 2031-01-01 | V64: 2032-01-01 | W64: 2033-01-01 | X64: 2034-01-01 | Y64: 2035-01-01 | Z64: 2036-01-01 | AA64: 2037-01-01 | AB64: 2038-01-01 | AC64: 2039-01-01 | AD64: 2040-01-01 | AE64: 2041-01-01 | AF64: 2042-01-01 | AG64: 2043-01-01 | AH64: 2044-01-01 | AI64: 2045-01-01 | AJ64: 2046-01-01 | AK64: 2047-01-01 | AL64: 2048-01-01 | AM64: 2049-01-01 | AN64: 2050-01-01 | AO64: 2051-01-01 | AP64: 2052-01-01 | AQ64: 2053-01-01 | AR64: 2054-01-01 | AS64: 2055-01-01 | AT64: 2056-01-01 | AU64: 2057-01-01 | AV64: 2058-01-01 | AW64: 2059-01-01 | AX64: 2060-01-01 | AY64: 2061-01-01 | AZ64: 2062-01-01 | BA64: 2063-01-01 | BB64: 2064-01-01 | BC64: 2065-01-01 | BD64: 2066-01-01 | BE64: 2067-01-01 | BF64: 2068-01-01 | BG64: 2069-01-01 | BH64: 2070-01-01 | BI64: 2071-01-01 | BJ64: 2072-01-01 | BK64: 2073-01-01 | BL64: 2074-01-01 | BM64: 2075-01-01
E65: =E$20 -> Model Period Ending | F65: =F$20 -> 00:00:00 | G65: date | H65: 00:00:00 | I65: 00:00:00 | J65: 2020-12-31 | K65: 2021-12-31 | L65: 2022-12-31 | M65: 2023-12-31 | N65: 2024-12-31 | O65: 2025-12-31 | P65: 2026-12-31 | Q65: 2027-12-31 | R65: 2028-12-31 | S65: 2029-12-31 | T65: 2030-12-31 | U65: 2031-12-31 | V65: 2032-12-31 | W65: 2033-12-31 | X65: 2034-12-31 | Y65: 2035-12-31 | Z65: 2036-12-31 | AA65: 2037-12-31 | AB65: 2038-12-31 | AC65: 2039-12-31 | AD65: 2040-12-31 | AE65: 2041-12-31 | AF65: 2042-12-31 | AG65: 2043-12-31 | AH65: 2044-12-31 | AI65: 2045-12-31 | AJ65: 2046-12-31 | AK65: 2047-12-31 | AL65: 2048-12-31 | AM65: 2049-12-31 | AN65: 2050-12-31 | AO65: 2051-12-31 | AP65: 2052-12-31 | AQ65: 2053-12-31 | AR65: 2054-12-31 | AS65: 2055-12-31 | AT65: 2056-12-31 | AU65: 2057-12-31 | AV65: 2058-12-31 | AW65: 2059-12-31 | AX65: 2060-12-31 | AY65: 2061-12-31 | AZ65: 2062-12-31 | BA65: 2063-12-31 | BB65: 2064-12-31 | BC65: 2065-12-31 | BD65: 2066-12-31 | BE65: 2067-12-31 | BF65: 2068-12-31 | BG65: 2069-12-31 | BH65: 2070-12-31 | BI65: 2071-12-31 | BJ65: 2072-12-31 | BK65: 2073-12-31 | BL65: 2074-12-31 | BM65: 2075-12-31
E66: =E$52 -> Operational Period | F66: 0 | G66: flag | H66: 35 | I66: 0 | J66: 0 | K66: 0 | L66: 1 | M66: 1 | N66: 1 | O66: 1 | P66: 1 | Q66: 1 | R66: 1 | S66: 1 | T66: 1 | U66: 1 | V66: 1 | W66: 1 | X66: 1 | Y66: 1 | Z66: 1 | AA66: 1 | AB66: 1 | AC66: 1 | AD66: 1 | AE66: 1 | AF66: 1 | AG66: 1 | AH66: 1 | AI66: 1 | AJ66: 1 | AK66: =AK$52 -> 1 | AL66: 1 | AM66: 1 | AN66: 1 | AO66: 1 | AP66: 1 | AQ66: 1 | AR66: 1 | AS66: 1 | AT66: 1 | AU66: 0 | AV66: 0 | AW66: 0 | AX66: 0 | AY66: 0 | AZ66: 0 | BA66: 0 | BB66: 0 | BC66: 0 | BD66: 0 | BE66: 0 | BF66: 0 | BG66: 0 | BH66: 0 | BI66: 0 | BJ66: 0 | BK66: 0 | BL66: 0 | BM66: 0
E67: Operational Period YearFrac | G67: % | H67: =SUM(J67:BM67) -> 35 | J67: =IF(J66 = 0, 0, YEARFRAC(MAX($F62, J64) -1, MIN($F63, J65), 1)) -> 0 | K67: 0 | L67: 1 | M67: 1 | N67: 1 | O67: 1 | P67: 1 | Q67: 1 | R67: 1 | S67: 1 | T67: 1 | U67: 1 | V67: 1 | W67: 1 | X67: 1 | Y67: 1 | Z67: 1 | AA67: 1 | AB67: 1 | AC67: 1 | AD67: 1 | AE67: 1 | AF67: 1 | AG67: 1 | AH67: 1 | AI67: 1 | AJ67: 1 | AK67: 1 | AL67: 1 | AM67: 1 | AN67: 1 | AO67: 1 | AP67: =IF(AP66 = 0, 0, YEARFRAC(MAX($F62, AP64) -1, MIN($F63, AP65), 1)) -> 1 | AQ67: 1 | AR67: 1 | AS67: 1 | AT67: 1 | AU67: 0 | AV67: 0 | AW67: 0 | AX67: 0 | AY67: 0 | AZ67: 0 | BA67: 0 | BB67: 0 | BC67: 0 | BD67: 0 | BE67: 0 | BF67: 0 | BG67: 0 | BH67: 0 | BI67: 0 | BJ67: 0 | BK67: 0 | BL67: 0 | BM67: 0
C70: Project
E72: =E$42 -> Pre-Construction Period | F72: =F$42 -> 0 | G72: flag | H72: 0 | I72: 0 | J72: 0 | K72: 0 | L72: 0 | M72: 0 | N72: 0 | O72: 0 | P72: 0 | Q72: 0 | R72: 0 | S72: 0 | T72: 0 | U72: 0 | V72: 0 | W72: 0 | X72: 0 | Y72: 0 | Z72: 0 | AA72: 0 | AB72: 0 | AC72: 0 | AD72: 0 | AE72: 0 | AF72: 0 | AG72: 0 | AH72: 0 | AI72: 0 | AJ72: 0 | AK72: 0 | AL72: 0 | AM72: 0 | AN72: 0 | AO72: 0 | AP72: 0 | AQ72: 0 | AR72: 0 | AS72: 0 | AT72: 0 | AU72: 0 | AV72: 0 | AW72: 0 | AX72: 0 | AY72: 0 | AZ72: 0 | BA72: 0 | BB72: 0 | BC72: 0 | BD72: 0 | BE72: 0 | BF72: 0 | BG72: 0 | BH72: 0 | BI72: 0 | BJ72: 0 | BK72: 0 | BL72: 0 | BM72: 0
E73: =E$33 -> Construction Period | F73: =F$33 -> 0 | G73: flag | H73: 2 | I73: 0 | J73: 1 | K73: 1 | L73: 0 | M73: 0 | N73: 0 | O73: 0 | P73: 0 | Q73: 0 | R73: 0 | S73: 0 | T73: 0 | U73: 0 | V73: 0 | W73: 0 | X73: 0 | Y73: 0 | Z73: 0 | AA73: 0 | AB73: 0 | AC73: 0 | AD73: 0 | AE73: 0 | AF73: 0 | AG73: 0 | AH73: 0 | AI73: 0 | AJ73: 0 | AK73: 0 | AL73: 0 | AM73: 0 | AN73: 0 | AO73: 0 | AP73: 0 | AQ73: 0 | AR73: 0 | AS73: 0 | AT73: 0 | AU73: 0 | AV73: 0 | AW73: 0 | AX73: 0 | AY73: 0 | AZ73: 0 | BA73: 0 | BB73: 0 | BC73: 0 | BD73: 0 | BE73: 0 | BF73: 0 | BG73: 0 | BH73: 0 | BI73: 0 | BJ73: 0 | BK73: 0 | BL73: 0 | BM73: 0
E74: =E$52 -> Operational Period | F74: =F$52 -> 0 | G74: flag | H74: 35 | I74: 0 | J74: 0 | K74: 0 | L74: 1 | M74: 1 | N74: 1 | O74: 1 | P74: 1 | Q74: 1 | R74: 1 | S74: 1 | T74: 1 | U74: 1 | V74: 1 | W74: 1 | X74: 1 | Y74: 1 | Z74: 1 | AA74: 1 | AB74: 1 | AC74: 1 | AD74: 1 | AE74: 1 | AF74: 1 | AG74: 1 | AH74: 1 | AI74: 1 | AJ74: 1 | AK74: 1 | AL74: 1 | AM74: 1 | AN74: 1 | AO74: 1 | AP74: 1 | AQ74: 1 | AR74: 1 | AS74: 1 | AT74: 1 | AU74: 0 | AV74: 0 | AW74: 0 | AX74: 0 | AY74: 0 | AZ74: 0 | BA74: 0 | BB74: 0 | BC74: 0 | BD74: 0 | BE74: 0 | BF74: 0 | BG74: 0 | BH74: 0 | BI74: 0 | BJ74: 0 | BK74: 0 | BL74: 0 | BM74: 0
E75: =E$60 -> Post-Operational Period | F75: =F$60 -> 0 | G75: flag | H75: 20 | I75: 0 | J75: 0 | K75: 0 | L75: 0 | M75: 0 | N75: 0 | O75: 0 | P75: 0 | Q75: 0 | R75: 0 | S75: 0 | T75: 0 | U75: 0 | V75: 0 | W75: 0 | X75: 0 | Y75: 0 | Z75: 0 | AA75: 0 | AB75: 0 | AC75: 0 | AD75: 0 | AE75: 0 | AF75: 0 | AG75: 0 | AH75: 0 | AI75: 0 | AJ75: 0 | AK75: 0 | AL75: 0 | AM75: 0 | AN75: 0 | AO75: 0 | AP75: 0 | AQ75: 0 | AR75: 0 | AS75: 0 | AT75: 1 | AU75: 1 | AV75: 1 | AW75: 1 | AX75: 1 | AY75: 1 | AZ75: 1 | BA75: 1 | BB75: 1 | BC75: 1 | BD75: 1 | BE75: 1 | BF75: 1 | BG75: 1 | BH75: 1 | BI75: 1 | BJ75: 1 | BK75: 1 | BL75: 1 | BM75: 1
E76: Project Period | G76: Dummy | J76: =IF(J72 = 1, "Pre-Constr", IF(J73 = 1, "Constr", IF(J74 = 1, "Expl", "Post-Expl"))) -> Constr | K76: =IF(K72 = 1, "Pre-Constr", IF(K73 = 1, "Constr", IF(K74 = 1, "Expl", "Post-Expl"))) -> Constr | L76: Expl | M76: Expl | N76: Expl | O76: Expl | P76: Expl | Q76: Expl | R76: Expl | S76: Expl | T76: Expl | U76: Expl | V76: Expl | W76: Expl | X76: Expl | Y76: Expl | Z76: Expl | AA76: Expl | AB76: Expl | AC76: Expl | AD76: Expl | AE76: Expl | AF76: Expl | AG76: Expl | AH76: Expl | AI76: Expl | AJ76: Expl | AK76: Expl | AL76: Expl | AM76: Expl | AN76: Expl | AO76: Expl | AP76: Expl | AQ76: Expl | AR76: Expl | AS76: Expl | AT76: Expl | AU76: Post-Expl | AV76: Post-Expl | AW76: Post-Expl | AX76: Post-Expl | AY76: Post-Expl | AZ76: Post-Expl | BA76: Post-Expl | BB76: Post-Expl | BC76: Post-Expl | BD76: Post-Expl | BE76: Post-Expl | BF76: Post-Expl | BG76: Post-Expl | BH76: Post-Expl | BI76: Post-Expl | BJ76: Post-Expl | BK76: Post-Expl | BL76: Post-Expl | BM76: Post-Expl
B79: ESCALATION
E81: =NTBA!E$11 -> Model Start Date | F81: =NTBA!F$11 -> 2020-01-01 | G81: =NTBA!G$11 -> date
E82: =NTBA!E$208 -> No. of Months in Year | F82: =NTBA!F$208 -> 12 | G82: =NTBA!G$208 -> months
E83: =E$19 -> Model Period Beginning | F83: 0 | G83: date | H83: 0 | I83: 0 | J83: 2020-01-01 | K83: 2021-01-01 | L83: 2022-01-01 | M83: 2023-01-01 | N83: 2024-01-01 | O83: 2025-01-01 | P83: 2026-01-01 | Q83: 2027-01-01 | R83: 2028-01-01 | S83: 2029-01-01 | T83: 2030-01-01 | U83: 2031-01-01 | V83: 2032-01-01 | W83: 2033-01-01 | X83: 2034-01-01 | Y83: 2035-01-01 | Z83: 2036-01-01 | AA83: 2037-01-01 | AB83: 2038-01-01 | AC83: 2039-01-01 | AD83: 2040-01-01 | AE83: 2041-01-01 | AF83: 2042-01-01 | AG83: 2043-01-01 | AH83: 2044-01-01 | AI83: 2045-01-01 | AJ83: 2046-01-01 | AK83: =AK$19 -> 2047-01-01 | AL83: 2048-01-01 | AM83: 2049-01-01 | AN83: 2050-01-01 | AO83: 2051-01-01 | AP83: 2052-01-01 | AQ83: 2053-01-01 | AR83: 2054-01-01 | AS83: 2055-01-01 | AT83: 2056-01-01 | AU83: 2057-01-01 | AV83: 2058-01-01 | AW83: 2059-01-01 | AX83: 2060-01-01 | AY83: 2061-01-01 | AZ83: 2062-01-01 | BA83: 2063-01-01 | BB83: 2064-01-01 | BC83: 2065-01-01 | BD83: 2066-01-01 | BE83: 2067-01-01 | BF83: 2068-01-01 | BG83: 2069-01-01 | BH83: 2070-01-01 | BI83: 2071-01-01 | BJ83: 2072-01-01 | BK83: 2073-01-01 | BL83: 2074-01-01 | BM83: 2075-01-01
E84: Indexation - Months passed since Base Date | G84: months | J84: =MAX( 0, $F82 * (YEAR( J83) - YEAR( $F81)) + MONTH( J83) - MONTH( $F81)) -> 0 | K84: 12 | L84: 24 | M84: 36 | N84: 48 | O84: 60 | P84: 72 | Q84: 84 | R84: 96 | S84: 108 | T84: 120 | U84: 132 | V84: 144 | W84: 156 | X84: 168 | Y84: 180 | Z84: 192 | AA84: 204 | AB84: 216 | AC84: 228 | AD84: 240 | AE84: 252 | AF84: 264 | AG84: 276 | AH84: 288 | AI84: 300 | AJ84: 312 | AK84: 324 | AL84: 336 | AM84: 348 | AN84: 360 | AO84: 372 | AP84: =MAX( 0, $F82 * (YEAR( AP83) - YEAR( $F81)) + MONTH( AP83) - MONTH( $F81)) -> 384 | AQ84: 396 | AR84: 408 | AS84: 420 | AT84: 432 | AU84: 444 | AV84: 456 | AW84: 468 | AX84: 480 | AY84: 492 | AZ84: 504 | BA84: 516 | BB84: 528 | BC84: 540 | BD84: 552 | BE84: 564 | BF84: 576 | BG84: 588 | BH84: 600 | BI84: 612 | BJ84: 624 | BK84: 636 | BL84: 648 | BM84: 660
B87: INVESTMENTS
C89: Depreciation Period
D91: Process 1
E92: =NTBA!E$26 -> Operational Period Start | F92: =NTBA!F$26 -> 2022-01-01 | G92: =NTBA!G$26 -> date
E93: =NTBA!E$81 -> Process 1 - Depreciation Period | F93: =NTBA!F$81 -> 15 | G93: =NTBA!G$81 -> years
E94: Process 1 - Depreciation Period End Date | F94: =DATE(YEAR(F92) + F93, MONTH(F92), DAY(F92) - 1) -> 2036-12-31 | G94: date
E96: =NTBA!E$26 -> Operational Period Start | F96: =NTBA!F$26 -> 2022-01-01 | G96: =NTBA!G$26 -> date
E97: =E$94 -> Process 1 - Depreciation Period End Date | F97: =F$94 -> 2036-12-31 | G97: date
E98: =E$20 -> Model Period Ending | F98: =F$20 -> 00:00:00 | G98: date | H98: 00:00:00 | I98: 00:00:00 | J98: 2020-12-31 | K98: 2021-12-31 | L98: 2022-12-31 | M98: 2023-12-31 | N98: 2024-12-31 | O98: 2025-12-31 | P98: 2026-12-31 | Q98: 2027-12-31 | R98: 2028-12-31 | S98: 2029-12-31 | T98: 2030-12-31 | U98: 2031-12-31 | V98: 2032-12-31 | W98: 2033-12-31 | X98: 2034-12-31 | Y98: 2035-12-31 | Z98: 2036-12-31 | AA98: 2037-12-31 | AB98: 2038-12-31 | AC98: 2039-12-31 | AD98: 2040-12-31 | AE98: 2041-12-31 | AF98: 2042-12-31 | AG98: 2043-12-31 | AH98: 2044-12-31 | AI98: 2045-12-31 | AJ98: 2046-12-31 | AK98: 2047-12-31 | AL98: 2048-12-31 | AM98: 2049-12-31 | AN98: 2050-12-31 | AO98: 2051-12-31 | AP98: 2052-12-31 | AQ98: 2053-12-31 | AR98: 2054-12-31 | AS98: 2055-12-31 | AT98: 2056-12-31 | AU98: 2057-12-31 | AV98: 2058-12-31 | AW98: 2059-12-31 | AX98: 2060-12-31 | AY98: 2061-12-31 | AZ98: 2062-12-31 | BA98: 2063-12-31 | BB98: 2064-12-31 | BC98: 2065-12-31 | BD98: 2066-12-31 | BE98: 2067-12-31 | BF98: 2068-12-31 | BG98: 2069-12-31 | BH98: 2070-12-31 | BI98: 2071-12-31 | BJ98: 2072-12-31 | BK98: 2073-12-31 | BL98: 2074-12-31 | BM98: 2075-12-31
E99: Process 1 - Depreciation Period | G99: flag | H99: =SUM(J99:BM99) -> 15 | J99: =IF(AND(J98>=$F96,I98<$F97),1,0) -> 0 | K99: 0 | L99: 1 | M99: 1 | N99: 1 | O99: 1 | P99: 1 | Q99: 1 | R99: 1 | S99: 1 | T99: 1 | U99: 1 | V99: 1 | W99: 1 | X99: 1 | Y99: 1 | Z99: 1 | AA99: 0 | AB99: 0 | AC99: 0 | AD99: 0 | AE99: 0 | AF99: 0 | AG99: 0 | AH99: 0 | AI99: 0 | AJ99: 0 | AK99: 0 | AL99: 0 | AM99: 0 | AN99: 0 | AO99: 0 | AP99: =IF(AND(AP98>=$F96,AO98<$F97),1,0) -> 0 | AQ99: 0 | AR99: 0 | AS99: 0 | AT99: 0 | AU99: 0 | AV99: 0 | AW99: 0 | AX99: 0 | AY99: 0 | AZ99: 0 | BA99: 0 | BB99: 0 | BC99: 0 | BD99: 0 | BE99: 0 | BF99: 0 | BG99: 0 | BH99: 0 | BI99: 0 | BJ99: 0 | BK99: 0 | BL99: 0 | BM99: 0
E101: =NTBA!E$26 -> Operational Period Start | F101: =NTBA!F$26 -> 2022-01-01 | G101: =NTBA!G$26 -> date
E102: =E$94 -> Process 1 - Depreciation Period End Date | F102: =F$94 -> 2036-12-31 | G102: date
E103: =E$19 -> Model Period Beginning | F103: =F$19 -> 00:00:00 | G103: date | H103: 00:00:00 | I103: 00:00:00 | J103: 2020-01-01 | K103: 2021-01-01 | L103: 2022-01-01 | M103: 2023-01-01 | N103: 2024-01-01 | O103: 2025-01-01 | P103: 2026-01-01 | Q103: 2027-01-01 | R103: 2028-01-01 | S103: 2029-01-01 | T103: 2030-01-01 | U103: 2031-01-01 | V103: 2032-01-01 | W103: 2033-01-01 | X103: 2034-01-01 | Y103: 2035-01-01 | Z103: 2036-01-01 | AA103: 2037-01-01 | AB103: 2038-01-01 | AC103: 2039-01-01 | AD103: 2040-01-01 | AE103: 2041-01-01 | AF103: 2042-01-01 | AG103: 2043-01-01 | AH103: 2044-01-01 | AI103: 2045-01-01 | AJ103: 2046-01-01 | AK103: 2047-01-01 | AL103: 2048-01-01 | AM103: 2049-01-01 | AN103: 2050-01-01 | AO103: 2051-01-01 | AP103: 2052-01-01 | AQ103: 2053-01-01 | AR103: 2054-01-01 | AS103: 2055-01-01 | AT103: 2056-01-01 | AU103: 2057-01-01 | AV103: 2058-01-01 | AW103: 2059-01-01 | AX103: 2060-01-01 | AY103: 2061-01-01 | AZ103: 2062-01-01 | BA103: 2063-01-01 | BB103: 2064-01-01 | BC103: 2065-01-01 | BD103: 2066-01-01 | BE103: 2067-01-01 | BF103: 2068-01-01 | BG103: 2069-01-01 | BH103: 2070-01-01 | BI103: 2071-01-01 | BJ103: 2072-01-01 | BK103: 2073-01-01 | BL103: 2074-01-01 | BM103: 2075-01-01
E104: =E$20 -> Model Period Ending | F104: =F$20 -> 00:00:00 | G104: date | H104: 00:00:00 | I104: 00:00:00 | J104: 2020-12-31 | K104: 2021-12-31 | L104: 2022-12-31 | M104: 2023-12-31 | N104: 2024-12-31 | O104: 2025-12-31 | P104: 2026-12-31 | Q104: 2027-12-31 | R104: 2028-12-31 | S104: 2029-12-31 | T104: 2030-12-31 | U104: 2031-12-31 | V104: 2032-12-31 | W104: 2033-12-31 | X104: 2034-12-31 | Y104: 2035-12-31 | Z104: 2036-12-31 | AA104: 2037-12-31 | AB104: 2038-12-31 | AC104: 2039-12-31 | AD104: 2040-12-31 | AE104: 2041-12-31 | AF104: 2042-12-31 | AG104: 2043-12-31 | AH104: 2044-12-31 | AI104: 2045-12-31 | AJ104: 2046-12-31 | AK104: 2047-12-31 | AL104: 2048-12-31 | AM104: 2049-12-31 | AN104: 2050-12-31 | AO104: 2051-12-31 | AP104: 2052-12-31 | AQ104: 2053-12-31 | AR104: 2054-12-31 | AS104: 2055-12-31 | AT104: 2056-12-31 | AU104: 2057-12-31 | AV104: 2058-12-31 | AW104: 2059-12-31 | AX104: 2060-12-31 | AY104: 2061-12-31 | AZ104: 2062-12-31 | BA104: 2063-12-31 | BB104: 2064-12-31 | BC104: 2065-12-31 | BD104: 2066-12-31 | BE104: 2067-12-31 | BF104: 2068-12-31 | BG104: 2069-12-31 | BH104: 2070-12-31 | BI104: 2071-12-31 | BJ104: 2072-12-31 | BK104: 2073-12-31 | BL104: 2074-12-31 | BM104: 2075-12-31
E105: =E$99 -> Process 1 - Depreciation Period | F105: 0 | G105: flag | H105: 15 | I105: 0 | J105: 0 | K105: 0 | L105: 1 | M105: 1 | N105: 1 | O105: 1 | P105: 1 | Q105: 1 | R105: 1 | S105: 1 | T105: 1 | U105: 1 | V105: 1 | W105: 1 | X105: 1 | Y105: 1 | Z105: 1 | AA105: 0 | AB105: 0 | AC105: 0 | AD105: 0 | AE105: 0 | AF105: 0 | AG105: 0 | AH105: 0 | AI105: 0 | AJ105: 0 | AK105: =AK$99 -> 0 | AL105: 0 | AM105: 0 | AN105: 0 | AO105: 0 | AP105: 0 | AQ105: 0 | AR105: 0 | AS105: 0 | AT105: 0 | AU105: 0 | AV105: 0 | AW105: 0 | AX105: 0 | AY105: 0 | AZ105: 0 | BA105: 0 | BB105: 0 | BC105: 0 | BD105: 0 | BE105: 0 | BF105: 0 | BG105: 0 | BH105: 0 | BI105: 0 | BJ105: 0 | BK105: 0 | BL105: 0 | BM105: 0
E106: Process 1 - Depreciation Period - # days | G106: days | J106: =(MIN($F102, J104) - MAX($F101, J103) + 1) * J105 -> 0 | K106: 0 | L106: 365 | M106: 365 | N106: 366 | O106: 365 | P106: 365 | Q106: 365 | R106: 366 | S106: 365 | T106: 365 | U106: 365 | V106: 366 | W106: 365 | X106: 365 | Y106: 365 | Z106: 366 | AA106: 0 | AB106: 0 | AC106: 0 | AD106: 0 | AE106: 0 | AF106: 0 | AG106: 0 | AH106: 0 | AI106: 0 | AJ106: 0 | AK106: 0 | AL106: 0 | AM106: 0 | AN106: 0 | AO106: 0 | AP106: =(MIN($F102, AP104) - MAX($F101, AP103) + 1) * AP105 -> 0 | AQ106: 0 | AR106: 0 | AS106: 0 | AT106: 0 | AU106: 0 | AV106: 0 | AW106: 0 | AX106: 0 | AY106: 0 | AZ106: 0 | BA106: 0 | BB106: 0 | BC106: 0 | BD106: 0 | BE106: 0 | BF106: 0 | BG106: 0 | BH106: 0 | BI106: 0 | BJ106: 0 | BK106: 0 | BL106: 0 | BM106: 0
E108: =E$106 -> Process 1 - Depreciation Period - # days | F108: 0 | G108: days | H108: 0 | I108: 0 | J108: 0 | K108: 0 | L108: 365 | M108: 365 | N108: 366 | O108: 365 | P108: 365 | Q108: 365 | R108: 366 | S108: 365 | T108: 365 | U108: 365 | V108: 366 | W108: 365 | X108: 365 | Y108: 365 | Z108: 366 | AA108: 0 | AB108: 0 | AC108: 0 | AD108: 0 | AE108: 0 | AF108: 0 | AG108: 0 | AH108: 0 | AI108: 0 | AJ108: 0 | AK108: =AK$106 -> 0 | AL108: 0 | AM108: 0 | AN108: 0 | AO108: 0 | AP108: 0 | AQ108: 0 | AR108: 0 | AS108: 0 | AT108: 0 | AU108: 0 | AV108: 0 | AW108: 0 | AX108: 0 | AY108: 0 | AZ108: 0 | BA108: 0 | BB108: 0 | BC108: 0 | BD108: 0 | BE108: 0 | BF108: 0 | BG108: 0 | BH108: 0 | BI108: 0 | BJ108: 0 | BK108: 0 | BL108: 0 | BM108: 0
E109: =E$56 -> Days per period | F109: 0 | G109: days | H109: 0 | I109: 0 | J109: 366 | K109: 365 | L109: 365 | M109: 365 | N109: 366 | O109: 365 | P109: 365 | Q109: 365 | R109: 366 | S109: 365 | T109: 365 | U109: 365 | V109: 366 | W109: 365 | X109: 365 | Y109: 365 | Z109: 366 | AA109: 365 | AB109: 365 | AC109: 365 | AD109: 366 | AE109: 365 | AF109: 365 | AG109: 365 | AH109: 366 | AI109: 365 | AJ109: 365 | AK109: =AK$56 -> 365 | AL109: 366 | AM109: 365 | AN109: 365 | AO109: 365 | AP109: 366 | AQ109: 365 | AR109: 365 | AS109: 365 | AT109: 366 | AU109: 365 | AV109: 365 | AW109: 365 | AX109: 366 | AY109: 365 | AZ109: 365 | BA109: 365 | BB109: 366 | BC109: 365 | BD109: 365 | BE109: 365 | BF109: 366 | BG109: 365 | BH109: 365 | BI109: 365 | BJ109: 366 | BK109: 365 | BL109: 365 | BM109: 365
E110: Process 1 - Depreciation Period PeriodFrac | G110: % | H110: =SUM(J110:BM110) -> 15 | J110: =IF(J109 = 0, 0, J108 /J109) -> 0 | K110: 0 | L110: 1 | M110: 1 | N110: 1 | O110: 1 | P110: 1 | Q110: 1 | R110: 1 | S110: 1 | T110: 1 | U110: 1 | V110: 1 | W110: 1 | X110: 1 | Y110: 1 | Z110: 1 | AA110: 0 | AB110: 0 | AC110: 0 | AD110: 0 | AE110: 0 | AF110: 0 | AG110: 0 | AH110: 0 | AI110: 0 | AJ110: 0 | AK110: 0 | AL110: 0 | AM110: 0 | AN110: 0 | AO110: 0 | AP110: =IF(AP109 = 0, 0, AP108 /AP109) -> 0 | AQ110: 0 | AR110: 0 | AS110: 0 | AT110: 0 | AU110: 0 | AV110: 0 | AW110: 0 | AX110: 0 | AY110: 0 | AZ110: 0 | BA110: 0 | BB110: 0 | BC110: 0 | BD110: 0 | BE110: 0 | BF110: 0 | BG110: 0 | BH110: 0 | BI110: 0 | BJ110: 0 | BK110: 0 | BL110: 0 | BM110: 0
D112: Process 2
E113: =NTBA!E$26 -> Operational Period Start | F113: =NTBA!F$26 -> 2022-01-01 | G113: =NTBA!G$26 -> date
E114: =NTBA!E$86 -> Process 2 - Depreciation Period | F114: =NTBA!F$86 -> 30 | G114: =NTBA!G$86 -> years
E115: Process 2 - Depreciation Period End Date | F115: =DATE(YEAR(F113) + F114, MONTH(F113), DAY(F113) - 1) -> 2051-12-31 | G115: date
E117: =NTBA!E$26 -> Operational Period Start | F117: =NTBA!F$26 -> 2022-01-01 | G117: =NTBA!G$26 -> date
E118: =E$115 -> Process 2 - Depreciation Period End Date | F118: =F$115 -> 2051-12-31 | G118: date
E119: =E$20 -> Model Period Ending | F119: =F$20 -> 00:00:00 | G119: date | H119: 00:00:00 | I119: 00:00:00 | J119: 2020-12-31 | K119: 2021-12-31 | L119: 2022-12-31 | M119: 2023-12-31 | N119: 2024-12-31 | O119: 2025-12-31 | P119: 2026-12-31 | Q119: 2027-12-31 | R119: 2028-12-31 | S119: 2029-12-31 | T119: 2030-12-31 | U119: 2031-12-31 | V119: 2032-12-31 | W119: 2033-12-31 | X119: 2034-12-31 | Y119: 2035-12-31 | Z119: 2036-12-31 | AA119: 2037-12-31 | AB119: 2038-12-31 | AC119: 2039-12-31 | AD119: 2040-12-31 | AE119: 2041-12-31 | AF119: 2042-12-31 | AG119: 2043-12-31 | AH119: 2044-12-31 | AI119: 2045-12-31 | AJ119: 2046-12-31 | AK119: 2047-12-31 | AL119: 2048-12-31 | AM119: 2049-12-31 | AN119: 2050-12-31 | AO119: 2051-12-31 | AP119: 2052-12-31 | AQ119: 2053-12-31 | AR119: 2054-12-31 | AS119: 2055-12-31 | AT119: 2056-12-31 | AU119: 2057-12-31 | AV119: 2058-12-31 | AW119: 2059-12-31 | AX119: 2060-12-31 | AY119: 2061-12-31 | AZ119: 2062-12-31 | BA119: 2063-12-31 | BB119: 2064-12-31 | BC119: 2065-12-31 | BD119: 2066-12-31 | BE119: 2067-12-31 | BF119: 2068-12-31 | BG119: 2069-12-31 | BH119: 2070-12-31 | BI119: 2071-12-31 | BJ119: 2072-12-31 | BK119: 2073-12-31 | BL119: 2074-12-31 | BM119: 2075-12-31
E120: Process 2 - Depreciation Period | G120: flag | H120: =SUM(J120:BM120) -> 30 | J120: =IF(AND(J119>=$F117,I119<$F118),1,0) -> 0 | K120: =IF(AND(K119>=$F117,J119<$F118),1,0) -> 0 | L120: =IF(AND(L119>=$F117,K119<$F118),1,0) -> 1 | M120: =IF(AND(M119>=$F117,L119<$F118),1,0) -> 1 | N120: =IF(AND(N119>=$F117,M119<$F118),1,0) -> 1 | O120: =IF(AND(O119>=$F117,N119<$F118),1,0) -> 1 | P120: =IF(AND(P119>=$F117,O119<$F118),1,0) -> 1 | Q120: =IF(AND(Q119>=$F117,P119<$F118),1,0) -> 1 | R120: =IF(AND(R119>=$F117,Q119<$F118),1,0) -> 1 | S120: =IF(AND(S119>=$F117,R119<$F118),1,0) -> 1 | T120: =IF(AND(T119>=$F117,S119<$F118),1,0) -> 1 | U120: =IF(AND(U119>=$F117,T119<$F118),1,0) -> 1 | V120: =IF(AND(V119>=$F117,U119<$F118),1,0) -> 1 | W120: =IF(AND(W119>=$F117,V119<$F118),1,0) -> 1 | X120: =IF(AND(X119>=$F117,W119<$F118),1,0) -> 1 | Y120: =IF(AND(Y119>=$F117,X119<$F118),1,0) -> 1 | Z120: =IF(AND(Z119>=$F117,Y119<$F118),1,0) -> 1 | AA120: =IF(AND(AA119>=$F117,Z119<$F118),1,0) -> 1 | AB120: =IF(AND(AB119>=$F117,AA119<$F118),1,0) -> 1 | AC120: =IF(AND(AC119>=$F117,AB119<$F118),1,0) -> 1 | AD120: =IF(AND(AD119>=$F117,AC119<$F118),1,0) -> 1 | AE120: =IF(AND(AE119>=$F117,AD119<$F118),1,0) -> 1 | AF120: =IF(AND(AF119>=$F117,AE119<$F118),1,0) -> 1 | AG120: =IF(AND(AG119>=$F117,AF119<$F118),1,0) -> 1 | AH120: =IF(AND(AH119>=$F117,AG119<$F118),1,0) -> 1 | AI120: =IF(AND(AI119>=$F117,AH119<$F118),1,0) -> 1 | AJ120: =IF(AND(AJ119>=$F117,AI119<$F118),1,0) -> 1 | AK120: =IF(AND(AK119>=$F117,AJ119<$F118),1,0) -> 1 | AL120: =IF(AND(AL119>=$F117,AK119<$F118),1,0) -> 1 | AM120: =IF(AND(AM119>=$F117,AL119<$F118),1,0) -> 1 | AN120: =IF(AND(AN119>=$F117,AM119<$F118),1,0) -> 1 | AO120: =IF(AND(AO119>=$F117,AN119<$F118),1,0) -> 1 | AP120: =IF(AND(AP119>=$F117,AO119<$F118),1,0) -> 0 | AQ120: =IF(AND(AQ119>=$F117,AP119<$F118),1,0) -> 0 | AR120: =IF(AND(AR119>=$F117,AQ119<$F118),1,0) -> 0 | AS120: =IF(AND(AS119>=$F117,AR119<$F118),1,0) -> 0 | AT120: =IF(AND(AT119>=$F117,AS119<$F118),1,0) -> 0 | AU120: =IF(AND(AU119>=$F117,AT119<$F118),1,0) -> 0 | AV120: =IF(AND(AV119>=$F117,AU119<$F118),1,0) -> 0 | AW120: =IF(AND(AW119>=$F117,AV119<$F118),1,0) -> 0 | AX120: =IF(AND(AX119>=$F117,AW119<$F118),1,0) -> 0 | AY120: =IF(AND(AY119>=$F117,AX119<$F118),1,0) -> 0 | AZ120: =IF(AND(AZ119>=$F117,AY119<$F118),1,0) -> 0 | BA120: =IF(AND(BA119>=$F117,AZ119<$F118),1,0) -> 0 | BB120: =IF(AND(BB119>=$F117,BA119<$F118),1,0) -> 0 | BC120: =IF(AND(BC119>=$F117,BB119<$F118),1,0) -> 0 | BD120: =IF(AND(BD119>=$F117,BC119<$F118),1,0) -> 0 | BE120: =IF(AND(BE119>=$F117,BD119<$F118),1,0) -> 0 | BF120: =IF(AND(BF119>=$F117,BE119<$F118),1,0) -> 0 | BG120: =IF(AND(BG119>=$F117,BF119<$F118),1,0) -> 0 | BH120: =IF(AND(BH119>=$F117,BG119<$F118),1,0) -> 0 | BI120: =IF(AND(BI119>=$F117,BH119<$F118),1,0) -> 0 | BJ120: =IF(AND(BJ119>=$F117,BI119<$F118),1,0) -> 0 | BK120: =IF(AND(BK119>=$F117,BJ119<$F118),1,0) -> 0 | BL120: =IF(AND(BL119>=$F117,BK119<$F118),1,0) -> 0 | BM120: =IF(AND(BM119>=$F117,BL119<$F118),1,0) -> 0
E122: =NTBA!E$26 -> Operational Period Start | F122: =NTBA!F$26 -> 2022-01-01 | G122: =NTBA!G$26 -> date
E123: =E$115 -> Process 2 - Depreciation Period End Date | F123: =F$115 -> 2051-12-31 | G123: date
E124: =E$19 -> Model Period Beginning | F124: =F$19 -> 00:00:00 | G124: date | H124: 00:00:00 | I124: 00:00:00 | J124: 2020-01-01 | K124: 2021-01-01 | L124: 2022-01-01 | M124: 2023-01-01 | N124: 2024-01-01 | O124: 2025-01-01 | P124: 2026-01-01 | Q124: 2027-01-01 | R124: 2028-01-01 | S124: 2029-01-01 | T124: 2030-01-01 | U124: 2031-01-01 | V124: 2032-01-01 | W124: 2033-01-01 | X124: 2034-01-01 | Y124: 2035-01-01 | Z124: 2036-01-01 | AA124: 2037-01-01 | AB124: 2038-01-01 | AC124: 2039-01-01 | AD124: 2040-01-01 | AE124: 2041-01-01 | AF124: 2042-01-01 | AG124: 2043-01-01 | AH124: 2044-01-01 | AI124: 2045-01-01 | AJ124: 2046-01-01 | AK124: 2047-01-01 | AL124: 2048-01-01 | AM124: 2049-01-01 | AN124: 2050-01-01 | AO124: 2051-01-01 | AP124: 2052-01-01 | AQ124: 2053-01-01 | AR124: 2054-01-01 | AS124: 2055-01-01 | AT124: 2056-01-01 | AU124: 2057-01-01 | AV124: 2058-01-01 | AW124: 2059-01-01 | AX124: 2060-01-01 | AY124: 2061-01-01 | AZ124: 2062-01-01 | BA124: 2063-01-01 | BB124: 2064-01-01 | BC124: 2065-01-01 | BD124: 2066-01-01 | BE124: 2067-01-01 | BF124: 2068-01-01 | BG124: 2069-01-01 | BH124: 2070-01-01 | BI124: 2071-01-01 | BJ124: 2072-01-01 | BK124: 2073-01-01 | BL124: 2074-01-01 | BM124: 2075-01-01
E125: =E$20 -> Model Period Ending | F125: =F$20 -> 00:00:00 | G125: date | H125: 00:00:00 | I125: 00:00:00 | J125: 2020-12-31 | K125: 2021-12-31 | L125: 2022-12-31 | M125: 2023-12-31 | N125: 2024-12-31 | O125: 2025-12-31 | P125: 2026-12-31 | Q125: 2027-12-31 | R125: 2028-12-31 | S125: 2029-12-31 | T125: 2030-12-31 | U125: 2031-12-31 | V125: 2032-12-31 | W125: 2033-12-31 | X125: 2034-12-31 | Y125: 2035-12-31 | Z125: 2036-12-31 | AA125: 2037-12-31 | AB125: 2038-12-31 | AC125: 2039-12-31 | AD125: 2040-12-31 | AE125: 2041-12-31 | AF125: 2042-12-31 | AG125: 2043-12-31 | AH125: 2044-12-31 | AI125: 2045-12-31 | AJ125: 2046-12-31 | AK125: 2047-12-31 | AL125: 2048-12-31 | AM125: 2049-12-31 | AN125: 2050-12-31 | AO125: 2051-12-31 | AP125: 2052-12-31 | AQ125: 2053-12-31 | AR125: 2054-12-31 | AS125: 2055-12-31 | AT125: 2056-12-31 | AU125: 2057-12-31 | AV125: 2058-12-31 | AW125: 2059-12-31 | AX125: 2060-12-31 | AY125: 2061-12-31 | AZ125: 2062-12-31 | BA125: 2063-12-31 | BB125: 2064-12-31 | BC125: 2065-12-31 | BD125: 2066-12-31 | BE125: 2067-12-31 | BF125: 2068-12-31 | BG125: 2069-12-31 | BH125: 2070-12-31 | BI125: 2071-12-31 | BJ125: 2072-12-31 | BK125: 2073-12-31 | BL125: 2074-12-31 | BM125: 2075-12-31
E126: =E$120 -> Process 2 - Depreciation Period | F126: 0 | G126: flag | H126: 30 | I126: 0 | J126: 0 | K126: 0 | L126: 1 | M126: 1 | N126: 1 | O126: 1 | P126: 1 | Q126: 1 | R126: 1 | S126: 1 | T126: 1 | U126: 1 | V126: 1 | W126: 1 | X126: 1 | Y126: 1 | Z126: 1 | AA126: 1 | AB126: 1 | AC126: 1 | AD126: 1 | AE126: 1 | AF126: 1 | AG126: 1 | AH126: 1 | AI126: 1 | AJ126: 1 | AK126: =AK$120 -> 1 | AL126: 1 | AM126: 1 | AN126: 1 | AO126: 1 | AP126: 0 | AQ126: 0 | AR126: 0 | AS126: 0 | AT126: 0 | AU126: 0 | AV126: 0 | AW126: 0 | AX126: 0 | AY126: 0 | AZ126: 0 | BA126: 0 | BB126: 0 | BC126: 0 | BD126: 0 | BE126: 0 | BF126: 0 | BG126: 0 | BH126: 0 | BI126: 0 | BJ126: 0 | BK126: 0 | BL126: 0 | BM126: 0
E127: Process 2 - Depreciation Period - # days | G127: days | J127: =(MIN($F123, J125) - MAX($F122, J124) + 1) * J126 -> 0 | K127: =(MIN($F123, K125) - MAX($F122, K124) + 1) * K126 -> 0 | L127: =(MIN($F123, L125) - MAX($F122, L124) + 1) * L126 -> 365 | M127: =(MIN($F123, M125) - MAX($F122, M124) + 1) * M126 -> 365 | N127: =(MIN($F123, N125) - MAX($F122, N124) + 1) * N126 -> 366 | O127: =(MIN($F123, O125) - MAX($F122, O124) + 1) * O126 -> 365 | P127: =(MIN($F123, P125) - MAX($F122, P124) + 1) * P126 -> 365 | Q127: =(MIN($F123, Q125) - MAX($F122, Q124) + 1) * Q126 -> 365 | R127: =(MIN($F123, R125) - MAX($F122, R124) + 1) * R126 -> 366 | S127: =(MIN($F123, S125) - MAX($F122, S124) + 1) * S126 -> 365 | T127: =(MIN($F123, T125) - MAX($F122, T124) + 1) * T126 -> 365 | U127: =(MIN($F123, U125) - MAX($F122, U124) + 1) * U126 -> 365 | V127: =(MIN($F123, V125) - MAX($F122, V124) + 1) * V126 -> 366 | W127: =(MIN($F123, W125) - MAX($F122, W124) + 1) * W126 -> 365 | X127: =(MIN($F123, X125) - MAX($F122, X124) + 1) * X126 -> 365 | Y127: =(MIN($F123, Y125) - MAX($F122, Y124) + 1) * Y126 -> 365 | Z127: =(MIN($F123, Z125) - MAX($F122, Z124) + 1) * Z126 -> 366 | AA127: =(MIN($F123, AA125) - MAX($F122, AA124) + 1) * AA126 -> 365 | AB127: =(MIN($F123, AB125) - MAX($F122, AB124) + 1) * AB126 -> 365 | AC127: =(MIN($F123, AC125) - MAX($F122, AC124) + 1) * AC126 -> 365 | AD127: =(MIN($F123, AD125) - MAX($F122, AD124) + 1) * AD126 -> 366 | AE127: =(MIN($F123, AE125) - MAX($F122, AE124) + 1) * AE126 -> 365 | AF127: =(MIN($F123, AF125) - MAX($F122, AF124) + 1) * AF126 -> 365 | AG127: =(MIN($F123, AG125) - MAX($F122, AG124) + 1) * AG126 -> 365 | AH127: =(MIN($F123, AH125) - MAX($F122, AH124) + 1) * AH126 -> 366 | AI127: =(MIN($F123, AI125) - MAX($F122, AI124) + 1) * AI126 -> 365 | AJ127: =(MIN($F123, AJ125) - MAX($F122, AJ124) + 1) * AJ126 -> 365 | AK127: =(MIN($F123, AK125) - MAX($F122, AK124) + 1) * AK126 -> 365 | AL127: =(MIN($F123, AL125) - MAX($F122, AL124) + 1) * AL126 -> 366 | AM127: =(MIN($F123, AM125) - MAX($F122, AM124) + 1) * AM126 -> 365 | AN127: =(MIN($F123, AN125) - MAX($F122, AN124) + 1) * AN126 -> 365 | AO127: =(MIN($F123, AO125) - MAX($F122, AO124) + 1) * AO126 -> 365 | AP127: =(MIN($F123, AP125) - MAX($F122, AP124) + 1) * AP126 -> 0 | AQ127: =(MIN($F123, AQ125) - MAX($F122, AQ124) + 1) * AQ126 -> 0 | AR127: =(MIN($F123, AR125) - MAX($F122, AR124) + 1) * AR126 -> 0 | AS127: =(MIN($F123, AS125) - MAX($F122, AS124) + 1) * AS126 -> 0 | AT127: =(MIN($F123, AT125) - MAX($F122, AT124) + 1) * AT126 -> 0 | AU127: =(MIN($F123, AU125) - MAX($F122, AU124) + 1) * AU126 -> 0 | AV127: =(MIN($F123, AV125) - MAX($F122, AV124) + 1) * AV126 -> 0 | AW127: =(MIN($F123, AW125) - MAX($F122, AW124) + 1) * AW126 -> 0 | AX127: =(MIN($F123, AX125) - MAX($F122, AX124) + 1) * AX126 -> 0 | AY127: =(MIN($F123, AY125) - MAX($F122, AY124) + 1) * AY126 -> 0 | AZ127: =(MIN($F123, AZ125) - MAX($F122, AZ124) + 1) * AZ126 -> 0 | BA127: =(MIN($F123, BA125) - MAX($F122, BA124) + 1) * BA126 -> 0 | BB127: =(MIN($F123, BB125) - MAX($F122, BB124) + 1) * BB126 -> 0 | BC127: =(MIN($F123, BC125) - MAX($F122, BC124) + 1) * BC126 -> 0 | BD127: =(MIN($F123, BD125) - MAX($F122, BD124) + 1) * BD126 -> 0 | BE127: =(MIN($F123, BE125) - MAX($F122, BE124) + 1) * BE126 -> 0 | BF127: =(MIN($F123, BF125) - MAX($F122, BF124) + 1) * BF126 -> 0 | BG127: =(MIN($F123, BG125) - MAX($F122, BG124) + 1) * BG126 -> 0 | BH127: =(MIN($F123, BH125) - MAX($F122, BH124) + 1) * BH126 -> 0 | BI127: =(MIN($F123, BI125) - MAX($F122, BI124) + 1) * BI126 -> 0 | BJ127: =(MIN($F123, BJ125) - MAX($F122, BJ124) + 1) * BJ126 -> 0 | BK127: =(MIN($F123, BK125) - MAX($F122, BK124) + 1) * BK126 -> 0 | BL127: =(MIN($F123, BL125) - MAX($F122, BL124) + 1) * BL126 -> 0 | BM127: =(MIN($F123, BM125) - MAX($F122, BM124) + 1) * BM126 -> 0
E129: =E$127 -> Process 2 - Depreciation Period - # days | F129: 0 | G129: days | H129: 0 | I129: 0 | J129: 0 | K129: 0 | L129: 365 | M129: 365 | N129: 366 | O129: 365 | P129: 365 | Q129: 365 | R129: 366 | S129: 365 | T129: 365 | U129: 365 | V129: 366 | W129: 365 | X129: 365 | Y129: 365 | Z129: 366 | AA129: 365 | AB129: 365 | AC129: 365 | AD129: 366 | AE129: 365 | AF129: 365 | AG129: 365 | AH129: 366 | AI129: 365 | AJ129: 365 | AK129: =AK$127 -> 365 | AL129: 366 | AM129: 365 | AN129: 365 | AO129: 365 | AP129: 0 | AQ129: 0 | AR129: 0 | AS129: 0 | AT129: 0 | AU129: 0 | AV129: 0 | AW129: 0 | AX129: 0 | AY129: 0 | AZ129: 0 | BA129: 0 | BB129: 0 | BC129: 0 | BD129: 0 | BE129: 0 | BF129: 0 | BG129: 0 | BH129: 0 | BI129: 0 | BJ129: 0 | BK129: 0 | BL129: 0 | BM129: 0
E130: =E$56 -> Days per period | F130: 0 | G130: days | H130: 0 | I130: 0 | J130: 366 | K130: 365 | L130: 365 | M130: 365 | N130: 366 | O130: 365 | P130: 365 | Q130: 365 | R130: 366 | S130: 365 | T130: 365 | U130: 365 | V130: 366 | W130: 365 | X130: 365 | Y130: 365 | Z130: 366 | AA130: 365 | AB130: 365 | AC130: 365 | AD130: 366 | AE130: 365 | AF130: 365 | AG130: 365 | AH130: 366 | AI130: 365 | AJ130: 365 | AK130: 365 | AL130: 366 | AM130: 365 | AN130: 365 | AO130: 365 | AP130: 366 | AQ130: 365 | AR130: 365 | AS130: 365 | AT130: 366 | AU130: 365 | AV130: 365 | AW130: 365 | AX130: 366 | AY130: 365 | AZ130: 365 | BA130: 365 | BB130: 366 | BC130: 365 | BD130: 365 | BE130: 365 | BF130: 366 | BG130: 365 | BH130: 365 | BI130: 365 | BJ130: 366 | BK130: 365 | BL130: 365 | BM130: 365
E131: Process 2 - Depreciation Period PeriodFrac | G131: % | H131: =SUM(J131:BM131) -> 30 | J131: =IF(J130 = 0, 0, J129 /J130) -> 0 | K131: =IF(K130 = 0, 0, K129 /K130) -> 0 | L131: =IF(L130 = 0, 0, L129 /L130) -> 1 | M131: =IF(M130 = 0, 0, M129 /M130) -> 1 | N131: =IF(N130 = 0, 0, N129 /N130) -> 1 | O131: =IF(O130 = 0, 0, O129 /O130) -> 1 | P131: =IF(P130 = 0, 0, P129 /P130) -> 1 | Q131: =IF(Q130 = 0, 0, Q129 /Q130) -> 1 | R131: =IF(R130 = 0, 0, R129 /R130) -> 1 | S131: =IF(S130 = 0, 0, S129 /S130) -> 1 | T131: =IF(T130 = 0, 0, T129 /T130) -> 1 | U131: =IF(U130 = 0, 0, U129 /U130) -> 1 | V131: =IF(V130 = 0, 0, V129 /V130) -> 1 | W131: =IF(W130 = 0, 0, W129 /W130) -> 1 | X131: =IF(X130 = 0, 0, X129 /X130) -> 1 | Y131: =IF(Y130 = 0, 0, Y129 /Y130) -> 1 | Z131: =IF(Z130 = 0, 0, Z129 /Z130) -> 1 | AA131: =IF(AA130 = 0, 0, AA129 /AA130) -> 1 | AB131: =IF(AB130 = 0, 0, AB129 /AB130) -> 1 | AC131: =IF(AC130 = 0, 0, AC129 /AC130) -> 1 | AD131: =IF(AD130 = 0, 0, AD129 /AD130) -> 1 | AE131: =IF(AE130 = 0, 0, AE129 /AE130) -> 1 | AF131: =IF(AF130 = 0, 0, AF129 /AF130) -> 1 | AG131: =IF(AG130 = 0, 0, AG129 /AG130) -> 1 | AH131: =IF(AH130 = 0, 0, AH129 /AH130) -> 1 | AI131: =IF(AI130 = 0, 0, AI129 /AI130) -> 1 | AJ131: =IF(AJ130 = 0, 0, AJ129 /AJ130) -> 1 | AK131: =IF(AK130 = 0, 0, AK129 /AK130) -> 1 | AL131: =IF(AL130 = 0, 0, AL129 /AL130) -> 1 | AM131: =IF(AM130 = 0, 0, AM129 /AM130) -> 1 | AN131: =IF(AN130 = 0, 0, AN129 /AN130) -> 1 | AO131: =IF(AO130 = 0, 0, AO129 /AO130) -> 1 | AP131: =IF(AP130 = 0, 0, AP129 /AP130) -> 0 | AQ131: =IF(AQ130 = 0, 0, AQ129 /AQ130) -> 0 | AR131: =IF(AR130 = 0, 0, AR129 /AR130) -> 0 | AS131: =IF(AS130 = 0, 0, AS129 /AS130) -> 0 | AT131: =IF(AT130 = 0, 0, AT129 /AT130) -> 0 | AU131: =IF(AU130 = 0, 0, AU129 /AU130) -> 0 | AV131: =IF(AV130 = 0, 0, AV129 /AV130) -> 0 | AW131: =IF(AW130 = 0, 0, AW129 /AW130) -> 0 | AX131: =IF(AX130 = 0, 0, AX129 /AX130) -> 0 | AY131: =IF(AY130 = 0, 0, AY129 /AY130) -> 0 | AZ131: =IF(AZ130 = 0, 0, AZ129 /AZ130) -> 0 | BA131: =IF(BA130 = 0, 0, BA129 /BA130) -> 0 | BB131: =IF(BB130 = 0, 0, BB129 /BB130) -> 0 | BC131: =IF(BC130 = 0, 0, BC129 /BC130) -> 0 | BD131: =IF(BD130 = 0, 0, BD129 /BD130) -> 0 | BE131: =IF(BE130 = 0, 0, BE129 /BE130) -> 0 | BF131: =IF(BF130 = 0, 0, BF129 /BF130) -> 0 | BG131: =IF(BG130 = 0, 0, BG129 /BG130) -> 0 | BH131: =IF(BH130 = 0, 0, BH129 /BH130) -> 0 | BI131: =IF(BI130 = 0, 0, BI129 /BI130) -> 0 | BJ131: =IF(BJ130 = 0, 0, BJ129 /BJ130) -> 0 | BK131: =IF(BK130 = 0, 0, BK129 /BK130) -> 0 | BL131: =IF(BL130 = 0, 0, BL129 /BL130) -> 0 | BM131: =IF(BM130 = 0, 0, BM129 /BM130) -> 0
D133: Process 3
E134: =NTBA!E$26 -> Operational Period Start | F134: =NTBA!F$26 -> 2022-01-01 | G134: =NTBA!G$26 -> date
E135: =NTBA!E$91 -> Process 3 - Depreciation Period | F135: =NTBA!F$91 -> 0 | G135: =NTBA!G$91 -> years
E136: Process 3 - Depreciation Period End Date | F136: =DATE(YEAR(F134) + F135, MONTH(F134), DAY(F134) - 1) -> 2021-12-31 | G136: date
E138: =NTBA!E$26 -> Operational Period Start | F138: =NTBA!F$26 -> 2022-01-01 | G138: =NTBA!G$26 -> date
E139: =E$136 -> Process 3 - Depreciation Period End Date | F139: =F$136 -> 2021-12-31 | G139: date
E140: =E$20 -> Model Period Ending | F140: =F$20 -> 00:00:00 | G140: date | H140: 00:00:00 | I140: 00:00:00 | J140: 2020-12-31 | K140: 2021-12-31 | L140: 2022-12-31 | M140: 2023-12-31 | N140: 2024-12-31 | O140: 2025-12-31 | P140: 2026-12-31 | Q140: 2027-12-31 | R140: 2028-12-31 | S140: 2029-12-31 | T140: 2030-12-31 | U140: 2031-12-31 | V140: 2032-12-31 | W140: 2033-12-31 | X140: 2034-12-31 | Y140: 2035-12-31 | Z140: 2036-12-31 | AA140: 2037-12-31 | AB140: 2038-12-31 | AC140: 2039-12-31 | AD140: 2040-12-31 | AE140: 2041-12-31 | AF140: 2042-12-31 | AG140: 2043-12-31 | AH140: 2044-12-31 | AI140: 2045-12-31 | AJ140: 2046-12-31 | AK140: 2047-12-31 | AL140: 2048-12-31 | AM140: 2049-12-31 | AN140: 2050-12-31 | AO140: 2051-12-31 | AP140: 2052-12-31 | AQ140: 2053-12-31 | AR140: 2054-12-31 | AS140: 2055-12-31 | AT140: 2056-12-31 | AU140: 2057-12-31 | AV140: 2058-12-31 | AW140: 2059-12-31 | AX140: 2060-12-31 | AY140: 2061-12-31 | AZ140: 2062-12-31 | BA140: 2063-12-31 | BB140: 2064-12-31 | BC140: 2065-12-31 | BD140: 2066-12-31 | BE140: 2067-12-31 | BF140: 2068-12-31 | BG140: 2069-12-31 | BH140: 2070-12-31 | BI140: 2071-12-31 | BJ140: 2072-12-31 | BK140: 2073-12-31 | BL140: 2074-12-31 | BM140: 2075-12-31
E141: Process 3 - Depreciation Period | G141: flag | H141: =SUM(J141:BM141) -> 0 | J141: =IF(AND(J140>=$F138,I140<$F139),1,0) -> 0 | K141: =IF(AND(K140>=$F138,J140<$F139),1,0) -> 0 | L141: =IF(AND(L140>=$F138,K140<$F139),1,0) -> 0 | M141: =IF(AND(M140>=$F138,L140<$F139),1,0) -> 0 | N141: =IF(AND(N140>=$F138,M140<$F139),1,0) -> 0 | O141: =IF(AND(O140>=$F138,N140<$F139),1,0) -> 0 | P141: =IF(AND(P140>=$F138,O140<$F139),1,0) -> 0 | Q141: =IF(AND(Q140>=$F138,P140<$F139),1,0) -> 0 | R141: =IF(AND(R140>=$F138,Q140<$F139),1,0) -> 0 | S141: =IF(AND(S140>=$F138,R140<$F139),1,0) -> 0 | T141: =IF(AND(T140>=$F138,S140<$F139),1,0) -> 0 | U141: =IF(AND(U140>=$F138,T140<$F139),1,0) -> 0 | V141: =IF(AND(V140>=$F138,U140<$F139),1,0) -> 0 | W141: =IF(AND(W140>=$F138,V140<$F139),1,0) -> 0 | X141: =IF(AND(X140>=$F138,W140<$F139),1,0) -> 0 | Y141: =IF(AND(Y140>=$F138,X140<$F139),1,0) -> 0 | Z141: =IF(AND(Z140>=$F138,Y140<$F139),1,0) -> 0 | AA141: =IF(AND(AA140>=$F138,Z140<$F139),1,0) -> 0 | AB141: =IF(AND(AB140>=$F138,AA140<$F139),1,0) -> 0 | AC141: =IF(AND(AC140>=$F138,AB140<$F139),1,0) -> 0 | AD141: =IF(AND(AD140>=$F138,AC140<$F139),1,0) -> 0 | AE141: =IF(AND(AE140>=$F138,AD140<$F139),1,0) -> 0 | AF141: =IF(AND(AF140>=$F138,AE140<$F139),1,0) -> 0 | AG141: =IF(AND(AG140>=$F138,AF140<$F139),1,0) -> 0 | AH141: =IF(AND(AH140>=$F138,AG140<$F139),1,0) -> 0 | AI141: =IF(AND(AI140>=$F138,AH140<$F139),1,0) -> 0 | AJ141: =IF(AND(AJ140>=$F138,AI140<$F139),1,0) -> 0 | AK141: =IF(AND(AK140>=$F138,AJ140<$F139),1,0) -> 0 | AL141: =IF(AND(AL140>=$F138,AK140<$F139),1,0) -> 0 | AM141: =IF(AND(AM140>=$F138,AL140<$F139),1,0) -> 0 | AN141: =IF(AND(AN140>=$F138,AM140<$F139),1,0) -> 0 | AO141: =IF(AND(AO140>=$F138,AN140<$F139),1,0) -> 0 | AP141: =IF(AND(AP140>=$F138,AO140<$F139),1,0) -> 0 | AQ141: =IF(AND(AQ140>=$F138,AP140<$F139),1,0) -> 0 | AR141: =IF(AND(AR140>=$F138,AQ140<$F139),1,0) -> 0 | AS141: =IF(AND(AS140>=$F138,AR140<$F139),1,0) -> 0 | AT141: =IF(AND(AT140>=$F138,AS140<$F139),1,0) -> 0 | AU141: =IF(AND(AU140>=$F138,AT140<$F139),1,0) -> 0 | AV141: =IF(AND(AV140>=$F138,AU140<$F139),1,0) -> 0 | AW141: =IF(AND(AW140>=$F138,AV140<$F139),1,0) -> 0 | AX141: =IF(AND(AX140>=$F138,AW140<$F139),1,0) -> 0 | AY141: =IF(AND(AY140>=$F138,AX140<$F139),1,0) -> 0 | AZ141: =IF(AND(AZ140>=$F138,AY140<$F139),1,0) -> 0 | BA141: =IF(AND(BA140>=$F138,AZ140<$F139),1,0) -> 0 | BB141: =IF(AND(BB140>=$F138,BA140<$F139),1,0) -> 0 | BC141: =IF(AND(BC140>=$F138,BB140<$F139),1,0) -> 0 | BD141: =IF(AND(BD140>=$F138,BC140<$F139),1,0) -> 0 | BE141: =IF(AND(BE140>=$F138,BD140<$F139),1,0) -> 0 | BF141: =IF(AND(BF140>=$F138,BE140<$F139),1,0) -> 0 | BG141: =IF(AND(BG140>=$F138,BF140<$F139),1,0) -> 0 | BH141: =IF(AND(BH140>=$F138,BG140<$F139),1,0) -> 0 | BI141: =IF(AND(BI140>=$F138,BH140<$F139),1,0) -> 0 | BJ141: =IF(AND(BJ140>=$F138,BI140<$F139),1,0) -> 0 | BK141: =IF(AND(BK140>=$F138,BJ140<$F139),1,0) -> 0 | BL141: =IF(AND(BL140>=$F138,BK140<$F139),1,0) -> 0 | BM141: =IF(AND(BM140>=$F138,BL140<$F139),1,0) -> 0
E143: =NTBA!E$26 -> Operational Period Start | F143: =NTBA!F$26 -> 2022-01-01 | G143: =NTBA!G$26 -> date
E144: =E$136 -> Process 3 - Depreciation Period End Date | F144: =F$136 -> 2021-12-31 | G144: date
E145: =E$19 -> Model Period Beginning | F145: =F$19 -> 00:00:00 | G145: date | H145: 00:00:00 | I145: 00:00:00 | J145: 2020-01-01 | K145: 2021-01-01 | L145: 2022-01-01 | M145: 2023-01-01 | N145: 2024-01-01 | O145: 2025-01-01 | P145: 2026-01-01 | Q145: 2027-01-01 | R145: 2028-01-01 | S145: 2029-01-01 | T145: 2030-01-01 | U145: 2031-01-01 | V145: 2032-01-01 | W145: 2033-01-01 | X145: 2034-01-01 | Y145: 2035-01-01 | Z145: 2036-01-01 | AA145: 2037-01-01 | AB145: 2038-01-01 | AC145: 2039-01-01 | AD145: 2040-01-01 | AE145: 2041-01-01 | AF145: 2042-01-01 | AG145: 2043-01-01 | AH145: 2044-01-01 | AI145: 2045-01-01 | AJ145: 2046-01-01 | AK145: 2047-01-01 | AL145: 2048-01-01 | AM145: 2049-01-01 | AN145: 2050-01-01 | AO145: 2051-01-01 | AP145: 2052-01-01 | AQ145: 2053-01-01 | AR145: 2054-01-01 | AS145: 2055-01-01 | AT145: 2056-01-01 | AU145: 2057-01-01 | AV145: 2058-01-01 | AW145: 2059-01-01 | AX145: 2060-01-01 | AY145: 2061-01-01 | AZ145: 2062-01-01 | BA145: 2063-01-01 | BB145: 2064-01-01 | BC145: 2065-01-01 | BD145: 2066-01-01 | BE145: 2067-01-01 | BF145: 2068-01-01 | BG145: 2069-01-01 | BH145: 2070-01-01 | BI145: 2071-01-01 | BJ145: 2072-01-01 | BK145: 2073-01-01 | BL145: 2074-01-01 | BM145: 2075-01-01
E146: =E$20 -> Model Period Ending | F146: =F$20 -> 00:00:00 | G146: date | H146: 00:00:00 | I146: 00:00:00 | J146: 2020-12-31 | K146: 2021-12-31 | L146: 2022-12-31 | M146: 2023-12-31 | N146: 2024-12-31 | O146: 2025-12-31 | P146: 2026-12-31 | Q146: 2027-12-31 | R146: 2028-12-31 | S146: 2029-12-31 | T146: 2030-12-31 | U146: 2031-12-31 | V146: 2032-12-31 | W146: 2033-12-31 | X146: 2034-12-31 | Y146: 2035-12-31 | Z146: 2036-12-31 | AA146: 2037-12-31 | AB146: 2038-12-31 | AC146: 2039-12-31 | AD146: 2040-12-31 | AE146: 2041-12-31 | AF146: 2042-12-31 | AG146: 2043-12-31 | AH146: 2044-12-31 | AI146: 2045-12-31 | AJ146: 2046-12-31 | AK146: 2047-12-31 | AL146: 2048-12-31 | AM146: 2049-12-31 | AN146: 2050-12-31 | AO146: 2051-12-31 | AP146: 2052-12-31 | AQ146: 2053-12-31 | AR146: 2054-12-31 | AS146: 2055-12-31 | AT146: 2056-12-31 | AU146: 2057-12-31 | AV146: 2058-12-31 | AW146: 2059-12-31 | AX146: 2060-12-31 | AY146: 2061-12-31 | AZ146: 2062-12-31 | BA146: 2063-12-31 | BB146: 2064-12-31 | BC146: 2065-12-31 | BD146: 2066-12-31 | BE146: 2067-12-31 | BF146: 2068-12-31 | BG146: 2069-12-31 | BH146: 2070-12-31 | BI146: 2071-12-31 | BJ146: 2072-12-31 | BK146: 2073-12-31 | BL146: 2074-12-31 | BM146: 2075-12-31
E147: =E$141 -> Process 3 - Depreciation Period | F147: 0 | G147: flag | H147: 0 | I147: 0 | J147: 0 | K147: 0 | L147: 0 | M147: 0 | N147: 0 | O147: 0 | P147: 0 | Q147: 0 | R147: 0 | S147: 0 | T147: 0 | U147: 0 | V147: 0 | W147: 0 | X147: 0 | Y147: 0 | Z147: 0 | AA147: 0 | AB147: 0 | AC147: 0 | AD147: 0 | AE147: 0 | AF147: 0 | AG147: 0 | AH147: 0 | AI147: 0 | AJ147: 0 | AK147: =AK$141 -> 0 | AL147: 0 | AM147: 0 | AN147: 0 | AO147: 0 | AP147: 0 | AQ147: 0 | AR147: 0 | AS147: 0 | AT147: 0 | AU147: 0 | AV147: 0 | AW147: 0 | AX147: 0 | AY147: 0 | AZ147: 0 | BA147: 0 | BB147: 0 | BC147: 0 | BD147: 0 | BE147: 0 | BF147: 0 | BG147: 0 | BH147: 0 | BI147: 0 | BJ147: 0 | BK147: 0 | BL147: 0 | BM147: 0
E148: Process 3 - Depreciation Period - # days | G148: days | J148: =(MIN($F144, J146) - MAX($F143, J145) + 1) * J147 -> 0 | K148: =(MIN($F144, K146) - MAX($F143, K145) + 1) * K147 -> 0 | L148: =(MIN($F144, L146) - MAX($F143, L145) + 1) * L147 -> 0 | M148: =(MIN($F144, M146) - MAX($F143, M145) + 1) * M147 -> 0 | N148: =(MIN($F144, N146) - MAX($F143, N145) + 1) * N147 -> 0 | O148: =(MIN($F144, O146) - MAX($F143, O145) + 1) * O147 -> 0 | P148: =(MIN($F144, P146) - MAX($F143, P145) + 1) * P147 -> 0 | Q148: =(MIN($F144, Q146) - MAX($F143, Q145) + 1) * Q147 -> 0 | R148: =(MIN($F144, R146) - MAX($F143, R145) + 1) * R147 -> 0 | S148: =(MIN($F144, S146) - MAX($F143, S145) + 1) * S147 -> 0 | T148: =(MIN($F144, T146) - MAX($F143, T145) + 1) * T147 -> 0 | U148: =(MIN($F144, U146) - MAX($F143, U145) + 1) * U147 -> 0 | V148: =(MIN($F144, V146) - MAX($F143, V145) + 1) * V147 -> 0 | W148: =(MIN($F144, W146) - MAX($F143, W145) + 1) * W147 -> 0 | X148: =(MIN($F144, X146) - MAX($F143, X145) + 1) * X147 -> 0 | Y148: =(MIN($F144, Y146) - MAX($F143, Y145) + 1) * Y147 -> 0 | Z148: =(MIN($F144, Z146) - MAX($F143, Z145) + 1) * Z147 -> 0 | AA148: =(MIN($F144, AA146) - MAX($F143, AA145) + 1) * AA147 -> 0 | AB148: =(MIN($F144, AB146) - MAX($F143, AB145) + 1) * AB147 -> 0 | AC148: =(MIN($F144, AC146) - MAX($F143, AC145) + 1) * AC147 -> 0 | AD148: =(MIN($F144, AD146) - MAX($F143, AD145) + 1) * AD147 -> 0 | AE148: =(MIN($F144, AE146) - MAX($F143, AE145) + 1) * AE147 -> 0 | AF148: =(MIN($F144, AF146) - MAX($F143, AF145) + 1) * AF147 -> 0 | AG148: =(MIN($F144, AG146) - MAX($F143, AG145) + 1) * AG147 -> 0 | AH148: =(MIN($F144, AH146) - MAX($F143, AH145) + 1) * AH147 -> 0 | AI148: =(MIN($F144, AI146) - MAX($F143, AI145) + 1) * AI147 -> 0 | AJ148: =(MIN($F144, AJ146) - MAX($F143, AJ145) + 1) * AJ147 -> 0 | AK148: =(MIN($F144, AK146) - MAX($F143, AK145) + 1) * AK147 -> 0 | AL148: =(MIN($F144, AL146) - MAX($F143, AL145) + 1) * AL147 -> 0 | AM148: =(MIN($F144, AM146) - MAX($F143, AM145) + 1) * AM147 -> 0 | AN148: =(MIN($F144, AN146) - MAX($F143, AN145) + 1) * AN147 -> 0 | AO148: =(MIN($F144, AO146) - MAX($F143, AO145) + 1) * AO147 -> 0 | AP148: =(MIN($F144, AP146) - MAX($F143, AP145) + 1) * AP147 -> 0 | AQ148: =(MIN($F144, AQ146) - MAX($F143, AQ145) + 1) * AQ147 -> 0 | AR148: =(MIN($F144, AR146) - MAX($F143, AR145) + 1) * AR147 -> 0 | AS148: =(MIN($F144, AS146) - MAX($F143, AS145) + 1) * AS147 -> 0 | AT148: =(MIN($F144, AT146) - MAX($F143, AT145) + 1) * AT147 -> 0 | AU148: =(MIN($F144, AU146) - MAX($F143, AU145) + 1) * AU147 -> 0 | AV148: =(MIN($F144, AV146) - MAX($F143, AV145) + 1) * AV147 -> 0 | AW148: =(MIN($F144, AW146) - MAX($F143, AW145) + 1) * AW147 -> 0 | AX148: =(MIN($F144, AX146) - MAX($F143, AX145) + 1) * AX147 -> 0 | AY148: =(MIN($F144, AY146) - MAX($F143, AY145) + 1) * AY147 -> 0 | AZ148: =(MIN($F144, AZ146) - MAX($F143, AZ145) + 1) * AZ147 -> 0 | BA148: =(MIN($F144, BA146) - MAX($F143, BA145) + 1) * BA147 -> 0 | BB148: =(MIN($F144, BB146) - MAX($F143, BB145) + 1) * BB147 -> 0 | BC148: =(MIN($F144, BC146) - MAX($F143, BC145) + 1) * BC147 -> 0 | BD148: =(MIN($F144, BD146) - MAX($F143, BD145) + 1) * BD147 -> 0 | BE148: =(MIN($F144, BE146) - MAX($F143, BE145) + 1) * BE147 -> 0 | BF148: =(MIN($F144, BF146) - MAX($F143, BF145) + 1) * BF147 -> 0 | BG148: =(MIN($F144, BG146) - MAX($F143, BG145) + 1) * BG147 -> 0 | BH148: =(MIN($F144, BH146) - MAX($F143, BH145) + 1) * BH147 -> 0 | BI148: =(MIN($F144, BI146) - MAX($F143, BI145) + 1) * BI147 -> 0 | BJ148: =(MIN($F144, BJ146) - MAX($F143, BJ145) + 1) * BJ147 -> 0 | BK148: =(MIN($F144, BK146) - MAX($F143, BK145) + 1) * BK147 -> 0 | BL148: =(MIN($F144, BL146) - MAX($F143, BL145) + 1) * BL147 -> 0 | BM148: =(MIN($F144, BM146) - MAX($F143, BM145) + 1) * BM147 -> 0
E150: =E$148 -> Process 3 - Depreciation Period - # days | F150: 0 | G150: days | H150: 0 | I150: 0 | J150: 0 | K150: 0 | L150: 0 | M150: 0 | N150: 0 | O150: 0 | P150: 0 | Q150: 0 | R150: 0 | S150: 0 | T150: 0 | U150: 0 | V150: 0 | W150: 0 | X150: 0 | Y150: 0 | Z150: 0 | AA150: 0 | AB150: 0 | AC150: 0 | AD150: 0 | AE150: 0 | AF150: 0 | AG150: 0 | AH150: 0 | AI150: 0 | AJ150: 0 | AK150: =AK$148 -> 0 | AL150: 0 | AM150: 0 | AN150: 0 | AO150: 0 | AP150: 0 | AQ150: 0 | AR150: 0 | AS150: 0 | AT150: 0 | AU150: 0 | AV150: 0 | AW150: 0 | AX150: 0 | AY150: 0 | AZ150: 0 | BA150: 0 | BB150: 0 | BC150: 0 | BD150: 0 | BE150: 0 | BF150: 0 | BG150: 0 | BH150: 0 | BI150: 0 | BJ150: 0 | BK150: 0 | BL150: 0 | BM150: 0
E151: =E$56 -> Days per period | F151: 0 | G151: days | H151: 0 | I151: 0 | J151: 366 | K151: 365 | L151: 365 | M151: 365 | N151: 366 | O151: 365 | P151: 365 | Q151: 365 | R151: 366 | S151: 365 | T151: 365 | U151: 365 | V151: 366 | W151: 365 | X151: 365 | Y151: 365 | Z151: 366 | AA151: 365 | AB151: 365 | AC151: 365 | AD151: 366 | AE151: 365 | AF151: 365 | AG151: 365 | AH151: 366 | AI151: 365 | AJ151: 365 | AK151: 365 | AL151: 366 | AM151: 365 | AN151: 365 | AO151: 365 | AP151: 366 | AQ151: 365 | AR151: 365 | AS151: 365 | AT151: 366 | AU151: 365 | AV151: 365 | AW151: 365 | AX151: 366 | AY151: 365 | AZ151: 365 | BA151: 365 | BB151: 366 | BC151: 365 | BD151: 365 | BE151: 365 | BF151: 366 | BG151: 365 | BH151: 365 | BI151: 365 | BJ151: 366 | BK151: 365 | BL151: 365 | BM151: 365
E152: Process 3 -Depreciation Period PeriodFrac | G152: % | H152: =SUM(J152:BM152) -> 0 | J152: =IF(J151 = 0, 0, J150 /J151) -> 0 | K152: =IF(K151 = 0, 0, K150 /K151) -> 0 | L152: =IF(L151 = 0, 0, L150 /L151) -> 0 | M152: =IF(M151 = 0, 0, M150 /M151) -> 0 | N152: =IF(N151 = 0, 0, N150 /N151) -> 0 | O152: =IF(O151 = 0, 0, O150 /O151) -> 0 | P152: =IF(P151 = 0, 0, P150 /P151) -> 0 | Q152: =IF(Q151 = 0, 0, Q150 /Q151) -> 0 | R152: =IF(R151 = 0, 0, R150 /R151) -> 0 | S152: =IF(S151 = 0, 0, S150 /S151) -> 0 | T152: =IF(T151 = 0, 0, T150 /T151) -> 0 | U152: =IF(U151 = 0, 0, U150 /U151) -> 0 | V152: =IF(V151 = 0, 0, V150 /V151) -> 0 | W152: =IF(W151 = 0, 0, W150 /W151) -> 0 | X152: =IF(X151 = 0, 0, X150 /X151) -> 0 | Y152: =IF(Y151 = 0, 0, Y150 /Y151) -> 0 | Z152: =IF(Z151 = 0, 0, Z150 /Z151) -> 0 | AA152: =IF(AA151 = 0, 0, AA150 /AA151) -> 0 | AB152: =IF(AB151 = 0, 0, AB150 /AB151) -> 0 | AC152: =IF(AC151 = 0, 0, AC150 /AC151) -> 0 | AD152: =IF(AD151 = 0, 0, AD150 /AD151) -> 0 | AE152: =IF(AE151 = 0, 0, AE150 /AE151) -> 0 | AF152: =IF(AF151 = 0, 0, AF150 /AF151) -> 0 | AG152: =IF(AG151 = 0, 0, AG150 /AG151) -> 0 | AH152: =IF(AH151 = 0, 0, AH150 /AH151) -> 0 | AI152: =IF(AI151 = 0, 0, AI150 /AI151) -> 0 | AJ152: =IF(AJ151 = 0, 0, AJ150 /AJ151) -> 0 | AK152: =IF(AK151 = 0, 0, AK150 /AK151) -> 0 | AL152: =IF(AL151 = 0, 0, AL150 /AL151) -> 0 | AM152: =IF(AM151 = 0, 0, AM150 /AM151) -> 0 | AN152: =IF(AN151 = 0, 0, AN150 /AN151) -> 0 | AO152: =IF(AO151 = 0, 0, AO150 /AO151) -> 0 | AP152: =IF(AP151 = 0, 0, AP150 /AP151) -> 0 | AQ152: =IF(AQ151 = 0, 0, AQ150 /AQ151) -> 0 | AR152: =IF(AR151 = 0, 0, AR150 /AR151) -> 0 | AS152: =IF(AS151 = 0, 0, AS150 /AS151) -> 0 | AT152: =IF(AT151 = 0, 0, AT150 /AT151) -> 0 | AU152: =IF(AU151 = 0, 0, AU150 /AU151) -> 0 | AV152: =IF(AV151 = 0, 0, AV150 /AV151) -> 0 | AW152: =IF(AW151 = 0, 0, AW150 /AW151) -> 0 | AX152: =IF(AX151 = 0, 0, AX150 /AX151) -> 0 | AY152: =IF(AY151 = 0, 0, AY150 /AY151) -> 0 | AZ152: =IF(AZ151 = 0, 0, AZ150 /AZ151) -> 0 | BA152: =IF(BA151 = 0, 0, BA150 /BA151) -> 0 | BB152: =IF(BB151 = 0, 0, BB150 /BB151) -> 0 | BC152: =IF(BC151 = 0, 0, BC150 /BC151) -> 0 | BD152: =IF(BD151 = 0, 0, BD150 /BD151) -> 0 | BE152: =IF(BE151 = 0, 0, BE150 /BE151) -> 0 | BF152: =IF(BF151 = 0, 0, BF150 /BF151) -> 0 | BG152: =IF(BG151 = 0, 0, BG150 /BG151) -> 0 | BH152: =IF(BH151 = 0, 0, BH150 /BH151) -> 0 | BI152: =IF(BI151 = 0, 0, BI150 /BI151) -> 0 | BJ152: =IF(BJ151 = 0, 0, BJ150 /BJ151) -> 0 | BK152: =IF(BK151 = 0, 0, BK150 /BK151) -> 0 | BL152: =IF(BL151 = 0, 0, BL150 /BL151) -> 0 | BM152: =IF(BM151 = 0, 0, BM150 /BM151) -> 0
D154: Other Investments
E155: =NTBA!E$26 -> Operational Period Start | F155: =NTBA!F$26 -> 2022-01-01 | G155: =NTBA!G$26 -> date
E156: =NTBA!E$159 -> Other Investments - Depreciation Period | F156: =NTBA!F$159 -> 30 | G156: =NTBA!G$159 -> years
E157: Other Investments - Depreciation Period End Date | F157: =DATE(YEAR(F155) + F156, MONTH(F155), DAY(F155) - 1) -> 2051-12-31 | G157: date
E159: =NTBA!E$26 -> Operational Period Start | F159: =NTBA!F$26 -> 2022-01-01 | G159: =NTBA!G$26 -> date
E160: =E$157 -> Other Investments - Depreciation Period End Date | F160: =F$157 -> 2051-12-31 | G160: date
E161: =E$20 -> Model Period Ending | F161: =F$20 -> 00:00:00 | G161: date | H161: 00:00:00 | I161: 00:00:00 | J161: 2020-12-31 | K161: 2021-12-31 | L161: 2022-12-31 | M161: 2023-12-31 | N161: 2024-12-31 | O161: 2025-12-31 | P161: 2026-12-31 | Q161: 2027-12-31 | R161: 2028-12-31 | S161: 2029-12-31 | T161: 2030-12-31 | U161: 2031-12-31 | V161: 2032-12-31 | W161: 2033-12-31 | X161: 2034-12-31 | Y161: 2035-12-31 | Z161: 2036-12-31 | AA161: 2037-12-31 | AB161: 2038-12-31 | AC161: 2039-12-31 | AD161: 2040-12-31 | AE161: 2041-12-31 | AF161: 2042-12-31 | AG161: 2043-12-31 | AH161: 2044-12-31 | AI161: 2045-12-31 | AJ161: 2046-12-31 | AK161: 2047-12-31 | AL161: 2048-12-31 | AM161: 2049-12-31 | AN161: 2050-12-31 | AO161: 2051-12-31 | AP161: 2052-12-31 | AQ161: 2053-12-31 | AR161: 2054-12-31 | AS161: 2055-12-31 | AT161: 2056-12-31 | AU161: 2057-12-31 | AV161: 2058-12-31 | AW161: 2059-12-31 | AX161: 2060-12-31 | AY161: 2061-12-31 | AZ161: 2062-12-31 | BA161: 2063-12-31 | BB161: 2064-12-31 | BC161: 2065-12-31 | BD161: 2066-12-31 | BE161: 2067-12-31 | BF161: 2068-12-31 | BG161: 2069-12-31 | BH161: 2070-12-31 | BI161: 2071-12-31 | BJ161: 2072-12-31 | BK161: 2073-12-31 | BL161: 2074-12-31 | BM161: 2075-12-31
E162: Other Investments - Depreciation Period | G162: flag | H162: =SUM(J162:BM162) -> 30 | J162: =IF(AND(J161>=$F159,I161<$F160),1,0) -> 0 | K162: =IF(AND(K161>=$F159,J161<$F160),1,0) -> 0 | L162: =IF(AND(L161>=$F159,K161<$F160),1,0) -> 1 | M162: =IF(AND(M161>=$F159,L161<$F160),1,0) -> 1 | N162: =IF(AND(N161>=$F159,M161<$F160),1,0) -> 1 | O162: =IF(AND(O161>=$F159,N161<$F160),1,0) -> 1 | P162: =IF(AND(P161>=$F159,O161<$F160),1,0) -> 1 | Q162: =IF(AND(Q161>=$F159,P161<$F160),1,0) -> 1 | R162: =IF(AND(R161>=$F159,Q161<$F160),1,0) -> 1 | S162: =IF(AND(S161>=$F159,R161<$F160),1,0) -> 1 | T162: =IF(AND(T161>=$F159,S161<$F160),1,0) -> 1 | U162: =IF(AND(U161>=$F159,T161<$F160),1,0) -> 1 | V162: =IF(AND(V161>=$F159,U161<$F160),1,0) -> 1 | W162: =IF(AND(W161>=$F159,V161<$F160),1,0) -> 1 | X162: =IF(AND(X161>=$F159,W161<$F160),1,0) -> 1 | Y162: =IF(AND(Y161>=$F159,X161<$F160),1,0) -> 1 | Z162: =IF(AND(Z161>=$F159,Y161<$F160),1,0) -> 1 | AA162: =IF(AND(AA161>=$F159,Z161<$F160),1,0) -> 1 | AB162: =IF(AND(AB161>=$F159,AA161<$F160),1,0) -> 1 | AC162: =IF(AND(AC161>=$F159,AB161<$F160),1,0) -> 1 | AD162: =IF(AND(AD161>=$F159,AC161<$F160),1,0) -> 1 | AE162: =IF(AND(AE161>=$F159,AD161<$F160),1,0) -> 1 | AF162: =IF(AND(AF161>=$F159,AE161<$F160),1,0) -> 1 | AG162: =IF(AND(AG161>=$F159,AF161<$F160),1,0) -> 1 | AH162: =IF(AND(AH161>=$F159,AG161<$F160),1,0) -> 1 | AI162: =IF(AND(AI161>=$F159,AH161<$F160),1,0) -> 1 | AJ162: =IF(AND(AJ161>=$F159,AI161<$F160),1,0) -> 1 | AK162: =IF(AND(AK161>=$F159,AJ161<$F160),1,0) -> 1 | AL162: =IF(AND(AL161>=$F159,AK161<$F160),1,0) -> 1 | AM162: =IF(AND(AM161>=$F159,AL161<$F160),1,0) -> 1 | AN162: =IF(AND(AN161>=$F159,AM161<$F160),1,0) -> 1 | AO162: =IF(AND(AO161>=$F159,AN161<$F160),1,0) -> 1 | AP162: =IF(AND(AP161>=$F159,AO161<$F160),1,0) -> 0 | AQ162: =IF(AND(AQ161>=$F159,AP161<$F160),1,0) -> 0 | AR162: =IF(AND(AR161>=$F159,AQ161<$F160),1,0) -> 0 | AS162: =IF(AND(AS161>=$F159,AR161<$F160),1,0) -> 0 | AT162: =IF(AND(AT161>=$F159,AS161<$F160),1,0) -> 0 | AU162: =IF(AND(AU161>=$F159,AT161<$F160),1,0) -> 0 | AV162: =IF(AND(AV161>=$F159,AU161<$F160),1,0) -> 0 | AW162: =IF(AND(AW161>=$F159,AV161<$F160),1,0) -> 0 | AX162: =IF(AND(AX161>=$F159,AW161<$F160),1,0) -> 0 | AY162: =IF(AND(AY161>=$F159,AX161<$F160),1,0) -> 0 | AZ162: =IF(AND(AZ161>=$F159,AY161<$F160),1,0) -> 0 | BA162: =IF(AND(BA161>=$F159,AZ161<$F160),1,0) -> 0 | BB162: =IF(AND(BB161>=$F159,BA161<$F160),1,0) -> 0 | BC162: =IF(AND(BC161>=$F159,BB161<$F160),1,0) -> 0 | BD162: =IF(AND(BD161>=$F159,BC161<$F160),1,0) -> 0 | BE162: =IF(AND(BE161>=$F159,BD161<$F160),1,0) -> 0 | BF162: =IF(AND(BF161>=$F159,BE161<$F160),1,0) -> 0 | BG162: =IF(AND(BG161>=$F159,BF161<$F160),1,0) -> 0 | BH162: =IF(AND(BH161>=$F159,BG161<$F160),1,0) -> 0 | BI162: =IF(AND(BI161>=$F159,BH161<$F160),1,0) -> 0 | BJ162: =IF(AND(BJ161>=$F159,BI161<$F160),1,0) -> 0 | BK162: =IF(AND(BK161>=$F159,BJ161<$F160),1,0) -> 0 | BL162: =IF(AND(BL161>=$F159,BK161<$F160),1,0) -> 0 | BM162: =IF(AND(BM161>=$F159,BL161<$F160),1,0) -> 0
E164: =NTBA!E$26 -> Operational Period Start | F164: =NTBA!F$26 -> 2022-01-01 | G164: =NTBA!G$26 -> date
E165: =E$157 -> Other Investments - Depreciation Period End Date | F165: =F$157 -> 2051-12-31 | G165: date
E166: =E$19 -> Model Period Beginning | F166: =F$19 -> 00:00:00 | G166: date | H166: 00:00:00 | I166: 00:00:00 | J166: 2020-01-01 | K166: 2021-01-01 | L166: 2022-01-01 | M166: 2023-01-01 | N166: 2024-01-01 | O166: 2025-01-01 | P166: 2026-01-01 | Q166: 2027-01-01 | R166: 2028-01-01 | S166: 2029-01-01 | T166: 2030-01-01 | U166: 2031-01-01 | V166: 2032-01-01 | W166: 2033-01-01 | X166: 2034-01-01 | Y166: 2035-01-01 | Z166: 2036-01-01 | AA166: 2037-01-01 | AB166: 2038-01-01 | AC166: 2039-01-01 | AD166: 2040-01-01 | AE166: 2041-01-01 | AF166: 2042-01-01 | AG166: 2043-01-01 | AH166: 2044-01-01 | AI166: 2045-01-01 | AJ166: 2046-01-01 | AK166: 2047-01-01 | AL166: 2048-01-01 | AM166: 2049-01-01 | AN166: 2050-01-01 | AO166: 2051-01-01 | AP166: 2052-01-01 | AQ166: 2053-01-01 | AR166: 2054-01-01 | AS166: 2055-01-01 | AT166: 2056-01-01 | AU166: 2057-01-01 | AV166: 2058-01-01 | AW166: 2059-01-01 | AX166: 2060-01-01 | AY166: 2061-01-01 | AZ166: 2062-01-01 | BA166: 2063-01-01 | BB166: 2064-01-01 | BC166: 2065-01-01 | BD166: 2066-01-01 | BE166: 2067-01-01 | BF166: 2068-01-01 | BG166: 2069-01-01 | BH166: 2070-01-01 | BI166: 2071-01-01 | BJ166: 2072-01-01 | BK166: 2073-01-01 | BL166: 2074-01-01 | BM166: 2075-01-01
E167: =E$20 -> Model Period Ending | F167: =F$20 -> 00:00:00 | G167: date | H167: 00:00:00 | I167: 00:00:00 | J167: 2020-12-31 | K167: 2021-12-31 | L167: 2022-12-31 | M167: 2023-12-31 | N167: 2024-12-31 | O167: 2025-12-31 | P167: 2026-12-31 | Q167: 2027-12-31 | R167: 2028-12-31 | S167: 2029-12-31 | T167: 2030-12-31 | U167: 2031-12-31 | V167: 2032-12-31 | W167: 2033-12-31 | X167: 2034-12-31 | Y167: 2035-12-31 | Z167: 2036-12-31 | AA167: 2037-12-31 | AB167: 2038-12-31 | AC167: 2039-12-31 | AD167: 2040-12-31 | AE167: 2041-12-31 | AF167: 2042-12-31 | AG167: 2043-12-31 | AH167: 2044-12-31 | AI167: 2045-12-31 | AJ167: 2046-12-31 | AK167: 2047-12-31 | AL167: 2048-12-31 | AM167: 2049-12-31 | AN167: 2050-12-31 | AO167: 2051-12-31 | AP167: 2052-12-31 | AQ167: 2053-12-31 | AR167: 2054-12-31 | AS167: 2055-12-31 | AT167: 2056-12-31 | AU167: 2057-12-31 | AV167: 2058-12-31 | AW167: 2059-12-31 | AX167: 2060-12-31 | AY167: 2061-12-31 | AZ167: 2062-12-31 | BA167: 2063-12-31 | BB167: 2064-12-31 | BC167: 2065-12-31 | BD167: 2066-12-31 | BE167: 2067-12-31 | BF167: 2068-12-31 | BG167: 2069-12-31 | BH167: 2070-12-31 | BI167: 2071-12-31 | BJ167: 2072-12-31 | BK167: 2073-12-31 | BL167: 2074-12-31 | BM167: 2075-12-31
E168: =E$162 -> Other Investments - Depreciation Period | F168: 0 | G168: flag | H168: 30 | I168: 0 | J168: 0 | K168: 0 | L168: 1 | M168: 1 | N168: 1 | O168: 1 | P168: 1 | Q168: 1 | R168: 1 | S168: 1 | T168: 1 | U168: 1 | V168: 1 | W168: 1 | X168: 1 | Y168: 1 | Z168: 1 | AA168: 1 | AB168: 1 | AC168: 1 | AD168: 1 | AE168: 1 | AF168: 1 | AG168: 1 | AH168: 1 | AI168: 1 | AJ168: 1 | AK168: =AK$162 -> 1 | AL168: 1 | AM168: 1 | AN168: 1 | AO168: 1 | AP168: 0 | AQ168: 0 | AR168: 0 | AS168: 0 | AT168: 0 | AU168: 0 | AV168: 0 | AW168: 0 | AX168: 0 | AY168: 0 | AZ168: 0 | BA168: 0 | BB168: 0 | BC168: 0 | BD168: 0 | BE168: 0 | BF168: 0 | BG168: 0 | BH168: 0 | BI168: 0 | BJ168: 0 | BK168: 0 | BL168: 0 | BM168: 0
E169: Other Investments - Depreciation Period - # days | G169: days | J169: =(MIN($F165, J167) - MAX($F164, J166) + 1) * J168 -> 0 | K169: =(MIN($F165, K167) - MAX($F164, K166) + 1) * K168 -> 0 | L169: =(MIN($F165, L167) - MAX($F164, L166) + 1) * L168 -> 365 | M169: =(MIN($F165, M167) - MAX($F164, M166) + 1) * M168 -> 365 | N169: =(MIN($F165, N167) - MAX($F164, N166) + 1) * N168 -> 366 | O169: =(MIN($F165, O167) - MAX($F164, O166) + 1) * O168 -> 365 | P169: =(MIN($F165, P167) - MAX($F164, P166) + 1) * P168 -> 365 | Q169: =(MIN($F165, Q167) - MAX($F164, Q166) + 1) * Q168 -> 365 | R169: =(MIN($F165, R167) - MAX($F164, R166) + 1) * R168 -> 366 | S169: =(MIN($F165, S167) - MAX($F164, S166) + 1) * S168 -> 365 | T169: =(MIN($F165, T167) - MAX($F164, T166) + 1) * T168 -> 365 | U169: =(MIN($F165, U167) - MAX($F164, U166) + 1) * U168 -> 365 | V169: =(MIN($F165, V167) - MAX($F164, V166) + 1) * V168 -> 366 | W169: =(MIN($F165, W167) - MAX($F164, W166) + 1) * W168 -> 365 | X169: =(MIN($F165, X167) - MAX($F164, X166) + 1) * X168 -> 365 | Y169: =(MIN($F165, Y167) - MAX($F164, Y166) + 1) * Y168 -> 365 | Z169: =(MIN($F165, Z167) - MAX($F164, Z166) + 1) * Z168 -> 366 | AA169: =(MIN($F165, AA167) - MAX($F164, AA166) + 1) * AA168 -> 365 | AB169: =(MIN($F165, AB167) - MAX($F164, AB166) + 1) * AB168 -> 365 | AC169: =(MIN($F165, AC167) - MAX($F164, AC166) + 1) * AC168 -> 365 | AD169: =(MIN($F165, AD167) - MAX($F164, AD166) + 1) * AD168 -> 366 | AE169: =(MIN($F165, AE167) - MAX($F164, AE166) + 1) * AE168 -> 365 | AF169: =(MIN($F165, AF167) - MAX($F164, AF166) + 1) * AF168 -> 365 | AG169: =(MIN($F165, AG167) - MAX($F164, AG166) + 1) * AG168 -> 365 | AH169: =(MIN($F165, AH167) - MAX($F164, AH166) + 1) * AH168 -> 366 | AI169: =(MIN($F165, AI167) - MAX($F164, AI166) + 1) * AI168 -> 365 | AJ169: =(MIN($F165, AJ167) - MAX($F164, AJ166) + 1) * AJ168 -> 365 | AK169: =(MIN($F165, AK167) - MAX($F164, AK166) + 1) * AK168 -> 365 | AL169: =(MIN($F165, AL167) - MAX($F164, AL166) + 1) * AL168 -> 366 | AM169: =(MIN($F165, AM167) - MAX($F164, AM166) + 1) * AM168 -> 365 | AN169: =(MIN($F165, AN167) - MAX($F164, AN166) + 1) * AN168 -> 365 | AO169: =(MIN($F165, AO167) - MAX($F164, AO166) + 1) * AO168 -> 365 | AP169: =(MIN($F165, AP167) - MAX($F164, AP166) + 1) * AP168 -> 0 | AQ169: =(MIN($F165, AQ167) - MAX($F164, AQ166) + 1) * AQ168 -> 0 | AR169: =(MIN($F165, AR167) - MAX($F164, AR166) + 1) * AR168 -> 0 | AS169: =(MIN($F165, AS167) - MAX($F164, AS166) + 1) * AS168 -> 0 | AT169: =(MIN($F165, AT167) - MAX($F164, AT166) + 1) * AT168 -> 0 | AU169: =(MIN($F165, AU167) - MAX($F164, AU166) + 1) * AU168 -> 0 | AV169: =(MIN($F165, AV167) - MAX($F164, AV166) + 1) * AV168 -> 0 | AW169: =(MIN($F165, AW167) - MAX($F164, AW166) + 1) * AW168 -> 0 | AX169: =(MIN($F165, AX167) - MAX($F164, AX166) + 1) * AX168 -> 0 | AY169: =(MIN($F165, AY167) - MAX($F164, AY166) + 1) * AY168 -> 0 | AZ169: =(MIN($F165, AZ167) - MAX($F164, AZ166) + 1) * AZ168 -> 0 | BA169: =(MIN($F165, BA167) - MAX($F164, BA166) + 1) * BA168 -> 0 | BB169: =(MIN($F165, BB167) - MAX($F164, BB166) + 1) * BB168 -> 0 | BC169: =(MIN($F165, BC167) - MAX($F164, BC166) + 1) * BC168 -> 0 | BD169: =(MIN($F165, BD167) - MAX($F164, BD166) + 1) * BD168 -> 0 | BE169: =(MIN($F165, BE167) - MAX($F164, BE166) + 1) * BE168 -> 0 | BF169: =(MIN($F165, BF167) - MAX($F164, BF166) + 1) * BF168 -> 0 | BG169: =(MIN($F165, BG167) - MAX($F164, BG166) + 1) * BG168 -> 0 | BH169: =(MIN($F165, BH167) - MAX($F164, BH166) + 1) * BH168 -> 0 | BI169: =(MIN($F165, BI167) - MAX($F164, BI166) + 1) * BI168 -> 0 | BJ169: =(MIN($F165, BJ167) - MAX($F164, BJ166) + 1) * BJ168 -> 0 | BK169: =(MIN($F165, BK167) - MAX($F164, BK166) + 1) * BK168 -> 0 | BL169: =(MIN($F165, BL167) - MAX($F164, BL166) + 1) * BL168 -> 0 | BM169: =(MIN($F165, BM167) - MAX($F164, BM166) + 1) * BM168 -> 0
E171: =E$169 -> Other Investments - Depreciation Period - # days | F171: 0 | G171: days | H171: 0 | I171: 0 | J171: 0 | K171: 0 | L171: 365 | M171: 365 | N171: 366 | O171: 365 | P171: 365 | Q171: 365 | R171: 366 | S171: 365 | T171: 365 | U171: 365 | V171: 366 | W171: 365 | X171: 365 | Y171: 365 | Z171: 366 | AA171: 365 | AB171: 365 | AC171: 365 | AD171: 366 | AE171: 365 | AF171: 365 | AG171: 365 | AH171: 366 | AI171: 365 | AJ171: 365 | AK171: =AK$169 -> 365 | AL171: 366 | AM171: 365 | AN171: 365 | AO171: 365 | AP171: 0 | AQ171: 0 | AR171: 0 | AS171: 0 | AT171: 0 | AU171: 0 | AV171: 0 | AW171: 0 | AX171: 0 | AY171: 0 | AZ171: 0 | BA171: 0 | BB171: 0 | BC171: 0 | BD171: 0 | BE171: 0 | BF171: 0 | BG171: 0 | BH171: 0 | BI171: 0 | BJ171: 0 | BK171: 0 | BL171: 0 | BM171: 0
E172: =E$56 -> Days per period | F172: 0 | G172: days | H172: 0 | I172: 0 | J172: 366 | K172: 365 | L172: 365 | M172: 365 | N172: 366 | O172: 365 | P172: 365 | Q172: 365 | R172: 366 | S172: 365 | T172: 365 | U172: 365 | V172: 366 | W172: 365 | X172: 365 | Y172: 365 | Z172: 366 | AA172: 365 | AB172: 365 | AC172: 365 | AD172: 366 | AE172: 365 | AF172: 365 | AG172: 365 | AH172: 366 | AI172: 365 | AJ172: 365 | AK172: 365 | AL172: 366 | AM172: 365 | AN172: 365 | AO172: 365 | AP172: 366 | AQ172: 365 | AR172: 365 | AS172: 365 | AT172: 366 | AU172: 365 | AV172: 365 | AW172: 365 | AX172: 366 | AY172: 365 | AZ172: 365 | BA172: 365 | BB172: 366 | BC172: 365 | BD172: 365 | BE172: 365 | BF172: 366 | BG172: 365 | BH172: 365 | BI172: 365 | BJ172: 366 | BK172: 365 | BL172: 365 | BM172: 365
E173: Other Investments - Depreciation Period PeriodFrac | G173: % | H173: =SUM(J173:BM173) -> 30 | J173: =IF(J172 = 0, 0, J171 /J172) -> 0 | K173: =IF(K172 = 0, 0, K171 /K172) -> 0 | L173: =IF(L172 = 0, 0, L171 /L172) -> 1 | M173: =IF(M172 = 0, 0, M171 /M172) -> 1 | N173: =IF(N172 = 0, 0, N171 /N172) -> 1 | O173: =IF(O172 = 0, 0, O171 /O172) -> 1 | P173: =IF(P172 = 0, 0, P171 /P172) -> 1 | Q173: =IF(Q172 = 0, 0, Q171 /Q172) -> 1 | R173: =IF(R172 = 0, 0, R171 /R172) -> 1 | S173: =IF(S172 = 0, 0, S171 /S172) -> 1 | T173: =IF(T172 = 0, 0, T171 /T172) -> 1 | U173: =IF(U172 = 0, 0, U171 /U172) -> 1 | V173: =IF(V172 = 0, 0, V171 /V172) -> 1 | W173: =IF(W172 = 0, 0, W171 /W172) -> 1 | X173: =IF(X172 = 0, 0, X171 /X172) -> 1 | Y173: =IF(Y172 = 0, 0, Y171 /Y172) -> 1 | Z173: =IF(Z172 = 0, 0, Z171 /Z172) -> 1 | AA173: =IF(AA172 = 0, 0, AA171 /AA172) -> 1 | AB173: =IF(AB172 = 0, 0, AB171 /AB172) -> 1 | AC173: =IF(AC172 = 0, 0, AC171 /AC172) -> 1 | AD173: =IF(AD172 = 0, 0, AD171 /AD172) -> 1 | AE173: =IF(AE172 = 0, 0, AE171 /AE172) -> 1 | AF173: =IF(AF172 = 0, 0, AF171 /AF172) -> 1 | AG173: =IF(AG172 = 0, 0, AG171 /AG172) -> 1 | AH173: =IF(AH172 = 0, 0, AH171 /AH172) -> 1 | AI173: =IF(AI172 = 0, 0, AI171 /AI172) -> 1 | AJ173: =IF(AJ172 = 0, 0, AJ171 /AJ172) -> 1 | AK173: =IF(AK172 = 0, 0, AK171 /AK172) -> 1 | AL173: =IF(AL172 = 0, 0, AL171 /AL172) -> 1 | AM173: =IF(AM172 = 0, 0, AM171 /AM172) -> 1 | AN173: =IF(AN172 = 0, 0, AN171 /AN172) -> 1 | AO173: =IF(AO172 = 0, 0, AO171 /AO172) -> 1 | AP173: =IF(AP172 = 0, 0, AP171 /AP172) -> 0 | AQ173: =IF(AQ172 = 0, 0, AQ171 /AQ172) -> 0 | AR173: =IF(AR172 = 0, 0, AR171 /AR172) -> 0 | AS173: =IF(AS172 = 0, 0, AS171 /AS172) -> 0 | AT173: =IF(AT172 = 0, 0, AT171 /AT172) -> 0 | AU173: =IF(AU172 = 0, 0, AU171 /AU172) -> 0 | AV173: =IF(AV172 = 0, 0, AV171 /AV172) -> 0 | AW173: =IF(AW172 = 0, 0, AW171 /AW172) -> 0 | AX173: =IF(AX172 = 0, 0, AX171 /AX172) -> 0 | AY173: =IF(AY172 = 0, 0, AY171 /AY172) -> 0 | AZ173: =IF(AZ172 = 0, 0, AZ171 /AZ172) -> 0 | BA173: =IF(BA172 = 0, 0, BA171 /BA172) -> 0 | BB173: =IF(BB172 = 0, 0, BB171 /BB172) -> 0 | BC173: =IF(BC172 = 0, 0, BC171 /BC172) -> 0 | BD173: =IF(BD172 = 0, 0, BD171 /BD172) -> 0 | BE173: =IF(BE172 = 0, 0, BE171 /BE172) -> 0 | BF173: =IF(BF172 = 0, 0, BF171 /BF172) -> 0 | BG173: =IF(BG172 = 0, 0, BG171 /BG172) -> 0 | BH173: =IF(BH172 = 0, 0, BH171 /BH172) -> 0 | BI173: =IF(BI172 = 0, 0, BI171 /BI172) -> 0 | BJ173: =IF(BJ172 = 0, 0, BJ171 /BJ172) -> 0 | BK173: =IF(BK172 = 0, 0, BK171 /BK172) -> 0 | BL173: =IF(BL172 = 0, 0, BL171 /BL172) -> 0 | BM173: =IF(BM172 = 0, 0, BM171 /BM172) -> 0
B175: FINANCING
C177: Capital Subsidies
E179: =NTBA!E$26 -> Operational Period Start | F179: =NTBA!F$26 -> 2022-01-01 | G179: =NTBA!G$26 -> date
E180: =NTBA!E$181 -> Capital Subsidies - Amortization Period | F180: =NTBA!F$181 -> 15 | G180: =NTBA!G$181 -> years
E181: Amortization Period - Capital Subsidies End Date | F181: =DATE(YEAR(F179) + F180, MONTH(F179), DAY(F179) - 1) -> 2036-12-31 | G181: date
E183: =NTBA!E$26 -> Operational Period Start | F183: =NTBA!F$26 -> 2022-01-01 | G183: =NTBA!G$26 -> date
E184: =E$181 -> Amortization Period - Capital Subsidies End Date | F184: =F$181 -> 2036-12-31 | G184: date
E185: =NTBA!E$217 -> Financial Daycount Convention | F185: =NTBA!F$217 -> 4 | G185: =NTBA!G$217 -> 1= act/act; 2=act/360; 3=act/365; 4=30/360
E186: =E$19 -> Model Period Beginning | F186: =F$19 -> 00:00:00 | G186: date | H186: 00:00:00 | I186: 00:00:00 | J186: 2020-01-01 | K186: 2021-01-01 | L186: 2022-01-01 | M186: 2023-01-01 | N186: 2024-01-01 | O186: 2025-01-01 | P186: 2026-01-01 | Q186: 2027-01-01 | R186: 2028-01-01 | S186: 2029-01-01 | T186: 2030-01-01 | U186: 2031-01-01 | V186: 2032-01-01 | W186: 2033-01-01 | X186: 2034-01-01 | Y186: 2035-01-01 | Z186: 2036-01-01 | AA186: 2037-01-01 | AB186: 2038-01-01 | AC186: 2039-01-01 | AD186: 2040-01-01 | AE186: 2041-01-01 | AF186: 2042-01-01 | AG186: 2043-01-01 | AH186: 2044-01-01 | AI186: 2045-01-01 | AJ186: 2046-01-01 | AK186: 2047-01-01 | AL186: 2048-01-01 | AM186: 2049-01-01 | AN186: 2050-01-01 | AO186: 2051-01-01 | AP186: 2052-01-01 | AQ186: 2053-01-01 | AR186: 2054-01-01 | AS186: 2055-01-01 | AT186: 2056-01-01 | AU186: 2057-01-01 | AV186: 2058-01-01 | AW186: 2059-01-01 | AX186: 2060-01-01 | AY186: 2061-01-01 | AZ186: 2062-01-01 | BA186: 2063-01-01 | BB186: 2064-01-01 | BC186: 2065-01-01 | BD186: 2066-01-01 | BE186: 2067-01-01 | BF186: 2068-01-01 | BG186: 2069-01-01 | BH186: 2070-01-01 | BI186: 2071-01-01 | BJ186: 2072-01-01 | BK186: 2073-01-01 | BL186: 2074-01-01 | BM186: 2075-01-01
E187: =E$20 -> Model Period Ending | F187: =F$20 -> 00:00:00 | G187: date | H187: 00:00:00 | I187: 00:00:00 | J187: 2020-12-31 | K187: 2021-12-31 | L187: 2022-12-31 | M187: 2023-12-31 | N187: 2024-12-31 | O187: 2025-12-31 | P187: 2026-12-31 | Q187: 2027-12-31 | R187: 2028-12-31 | S187: 2029-12-31 | T187: 2030-12-31 | U187: 2031-12-31 | V187: 2032-12-31 | W187: 2033-12-31 | X187: 2034-12-31 | Y187: 2035-12-31 | Z187: 2036-12-31 | AA187: 2037-12-31 | AB187: 2038-12-31 | AC187: 2039-12-31 | AD187: 2040-12-31 | AE187: 2041-12-31 | AF187: 2042-12-31 | AG187: 2043-12-31 | AH187: 2044-12-31 | AI187: 2045-12-31 | AJ187: 2046-12-31 | AK187: 2047-12-31 | AL187: 2048-12-31 | AM187: 2049-12-31 | AN187: 2050-12-31 | AO187: 2051-12-31 | AP187: 2052-12-31 | AQ187: 2053-12-31 | AR187: 2054-12-31 | AS187: 2055-12-31 | AT187: 2056-12-31 | AU187: 2057-12-31 | AV187: 2058-12-31 | AW187: 2059-12-31 | AX187: 2060-12-31 | AY187: 2061-12-31 | AZ187: 2062-12-31 | BA187: 2063-12-31 | BB187: 2064-12-31 | BC187: 2065-12-31 | BD187: 2066-12-31 | BE187: 2067-12-31 | BF187: 2068-12-31 | BG187: 2069-12-31 | BH187: 2070-12-31 | BI187: 2071-12-31 | BJ187: 2072-12-31 | BK187: 2073-12-31 | BL187: 2074-12-31 | BM187: 2075-12-31
E188: Amortization Period - Capital Subsidies Start | G188: flag | H188: =SUM(J188:BM188) -> 1 | J188: =IF(AND($F183 >= J186, $F183 <= J187), 1, 0) -> 0 | K188: 0 | L188: 1 | M188: 0 | N188: 0 | O188: 0 | P188: 0 | Q188: 0 | R188: 0 | S188: 0 | T188: 0 | U188: 0 | V188: 0 | W188: 0 | X188: 0 | Y188: 0 | Z188: 0 | AA188: 0 | AB188: 0 | AC188: 0 | AD188: 0 | AE188: 0 | AF188: 0 | AG188: 0 | AH188: 0 | AI188: 0 | AJ188: 0 | AK188: 0 | AL188: 0 | AM188: 0 | AN188: 0 | AO188: 0 | AP188: =IF(AND($F183 >= AP186, $F183 <= AP187), 1, 0) -> 0 | AQ188: 0 | AR188: 0 | AS188: 0 | AT188: 0 | AU188: 0 | AV188: 0 | AW188: 0 | AX188: 0 | AY188: 0 | AZ188: 0 | BA188: 0 | BB188: 0 | BC188: 0 | BD188: 0 | BE188: 0 | BF188: 0 | BG188: 0 | BH188: 0 | BI188: 0 | BJ188: 0 | BK188: 0 | BL188: 0 | BM188: 0
E189: Amortization Period - Capital Subsidies End | G189: flag | H189: =SUM(J189:BM189) -> 1 | J189: =IF(AND($F184 >= J186, $F184 <= J187), 1, 0) -> 0 | K189: 0 | L189: 0 | M189: 0 | N189: 0 | O189: 0 | P189: 0 | Q189: 0 | R189: 0 | S189: 0 | T189: 0 | U189: 0 | V189: 0 | W189: 0 | X189: 0 | Y189: 0 | Z189: 1 | AA189: 0 | AB189: 0 | AC189: 0 | AD189: 0 | AE189: 0 | AF189: 0 | AG189: 0 | AH189: 0 | AI189: 0 | AJ189: 0 | AK189: 0 | AL189: 0 | AM189: 0 | AN189: 0 | AO189: 0 | AP189: =IF(AND($F184 >= AP186, $F184 <= AP187), 1, 0) -> 0 | AQ189: 0 | AR189: 0 | AS189: 0 | AT189: 0 | AU189: 0 | AV189: 0 | AW189: 0 | AX189: 0 | AY189: 0 | AZ189: 0 | BA189: 0 | BB189: 0 | BC189: 0 | BD189: 0 | BE189: 0 | BF189: 0 | BG189: 0 | BH189: 0 | BI189: 0 | BJ189: 0 | BK189: 0 | BL189: 0 | BM189: 0
E190: Amortization Period - Capital Subsidies | G190: flag | H190: =SUM(J190:BM190) -> 15 | J190: =J188 + I190 - I189 -> 0 | K190: 0 | L190: 1 | M190: 1 | N190: 1 | O190: 1 | P190: 1 | Q190: 1 | R190: 1 | S190: 1 | T190: 1 | U190: 1 | V190: 1 | W190: 1 | X190: 1 | Y190: 1 | Z190: 1 | AA190: 0 | AB190: 0 | AC190: 0 | AD190: 0 | AE190: 0 | AF190: 0 | AG190: 0 | AH190: 0 | AI190: 0 | AJ190: 0 | AK190: 0 | AL190: 0 | AM190: 0 | AN190: 0 | AO190: 0 | AP190: =AP188 + AO190 - AO189 -> 0 | AQ190: 0 | AR190: 0 | AS190: 0 | AT190: 0 | AU190: 0 | AV190: 0 | AW190: 0 | AX190: 0 | AY190: 0 | AZ190: 0 | BA190: 0 | BB190: 0 | BC190: 0 | BD190: 0 | BE190: 0 | BF190: 0 | BG190: 0 | BH190: 0 | BI190: 0 | BJ190: 0 | BK190: 0 | BL190: 0 | BM190: 0
E191: Amortization Period - Capital Subsidies YearFrac | G191: % | H191: =SUM(J191:BM191) -> 15 | J191: =IF(J190 = 0, 0, YEARFRAC(MAX($F183, J186) - 1, MIN($F184, J187), $F185)) -> 0 | K191: 0 | L191: 1 | M191: 1 | N191: 1 | O191: 1 | P191: 1 | Q191: 1 | R191: 1 | S191: 1 | T191: 1 | U191: 1 | V191: 1 | W191: 1 | X191: 1 | Y191: 1 | Z191: 1 | AA191: 0 | AB191: 0 | AC191: 0 | AD191: 0 | AE191: 0 | AF191: 0 | AG191: 0 | AH191: 0 | AI191: 0 | AJ191: 0 | AK191: 0 | AL191: 0 | AM191: 0 | AN191: 0 | AO191: 0 | AP191: =IF(AP190 = 0, 0, YEARFRAC(MAX($F183, AP186) - 1, MIN($F184, AP187), $F185)) -> 0 | AQ191: 0 | AR191: 0 | AS191: 0 | AT191: 0 | AU191: 0 | AV191: 0 | AW191: 0 | AX191: 0 | AY191: 0 | AZ191: 0 | BA191: 0 | BB191: 0 | BC191: 0 | BD191: 0 | BE191: 0 | BF191: 0 | BG191: 0 | BH191: 0 | BI191: 0 | BJ191: 0 | BK191: 0 | BL191: 0 | BM191: 0
C193: TLF
D195: Drawdown
E196: =NTBA!E$170 -> Financing Start Date | F196: =NTBA!F$170 -> 2020-01-01 | G196: =NTBA!G$170 -> date
E197: =NTBA!E$171 -> Financing End date | F197: =NTBA!F$171 -> 2021-12-31 | G197: =NTBA!G$171 -> date
E198: =E$19 -> Model Period Beginning | F198: =F$19 -> 00:00:00 | G198: date | H198: 00:00:00 | I198: 00:00:00 | J198: 2020-01-01 | K198: 2021-01-01 | L198: 2022-01-01 | M198: 2023-01-01 | N198: 2024-01-01 | O198: 2025-01-01 | P198: 2026-01-01 | Q198: 2027-01-01 | R198: 2028-01-01 | S198: 2029-01-01 | T198: 2030-01-01 | U198: 2031-01-01 | V198: 2032-01-01 | W198: 2033-01-01 | X198: 2034-01-01 | Y198: 2035-01-01 | Z198: 2036-01-01 | AA198: 2037-01-01 | AB198: 2038-01-01 | AC198: 2039-01-01 | AD198: 2040-01-01 | AE198: 2041-01-01 | AF198: 2042-01-01 | AG198: 2043-01-01 | AH198: 2044-01-01 | AI198: 2045-01-01 | AJ198: 2046-01-01 | AK198: 2047-01-01 | AL198: 2048-01-01 | AM198: 2049-01-01 | AN198: 2050-01-01 | AO198: 2051-01-01 | AP198: 2052-01-01 | AQ198: 2053-01-01 | AR198: 2054-01-01 | AS198: 2055-01-01 | AT198: 2056-01-01 | AU198: 2057-01-01 | AV198: 2058-01-01 | AW198: 2059-01-01 | AX198: 2060-01-01 | AY198: 2061-01-01 | AZ198: 2062-01-01 | BA198: 2063-01-01 | BB198: 2064-01-01 | BC198: 2065-01-01 | BD198: 2066-01-01 | BE198: 2067-01-01 | BF198: 2068-01-01 | BG198: 2069-01-01 | BH198: 2070-01-01 | BI198: 2071-01-01 | BJ198: 2072-01-01 | BK198: 2073-01-01 | BL198: 2074-01-01 | BM198: 2075-01-01
E199: =E$20 -> Model Period Ending | F199: =F$20 -> 00:00:00 | G199: date | H199: 00:00:00 | I199: 00:00:00 | J199: 2020-12-31 | K199: 2021-12-31 | L199: 2022-12-31 | M199: 2023-12-31 | N199: 2024-12-31 | O199: 2025-12-31 | P199: 2026-12-31 | Q199: 2027-12-31 | R199: 2028-12-31 | S199: 2029-12-31 | T199: 2030-12-31 | U199: 2031-12-31 | V199: 2032-12-31 | W199: 2033-12-31 | X199: 2034-12-31 | Y199: 2035-12-31 | Z199: 2036-12-31 | AA199: 2037-12-31 | AB199: 2038-12-31 | AC199: 2039-12-31 | AD199: 2040-12-31 | AE199: 2041-12-31 | AF199: 2042-12-31 | AG199: 2043-12-31 | AH199: 2044-12-31 | AI199: 2045-12-31 | AJ199: 2046-12-31 | AK199: 2047-12-31 | AL199: 2048-12-31 | AM199: 2049-12-31 | AN199: 2050-12-31 | AO199: 2051-12-31 | AP199: 2052-12-31 | AQ199: 2053-12-31 | AR199: 2054-12-31 | AS199: 2055-12-31 | AT199: 2056-12-31 | AU199: 2057-12-31 | AV199: 2058-12-31 | AW199: 2059-12-31 | AX199: 2060-12-31 | AY199: 2061-12-31 | AZ199: 2062-12-31 | BA199: 2063-12-31 | BB199: 2064-12-31 | BC199: 2065-12-31 | BD199: 2066-12-31 | BE199: 2067-12-31 | BF199: 2068-12-31 | BG199: 2069-12-31 | BH199: 2070-12-31 | BI199: 2071-12-31 | BJ199: 2072-12-31 | BK199: 2073-12-31 | BL199: 2074-12-31 | BM199: 2075-12-31
E200: TLF - Drawdown Period Start | G200: flag | J200: =IF(AND($F196 >= J198, $F196 <= J199), 1, 0) -> 1 | K200: 0 | L200: 0 | M200: 0 | N200: 0 | O200: 0 | P200: 0 | Q200: 0 | R200: 0 | S200: 0 | T200: 0 | U200: 0 | V200: 0 | W200: 0 | X200: 0 | Y200: 0 | Z200: 0 | AA200: 0 | AB200: 0 | AC200: 0 | AD200: 0 | AE200: 0 | AF200: 0 | AG200: 0 | AH200: 0 | AI200: 0 | AJ200: 0 | AK200: 0 | AL200: 0 | AM200: 0 | AN200: 0 | AO200: 0 | AP200: 0 | AQ200: 0 | AR200: 0 | AS200: 0 | AT200: 0 | AU200: 0 | AV200: 0 | AW200: 0 | AX200: 0 | AY200: 0 | AZ200: 0 | BA200: 0 | BB200: 0 | BC200: 0 | BD200: 0 | BE200: 0 | BF200: 0 | BG200: 0 | BH200: 0 | BI200: 0 | BJ200: 0 | BK200: 0 | BL200: 0 | BM200: 0
E201: TLF - Drawdown Period End | G201: flag | J201: =IF(AND($F197 >= J198, $F197 <= J199), 1, 0) -> 0 | K201: 1 | L201: 0 | M201: 0 | N201: 0 | O201: 0 | P201: 0 | Q201: 0 | R201: 0 | S201: 0 | T201: 0 | U201: 0 | V201: 0 | W201: 0 | X201: 0 | Y201: 0 | Z201: 0 | AA201: 0 | AB201: 0 | AC201: 0 | AD201: 0 | AE201: 0 | AF201: 0 | AG201: 0 | AH201: 0 | AI201: 0 | AJ201: 0 | AK201: 0 | AL201: 0 | AM201: 0 | AN201: 0 | AO201: 0 | AP201: 0 | AQ201: 0 | AR201: 0 | AS201: 0 | AT201: 0 | AU201: 0 | AV201: 0 | AW201: 0 | AX201: 0 | AY201: 0 | AZ201: 0 | BA201: 0 | BB201: 0 | BC201: 0 | BD201: 0 | BE201: 0 | BF201: 0 | BG201: 0 | BH201: 0 | BI201: 0 | BJ201: 0 | BK201: 0 | BL201: 0 | BM201: 0
E202: TLF - Drawdown Period | G202: flag | J202: =J200 + I202 - I201 -> 1 | K202: =K200 + J202 - J201 -> 1 | L202: =L200 + K202 - K201 -> 0 | M202: =M200 + L202 - L201 -> 0 | N202: =N200 + M202 - M201 -> 0 | O202: =O200 + N202 - N201 -> 0 | P202: =P200 + O202 - O201 -> 0 | Q202: =Q200 + P202 - P201 -> 0 | R202: =R200 + Q202 - Q201 -> 0 | S202: =S200 + R202 - R201 -> 0 | T202: =T200 + S202 - S201 -> 0 | U202: =U200 + T202 - T201 -> 0 | V202: =V200 + U202 - U201 -> 0 | W202: =W200 + V202 - V201 -> 0 | X202: =X200 + W202 - W201 -> 0 | Y202: =Y200 + X202 - X201 -> 0 | Z202: =Z200 + Y202 - Y201 -> 0 | AA202: =AA200 + Z202 - Z201 -> 0 | AB202: =AB200 + AA202 - AA201 -> 0 | AC202: =AC200 + AB202 - AB201 -> 0 | AD202: =AD200 + AC202 - AC201 -> 0 | AE202: =AE200 + AD202 - AD201 -> 0 | AF202: =AF200 + AE202 - AE201 -> 0 | AG202: =AG200 + AF202 - AF201 -> 0 | AH202: =AH200 + AG202 - AG201 -> 0 | AI202: =AI200 + AH202 - AH201 -> 0 | AJ202: =AJ200 + AI202 - AI201 -> 0 | AK202: =AK200 + AJ202 - AJ201 -> 0 | AL202: =AL200 + AK202 - AK201 -> 0 | AM202: =AM200 + AL202 - AL201 -> 0 | AN202: =AN200 + AM202 - AM201 -> 0 | AO202: =AO200 + AN202 - AN201 -> 0 | AP202: =AP200 + AO202 - AO201 -> 0 | AQ202: =AQ200 + AP202 - AP201 -> 0 | AR202: =AR200 + AQ202 - AQ201 -> 0 | AS202: =AS200 + AR202 - AR201 -> 0 | AT202: =AT200 + AS202 - AS201 -> 0 | AU202: =AU200 + AT202 - AT201 -> 0 | AV202: =AV200 + AU202 - AU201 -> 0 | AW202: =AW200 + AV202 - AV201 -> 0 | AX202: =AX200 + AW202 - AW201 -> 0 | AY202: =AY200 + AX202 - AX201 -> 0 | AZ202: =AZ200 + AY202 - AY201 -> 0 | BA202: =BA200 + AZ202 - AZ201 -> 0 | BB202: =BB200 + BA202 - BA201 -> 0 | BC202: =BC200 + BB202 - BB201 -> 0 | BD202: =BD200 + BC202 - BC201 -> 0 | BE202: =BE200 + BD202 - BD201 -> 0 | BF202: =BF200 + BE202 - BE201 -> 0 | BG202: =BG200 + BF202 - BF201 -> 0 | BH202: =BH200 + BG202 - BG201 -> 0 | BI202: =BI200 + BH202 - BH201 -> 0 | BJ202: =BJ200 + BI202 - BI201 -> 0 | BK202: =BK200 + BJ202 - BJ201 -> 0 | BL202: =BL200 + BK202 - BK201 -> 0 | BM202: =BM200 + BL202 - BL201 -> 0
E203: TLF - Drawdown Period - # days | G203: days | J203: =J202 * (MIN($F197, J199) - MAX($F196, J198) +1) -> 366 | K203: 365 | L203: 0 | M203: 0 | N203: 0 | O203: 0 | P203: 0 | Q203: 0 | R203: 0 | S203: 0 | T203: 0 | U203: 0 | V203: 0 | W203: 0 | X203: 0 | Y203: 0 | Z203: 0 | AA203: 0 | AB203: 0 | AC203: 0 | AD203: 0 | AE203: 0 | AF203: 0 | AG203: 0 | AH203: 0 | AI203: 0 | AJ203: 0 | AK203: 0 | AL203: 0 | AM203: 0 | AN203: 0 | AO203: 0 | AP203: 0 | AQ203: 0 | AR203: 0 | AS203: 0 | AT203: 0 | AU203: 0 | AV203: 0 | AW203: 0 | AX203: 0 | AY203: 0 | AZ203: 0 | BA203: 0 | BB203: 0 | BC203: 0 | BD203: 0 | BE203: 0 | BF203: 0 | BG203: 0 | BH203: 0 | BI203: 0 | BJ203: 0 | BK203: 0 | BL203: 0 | BM203: 0
E205: =E$203 -> TLF - Drawdown Period - # days | F205: 0 | G205: days | H205: 0 | I205: 0 | J205: 366 | K205: 365 | L205: 0 | M205: 0 | N205: 0 | O205: 0 | P205: 0 | Q205: 0 | R205: 0 | S205: 0 | T205: 0 | U205: 0 | V205: 0 | W205: 0 | X205: 0 | Y205: 0 | Z205: 0 | AA205: 0 | AB205: 0 | AC205: 0 | AD205: 0 | AE205: 0 | AF205: 0 | AG205: 0 | AH205: 0 | AI205: 0 | AJ205: 0 | AK205: =AK$203 -> 0 | AL205: 0 | AM205: 0 | AN205: 0 | AO205: 0 | AP205: 0 | AQ205: 0 | AR205: 0 | AS205: 0 | AT205: 0 | AU205: 0 | AV205: 0 | AW205: 0 | AX205: 0 | AY205: 0 | AZ205: 0 | BA205: 0 | BB205: 0 | BC205: 0 | BD205: 0 | BE205: 0 | BF205: 0 | BG205: 0 | BH205: 0 | BI205: 0 | BJ205: 0 | BK205: 0 | BL205: 0 | BM205: 0
E206: =E$21 -> Days per period | F206: =F$21 -> 0 | G206: days | H206: 0 | I206: 0 | J206: 366 | K206: 365 | L206: 365 | M206: 365 | N206: 366 | O206: 365 | P206: 365 | Q206: 365 | R206: 366 | S206: 365 | T206: 365 | U206: 365 | V206: 366 | W206: 365 | X206: 365 | Y206: 365 | Z206: 366 | AA206: 365 | AB206: 365 | AC206: 365 | AD206: 366 | AE206: 365 | AF206: 365 | AG206: 365 | AH206: 366 | AI206: 365 | AJ206: 365 | AK206: 365 | AL206: 366 | AM206: 365 | AN206: 365 | AO206: 365 | AP206: 366 | AQ206: 365 | AR206: 365 | AS206: 365 | AT206: 366 | AU206: 365 | AV206: 365 | AW206: 365 | AX206: 366 | AY206: 365 | AZ206: 365 | BA206: 365 | BB206: 366 | BC206: 365 | BD206: 365 | BE206: 365 | BF206: 366 | BG206: 365 | BH206: 365 | BI206: 365 | BJ206: 366 | BK206: 365 | BL206: 365 | BM206: 365
E207: TLF Drawdown Period PeriodFrac | G207: fraction | J207: =J205 / J206 -> 1 | K207: 1 | L207: 0 | M207: 0 | N207: 0 | O207: 0 | P207: 0 | Q207: 0 | R207: 0 | S207: 0 | T207: 0 | U207: 0 | V207: 0 | W207: 0 | X207: 0 | Y207: 0 | Z207: 0 | AA207: 0 | AB207: 0 | AC207: 0 | AD207: 0 | AE207: 0 | AF207: 0 | AG207: 0 | AH207: 0 | AI207: 0 | AJ207: 0 | AK207: 0 | AL207: 0 | AM207: 0 | AN207: 0 | AO207: 0 | AP207: 0 | AQ207: 0 | AR207: 0 | AS207: 0 | AT207: 0 | AU207: 0 | AV207: 0 | AW207: 0 | AX207: 0 | AY207: 0 | AZ207: 0 | BA207: 0 | BB207: 0 | BC207: 0 | BD207: 0 | BE207: 0 | BF207: 0 | BG207: 0 | BH207: 0 | BI207: 0 | BJ207: 0 | BK207: 0 | BL207: 0 | BM207: 0
D209: Repayment
E210: =NTBA!E$189 -> TLF - Repayment Period Start Date | F210: =NTBA!F$189 -> 2022-01-01 | G210: =NTBA!G$189 -> date
E211: =NTBA!E$191 -> TMF - Repayment Period End Date | F211: =NTBA!F$191 -> 2036-12-31 | G211: =NTBA!G$191 -> date
E212: =E$19 -> Model Period Beginning | F212: =F$19 -> 00:00:00 | G212: date | H212: 00:00:00 | I212: 00:00:00 | J212: 2020-01-01 | K212: 2021-01-01 | L212: 2022-01-01 | M212: 2023-01-01 | N212: 2024-01-01 | O212: 2025-01-01 | P212: 2026-01-01 | Q212: 2027-01-01 | R212: 2028-01-01 | S212: 2029-01-01 | T212: 2030-01-01 | U212: 2031-01-01 | V212: 2032-01-01 | W212: 2033-01-01 | X212: 2034-01-01 | Y212: 2035-01-01 | Z212: 2036-01-01 | AA212: 2037-01-01 | AB212: 2038-01-01 | AC212: 2039-01-01 | AD212: 2040-01-01 | AE212: 2041-01-01 | AF212: 2042-01-01 | AG212: 2043-01-01 | AH212: 2044-01-01 | AI212: 2045-01-01 | AJ212: 2046-01-01 | AK212: 2047-01-01 | AL212: 2048-01-01 | AM212: 2049-01-01 | AN212: 2050-01-01 | AO212: 2051-01-01 | AP212: 2052-01-01 | AQ212: 2053-01-01 | AR212: 2054-01-01 | AS212: 2055-01-01 | AT212: 2056-01-01 | AU212: 2057-01-01 | AV212: 2058-01-01 | AW212: 2059-01-01 | AX212: 2060-01-01 | AY212: 2061-01-01 | AZ212: 2062-01-01 | BA212: 2063-01-01 | BB212: 2064-01-01 | BC212: 2065-01-01 | BD212: 2066-01-01 | BE212: 2067-01-01 | BF212: 2068-01-01 | BG212: 2069-01-01 | BH212: 2070-01-01 | BI212: 2071-01-01 | BJ212: 2072-01-01 | BK212: 2073-01-01 | BL212: 2074-01-01 | BM212: 2075-01-01
E213: =E$20 -> Model Period Ending | F213: =F$20 -> 00:00:00 | G213: date | H213: 00:00:00 | I213: 00:00:00 | J213: 2020-12-31 | K213: 2021-12-31 | L213: 2022-12-31 | M213: 2023-12-31 | N213: 2024-12-31 | O213: 2025-12-31 | P213: 2026-12-31 | Q213: 2027-12-31 | R213: 2028-12-31 | S213: 2029-12-31 | T213: 2030-12-31 | U213: 2031-12-31 | V213: 2032-12-31 | W213: 2033-12-31 | X213: 2034-12-31 | Y213: 2035-12-31 | Z213: 2036-12-31 | AA213: 2037-12-31 | AB213: 2038-12-31 | AC213: 2039-12-31 | AD213: 2040-12-31 | AE213: 2041-12-31 | AF213: 2042-12-31 | AG213: 2043-12-31 | AH213: 2044-12-31 | AI213: 2045-12-31 | AJ213: 2046-12-31 | AK213: 2047-12-31 | AL213: 2048-12-31 | AM213: 2049-12-31 | AN213: 2050-12-31 | AO213: 2051-12-31 | AP213: 2052-12-31 | AQ213: 2053-12-31 | AR213: 2054-12-31 | AS213: 2055-12-31 | AT213: 2056-12-31 | AU213: 2057-12-31 | AV213: 2058-12-31 | AW213: 2059-12-31 | AX213: 2060-12-31 | AY213: 2061-12-31 | AZ213: 2062-12-31 | BA213: 2063-12-31 | BB213: 2064-12-31 | BC213: 2065-12-31 | BD213: 2066-12-31 | BE213: 2067-12-31 | BF213: 2068-12-31 | BG213: 2069-12-31 | BH213: 2070-12-31 | BI213: 2071-12-31 | BJ213: 2072-12-31 | BK213: 2073-12-31 | BL213: 2074-12-31 | BM213: 2075-12-31
E214: Repayment Period Start | G214: flag | J214: =IF(AND($F210 >= J212, $F210 <= J213), 1, 0) -> 0 | K214: 0 | L214: 1 | M214: 0 | N214: 0 | O214: 0 | P214: 0 | Q214: 0 | R214: 0 | S214: 0 | T214: 0 | U214: 0 | V214: 0 | W214: 0 | X214: 0 | Y214: 0 | Z214: 0 | AA214: 0 | AB214: 0 | AC214: 0 | AD214: 0 | AE214: 0 | AF214: 0 | AG214: 0 | AH214: 0 | AI214: 0 | AJ214: 0 | AK214: 0 | AL214: 0 | AM214: 0 | AN214: 0 | AO214: 0 | AP214: =IF(AND($F210 >= AP212, $F210 <= AP213), 1, 0) -> 0 | AQ214: 0 | AR214: 0 | AS214: 0 | AT214: 0 | AU214: 0 | AV214: 0 | AW214: 0 | AX214: 0 | AY214: 0 | AZ214: 0 | BA214: 0 | BB214: 0 | BC214: 0 | BD214: 0 | BE214: 0 | BF214: 0 | BG214: 0 | BH214: 0 | BI214: 0 | BJ214: 0 | BK214: 0 | BL214: 0 | BM214: 0
E215: Repayment Period End | G215: flag | J215: =IF(AND($F211 >= J212, $F211 <= J213), 1, 0) -> 0 | K215: 0 | L215: 0 | M215: 0 | N215: 0 | O215: 0 | P215: 0 | Q215: 0 | R215: 0 | S215: 0 | T215: 0 | U215: 0 | V215: 0 | W215: 0 | X215: 0 | Y215: 0 | Z215: 1 | AA215: 0 | AB215: 0 | AC215: 0 | AD215: 0 | AE215: 0 | AF215: 0 | AG215: 0 | AH215: 0 | AI215: 0 | AJ215: 0 | AK215: 0 | AL215: 0 | AM215: 0 | AN215: 0 | AO215: 0 | AP215: =IF(AND($F211 >= AP212, $F211 <= AP213), 1, 0) -> 0 | AQ215: 0 | AR215: 0 | AS215: 0 | AT215: 0 | AU215: 0 | AV215: 0 | AW215: 0 | AX215: 0 | AY215: 0 | AZ215: 0 | BA215: 0 | BB215: 0 | BC215: 0 | BD215: 0 | BE215: 0 | BF215: 0 | BG215: 0 | BH215: 0 | BI215: 0 | BJ215: 0 | BK215: 0 | BL215: 0 | BM215: 0
E216: Repayment Period | G216: flag | J216: =J214 + I216 - I215 -> 0 | K216: 0 | L216: 1 | M216: 1 | N216: 1 | O216: 1 | P216: 1 | Q216: 1 | R216: 1 | S216: 1 | T216: 1 | U216: 1 | V216: 1 | W216: 1 | X216: 1 | Y216: 1 | Z216: 1 | AA216: 0 | AB216: 0 | AC216: 0 | AD216: 0 | AE216: 0 | AF216: 0 | AG216: 0 | AH216: 0 | AI216: 0 | AJ216: 0 | AK216: 0 | AL216: 0 | AM216: 0 | AN216: 0 | AO216: 0 | AP216: =AP214 + AO216 - AO215 -> 0 | AQ216: 0 | AR216: 0 | AS216: 0 | AT216: 0 | AU216: 0 | AV216: 0 | AW216: 0 | AX216: 0 | AY216: 0 | AZ216: 0 | BA216: 0 | BB216: 0 | BC216: 0 | BD216: 0 | BE216: 0 | BF216: 0 | BG216: 0 | BH216: 0 | BI216: 0 | BJ216: 0 | BK216: 0 | BL216: 0 | BM216: 0
E217: Repayment Period - # days | G217: days | J217: =J216 * (MIN($F211, J213) - MAX($F210, J212) +1) -> 0 | K217: 0 | L217: 365 | M217: 365 | N217: 366 | O217: 365 | P217: 365 | Q217: 365 | R217: 366 | S217: 365 | T217: 365 | U217: 365 | V217: 366 | W217: 365 | X217: 365 | Y217: 365 | Z217: 366 | AA217: 0 | AB217: 0 | AC217: 0 | AD217: 0 | AE217: 0 | AF217: 0 | AG217: 0 | AH217: 0 | AI217: 0 | AJ217: 0 | AK217: 0 | AL217: 0 | AM217: 0 | AN217: 0 | AO217: 0 | AP217: =AP216 * (MIN($F211, AP213) - MAX($F210, AP212) +1) -> 0 | AQ217: 0 | AR217: 0 | AS217: 0 | AT217: 0 | AU217: 0 | AV217: 0 | AW217: 0 | AX217: 0 | AY217: 0 | AZ217: 0 | BA217: 0 | BB217: 0 | BC217: 0 | BD217: 0 | BE217: 0 | BF217: 0 | BG217: 0 | BH217: 0 | BI217: 0 | BJ217: 0 | BK217: 0 | BL217: 0 | BM217: 0
E219: =E$217 -> Repayment Period - # days | F219: 00:00:00 | G219: days | H219: 0 | I219: 0 | J219: 0 | K219: 0 | L219: 365 | M219: 365 | N219: 366 | O219: 365 | P219: 365 | Q219: 365 | R219: 366 | S219: 365 | T219: 365 | U219: 365 | V219: 366 | W219: 365 | X219: 365 | Y219: 365 | Z219: 366 | AA219: 0 | AB219: 0 | AC219: 0 | AD219: 0 | AE219: 0 | AF219: 0 | AG219: 0 | AH219: 0 | AI219: 0 | AJ219: 0 | AK219: =AK$217 -> 0 | AL219: 0 | AM219: 0 | AN219: 0 | AO219: 0 | AP219: 0 | AQ219: 0 | AR219: 0 | AS219: 0 | AT219: 0 | AU219: 0 | AV219: 0 | AW219: 0 | AX219: 0 | AY219: 0 | AZ219: 0 | BA219: 0 | BB219: 0 | BC219: 0 | BD219: 0 | BE219: 0 | BF219: 0 | BG219: 0 | BH219: 0 | BI219: 0 | BJ219: 0 | BK219: 0 | BL219: 0 | BM219: 0
E220: =E$21 -> Days per period | F220: =F$21 -> 0 | G220: days | H220: 0 | I220: 0 | J220: 366 | K220: 365 | L220: 365 | M220: 365 | N220: 366 | O220: 365 | P220: 365 | Q220: 365 | R220: 366 | S220: 365 | T220: 365 | U220: 365 | V220: 366 | W220: 365 | X220: 365 | Y220: 365 | Z220: 366 | AA220: 365 | AB220: 365 | AC220: 365 | AD220: 366 | AE220: 365 | AF220: 365 | AG220: 365 | AH220: 366 | AI220: 365 | AJ220: 365 | AK220: 365 | AL220: 366 | AM220: 365 | AN220: 365 | AO220: 365 | AP220: 366 | AQ220: 365 | AR220: 365 | AS220: 365 | AT220: 366 | AU220: 365 | AV220: 365 | AW220: 365 | AX220: 366 | AY220: 365 | AZ220: 365 | BA220: 365 | BB220: 366 | BC220: 365 | BD220: 365 | BE220: 365 | BF220: 366 | BG220: 365 | BH220: 365 | BI220: 365 | BJ220: 366 | BK220: 365 | BL220: 365 | BM220: 365
E221: TLF Repayment Period PeriodFrac | G221: fraction | J221: =J219 / J220 -> 0 | K221: 0 | L221: 1 | M221: 1 | N221: 1 | O221: 1 | P221: 1 | Q221: 1 | R221: 1 | S221: 1 | T221: 1 | U221: 1 | V221: 1 | W221: 1 | X221: 1 | Y221: 1 | Z221: 1 | AA221: 0 | AB221: 0 | AC221: 0 | AD221: 0 | AE221: 0 | AF221: 0 | AG221: 0 | AH221: 0 | AI221: 0 | AJ221: 0 | AK221: 0 | AL221: 0 | AM221: 0 | AN221: 0 | AO221: 0 | AP221: =AP219 / AP220 -> 0 | AQ221: 0 | AR221: 0 | AS221: 0 | AT221: 0 | AU221: 0 | AV221: 0 | AW221: 0 | AX221: 0 | AY221: 0 | AZ221: 0 | BA221: 0 | BB221: 0 | BC221: 0 | BD221: 0 | BE221: 0 | BF221: 0 | BG221: 0 | BH221: 0 | BI221: 0 | BJ221: 0 | BK221: 0 | BL221: 0 | BM221: 0
E223: =E$221 -> TLF Repayment Period PeriodFrac | F223: 0 | G223: fraction | H223: 0 | I223: 0 | J223: 0 | K223: 0 | L223: 1 | M223: 1 | N223: 1 | O223: 1 | P223: 1 | Q223: 1 | R223: 1 | S223: 1 | T223: 1 | U223: 1 | V223: 1 | W223: 1 | X223: 1 | Y223: 1 | Z223: 1 | AA223: 0 | AB223: 0 | AC223: 0 | AD223: 0 | AE223: 0 | AF223: 0 | AG223: 0 | AH223: 0 | AI223: 0 | AJ223: 0 | AK223: =AK$221 -> 0 | AL223: 0 | AM223: 0 | AN223: 0 | AO223: 0 | AP223: 0 | AQ223: 0 | AR223: 0 | AS223: 0 | AT223: 0 | AU223: 0 | AV223: 0 | AW223: 0 | AX223: 0 | AY223: 0 | AZ223: 0 | BA223: 0 | BB223: 0 | BC223: 0 | BD223: 0 | BE223: 0 | BF223: 0 | BG223: 0 | BH223: 0 | BI223: 0 | BJ223: 0 | BK223: 0 | BL223: 0 | BM223: 0
E224: TLF Repayment Period - Remaining Periods | G224: periods | J224: =SUM(J223:BM223) -> 15 | K224: 15 | L224: 15 | M224: 14 | N224: 13 | O224: 12 | P224: 11 | Q224: 10 | R224: 9 | S224: 8 | T224: 7 | U224: 6 | V224: 5 | W224: 4 | X224: 3 | Y224: 2 | Z224: 1 | AA224: 0 | AB224: 0 | AC224: 0 | AD224: 0 | AE224: 0 | AF224: 0 | AG224: 0 | AH224: 0 | AI224: 0 | AJ224: 0 | AK224: 0 | AL224: 0 | AM224: 0 | AN224: 0 | AO224: 0 | AP224: =SUM(AP223:CS223) -> 0 | AQ224: 0 | AR224: 0 | AS224: 0 | AT224: 0 | AU224: 0 | AV224: 0 | AW224: 0 | AX224: 0 | AY224: 0 | AZ224: 0 | BA224: 0 | BB224: 0 | BC224: 0 | BD224: 0 | BE224: 0 | BF224: 0 | BG224: 0 | BH224: 0 | BI224: 0 | BJ224: 0 | BK224: 0 | BL224: 0 | BM224: 0

Sheet Esc
B2: ESCALATION
E3: =Timing!E$19 -> Model Period Beginning | F3: =Checks!F$26 -> 0 | G3: Calculate | J3: =Timing!J$19 -> 2020-01-01 | K3: =Timing!K$19 -> 2021-01-01 | L3: =Timing!L$19 -> 2022-01-01 | M3: =Timing!M$19 -> 2023-01-01 | N3: =Timing!N$19 -> 2024-01-01 | O3: =Timing!O$19 -> 2025-01-01 | P3: =Timing!P$19 -> 2026-01-01 | Q3: =Timing!Q$19 -> 2027-01-01 | R3: =Timing!R$19 -> 2028-01-01 | S3: =Timing!S$19 -> 2029-01-01 | T3: =Timing!T$19 -> 2030-01-01 | U3: =Timing!U$19 -> 2031-01-01 | V3: =Timing!V$19 -> 2032-01-01 | W3: =Timing!W$19 -> 2033-01-01 | X3: =Timing!X$19 -> 2034-01-01 | Y3: =Timing!Y$19 -> 2035-01-01 | Z3: =Timing!Z$19 -> 2036-01-01 | AA3: =Timing!AA$19 -> 2037-01-01 | AB3: =Timing!AB$19 -> 2038-01-01 | AC3: =Timing!AC$19 -> 2039-01-01 | AD3: =Timing!AD$19 -> 2040-01-01 | AE3: =Timing!AE$19 -> 2041-01-01 | AF3: =Timing!AF$19 -> 2042-01-01 | AG3: =Timing!AG$19 -> 2043-01-01 | AH3: =Timing!AH$19 -> 2044-01-01 | AI3: =Timing!AI$19 -> 2045-01-01 | AJ3: =Timing!AJ$19 -> 2046-01-01 | AK3: =Timing!AK$19 -> 2047-01-01 | AL3: =Timing!AL$19 -> 2048-01-01 | AM3: =Timing!AM$19 -> 2049-01-01 | AN3: =Timing!AN$19 -> 2050-01-01 | AO3: =Timing!AO$19 -> 2051-01-01 | AP3: =Timing!AP$19 -> 2052-01-01 | AQ3: =Timing!AQ$19 -> 2053-01-01 | AR3: =Timing!AR$19 -> 2054-01-01 | AS3: =Timing!AS$19 -> 2055-01-01 | AT3: =Timing!AT$19 -> 2056-01-01 | AU3: =Timing!AU$19 -> 2057-01-01 | AV3: =Timing!AV$19 -> 2058-01-01 | AW3: =Timing!AW$19 -> 2059-01-01 | AX3: =Timing!AX$19 -> 2060-01-01 | AY3: =Timing!AY$19 -> 2061-01-01 | AZ3: =Timing!AZ$19 -> 2062-01-01 | BA3: =Timing!BA$19 -> 2063-01-01 | BB3: =Timing!BB$19 -> 2064-01-01 | BC3: =Timing!BC$19 -> 2065-01-01 | BD3: =Timing!BD$19 -> 2066-01-01 | BE3: =Timing!BE$19 -> 2067-01-01 | BF3: =Timing!BF$19 -> 2068-01-01 | BG3: =Timing!BG$19 -> 2069-01-01 | BH3: =Timing!BH$19 -> 2070-01-01 | BI3: =Timing!BI$19 -> 2071-01-01 | BJ3: =Timing!BJ$19 -> 2072-01-01 | BK3: =Timing!BK$19 -> 2073-01-01 | BL3: =Timing!BL$19 -> 2074-01-01 | BM3: =Timing!BM$19 -> 2075-01-01
E4: =Timing!E$20 -> Model Period Ending | F4: =Checks!F$20 -> 0 | G4: Structure | J4: =Timing!J$20 -> 2020-12-31 | K4: =Timing!K$20 -> 2021-12-31 | L4: =Timing!L$20 -> 2022-12-31 | M4: =Timing!M$20 -> 2023-12-31 | N4: =Timing!N$20 -> 2024-12-31 | O4: =Timing!O$20 -> 2025-12-31 | P4: =Timing!P$20 -> 2026-12-31 | Q4: =Timing!Q$20 -> 2027-12-31 | R4: =Timing!R$20 -> 2028-12-31 | S4: =Timing!S$20 -> 2029-12-31 | T4: =Timing!T$20 -> 2030-12-31 | U4: =Timing!U$20 -> 2031-12-31 | V4: =Timing!V$20 -> 2032-12-31 | W4: =Timing!W$20 -> 2033-12-31 | X4: =Timing!X$20 -> 2034-12-31 | Y4: =Timing!Y$20 -> 2035-12-31 | Z4: =Timing!Z$20 -> 2036-12-31 | AA4: =Timing!AA$20 -> 2037-12-31 | AB4: =Timing!AB$20 -> 2038-12-31 | AC4: =Timing!AC$20 -> 2039-12-31 | AD4: =Timing!AD$20 -> 2040-12-31 | AE4: =Timing!AE$20 -> 2041-12-31 | AF4: =Timing!AF$20 -> 2042-12-31 | AG4: =Timing!AG$20 -> 2043-12-31 | AH4: =Timing!AH$20 -> 2044-12-31 | AI4: =Timing!AI$20 -> 2045-12-31 | AJ4: =Timing!AJ$20 -> 2046-12-31 | AK4: =Timing!AK$20 -> 2047-12-31 | AL4: =Timing!AL$20 -> 2048-12-31 | AM4: =Timing!AM$20 -> 2049-12-31 | AN4: =Timing!AN$20 -> 2050-12-31 | AO4: =Timing!AO$20 -> 2051-12-31 | AP4: =Timing!AP$20 -> 2052-12-31 | AQ4: =Timing!AQ$20 -> 2053-12-31 | AR4: =Timing!AR$20 -> 2054-12-31 | AS4: =Timing!AS$20 -> 2055-12-31 | AT4: =Timing!AT$20 -> 2056-12-31 | AU4: =Timing!AU$20 -> 2057-12-31 | AV4: =Timing!AV$20 -> 2058-12-31 | AW4: =Timing!AW$20 -> 2059-12-31 | AX4: =Timing!AX$20 -> 2060-12-31 | AY4: =Timing!AY$20 -> 2061-12-31 | AZ4: =Timing!AZ$20 -> 2062-12-31 | BA4: =Timing!BA$20 -> 2063-12-31 | BB4: =Timing!BB$20 -> 2064-12-31 | BC4: =Timing!BC$20 -> 2065-12-31 | BD4: =Timing!BD$20 -> 2066-12-31 | BE4: =Timing!BE$20 -> 2067-12-31 | BF4: =Timing!BF$20 -> 2068-12-31 | BG4: =Timing!BG$20 -> 2069-12-31 | BH4: =Timing!BH$20 -> 2070-12-31 | BI4: =Timing!BI$20 -> 2071-12-31 | BJ4: =Timing!BJ$20 -> 2072-12-31 | BK4: =Timing!BK$20 -> 2073-12-31 | BL4: =Timing!BL$20 -> 2074-12-31 | BM4: =Timing!BM$20 -> 2075-12-31
E5: =Timing!E$76 -> Project Period | J5: =Timing!J$76 -> Constr | K5: =Timing!K$76 -> Constr | L5: =Timing!L$76 -> Expl | M5: =Timing!M$76 -> Expl | N5: =Timing!N$76 -> Expl | O5: =Timing!O$76 -> Expl | P5: =Timing!P$76 -> Expl | Q5: =Timing!Q$76 -> Expl | R5: =Timing!R$76 -> Expl | S5: =Timing!S$76 -> Expl | T5: =Timing!T$76 -> Expl | U5: =Timing!U$76 -> Expl | V5: =Timing!V$76 -> Expl | W5: =Timing!W$76 -> Expl | X5: =Timing!X$76 -> Expl | Y5: =Timing!Y$76 -> Expl | Z5: =Timing!Z$76 -> Expl | AA5: =Timing!AA$76 -> Expl | AB5: =Timing!AB$76 -> Expl | AC5: =Timing!AC$76 -> Expl | AD5: =Timing!AD$76 -> Expl | AE5: =Timing!AE$76 -> Expl | AF5: =Timing!AF$76 -> Expl | AG5: =Timing!AG$76 -> Expl | AH5: =Timing!AH$76 -> Expl | AI5: =Timing!AI$76 -> Expl | AJ5: =Timing!AJ$76 -> Expl | AK5: =Timing!AK$76 -> Expl | AL5: =Timing!AL$76 -> Expl | AM5: =Timing!AM$76 -> Expl | AN5: =Timing!AN$76 -> Expl | AO5: =Timing!AO$76 -> Expl | AP5: =Timing!AP$76 -> Expl | AQ5: =Timing!AQ$76 -> Expl | AR5: =Timing!AR$76 -> Expl | AS5: =Timing!AS$76 -> Expl | AT5: =Timing!AT$76 -> Expl | AU5: =Timing!AU$76 -> Post-Expl | AV5: =Timing!AV$76 -> Post-Expl | AW5: =Timing!AW$76 -> Post-Expl | AX5: =Timing!AX$76 -> Post-Expl | AY5: =Timing!AY$76 -> Post-Expl | AZ5: =Timing!AZ$76 -> Post-Expl | BA5: =Timing!BA$76 -> Post-Expl | BB5: =Timing!BB$76 -> Post-Expl | BC5: =Timing!BC$76 -> Post-Expl | BD5: =Timing!BD$76 -> Post-Expl | BE5: =Timing!BE$76 -> Post-Expl | BF5: =Timing!BF$76 -> Post-Expl | BG5: =Timing!BG$76 -> Post-Expl | BH5: =Timing!BH$76 -> Post-Expl | BI5: =Timing!BI$76 -> Post-Expl | BJ5: =Timing!BJ$76 -> Post-Expl | BK5: =Timing!BK$76 -> Post-Expl | BL5: =Timing!BL$76 -> Post-Expl | BM5: =Timing!BM$76 -> Post-Expl
F6: Constante | G6: Eenheid | H6: Total
B8: REVENUES
E10: =NTBA!E$98 -> Index Rate - Revenues | F10: =NTBA!F$98 -> 0 | G10: =NTBA!G$98 -> % p.a.
E11: =NTBA!E$208 -> No. of Months in Year | F11: =NTBA!F$208 -> 12 | G11: =NTBA!G$208 -> months
E12: =Timing!E$84 -> Indexation - Months passed since Base Date | F12: =Timing!F$84 -> 0 | G12: =Timing!G$84 -> months | H12: =Timing!H$84 -> 0 | I12: =Timing!I$84 -> 0 | J12: =Timing!J$84 -> 0 | K12: =Timing!K$84 -> 12 | L12: =Timing!L$84 -> 24 | M12: =Timing!M$84 -> 36 | N12: =Timing!N$84 -> 48 | O12: =Timing!O$84 -> 60 | P12: =Timing!P$84 -> 72 | Q12: =Timing!Q$84 -> 84 | R12: =Timing!R$84 -> 96 | S12: =Timing!S$84 -> 108 | T12: =Timing!T$84 -> 120 | U12: =Timing!U$84 -> 132 | V12: =Timing!V$84 -> 144 | W12: =Timing!W$84 -> 156 | X12: =Timing!X$84 -> 168 | Y12: =Timing!Y$84 -> 180 | Z12: =Timing!Z$84 -> 192 | AA12: =Timing!AA$84 -> 204 | AB12: =Timing!AB$84 -> 216 | AC12: =Timing!AC$84 -> 228 | AD12: =Timing!AD$84 -> 240 | AE12: =Timing!AE$84 -> 252 | AF12: =Timing!AF$84 -> 264 | AG12: =Timing!AG$84 -> 276 | AH12: =Timing!AH$84 -> 288 | AI12: =Timing!AI$84 -> 300 | AJ12: =Timing!AJ$84 -> 312 | AK12: =Timing!AK$84 -> 324 | AL12: =Timing!AL$84 -> 336 | AM12: =Timing!AM$84 -> 348 | AN12: =Timing!AN$84 -> 360 | AO12: =Timing!AO$84 -> 372 | AP12: =Timing!AP$84 -> 384 | AQ12: =Timing!AQ$84 -> 396 | AR12: =Timing!AR$84 -> 408 | AS12: =Timing!AS$84 -> 420 | AT12: =Timing!AT$84 -> 432 | AU12: =Timing!AU$84 -> 444 | AV12: =Timing!AV$84 -> 456 | AW12: =Timing!AW$84 -> 468 | AX12: =Timing!AX$84 -> 480 | AY12: =Timing!AY$84 -> 492 | AZ12: =Timing!AZ$84 -> 504 | BA12: =Timing!BA$84 -> 516 | BB12: =Timing!BB$84 -> 528 | BC12: =Timing!BC$84 -> 540 | BD12: =Timing!BD$84 -> 552 | BE12: =Timing!BE$84 -> 564 | BF12: =Timing!BF$84 -> 576 | BG12: =Timing!BG$84 -> 588 | BH12: =Timing!BH$84 -> 600 | BI12: =Timing!BI$84 -> 612 | BJ12: =Timing!BJ$84 -> 624 | BK12: =Timing!BK$84 -> 636 | BL12: =Timing!BL$84 -> 648 | BM12: =Timing!BM$84 -> 660
E13: Index Factor - Revenues | G13: factor | J13: =(1 + $F10) ^ (J12 / $F11) -> 1 | K13: =(1 + $F10) ^(K12 / $F11) -> 1 | L13: 1 | M13: 1 | N13: 1 | O13: 1 | P13: 1 | Q13: 1 | R13: 1 | S13: 1 | T13: 1 | U13: 1 | V13: 1 | W13: 1 | X13: 1 | Y13: 1 | Z13: 1 | AA13: 1 | AB13: 1 | AC13: 1 | AD13: 1 | AE13: 1 | AF13: 1 | AG13: 1 | AH13: 1 | AI13: 1 | AJ13: 1 | AK13: 1 | AL13: 1 | AM13: 1 | AN13: 1 | AO13: 1 | AP13: =(1 + $F10) ^(AP12 / $F11) -> 1 | AQ13: 1 | AR13: 1 | AS13: 1 | AT13: 1 | AU13: 1 | AV13: 1 | AW13: 1 | AX13: 1 | AY13: 1 | AZ13: 1 | BA13: 1 | BB13: 1 | BC13: 1 | BD13: 1 | BE13: 1 | BF13: 1 | BG13: 1 | BH13: 1 | BI13: 1 | BJ13: 1 | BK13: 1 | BL13: 1 | BM13: 1
B15: COSTS
E17: =NTBA!E$129 -> Index Rate - Operational Costs | F17: =NTBA!F$129 -> 0 | G17: =NTBA!G$129 -> % p.a.
E18: =NTBA!E$208 -> No. of Months in Year | F18: =NTBA!F$208 -> 12 | G18: =NTBA!G$208 -> months
E19: =Timing!E$84 -> Indexation - Months passed since Base Date | F19: =Timing!F$84 -> 0 | G19: =Timing!G$84 -> months | H19: =Timing!H$84 -> 0 | I19: =Timing!I$84 -> 0 | J19: =Timing!J$84 -> 0 | K19: =Timing!K$84 -> 12 | L19: =Timing!L$84 -> 24 | M19: =Timing!M$84 -> 36 | N19: =Timing!N$84 -> 48 | O19: =Timing!O$84 -> 60 | P19: =Timing!P$84 -> 72 | Q19: =Timing!Q$84 -> 84 | R19: =Timing!R$84 -> 96 | S19: =Timing!S$84 -> 108 | T19: =Timing!T$84 -> 120 | U19: =Timing!U$84 -> 132 | V19: =Timing!V$84 -> 144 | W19: =Timing!W$84 -> 156 | X19: =Timing!X$84 -> 168 | Y19: =Timing!Y$84 -> 180 | Z19: =Timing!Z$84 -> 192 | AA19: =Timing!AA$84 -> 204 | AB19: =Timing!AB$84 -> 216 | AC19: =Timing!AC$84 -> 228 | AD19: =Timing!AD$84 -> 240 | AE19: =Timing!AE$84 -> 252 | AF19: =Timing!AF$84 -> 264 | AG19: =Timing!AG$84 -> 276 | AH19: =Timing!AH$84 -> 288 | AI19: =Timing!AI$84 -> 300 | AJ19: =Timing!AJ$84 -> 312 | AK19: =Timing!AK$84 -> 324 | AL19: =Timing!AL$84 -> 336 | AM19: =Timing!AM$84 -> 348 | AN19: =Timing!AN$84 -> 360 | AO19: =Timing!AO$84 -> 372 | AP19: =Timing!AP$84 -> 384 | AQ19: =Timing!AQ$84 -> 396 | AR19: =Timing!AR$84 -> 408 | AS19: =Timing!AS$84 -> 420 | AT19: =Timing!AT$84 -> 432 | AU19: =Timing!AU$84 -> 444 | AV19: =Timing!AV$84 -> 456 | AW19: =Timing!AW$84 -> 468 | AX19: =Timing!AX$84 -> 480 | AY19: =Timing!AY$84 -> 492 | AZ19: =Timing!AZ$84 -> 504 | BA19: =Timing!BA$84 -> 516 | BB19: =Timing!BB$84 -> 528 | BC19: =Timing!BC$84 -> 540 | BD19: =Timing!BD$84 -> 552 | BE19: =Timing!BE$84 -> 564 | BF19: =Timing!BF$84 -> 576 | BG19: =Timing!BG$84 -> 588 | BH19: =Timing!BH$84 -> 600 | BI19: =Timing!BI$84 -> 612 | BJ19: =Timing!BJ$84 -> 624 | BK19: =Timing!BK$84 -> 636 | BL19: =Timing!BL$84 -> 648 | BM19: =Timing!BM$84 -> 660
E20: Index Factor - Operational Costs | G20: factor | J20: =(1 + $F17) ^ (J19 / $F18) -> 1 | K20: 1 | L20: 1 | M20: 1 | N20: 1 | O20: 1 | P20: 1 | Q20: 1 | R20: 1 | S20: 1 | T20: 1 | U20: 1 | V20: 1 | W20: 1 | X20: 1 | Y20: 1 | Z20: 1 | AA20: 1 | AB20: 1 | AC20: 1 | AD20: 1 | AE20: 1 | AF20: 1 | AG20: 1 | AH20: 1 | AI20: 1 | AJ20: 1 | AK20: 1 | AL20: 1 | AM20: 1 | AN20: 1 | AO20: 1 | AP20: =(1 + $F17) ^ (AP19 / $F18) -> 1 | AQ20: 1 | AR20: 1 | AS20: 1 | AT20: 1 | AU20: 1 | AV20: 1 | AW20: 1 | AX20: 1 | AY20: 1 | AZ20: 1 | BA20: 1 | BB20: 1 | BC20: 1 | BD20: 1 | BE20: 1 | BF20: 1 | BG20: 1 | BH20: 1 | BI20: 1 | BJ20: 1 | BK20: 1 | BL20: 1 | BM20: 1

Sheet Inv
B2: INVESTMENTS
E3: =Timing!E$19 -> Model Period Beginning | F3: =Checks!F$26 -> 0 | G3: Calculate | J3: =Timing!J$19 -> 2020-01-01 | K3: =Timing!K$19 -> 2021-01-01 | L3: =Timing!L$19 -> 2022-01-01 | M3: =Timing!M$19 -> 2023-01-01 | N3: =Timing!N$19 -> 2024-01-01 | O3: =Timing!O$19 -> 2025-01-01 | P3: =Timing!P$19 -> 2026-01-01 | Q3: =Timing!Q$19 -> 2027-01-01 | R3: =Timing!R$19 -> 2028-01-01 | S3: =Timing!S$19 -> 2029-01-01 | T3: =Timing!T$19 -> 2030-01-01 | U3: =Timing!U$19 -> 2031-01-01 | V3: =Timing!V$19 -> 2032-01-01 | W3: =Timing!W$19 -> 2033-01-01 | X3: =Timing!X$19 -> 2034-01-01 | Y3: =Timing!Y$19 -> 2035-01-01 | Z3: =Timing!Z$19 -> 2036-01-01 | AA3: =Timing!AA$19 -> 2037-01-01 | AB3: =Timing!AB$19 -> 2038-01-01 | AC3: =Timing!AC$19 -> 2039-01-01 | AD3: =Timing!AD$19 -> 2040-01-01 | AE3: =Timing!AE$19 -> 2041-01-01 | AF3: =Timing!AF$19 -> 2042-01-01 | AG3: =Timing!AG$19 -> 2043-01-01 | AH3: =Timing!AH$19 -> 2044-01-01 | AI3: =Timing!AI$19 -> 2045-01-01 | AJ3: =Timing!AJ$19 -> 2046-01-01 | AK3: =Timing!AK$19 -> 2047-01-01 | AL3: =Timing!AL$19 -> 2048-01-01 | AM3: =Timing!AM$19 -> 2049-01-01 | AN3: =Timing!AN$19 -> 2050-01-01 | AO3: =Timing!AO$19 -> 2051-01-01 | AP3: =Timing!AP$19 -> 2052-01-01 | AQ3: =Timing!AQ$19 -> 2053-01-01 | AR3: =Timing!AR$19 -> 2054-01-01 | AS3: =Timing!AS$19 -> 2055-01-01 | AT3: =Timing!AT$19 -> 2056-01-01 | AU3: =Timing!AU$19 -> 2057-01-01 | AV3: =Timing!AV$19 -> 2058-01-01 | AW3: =Timing!AW$19 -> 2059-01-01 | AX3: =Timing!AX$19 -> 2060-01-01 | AY3: =Timing!AY$19 -> 2061-01-01 | AZ3: =Timing!AZ$19 -> 2062-01-01 | BA3: =Timing!BA$19 -> 2063-01-01 | BB3: =Timing!BB$19 -> 2064-01-01 | BC3: =Timing!BC$19 -> 2065-01-01 | BD3: =Timing!BD$19 -> 2066-01-01 | BE3: =Timing!BE$19 -> 2067-01-01 | BF3: =Timing!BF$19 -> 2068-01-01 | BG3: =Timing!BG$19 -> 2069-01-01 | BH3: =Timing!BH$19 -> 2070-01-01 | BI3: =Timing!BI$19 -> 2071-01-01 | BJ3: =Timing!BJ$19 -> 2072-01-01 | BK3: =Timing!BK$19 -> 2073-01-01 | BL3: =Timing!BL$19 -> 2074-01-01 | BM3: =Timing!BM$19 -> 2075-01-01
E4: =Timing!E$20 -> Model Period Ending | F4: =Checks!F$20 -> 0 | G4: Structure | J4: =Timing!J$20 -> 2020-12-31 | K4: =Timing!K$20 -> 2021-12-31 | L4: =Timing!L$20 -> 2022-12-31 | M4: =Timing!M$20 -> 2023-12-31 | N4: =Timing!N$20 -> 2024-12-31 | O4: =Timing!O$20 -> 2025-12-31 | P4: =Timing!P$20 -> 2026-12-31 | Q4: =Timing!Q$20 -> 2027-12-31 | R4: =Timing!R$20 -> 2028-12-31 | S4: =Timing!S$20 -> 2029-12-31 | T4: =Timing!T$20 -> 2030-12-31 | U4: =Timing!U$20 -> 2031-12-31 | V4: =Timing!V$20 -> 2032-12-31 | W4: =Timing!W$20 -> 2033-12-31 | X4: =Timing!X$20 -> 2034-12-31 | Y4: =Timing!Y$20 -> 2035-12-31 | Z4: =Timing!Z$20 -> 2036-12-31 | AA4: =Timing!AA$20 -> 2037-12-31 | AB4: =Timing!AB$20 -> 2038-12-31 | AC4: =Timing!AC$20 -> 2039-12-31 | AD4: =Timing!AD$20 -> 2040-12-31 | AE4: =Timing!AE$20 -> 2041-12-31 | AF4: =Timing!AF$20 -> 2042-12-31 | AG4: =Timing!AG$20 -> 2043-12-31 | AH4: =Timing!AH$20 -> 2044-12-31 | AI4: =Timing!AI$20 -> 2045-12-31 | AJ4: =Timing!AJ$20 -> 2046-12-31 | AK4: =Timing!AK$20 -> 2047-12-31 | AL4: =Timing!AL$20 -> 2048-12-31 | AM4: =Timing!AM$20 -> 2049-12-31 | AN4: =Timing!AN$20 -> 2050-12-31 | AO4: =Timing!AO$20 -> 2051-12-31 | AP4: =Timing!AP$20 -> 2052-12-31 | AQ4: =Timing!AQ$20 -> 2053-12-31 | AR4: =Timing!AR$20 -> 2054-12-31 | AS4: =Timing!AS$20 -> 2055-12-31 | AT4: =Timing!AT$20 -> 2056-12-31 | AU4: =Timing!AU$20 -> 2057-12-31 | AV4: =Timing!AV$20 -> 2058-12-31 | AW4: =Timing!AW$20 -> 2059-12-31 | AX4: =Timing!AX$20 -> 2060-12-31 | AY4: =Timing!AY$20 -> 2061-12-31 | AZ4: =Timing!AZ$20 -> 2062-12-31 | BA4: =Timing!BA$20 -> 2063-12-31 | BB4: =Timing!BB$20 -> 2064-12-31 | BC4: =Timing!BC$20 -> 2065-12-31 | BD4: =Timing!BD$20 -> 2066-12-31 | BE4: =Timing!BE$20 -> 2067-12-31 | BF4: =Timing!BF$20 -> 2068-12-31 | BG4: =Timing!BG$20 -> 2069-12-31 | BH4: =Timing!BH$20 -> 2070-12-31 | BI4: =Timing!BI$20 -> 2071-12-31 | BJ4: =Timing!BJ$20 -> 2072-12-31 | BK4: =Timing!BK$20 -> 2073-12-31 | BL4: =Timing!BL$20 -> 2074-12-31 | BM4: =Timing!BM$20 -> 2075-12-31
E5: =Timing!E$76 -> Project Period | J5: =Timing!J$76 -> Constr | K5: =Timing!K$76 -> Constr | L5: =Timing!L$76 -> Expl | M5: =Timing!M$76 -> Expl | N5: =Timing!N$76 -> Expl | O5: =Timing!O$76 -> Expl | P5: =Timing!P$76 -> Expl | Q5: =Timing!Q$76 -> Expl | R5: =Timing!R$76 -> Expl | S5: =Timing!S$76 -> Expl | T5: =Timing!T$76 -> Expl | U5: =Timing!U$76 -> Expl | V5: =Timing!V$76 -> Expl | W5: =Timing!W$76 -> Expl | X5: =Timing!X$76 -> Expl | Y5: =Timing!Y$76 -> Expl | Z5: =Timing!Z$76 -> Expl | AA5: =Timing!AA$76 -> Expl | AB5: =Timing!AB$76 -> Expl | AC5: =Timing!AC$76 -> Expl | AD5: =Timing!AD$76 -> Expl | AE5: =Timing!AE$76 -> Expl | AF5: =Timing!AF$76 -> Expl | AG5: =Timing!AG$76 -> Expl | AH5: =Timing!AH$76 -> Expl | AI5: =Timing!AI$76 -> Expl | AJ5: =Timing!AJ$76 -> Expl | AK5: =Timing!AK$76 -> Expl | AL5: =Timing!AL$76 -> Expl | AM5: =Timing!AM$76 -> Expl | AN5: =Timing!AN$76 -> Expl | AO5: =Timing!AO$76 -> Expl | AP5: =Timing!AP$76 -> Expl | AQ5: =Timing!AQ$76 -> Expl | AR5: =Timing!AR$76 -> Expl | AS5: =Timing!AS$76 -> Expl | AT5: =Timing!AT$76 -> Expl | AU5: =Timing!AU$76 -> Post-Expl | AV5: =Timing!AV$76 -> Post-Expl | AW5: =Timing!AW$76 -> Post-Expl | AX5: =Timing!AX$76 -> Post-Expl | AY5: =Timing!AY$76 -> Post-Expl | AZ5: =Timing!AZ$76 -> Post-Expl | BA5: =Timing!BA$76 -> Post-Expl | BB5: =Timing!BB$76 -> Post-Expl | BC5: =Timing!BC$76 -> Post-Expl | BD5: =Timing!BD$76 -> Post-Expl | BE5: =Timing!BE$76 -> Post-Expl | BF5: =Timing!BF$76 -> Post-Expl | BG5: =Timing!BG$76 -> Post-Expl | BH5: =Timing!BH$76 -> Post-Expl | BI5: =Timing!BI$76 -> Post-Expl | BJ5: =Timing!BJ$76 -> Post-Expl | BK5: =Timing!BK$76 -> Post-Expl | BL5: =Timing!BL$76 -> Post-Expl | BM5: =Timing!BM$76 -> Post-Expl
F6: Constante | G6: Eenheid | H6: Total
B8: INVESTMENTS
C10: CAPEX
D12: Process 1
E13: =NTBA!E$33 -> Process 1 - Active | F13: =NTBA!F$33 -> 1 | G13: =NTBA!G$33 -> 0=no ; 1=yes
E14: =NTBA!E$80 -> Process 1 - CAPEX | F14: =NTBA!F$80 -> 523000 | G14: =NTBA!G$80 -> EUR
E15: =TBA!E$15 -> CAPEX Investment Profile | F15: =TBA!F$15 -> 0 | G15: =TBA!G$15 -> % | H15: =TBA!H$15 -> 1 | I15: =TBA!I$15 -> 0 | J15: =TBA!J$15 -> 0.5 | K15: =TBA!K$15 -> 0.5 | L15: =TBA!L$15 -> 0 | M15: =TBA!M$15 -> 0 | N15: =TBA!N$15 -> 0 | O15: =TBA!O$15 -> 0 | P15: =TBA!P$15 -> 0 | Q15: =TBA!Q$15 -> 0 | R15: =TBA!R$15 -> 0 | S15: =TBA!S$15 -> 0 | T15: =TBA!T$15 -> 0 | U15: =TBA!U$15 -> 0 | V15: =TBA!V$15 -> 0 | W15: =TBA!W$15 -> 0 | X15: =TBA!X$15 -> 0 | Y15: =TBA!Y$15 -> 0 | Z15: =TBA!Z$15 -> 0 | AA15: =TBA!AA$15 -> 0 | AB15: =TBA!AB$15 -> 0 | AC15: =TBA!AC$15 -> 0 | AD15: =TBA!AD$15 -> 0 | AE15: =TBA!AE$15 -> 0 | AF15: =TBA!AF$15 -> 0 | AG15: =TBA!AG$15 -> 0 | AH15: =TBA!AH$15 -> 0 | AI15: =TBA!AI$15 -> 0 | AJ15: =TBA!AJ$15 -> 0 | AK15: =TBA!AK$15 -> 0 | AL15: =TBA!AL$15 -> 0 | AM15: =TBA!AM$15 -> 0 | AN15: =TBA!AN$15 -> 0 | AO15: =TBA!AO$15 -> 0 | AP15: =TBA!AP$15 -> 0 | AQ15: =TBA!AQ$15 -> 0 | AR15: =TBA!AR$15 -> 0 | AS15: =TBA!AS$15 -> 0 | AT15: =TBA!AT$15 -> 0 | AU15: =TBA!AU$15 -> 0 | AV15: =TBA!AV$15 -> 0 | AW15: =TBA!AW$15 -> 0 | AX15: =TBA!AX$15 -> 0 | AY15: =TBA!AY$15 -> 0 | AZ15: =TBA!AZ$15 -> 0 | BA15: =TBA!BA$15 -> 0 | BB15: =TBA!BB$15 -> 0 | BC15: =TBA!BC$15 -> 0 | BD15: =TBA!BD$15 -> 0 | BE15: =TBA!BE$15 -> 0 | BF15: =TBA!BF$15 -> 0 | BG15: =TBA!BG$15 -> 0 | BH15: =TBA!BH$15 -> 0 | BI15: =TBA!BI$15 -> 0 | BJ15: =TBA!BJ$15 -> 0 | BK15: =TBA!BK$15 -> 0 | BL15: =TBA!BL$15 -> 0 | BM15: =TBA!BM$15 -> 0
E16: =Timing!E$33 -> Construction Period | F16: =Timing!F$33 -> 0 | G16: =Timing!G$33 -> flag | H16: =Timing!H$33 -> 2 | I16: =Timing!I$33 -> 0 | J16: =Timing!J$33 -> 1 | K16: =Timing!K$33 -> 1 | L16: =Timing!L$33 -> 0 | M16: =Timing!M$33 -> 0 | N16: =Timing!N$33 -> 0 | O16: =Timing!O$33 -> 0 | P16: =Timing!P$33 -> 0 | Q16: =Timing!Q$33 -> 0 | R16: =Timing!R$33 -> 0 | S16: =Timing!S$33 -> 0 | T16: =Timing!T$33 -> 0 | U16: =Timing!U$33 -> 0 | V16: =Timing!V$33 -> 0 | W16: =Timing!W$33 -> 0 | X16: =Timing!X$33 -> 0 | Y16: =Timing!Y$33 -> 0 | Z16: =Timing!Z$33 -> 0 | AA16: =Timing!AA$33 -> 0 | AB16: =Timing!AB$33 -> 0 | AC16: =Timing!AC$33 -> 0 | AD16: =Timing!AD$33 -> 0 | AE16: =Timing!AE$33 -> 0 | AF16: =Timing!AF$33 -> 0 | AG16: =Timing!AG$33 -> 0 | AH16: =Timing!AH$33 -> 0 | AI16: =Timing!AI$33 -> 0 | AJ16: =Timing!AJ$33 -> 0 | AK16: =Timing!AK$33 -> 0 | AL16: =Timing!AL$33 -> 0 | AM16: =Timing!AM$33 -> 0 | AN16: =Timing!AN$33 -> 0 | AO16: =Timing!AO$33 -> 0 | AP16: =Timing!AP$33 -> 0 | AQ16: =Timing!AQ$33 -> 0 | AR16: =Timing!AR$33 -> 0 | AS16: =Timing!AS$33 -> 0 | AT16: =Timing!AT$33 -> 0 | AU16: =Timing!AU$33 -> 0 | AV16: =Timing!AV$33 -> 0 | AW16: =Timing!AW$33 -> 0 | AX16: =Timing!AX$33 -> 0 | AY16: =Timing!AY$33 -> 0 | AZ16: =Timing!AZ$33 -> 0 | BA16: =Timing!BA$33 -> 0 | BB16: =Timing!BB$33 -> 0 | BC16: =Timing!BC$33 -> 0 | BD16: =Timing!BD$33 -> 0 | BE16: =Timing!BE$33 -> 0 | BF16: =Timing!BF$33 -> 0 | BG16: =Timing!BG$33 -> 0 | BH16: =Timing!BH$33 -> 0 | BI16: =Timing!BI$33 -> 0 | BJ16: =Timing!BJ$33 -> 0 | BK16: =Timing!BK$33 -> 0 | BL16: =Timing!BL$33 -> 0 | BM16: =Timing!BM$33 -> 0
E17: Process 1 - Investments Accrued & Paid POS | G17: EUR | H17: =SUM(J17:BM17) -> 523000 | J17: =$F13 * $F14 * J15 * J16 -> 261500 | K17: =$F13 * $F14 * K15 * K16 -> 261500 | L17: 0 | M17: 0 | N17: 0 | O17: 0 | P17: 0 | Q17: 0 | R17: 0 | S17: 0 | T17: 0 | U17: 0 | V17: 0 | W17: 0 | X17: 0 | Y17: 0 | Z17: 0 | AA17: 0 | AB17: 0 | AC17: 0 | AD17: 0 | AE17: 0 | AF17: 0 | AG17: 0 | AH17: 0 | AI17: 0 | AJ17: 0 | AK17: 0 | AL17: 0 | AM17: 0 | AN17: 0 | AO17: 0 | AP17: 0 | AQ17: 0 | AR17: 0 | AS17: 0 | AT17: 0 | AU17: 0 | AV17: 0 | AW17: 0 | AX17: 0 | AY17: 0 | AZ17: 0 | BA17: 0 | BB17: 0 | BC17: 0 | BD17: 0 | BE17: 0 | BF17: 0 | BG17: 0 | BH17: 0 | BI17: 0 | BJ17: 0 | BK17: 0 | BL17: 0 | BM17: 0
E18: =LEFT(E17, LEN(E17) - 4) -> Process 1 - Investments Accrued & Paid | F18: CF | G18: EUR | H18: =SUM(J18:DM18) -> -523000 | J18: =-1 * J17 -> -261500 | K18: -261500 | L18: 0 | M18: 0 | N18: 0 | O18: 0 | P18: 0 | Q18: 0 | R18: 0 | S18: 0 | T18: 0 | U18: 0 | V18: 0 | W18: 0 | X18: 0 | Y18: 0 | Z18: 0 | AA18: 0 | AB18: 0 | AC18: 0 | AD18: 0 | AE18: 0 | AF18: 0 | AG18: 0 | AH18: 0 | AI18: 0 | AJ18: 0 | AK18: 0 | AL18: 0 | AM18: 0 | AN18: 0 | AO18: 0 | AP18: 0 | AQ18: 0 | AR18: 0 | AS18: 0 | AT18: 0 | AU18: 0 | AV18: 0 | AW18: 0 | AX18: 0 | AY18: 0 | AZ18: 0 | BA18: 0 | BB18: 0 | BC18: 0 | BD18: 0 | BE18: 0 | BF18: 0 | BG18: 0 | BH18: 0 | BI18: 0 | BJ18: 0 | BK18: 0 | BL18: 0 | BM18: 0 | BN18: 0 | BO18: 0 | BP18: 0 | BQ18: 0 | BR18: 0 | BS18: 0 | BT18: 0 | BU18: 0 | BV18: =-1 * BV17 -> 0 | BW18: 0 | BX18: 0 | BY18: 0 | BZ18: 0 | CA18: 0 | CB18: 0 | CC18: 0 | CD18: 0 | CE18: 0 | CF18: 0 | CG18: 0 | CH18: 0 | CI18: 0 | CJ18: 0 | CK18: 0 | CL18: 0 | CM18: 0 | CN18: 0 | CO18: 0 | CP18: 0 | CQ18: 0 | CR18: 0 | CS18: 0 | CT18: 0 | CU18: 0 | CV18: 0 | CW18: 0 | CX18: 0 | CY18: 0 | CZ18: 0 | DA18: 0 | DB18: 0 | DC18: 0 | DD18: 0 | DE18: 0 | DF18: 0 | DG18: 0 | DH18: 0 | DI18: 0 | DJ18: 0 | DK18: 0 | DL18: 0 | DM18: 0
D20: Process 2
E21: =NTBA!E$48 -> Process 2 - Active | F21: =NTBA!F$48 -> 0 | G21: =NTBA!G$48 -> 0=no ; 1=yes
E22: =NTBA!E$85 -> Process 2 - CAPEX | F22: =NTBA!F$85 -> 702986 | G22: =NTBA!G$85 -> EUR
E23: =TBA!E$15 -> CAPEX Investment Profile | F23: =TBA!F$15 -> 0 | G23: =TBA!G$15 -> % | H23: =TBA!H$15 -> 1 | I23: =TBA!I$15 -> 0 | J23: =TBA!J$15 -> 0.5 | K23: =TBA!K$15 -> 0.5 | L23: =TBA!L$15 -> 0 | M23: =TBA!M$15 -> 0 | N23: =TBA!N$15 -> 0 | O23: =TBA!O$15 -> 0 | P23: =TBA!P$15 -> 0 | Q23: =TBA!Q$15 -> 0 | R23: =TBA!R$15 -> 0 | S23: =TBA!S$15 -> 0 | T23: =TBA!T$15 -> 0 | U23: =TBA!U$15 -> 0 | V23: =TBA!V$15 -> 0 | W23: =TBA!W$15 -> 0 | X23: =TBA!X$15 -> 0 | Y23: =TBA!Y$15 -> 0 | Z23: =TBA!Z$15 -> 0 | AA23: =TBA!AA$15 -> 0 | AB23: =TBA!AB$15 -> 0 | AC23: =TBA!AC$15 -> 0 | AD23: =TBA!AD$15 -> 0 | AE23: =TBA!AE$15 -> 0 | AF23: =TBA!AF$15 -> 0 | AG23: =TBA!AG$15 -> 0 | AH23: =TBA!AH$15 -> 0 | AI23: =TBA!AI$15 -> 0 | AJ23: =TBA!AJ$15 -> 0 | AK23: =TBA!AK$15 -> 0 | AL23: =TBA!AL$15 -> 0 | AM23: =TBA!AM$15 -> 0 | AN23: =TBA!AN$15 -> 0 | AO23: =TBA!AO$15 -> 0 | AP23: =TBA!AP$15 -> 0 | AQ23: =TBA!AQ$15 -> 0 | AR23: =TBA!AR$15 -> 0 | AS23: =TBA!AS$15 -> 0 | AT23: =TBA!AT$15 -> 0 | AU23: =TBA!AU$15 -> 0 | AV23: =TBA!AV$15 -> 0 | AW23: =TBA!AW$15 -> 0 | AX23: =TBA!AX$15 -> 0 | AY23: =TBA!AY$15 -> 0 | AZ23: =TBA!AZ$15 -> 0 | BA23: =TBA!BA$15 -> 0 | BB23: =TBA!BB$15 -> 0 | BC23: =TBA!BC$15 -> 0 | BD23: =TBA!BD$15 -> 0 | BE23: =TBA!BE$15 -> 0 | BF23: =TBA!BF$15 -> 0 | BG23: =TBA!BG$15 -> 0 | BH23: =TBA!BH$15 -> 0 | BI23: =TBA!BI$15 -> 0 | BJ23: =TBA!BJ$15 -> 0 | BK23: =TBA!BK$15 -> 0 | BL23: =TBA!BL$15 -> 0 | BM23: =TBA!BM$15 -> 0
E24: =Timing!E$33 -> Construction Period | F24: =Timing!F$33 -> 0 | G24: =Timing!G$33 -> flag | H24: =Timing!H$33 -> 2 | I24: =Timing!I$33 -> 0 | J24: =Timing!J$33 -> 1 | K24: =Timing!K$33 -> 1 | L24: =Timing!L$33 -> 0 | M24: =Timing!M$33 -> 0 | N24: =Timing!N$33 -> 0 | O24: =Timing!O$33 -> 0 | P24: =Timing!P$33 -> 0 | Q24: =Timing!Q$33 -> 0 | R24: =Timing!R$33 -> 0 | S24: =Timing!S$33 -> 0 | T24: =Timing!T$33 -> 0 | U24: =Timing!U$33 -> 0 | V24: =Timing!V$33 -> 0 | W24: =Timing!W$33 -> 0 | X24: =Timing!X$33 -> 0 | Y24: =Timing!Y$33 -> 0 | Z24: =Timing!Z$33 -> 0 | AA24: =Timing!AA$33 -> 0 | AB24: =Timing!AB$33 -> 0 | AC24: =Timing!AC$33 -> 0 | AD24: =Timing!AD$33 -> 0 | AE24: =Timing!AE$33 -> 0 | AF24: =Timing!AF$33 -> 0 | AG24: =Timing!AG$33 -> 0 | AH24: =Timing!AH$33 -> 0 | AI24: =Timing!AI$33 -> 0 | AJ24: =Timing!AJ$33 -> 0 | AK24: =Timing!AK$33 -> 0 | AL24: =Timing!AL$33 -> 0 | AM24: =Timing!AM$33 -> 0 | AN24: =Timing!AN$33 -> 0 | AO24: =Timing!AO$33 -> 0 | AP24: =Timing!AP$33 -> 0 | AQ24: =Timing!AQ$33 -> 0 | AR24: =Timing!AR$33 -> 0 | AS24: =Timing!AS$33 -> 0 | AT24: =Timing!AT$33 -> 0 | AU24: =Timing!AU$33 -> 0 | AV24: =Timing!AV$33 -> 0 | AW24: =Timing!AW$33 -> 0 | AX24: =Timing!AX$33 -> 0 | AY24: =Timing!AY$33 -> 0 | AZ24: =Timing!AZ$33 -> 0 | BA24: =Timing!BA$33 -> 0 | BB24: =Timing!BB$33 -> 0 | BC24: =Timing!BC$33 -> 0 | BD24: =Timing!BD$33 -> 0 | BE24: =Timing!BE$33 -> 0 | BF24: =Timing!BF$33 -> 0 | BG24: =Timing!BG$33 -> 0 | BH24: =Timing!BH$33 -> 0 | BI24: =Timing!BI$33 -> 0 | BJ24: =Timing!BJ$33 -> 0 | BK24: =Timing!BK$33 -> 0 | BL24: =Timing!BL$33 -> 0 | BM24: =Timing!BM$33 -> 0
E25: Process 2 - Investments Accrued & Paid POS | G25: EUR | H25: =SUM(J25:BM25) -> 0 | J25: =$F21 * $F22 * J23 * J24 -> 0 | K25: 0 | L25: 0 | M25: 0 | N25: 0 | O25: 0 | P25: 0 | Q25: 0 | R25: 0 | S25: 0 | T25: 0 | U25: 0 | V25: 0 | W25: 0 | X25: 0 | Y25: 0 | Z25: 0 | AA25: 0 | AB25: 0 | AC25: 0 | AD25: 0 | AE25: 0 | AF25: 0 | AG25: 0 | AH25: 0 | AI25: 0 | AJ25: 0 | AK25: 0 | AL25: 0 | AM25: 0 | AN25: 0 | AO25: 0 | AP25: =$F21 * $F22 * AP23 * AP24 -> 0 | AQ25: 0 | AR25: 0 | AS25: 0 | AT25: 0 | AU25: 0 | AV25: 0 | AW25: 0 | AX25: 0 | AY25: 0 | AZ25: 0 | BA25: 0 | BB25: 0 | BC25: 0 | BD25: 0 | BE25: 0 | BF25: 0 | BG25: 0 | BH25: 0 | BI25: 0 | BJ25: 0 | BK25: 0 | BL25: 0 | BM25: 0
E26: =LEFT(E25, LEN(E25) - 4) -> Process 2 - Investments Accrued & Paid | F26: CF | G26: EUR | H26: =SUM(J26:DM26) -> 0 | J26: =-1 * J25 -> 0 | K26: 0 | L26: 0 | M26: 0 | N26: 0 | O26: 0 | P26: 0 | Q26: 0 | R26: 0 | S26: 0 | T26: 0 | U26: 0 | V26: 0 | W26: 0 | X26: 0 | Y26: 0 | Z26: 0 | AA26: 0 | AB26: 0 | AC26: 0 | AD26: 0 | AE26: 0 | AF26: 0 | AG26: 0 | AH26: 0 | AI26: 0 | AJ26: 0 | AK26: 0 | AL26: 0 | AM26: 0 | AN26: 0 | AO26: 0 | AP26: 0 | AQ26: 0 | AR26: 0 | AS26: 0 | AT26: 0 | AU26: 0 | AV26: 0 | AW26: 0 | AX26: 0 | AY26: 0 | AZ26: 0 | BA26: 0 | BB26: 0 | BC26: 0 | BD26: 0 | BE26: 0 | BF26: 0 | BG26: 0 | BH26: 0 | BI26: 0 | BJ26: 0 | BK26: 0 | BL26: 0 | BM26: 0 | BN26: 0 | BO26: 0 | BP26: 0 | BQ26: 0 | BR26: 0 | BS26: 0 | BT26: 0 | BU26: 0 | BV26: =-1 * BV25 -> 0 | BW26: 0 | BX26: 0 | BY26: 0 | BZ26: 0 | CA26: 0 | CB26: 0 | CC26: 0 | CD26: 0 | CE26: 0 | CF26: 0 | CG26: 0 | CH26: 0 | CI26: 0 | CJ26: 0 | CK26: 0 | CL26: 0 | CM26: 0 | CN26: 0 | CO26: 0 | CP26: 0 | CQ26: 0 | CR26: 0 | CS26: 0 | CT26: 0 | CU26: 0 | CV26: 0 | CW26: 0 | CX26: 0 | CY26: 0 | CZ26: 0 | DA26: 0 | DB26: 0 | DC26: 0 | DD26: 0 | DE26: 0 | DF26: 0 | DG26: 0 | DH26: 0 | DI26: 0 | DJ26: 0 | DK26: 0 | DL26: 0 | DM26: 0
D28: Process 3
E29: =NTBA!E$63 -> Process 3 - Active | F29: =NTBA!F$63 -> 0 | G29: =NTBA!G$63 -> 0=no ; 1=yes
E30: =NTBA!E$90 -> Process 3 - CAPEX | F30: =NTBA!F$90 -> 0 | G30: =NTBA!G$90 -> EUR
E31: =TBA!E$15 -> CAPEX Investment Profile | F31: =TBA!F$15 -> 0 | G31: =TBA!G$15 -> % | H31: =TBA!H$15 -> 1 | I31: =TBA!I$15 -> 0 | J31: =TBA!J$15 -> 0.5 | K31: =TBA!K$15 -> 0.5 | L31: =TBA!L$15 -> 0 | M31: =TBA!M$15 -> 0 | N31: =TBA!N$15 -> 0 | O31: =TBA!O$15 -> 0 | P31: =TBA!P$15 -> 0 | Q31: =TBA!Q$15 -> 0 | R31: =TBA!R$15 -> 0 | S31: =TBA!S$15 -> 0 | T31: =TBA!T$15 -> 0 | U31: =TBA!U$15 -> 0 | V31: =TBA!V$15 -> 0 | W31: =TBA!W$15 -> 0 | X31: =TBA!X$15 -> 0 | Y31: =TBA!Y$15 -> 0 | Z31: =TBA!Z$15 -> 0 | AA31: =TBA!AA$15 -> 0 | AB31: =TBA!AB$15 -> 0 | AC31: =TBA!AC$15 -> 0 | AD31: =TBA!AD$15 -> 0 | AE31: =TBA!AE$15 -> 0 | AF31: =TBA!AF$15 -> 0 | AG31: =TBA!AG$15 -> 0 | AH31: =TBA!AH$15 -> 0 | AI31: =TBA!AI$15 -> 0 | AJ31: =TBA!AJ$15 -> 0 | AK31: =TBA!AK$15 -> 0 | AL31: =TBA!AL$15 -> 0 | AM31: =TBA!AM$15 -> 0 | AN31: =TBA!AN$15 -> 0 | AO31: =TBA!AO$15 -> 0 | AP31: =TBA!AP$15 -> 0 | AQ31: =TBA!AQ$15 -> 0 | AR31: =TBA!AR$15 -> 0 | AS31: =TBA!AS$15 -> 0 | AT31: =TBA!AT$15 -> 0 | AU31: =TBA!AU$15 -> 0 | AV31: =TBA!AV$15 -> 0 | AW31: =TBA!AW$15 -> 0 | AX31: =TBA!AX$15 -> 0 | AY31: =TBA!AY$15 -> 0 | AZ31: =TBA!AZ$15 -> 0 | BA31: =TBA!BA$15 -> 0 | BB31: =TBA!BB$15 -> 0 | BC31: =TBA!BC$15 -> 0 | BD31: =TBA!BD$15 -> 0 | BE31: =TBA!BE$15 -> 0 | BF31: =TBA!BF$15 -> 0 | BG31: =TBA!BG$15 -> 0 | BH31: =TBA!BH$15 -> 0 | BI31: =TBA!BI$15 -> 0 | BJ31: =TBA!BJ$15 -> 0 | BK31: =TBA!BK$15 -> 0 | BL31: =TBA!BL$15 -> 0 | BM31: =TBA!BM$15 -> 0
E32: =Timing!E$33 -> Construction Period | F32: =Timing!F$33 -> 0 | G32: =Timing!G$33 -> flag | H32: =Timing!H$33 -> 2 | I32: =Timing!I$33 -> 0 | J32: =Timing!J$33 -> 1 | K32: =Timing!K$33 -> 1 | L32: =Timing!L$33 -> 0 | M32: =Timing!M$33 -> 0 | N32: =Timing!N$33 -> 0 | O32: =Timing!O$33 -> 0 | P32: =Timing!P$33 -> 0 | Q32: =Timing!Q$33 -> 0 | R32: =Timing!R$33 -> 0 | S32: =Timing!S$33 -> 0 | T32: =Timing!T$33 -> 0 | U32: =Timing!U$33 -> 0 | V32: =Timing!V$33 -> 0 | W32: =Timing!W$33 -> 0 | X32: =Timing!X$33 -> 0 | Y32: =Timing!Y$33 -> 0 | Z32: =Timing!Z$33 -> 0 | AA32: =Timing!AA$33 -> 0 | AB32: =Timing!AB$33 -> 0 | AC32: =Timing!AC$33 -> 0 | AD32: =Timing!AD$33 -> 0 | AE32: =Timing!AE$33 -> 0 | AF32: =Timing!AF$33 -> 0 | AG32: =Timing!AG$33 -> 0 | AH32: =Timing!AH$33 -> 0 | AI32: =Timing!AI$33 -> 0 | AJ32: =Timing!AJ$33 -> 0 | AK32: =Timing!AK$33 -> 0 | AL32: =Timing!AL$33 -> 0 | AM32: =Timing!AM$33 -> 0 | AN32: =Timing!AN$33 -> 0 | AO32: =Timing!AO$33 -> 0 | AP32: =Timing!AP$33 -> 0 | AQ32: =Timing!AQ$33 -> 0 | AR32: =Timing!AR$33 -> 0 | AS32: =Timing!AS$33 -> 0 | AT32: =Timing!AT$33 -> 0 | AU32: =Timing!AU$33 -> 0 | AV32: =Timing!AV$33 -> 0 | AW32: =Timing!AW$33 -> 0 | AX32: =Timing!AX$33 -> 0 | AY32: =Timing!AY$33 -> 0 | AZ32: =Timing!AZ$33 -> 0 | BA32: =Timing!BA$33 -> 0 | BB32: =Timing!BB$33 -> 0 | BC32: =Timing!BC$33 -> 0 | BD32: =Timing!BD$33 -> 0 | BE32: =Timing!BE$33 -> 0 | BF32: =Timing!BF$33 -> 0 | BG32: =Timing!BG$33 -> 0 | BH32: =Timing!BH$33 -> 0 | BI32: =Timing!BI$33 -> 0 | BJ32: =Timing!BJ$33 -> 0 | BK32: =Timing!BK$33 -> 0 | BL32: =Timing!BL$33 -> 0 | BM32: =Timing!BM$33 -> 0
E33: Process 3 - Investments Accrued & Paid POS | G33: EUR | H33: =SUM(J33:BM33) -> 0 | J33: =$F29 * $F30 * J31 * J32 -> 0 | K33: 0 | L33: 0 | M33: 0 | N33: 0 | O33: 0 | P33: 0 | Q33: 0 | R33: 0 | S33: 0 | T33: 0 | U33: 0 | V33: 0 | W33: 0 | X33: 0 | Y33: 0 | Z33: 0 | AA33: 0 | AB33: 0 | AC33: 0 | AD33: 0 | AE33: 0 | AF33: 0 | AG33: 0 | AH33: 0 | AI33: 0 | AJ33: 0 | AK33: 0 | AL33: 0 | AM33: 0 | AN33: 0 | AO33: 0 | AP33: =$F29 * $F30 * AP31 * AP32 -> 0 | AQ33: 0 | AR33: 0 | AS33: 0 | AT33: 0 | AU33: 0 | AV33: 0 | AW33: 0 | AX33: 0 | AY33: 0 | AZ33: 0 | BA33: 0 | BB33: 0 | BC33: 0 | BD33: 0 | BE33: 0 | BF33: 0 | BG33: 0 | BH33: 0 | BI33: 0 | BJ33: 0 | BK33: 0 | BL33: 0 | BM33: 0
E34: =LEFT(E33, LEN(E33) - 4) -> Process 3 - Investments Accrued & Paid | F34: CF | G34: EUR | H34: =SUM(J34:DM34) -> 0 | J34: =-1 * J33 -> 0 | K34: 0 | L34: 0 | M34: 0 | N34: 0 | O34: 0 | P34: 0 | Q34: 0 | R34: 0 | S34: 0 | T34: 0 | U34: 0 | V34: 0 | W34: 0 | X34: 0 | Y34: 0 | Z34: 0 | AA34: 0 | AB34: 0 | AC34: 0 | AD34: 0 | AE34: 0 | AF34: 0 | AG34: 0 | AH34: 0 | AI34: 0 | AJ34: 0 | AK34: 0 | AL34: 0 | AM34: 0 | AN34: 0 | AO34: 0 | AP34: 0 | AQ34: 0 | AR34: 0 | AS34: 0 | AT34: 0 | AU34: 0 | AV34: 0 | AW34: 0 | AX34: 0 | AY34: 0 | AZ34: 0 | BA34: 0 | BB34: 0 | BC34: 0 | BD34: 0 | BE34: 0 | BF34: 0 | BG34: 0 | BH34: 0 | BI34: 0 | BJ34: 0 | BK34: 0 | BL34: 0 | BM34: 0 | BN34: 0 | BO34: 0 | BP34: 0 | BQ34: 0 | BR34: 0 | BS34: 0 | BT34: 0 | BU34: 0 | BV34: =-1 * BV33 -> 0 | BW34: 0 | BX34: 0 | BY34: 0 | BZ34: 0 | CA34: 0 | CB34: 0 | CC34: 0 | CD34: 0 | CE34: 0 | CF34: 0 | CG34: 0 | CH34: 0 | CI34: 0 | CJ34: 0 | CK34: 0 | CL34: 0 | CM34: 0 | CN34: 0 | CO34: 0 | CP34: 0 | CQ34: 0 | CR34: 0 | CS34: 0 | CT34: 0 | CU34: 0 | CV34: 0 | CW34: 0 | CX34: 0 | CY34: 0 | CZ34: 0 | DA34: 0 | DB34: 0 | DC34: 0 | DD34: 0 | DE34: 0 | DF34: 0 | DG34: 0 | DH34: 0 | DI34: 0 | DJ34: 0 | DK34: 0 | DL34: 0 | DM34: 0
C36: Other Investments
E38: =NTBA!E$158 -> Other CAPEX | F38: =NTBA!F$158 -> 355000 | G38: =NTBA!G$158 -> EUR
E39: =TBA!E$15 -> CAPEX Investment Profile | F39: =TBA!F$15 -> 0 | G39: =TBA!G$15 -> % | H39: =TBA!H$15 -> 1 | I39: =TBA!I$15 -> 0 | J39: =TBA!J$15 -> 0.5 | K39: =TBA!K$15 -> 0.5 | L39: =TBA!L$15 -> 0 | M39: =TBA!M$15 -> 0 | N39: =TBA!N$15 -> 0 | O39: =TBA!O$15 -> 0 | P39: =TBA!P$15 -> 0 | Q39: =TBA!Q$15 -> 0 | R39: =TBA!R$15 -> 0 | S39: =TBA!S$15 -> 0 | T39: =TBA!T$15 -> 0 | U39: =TBA!U$15 -> 0 | V39: =TBA!V$15 -> 0 | W39: =TBA!W$15 -> 0 | X39: =TBA!X$15 -> 0 | Y39: =TBA!Y$15 -> 0 | Z39: =TBA!Z$15 -> 0 | AA39: =TBA!AA$15 -> 0 | AB39: =TBA!AB$15 -> 0 | AC39: =TBA!AC$15 -> 0 | AD39: =TBA!AD$15 -> 0 | AE39: =TBA!AE$15 -> 0 | AF39: =TBA!AF$15 -> 0 | AG39: =TBA!AG$15 -> 0 | AH39: =TBA!AH$15 -> 0 | AI39: =TBA!AI$15 -> 0 | AJ39: =TBA!AJ$15 -> 0 | AK39: =TBA!AK$15 -> 0 | AL39: =TBA!AL$15 -> 0 | AM39: =TBA!AM$15 -> 0 | AN39: =TBA!AN$15 -> 0 | AO39: =TBA!AO$15 -> 0 | AP39: =TBA!AP$15 -> 0 | AQ39: =TBA!AQ$15 -> 0 | AR39: =TBA!AR$15 -> 0 | AS39: =TBA!AS$15 -> 0 | AT39: =TBA!AT$15 -> 0 | AU39: =TBA!AU$15 -> 0 | AV39: =TBA!AV$15 -> 0 | AW39: =TBA!AW$15 -> 0 | AX39: =TBA!AX$15 -> 0 | AY39: =TBA!AY$15 -> 0 | AZ39: =TBA!AZ$15 -> 0 | BA39: =TBA!BA$15 -> 0 | BB39: =TBA!BB$15 -> 0 | BC39: =TBA!BC$15 -> 0 | BD39: =TBA!BD$15 -> 0 | BE39: =TBA!BE$15 -> 0 | BF39: =TBA!BF$15 -> 0 | BG39: =TBA!BG$15 -> 0 | BH39: =TBA!BH$15 -> 0 | BI39: =TBA!BI$15 -> 0 | BJ39: =TBA!BJ$15 -> 0 | BK39: =TBA!BK$15 -> 0 | BL39: =TBA!BL$15 -> 0 | BM39: =TBA!BM$15 -> 0
E40: =Timing!E$33 -> Construction Period | F40: =Timing!F$33 -> 0 | G40: =Timing!G$33 -> flag | H40: =Timing!H$33 -> 2 | I40: =Timing!I$33 -> 0 | J40: =Timing!J$33 -> 1 | K40: =Timing!K$33 -> 1 | L40: =Timing!L$33 -> 0 | M40: =Timing!M$33 -> 0 | N40: =Timing!N$33 -> 0 | O40: =Timing!O$33 -> 0 | P40: =Timing!P$33 -> 0 | Q40: =Timing!Q$33 -> 0 | R40: =Timing!R$33 -> 0 | S40: =Timing!S$33 -> 0 | T40: =Timing!T$33 -> 0 | U40: =Timing!U$33 -> 0 | V40: =Timing!V$33 -> 0 | W40: =Timing!W$33 -> 0 | X40: =Timing!X$33 -> 0 | Y40: =Timing!Y$33 -> 0 | Z40: =Timing!Z$33 -> 0 | AA40: =Timing!AA$33 -> 0 | AB40: =Timing!AB$33 -> 0 | AC40: =Timing!AC$33 -> 0 | AD40: =Timing!AD$33 -> 0 | AE40: =Timing!AE$33 -> 0 | AF40: =Timing!AF$33 -> 0 | AG40: =Timing!AG$33 -> 0 | AH40: =Timing!AH$33 -> 0 | AI40: =Timing!AI$33 -> 0 | AJ40: =Timing!AJ$33 -> 0 | AK40: =Timing!AK$33 -> 0 | AL40: =Timing!AL$33 -> 0 | AM40: =Timing!AM$33 -> 0 | AN40: =Timing!AN$33 -> 0 | AO40: =Timing!AO$33 -> 0 | AP40: =Timing!AP$33 -> 0 | AQ40: =Timing!AQ$33 -> 0 | AR40: =Timing!AR$33 -> 0 | AS40: =Timing!AS$33 -> 0 | AT40: =Timing!AT$33 -> 0 | AU40: =Timing!AU$33 -> 0 | AV40: =Timing!AV$33 -> 0 | AW40: =Timing!AW$33 -> 0 | AX40: =Timing!AX$33 -> 0 | AY40: =Timing!AY$33 -> 0 | AZ40: =Timing!AZ$33 -> 0 | BA40: =Timing!BA$33 -> 0 | BB40: =Timing!BB$33 -> 0 | BC40: =Timing!BC$33 -> 0 | BD40: =Timing!BD$33 -> 0 | BE40: =Timing!BE$33 -> 0 | BF40: =Timing!BF$33 -> 0 | BG40: =Timing!BG$33 -> 0 | BH40: =Timing!BH$33 -> 0 | BI40: =Timing!BI$33 -> 0 | BJ40: =Timing!BJ$33 -> 0 | BK40: =Timing!BK$33 -> 0 | BL40: =Timing!BL$33 -> 0 | BM40: =Timing!BM$33 -> 0
E41: Other Investments during Construction POS | G41: EUR | H41: =SUM(J41:BM41) -> 355000 | J41: =$F38 * J39 * J40 -> 177500 | K41: 177500 | L41: 0 | M41: 0 | N41: 0 | O41: 0 | P41: 0 | Q41: 0 | R41: 0 | S41: 0 | T41: 0 | U41: 0 | V41: 0 | W41: 0 | X41: 0 | Y41: 0 | Z41: 0 | AA41: 0 | AB41: 0 | AC41: 0 | AD41: 0 | AE41: 0 | AF41: 0 | AG41: 0 | AH41: 0 | AI41: 0 | AJ41: 0 | AK41: 0 | AL41: 0 | AM41: 0 | AN41: 0 | AO41: 0 | AP41: =$F38 * AP39 * AP40 -> 0 | AQ41: 0 | AR41: 0 | AS41: 0 | AT41: 0 | AU41: 0 | AV41: 0 | AW41: 0 | AX41: 0 | AY41: 0 | AZ41: 0 | BA41: 0 | BB41: 0 | BC41: 0 | BD41: 0 | BE41: 0 | BF41: 0 | BG41: 0 | BH41: 0 | BI41: 0 | BJ41: 0 | BK41: 0 | BL41: 0 | BM41: 0
E42: =LEFT(E41, LEN(E41) - 4) -> Other Investments during Construction | F42: CF | G42: EUR | H42: =SUM(J42:DM42) -> -355000 | J42: =-1 * J41 -> -177500 | K42: -177500 | L42: 0 | M42: 0 | N42: 0 | O42: 0 | P42: 0 | Q42: 0 | R42: 0 | S42: 0 | T42: 0 | U42: 0 | V42: 0 | W42: 0 | X42: 0 | Y42: 0 | Z42: 0 | AA42: 0 | AB42: 0 | AC42: 0 | AD42: 0 | AE42: 0 | AF42: 0 | AG42: 0 | AH42: 0 | AI42: 0 | AJ42: 0 | AK42: 0 | AL42: 0 | AM42: 0 | AN42: 0 | AO42: 0 | AP42: 0 | AQ42: 0 | AR42: 0 | AS42: 0 | AT42: 0 | AU42: 0 | AV42: 0 | AW42: 0 | AX42: 0 | AY42: 0 | AZ42: 0 | BA42: 0 | BB42: 0 | BC42: 0 | BD42: 0 | BE42: 0 | BF42: 0 | BG42: 0 | BH42: 0 | BI42: 0 | BJ42: 0 | BK42: 0 | BL42: 0 | BM42: 0 | BN42: 0 | BO42: 0 | BP42: 0 | BQ42: 0 | BR42: 0 | BS42: 0 | BT42: 0 | BU42: 0 | BV42: =-1 * BV41 -> 0 | BW42: 0 | BX42: 0 | BY42: 0 | BZ42: 0 | CA42: 0 | CB42: 0 | CC42: 0 | CD42: 0 | CE42: 0 | CF42: 0 | CG42: 0 | CH42: 0 | CI42: 0 | CJ42: 0 | CK42: 0 | CL42: 0 | CM42: 0 | CN42: 0 | CO42: 0 | CP42: 0 | CQ42: 0 | CR42: 0 | CS42: 0 | CT42: 0 | CU42: 0 | CV42: 0 | CW42: 0 | CX42: 0 | CY42: 0 | CZ42: 0 | DA42: 0 | DB42: 0 | DC42: 0 | DD42: 0 | DE42: 0 | DF42: 0 | DG42: 0 | DH42: 0 | DI42: 0 | DJ42: 0 | DK42: 0 | DL42: 0 | DM42: 0
C44: Total Investments
E46: =NTBA!E$80 -> Process 1 - CAPEX | F46: =NTBA!F$80 -> 523000 | G46: =NTBA!G$80 -> EUR
